Workbook

Sheet XLP
A1: Date | B1: Open | C1: High | D1: Low | E1: Close | F1: Adj Close | G1: Volume
A2: 2013-04-22 | B2: 41.07 | C2: 41.189999 | D2: 40.810001 | E2: 41.110001 | F2: 31.609234 | G2: 5972300
A3: 2013-04-23 | B3: 41.220001 | C3: 41.439999 | D3: 40.900002 | E3: 41.43 | F3: 31.855267 | G3: 13184200
A4: 2013-04-24 | B4: 41.25 | C4: 41.369999 | D4: 40.73 | E4: 40.77 | F4: 31.347813 | G4: 30015500
A5: 2013-04-25 | B5: 40.860001 | C5: 41.009998 | D5: 40.759998 | E5: 40.900002 | F5: 31.447756 | G5: 12200800
A6: 2013-04-26 | B6: 40.799999 | C6: 41.009998 | D6: 40.799999 | E6: 40.889999 | F6: 31.440079 | G6: 9481800
A7: 2013-04-29 | B7: 41.009998 | C7: 41.07 | D7: 40.860001 | E7: 41.02 | F7: 31.54003 | G7: 6696000
A8: 2013-04-30 | B8: 40.98 | C8: 41.029999 | D8: 40.77 | E8: 40.939999 | F8: 31.478527 | G8: 11354900
A9: 2013-05-01 | B9: 40.889999 | C9: 41.200001 | D9: 40.84 | E9: 40.900002 | F9: 31.447756 | G9: 7556600
A10: 2013-05-02 | B10: 40.91 | C10: 41.189999 | D10: 40.77 | E10: 41.049999 | F10: 31.563108 | G10: 9194000
A11: 2013-05-03 | B11: 41.27 | C11: 41.369999 | D11: 41.099998 | E11: 41.23 | F11: 31.701498 | G11: 12843400
A12: 2013-05-06 | B12: 41.200001 | C12: 41.200001 | D12: 40.880001 | E12: 40.93 | F12: 31.470827 | G12: 14530800
A13: 2013-05-07 | B13: 41.009998 | C13: 41.25 | D13: 40.939999 | E13: 41.240002 | F13: 31.7092 | G13: 8152200
A14: 2013-05-08 | B14: 41.23 | C14: 41.299999 | D14: 41.139999 | E14: 41.290001 | F14: 31.747627 | G14: 6623300
A15: 2013-05-09 | B15: 41.259998 | C15: 41.349998 | D15: 40.900002 | E15: 41 | F15: 31.524645 | G15: 12872500
A16: 2013-05-10 | B16: 40.919998 | C16: 41.189999 | D16: 40.919998 | E16: 41.16 | F16: 31.647684 | G16: 8304700
A17: 2013-05-13 | B17: 41.119999 | C17: 41.380001 | D17: 41.049999 | E17: 41.23 | F17: 31.701498 | G17: 7821600
A18: 2013-05-14 | B18: 41.209999 | C18: 41.73 | D18: 41.209999 | E18: 41.720001 | F18: 32.078259 | G18: 7373100
A19: 2013-05-15 | B19: 41.700001 | C19: 42.200001 | D19: 41.66 | E19: 42.130001 | F19: 32.393509 | G19: 11728700
A20: 2013-05-16 | B20: 42.029999 | C20: 42.110001 | D20: 41.810001 | E20: 41.880001 | F20: 32.201279 | G20: 9313100
A21: 2013-05-17 | B21: 41.889999 | C21: 41.970001 | D21: 41.639999 | E21: 41.939999 | F21: 32.247417 | G21: 9368100
A22: 2013-05-20 | B22: 41.91 | C22: 41.950001 | D22: 41.48 | E22: 41.509998 | F22: 31.916786 | G22: 9866600
A23: 2013-05-21 | B23: 41.630001 | C23: 41.669998 | D23: 41.27 | E23: 41.549999 | F23: 31.947536 | G23: 10408400
A24: 2013-05-22 | B24: 41.580002 | C24: 42.02 | D24: 41.34 | E24: 41.48 | F24: 31.893713 | G24: 16899000
A25: 2013-05-23 | B25: 41.139999 | C25: 41.450001 | D25: 41.049999 | E25: 41.310001 | F25: 31.763 | G25: 12831900
A26: 2013-05-24 | B26: 41.32 | C26: 41.720001 | D26: 41.32 | E26: 41.700001 | F26: 32.062893 | G26: 16015800
A27: 2013-05-28 | B27: 42.060001 | C27: 42.189999 | D27: 41.639999 | E27: 41.77 | F27: 32.116699 | G27: 15727400
A28: 2013-05-29 | B28: 41.529999 | C28: 41.57 | D28: 40.889999 | E28: 40.970001 | F28: 31.50157 | G28: 21414900
A29: 2013-05-30 | B29: 41.02 | C29: 41.16 | D29: 40.790001 | E29: 40.810001 | F29: 31.378571 | G29: 15949200
A30: 2013-05-31 | B30: 40.720001 | C30: 40.720001 | D30: 40.029999 | E30: 40.049999 | F30: 30.794199 | G30: 33824800
A31: 2013-06-03 | B31: 40.150002 | C31: 40.5 | D31: 39.68 | E31: 40.490002 | F31: 31.132509 | G31: 39020500
A32: 2013-06-04 | B32: 40.639999 | C32: 40.779999 | D32: 40.209999 | E32: 40.5 | F32: 31.140198 | G32: 12962800
A33: 2013-06-05 | B33: 40.380001 | C33: 40.419998 | D33: 40 | E33: 40.009998 | F33: 30.763453 | G33: 17077900
A34: 2013-06-06 | B34: 39.990002 | C34: 40.189999 | D34: 39.700001 | E34: 40.18 | F34: 30.894161 | G34: 12352700
A35: 2013-06-07 | B35: 40.389999 | C35: 40.849998 | D35: 40.389999 | E35: 40.68 | F35: 31.278614 | G35: 18700800
A36: 2013-06-10 | B36: 40.849998 | C36: 40.849998 | D36: 40.490002 | E36: 40.68 | F36: 31.278614 | G36: 11190300
A37: 2013-06-11 | B37: 40.450001 | C37: 40.860001 | D37: 40.32 | E37: 40.580002 | F37: 31.201727 | G37: 20334000
A38: 2013-06-12 | B38: 40.73 | C38: 40.900002 | D38: 40.380001 | E38: 40.380001 | F38: 31.047943 | G38: 14908400
A39: 2013-06-13 | B39: 40.470001 | C39: 41.880001 | D39: 40.220001 | E39: 40.799999 | F39: 31.370874 | G39: 13048700
A40: 2013-06-14 | B40: 40.73 | C40: 41.029999 | D40: 40.59 | E40: 40.700001 | F40: 31.293985 | G40: 8453300
A41: 2013-06-17 | B41: 40.830002 | C41: 41.23 | D41: 40.779999 | E41: 41.060001 | F41: 31.57081 | G41: 9877200
A42: 2013-06-18 | B42: 41.060001 | C42: 41.259998 | D42: 40.93 | E42: 41.209999 | F42: 31.686117 | G42: 8441200
A43: 2013-06-19 | B43: 41.209999 | C43: 41.299999 | D43: 40.389999 | E43: 40.389999 | F43: 31.055634 | G43: 25795200
A44: 2013-06-20 | B44: 40.049999 | C44: 40.279999 | D44: 39.099998 | E44: 39.169998 | F44: 30.117569 | G44: 32296500
A45: 2013-06-21 | B45: 39.209999 | C45: 39.630001 | D45: 39.040001 | E45: 39.43 | F45: 30.51536 | G45: 22743500
A46: 2013-06-24 | B46: 39.150002 | C46: 39.650002 | D46: 38.869999 | E46: 39.27 | F46: 30.391542 | G46: 24973100
A47: 2013-06-25 | B47: 39.439999 | C47: 39.48 | D47: 39.119999 | E47: 39.330002 | F47: 30.437981 | G47: 13004400
A48: 2013-06-26 | B48: 39.57 | C48: 39.889999 | D48: 39.57 | E48: 39.740002 | F48: 30.755276 | G48: 18133100
A49: 2013-06-27 | B49: 39.990002 | C49: 40.290001 | D49: 39.900002 | E49: 39.919998 | F49: 30.894577 | G49: 10033600
A50: 2013-06-28 | B50: 39.84 | C50: 40.040001 | D50: 39.639999 | E50: 39.669998 | F50: 30.701109 | G50: 11033300
A51: 2013-07-01 | B51: 39.91 | C51: 40.25 | D51: 39.48 | E51: 39.959999 | F51: 30.925543 | G51: 11795300
A52: 2013-07-02 | B52: 39.939999 | C52: 40.23 | D52: 39.869999 | E52: 40.009998 | F52: 30.964243 | G52: 5441200
A53: 2013-07-03 | B53: 39.880001 | C53: 40.02 | D53: 39.650002 | E53: 39.93 | F53: 30.902323 | G53: 3985400
A54: 2013-07-05 | B54: 40.02 | C54: 40.200001 | D54: 39.650002 | E54: 40.029999 | F54: 30.979721 | G54: 10602600
A55: 2013-07-08 | B55: 40.080002 | C55: 40.470001 | D55: 40.080002 | E55: 40.43 | F55: 31.289278 | G55: 7611700
A56: 2013-07-09 | B56: 40.700001 | C56: 40.82 | D56: 40.630001 | E56: 40.73 | F56: 31.521458 | G56: 8937800
A57: 2013-07-10 | B57: 40.73 | C57: 40.959999 | D57: 40.669998 | E57: 40.779999 | F57: 31.560152 | G57: 7701700
A58: 2013-07-11 | B58: 41.209999 | C58: 41.48 | D58: 41.169998 | E58: 41.419998 | F58: 32.055462 | G58: 12282200
A59: 2013-07-12 | B59: 41.349998 | C59: 41.470001 | D59: 41.279999 | E59: 41.43 | F59: 32.063183 | G59: 5566100
A60: 2013-07-15 | B60: 41.5 | C60: 41.5 | D60: 41.389999 | E60: 41.490002 | F60: 32.109627 | G60: 7076000
A61: 2013-07-16 | B61: 41.130001 | C61: 41.419998 | D61: 41.130001 | E61: 41.34 | F61: 31.993544 | G61: 10156700
A62: 2013-07-17 | B62: 41.41 | C62: 41.540001 | D62: 41.369999 | E62: 41.419998 | F62: 32.055462 | G62: 9365500
A63: 2013-07-18 | B63: 41.41 | C63: 41.709999 | D63: 41.349998 | E63: 41.560001 | F63: 32.163803 | G63: 7136100
A64: 2013-07-19 | B64: 41.57 | C64: 41.799999 | D64: 41.52 | E64: 41.799999 | F64: 32.349537 | G64: 8352700
A65: 2013-07-22 | B65: 41.84 | C65: 41.849998 | D65: 41.650002 | E65: 41.709999 | F65: 32.279888 | G65: 7887600
A66: 2013-07-23 | B66: 41.75 | C66: 41.759998 | D66: 41.580002 | E66: 41.630001 | F66: 32.217979 | G66: 6122500
A67: 2013-07-24 | B67: 41.740002 | C67: 41.740002 | D67: 41.27 | E67: 41.360001 | F67: 32.009026 | G67: 8262900
A68: 2013-07-25 | B68: 41.279999 | C68: 41.619999 | D68: 41.25 | E68: 41.580002 | F68: 32.179276 | G68: 4720600
A69: 2013-07-26 | B69: 41.419998 | C69: 41.549999 | D69: 41.02 | E69: 41.529999 | F69: 32.140579 | G69: 6073200
A70: 2013-07-29 | B70: 41.470001 | C70: 41.540001 | D70: 41.34 | E70: 41.439999 | F70: 32.070934 | G70: 7493000
A71: 2013-07-30 | B71: 41.509998 | C71: 41.68 | D71: 41.32 | E71: 41.400002 | F71: 32.039982 | G71: 5733600
A72: 2013-07-31 | B72: 41.41 | C72: 41.610001 | D72: 41.34 | E72: 41.389999 | F72: 32.03223 | G72: 6735500
A73: 2013-08-01 | B73: 41.599998 | C73: 41.799999 | D73: 41.599998 | E73: 41.73 | F73: 32.295361 | G73: 6207700
A74: 2013-08-02 | B74: 41.610001 | C74: 41.77 | D74: 41.439999 | E74: 41.75 | F74: 32.310844 | G74: 3956400
A75: 2013-08-05 | B75: 41.740002 | C75: 41.849998 | D75: 41.650002 | E75: 41.779999 | F75: 32.334049 | G75: 5010300
A76: 2013-08-06 | B76: 41.759998 | C76: 41.790001 | D76: 41.580002 | E76: 41.73 | F76: 32.295361 | G76: 3148600
A77: 2013-08-07 | B77: 41.59 | C77: 41.630001 | D77: 41.459999 | E77: 41.529999 | F77: 32.140579 | G77: 5987100
A78: 2013-08-08 | B78: 41.650002 | C78: 41.799999 | D78: 41.52 | E78: 41.75 | F78: 32.310844 | G78: 2915000
A79: 2013-08-09 | B79: 41.669998 | C79: 41.73 | D79: 41.459999 | E79: 41.57 | F79: 32.171551 | G79: 4266300
A80: 2013-08-12 | B80: 41.41 | C80: 41.5 | D80: 41.259998 | E80: 41.450001 | F80: 32.078663 | G80: 4208600
A81: 2013-08-13 | B81: 41.549999 | C81: 41.57 | D81: 41.27 | E81: 41.48 | F81: 32.101879 | G81: 4178500
A82: 2013-08-14 | B82: 41.459999 | C82: 41.5 | D82: 41.169998 | E82: 41.189999 | F82: 31.877455 | G82: 4871500
A83: 2013-08-15 | B83: 40.880001 | C83: 40.889999 | D83: 40.5 | E83: 40.529999 | F83: 31.366669 | G83: 8854300
A84: 2013-08-16 | B84: 40.459999 | C84: 40.529999 | D84: 40.130001 | E84: 40.290001 | F84: 31.180933 | G84: 8607300
A85: 2013-08-19 | B85: 40.27 | C85: 40.27 | D85: 40.099998 | E85: 40.110001 | F85: 31.04163 | G85: 5126600
A86: 2013-08-20 | B86: 40.189999 | C86: 40.349998 | D86: 40.060001 | E86: 40.119999 | F86: 31.049372 | G86: 7174100
A87: 2013-08-21 | B87: 40.009998 | C87: 40.169998 | D87: 39.77 | E87: 39.810001 | F87: 30.809446 | G87: 7899700
A88: 2013-08-22 | B88: 39.82 | C88: 40.07 | D88: 39.799999 | E88: 39.98 | F88: 30.941023 | G88: 5501900
A89: 2013-08-23 | B89: 40.080002 | C89: 40.259998 | D89: 40.009998 | E89: 40.209999 | F89: 31.119022 | G89: 3352900
A90: 2013-08-26 | B90: 40.220001 | C90: 40.27 | D90: 39.740002 | E90: 39.740002 | F90: 30.755276 | G90: 17412500
A91: 2013-08-27 | B91: 39.439999 | C91: 39.639999 | D91: 39.400002 | E91: 39.529999 | F91: 30.592766 | G91: 11462400
A92: 2013-08-28 | B92: 39.439999 | C92: 39.450001 | D92: 39.200001 | E92: 39.23 | F92: 30.360579 | G92: 18628600
A93: 2013-08-29 | B93: 39.080002 | C93: 39.560001 | D93: 39.049999 | E93: 39.389999 | F93: 30.484407 | G93: 7455000
A94: 2013-08-30 | B94: 39.509998 | C94: 39.580002 | D94: 39.349998 | E94: 39.509998 | F94: 30.577282 | G94: 8672400
A95: 2013-09-03 | B95: 39.689999 | C95: 39.830002 | D95: 39.400002 | E95: 39.48 | F95: 30.554068 | G95: 15164200
A96: 2013-09-04 | B96: 39.459999 | C96: 39.830002 | D96: 39.389999 | E96: 39.73 | F96: 30.747541 | G96: 6468800
A97: 2013-09-05 | B97: 39.790001 | C97: 39.82 | D97: 39.630001 | E97: 39.669998 | F97: 30.701109 | G97: 4525100
A98: 2013-09-06 | B98: 39.810001 | C98: 39.950001 | D98: 39.389999 | E98: 39.77 | F98: 30.778505 | G98: 6976700
A99: 2013-09-09 | B99: 39.790001 | C99: 40.09 | D99: 39.779999 | E99: 40.049999 | F99: 30.99519 | G99: 10347600
A100: 2013-09-10 | B100: 40.16 | C100: 40.240002 | D100: 39.950001 | E100: 40.09 | F100: 31.026154 | G100: 6501800
A101: 2013-09-11 | B101: 40.009998 | C101: 40.389999 | D101: 40.009998 | E101: 40.380001 | F101: 31.250589 | G101: 6812300
A102: 2013-09-12 | B102: 40.389999 | C102: 40.509998 | D102: 40.349998 | E102: 40.389999 | F102: 31.258329 | G102: 7002900
A103: 2013-09-13 | B103: 40.48 | C103: 40.75 | D103: 40.48 | E103: 40.720001 | F103: 31.513721 | G103: 5063200
A104: 2013-09-16 | B104: 41.060001 | C104: 41.220001 | D104: 41.009998 | E104: 41.09 | F104: 31.80006 | G104: 8178900
A105: 2013-09-17 | B105: 41.080002 | C105: 41.27 | D105: 41.080002 | E105: 41.23 | F105: 31.908411 | G105: 5344500
A106: 2013-09-18 | B106: 41.200001 | C106: 41.75 | D106: 40.990002 | E106: 41.720001 | F106: 32.287628 | G106: 12763900
A107: 2013-09-19 | B107: 41.790001 | C107: 41.84 | D107: 41.439999 | E107: 41.529999 | F107: 32.140579 | G107: 6148500
A108: 2013-09-20 | B108: 41.259998 | C108: 41.259998 | D108: 40.950001 | E108: 40.98 | F108: 31.915506 | G108: 7279100
A109: 2013-09-23 | B109: 40.939999 | C109: 40.939999 | D109: 40.709999 | E109: 40.799999 | F109: 31.77532 | G109: 5586800
A110: 2013-09-24 | B110: 40.799999 | C110: 40.869999 | D110: 40.549999 | E110: 40.610001 | F110: 31.627354 | G110: 6855000
A111: 2013-09-25 | B111: 40.59 | C111: 40.66 | D111: 40.200001 | E111: 40.27 | F111: 31.36256 | G111: 8234700
A112: 2013-09-26 | B112: 40.32 | C112: 40.48 | D112: 40.25 | E112: 40.48 | F112: 31.526104 | G112: 4560300
A113: 2013-09-27 | B113: 40.34 | C113: 40.34 | D113: 40.049999 | E113: 40.23 | F113: 31.331396 | G113: 4453400
A114: 2013-09-30 | B114: 39.950001 | C114: 40.110001 | D114: 39.73 | E114: 39.799999 | F114: 30.996515 | G114: 8120800
A115: 2013-10-01 | B115: 39.779999 | C115: 40.060001 | D115: 39.740002 | E115: 40.040001 | F115: 31.183418 | G115: 7152300
A116: 2013-10-02 | B116: 39.919998 | C116: 39.959999 | D116: 39.580002 | E116: 39.950001 | F116: 31.113348 | G116: 5827400
A117: 2013-10-03 | B117: 39.889999 | C117: 39.93 | D117: 39.630001 | E117: 39.75 | F117: 30.957569 | G117: 9686800
A118: 2013-10-04 | B118: 39.759998 | C118: 39.959999 | D118: 39.650002 | E118: 39.810001 | F118: 31.004297 | G118: 5713900
A119: 2013-10-07 | B119: 39.580002 | C119: 39.880001 | D119: 39.560001 | E119: 39.68 | F119: 30.903051 | G119: 5438900
A120: 2013-10-08 | B120: 39.75 | C120: 39.939999 | D120: 39.639999 | E120: 39.68 | F120: 30.903051 | G120: 9532300
A121: 2013-10-09 | B121: 39.73 | C121: 39.91 | D121: 39.580002 | E121: 39.709999 | F121: 30.926428 | G121: 8706800
A122: 2013-10-10 | B122: 39.970001 | C122: 40.470001 | D122: 39.970001 | E122: 40.450001 | F122: 31.502752 | G122: 6104900
A123: 2013-10-11 | B123: 40.419998 | C123: 40.580002 | D123: 40.330002 | E123: 40.57 | F123: 31.596203 | G123: 5451800
A124: 2013-10-14 | B124: 40.349998 | C124: 40.75 | D124: 40.310001 | E124: 40.740002 | F124: 31.728594 | G124: 6808200
A125: 2013-10-15 | B125: 40.68 | C125: 40.720001 | D125: 40.32 | E125: 40.369999 | F125: 31.440443 | G125: 7792900
A126: 2013-10-16 | B126: 40.52 | C126: 40.990002 | D126: 40.52 | E126: 40.970001 | F126: 31.907705 | G126: 7034800
A127: 2013-10-17 | B127: 40.84 | C127: 41.439999 | D127: 40.84 | E127: 41.43 | F127: 32.265965 | G127: 8498700
A128: 2013-10-18 | B128: 41.490002 | C128: 41.549999 | D128: 41.349998 | E128: 41.490002 | F128: 32.312702 | G128: 5861400
A129: 2013-10-21 | B129: 41.43 | C129: 41.509998 | D129: 41.23 | E129: 41.400002 | F129: 32.242615 | G129: 3646400
A130: 2013-10-22 | B130: 41.5 | C130: 42.029999 | D130: 41.48 | E130: 41.919998 | F130: 32.647579 | G130: 9404700
A131: 2013-10-23 | B131: 41.82 | C131: 42.09 | D131: 41.799999 | E131: 42 | F131: 32.709904 | G131: 8809800
A132: 2013-10-24 | B132: 42.080002 | C132: 42.080002 | D132: 41.860001 | E132: 41.919998 | F132: 32.647579 | G132: 7754800
A133: 2013-10-25 | B133: 41.93 | C133: 42.060001 | D133: 41.799999 | E133: 42.02 | F133: 32.725449 | G133: 4301900
A134: 2013-10-28 | B134: 42.150002 | C134: 42.700001 | D134: 42.09 | E134: 42.57 | F134: 33.153812 | G134: 33007100
A135: 2013-10-29 | B135: 42.66 | C135: 42.939999 | D135: 42.540001 | E135: 42.939999 | F135: 33.441975 | G135: 15133400
A136: 2013-10-30 | B136: 42.990002 | C136: 42.990002 | D136: 42.459999 | E136: 42.57 | F136: 33.153812 | G136: 11872100
A137: 2013-10-31 | B137: 42.490002 | C137: 42.59 | D137: 42.290001 | E137: 42.349998 | F137: 32.982487 | G137: 11588100
A138: 2013-11-01 | B138: 42.360001 | C138: 42.57 | D138: 42.27 | E138: 42.509998 | F138: 33.107075 | G138: 9055000
A139: 2013-11-04 | B139: 42.610001 | C139: 42.720001 | D139: 42.400002 | E139: 42.549999 | F139: 33.138241 | G139: 5305500
A140: 2013-11-05 | B140: 42.509998 | C140: 42.759998 | D140: 42.380001 | E140: 42.630001 | F140: 33.200542 | G140: 6804500
A141: 2013-11-06 | B141: 42.849998 | C141: 43.099998 | D141: 42.650002 | E141: 43.09 | F141: 33.558796 | G141: 7356400
A142: 2013-11-07 | B142: 43.060001 | C142: 43.080002 | D142: 42.369999 | E142: 42.459999 | F142: 33.06815 | G142: 11993800
A143: 2013-11-08 | B143: 42.470001 | C143: 42.669998 | D143: 42.130001 | E143: 42.669998 | F143: 33.231693 | G143: 15162000
A144: 2013-11-11 | B144: 42.650002 | C144: 42.73 | D144: 42.5 | E144: 42.540001 | F144: 33.130444 | G144: 7981900
A145: 2013-11-12 | B145: 42.439999 | C145: 42.639999 | D145: 42.400002 | E145: 42.610001 | F145: 33.184963 | G145: 5657100
A146: 2013-11-13 | B146: 42.459999 | C146: 42.990002 | D146: 42.419998 | E146: 42.970001 | F146: 33.465343 | G146: 7651500
A147: 2013-11-14 | B147: 42.990002 | C147: 43.330002 | D147: 42.959999 | E147: 43.279999 | F147: 33.706757 | G147: 5891500
A148: 2013-11-15 | B148: 43.259998 | C148: 43.43 | D148: 43.150002 | E148: 43.330002 | F148: 33.745716 | G148: 3054000
A149: 2013-11-18 | B149: 43.459999 | C149: 43.459999 | D149: 43.110001 | E149: 43.200001 | F149: 33.644466 | G149: 3924900
A150: 2013-11-19 | B150: 43.139999 | C150: 43.189999 | D150: 42.970001 | E150: 43.040001 | F150: 33.519852 | G150: 7013200
A151: 2013-11-20 | B151: 43.09 | C151: 43.200001 | D151: 42.73 | E151: 42.860001 | F151: 33.379669 | G151: 7392100
A152: 2013-11-21 | B152: 42.860001 | C152: 42.970001 | D152: 42.759998 | E152: 42.939999 | F152: 33.441975 | G152: 6777800
A153: 2013-11-22 | B153: 43.009998 | C153: 43.189999 | D153: 42.860001 | E153: 43.16 | F153: 33.613312 | G153: 5443000
A154: 2013-11-25 | B154: 43.299999 | C154: 43.34 | D154: 43.029999 | E154: 43.09 | F154: 33.558796 | G154: 4447200
A155: 2013-11-26 | B155: 43.139999 | C155: 43.25 | D155: 42.98 | E155: 43.049999 | F155: 33.527641 | G155: 3854300
A156: 2013-11-27 | B156: 43.189999 | C156: 43.189999 | D156: 42.959999 | E156: 43.080002 | F156: 33.550999 | G156: 3257000
A157: 2013-11-29 | B157: 43.169998 | C157: 43.27 | D157: 42.959999 | E157: 43.009998 | F157: 33.496483 | G157: 2642100
A158: 2013-12-02 | B158: 43.029999 | C158: 43.040001 | D158: 42.68 | E158: 42.779999 | F158: 33.317364 | G158: 5041700
A159: 2013-12-03 | B159: 42.73 | C159: 43.009998 | D159: 42.73 | E159: 42.990002 | F159: 33.480919 | G159: 6124800
A160: 2013-12-04 | B160: 42.880001 | C160: 43 | D160: 42.549999 | E160: 42.889999 | F160: 33.403027 | G160: 8093100
A161: 2013-12-05 | B161: 42.740002 | C161: 42.790001 | D161: 42.439999 | E161: 42.5 | F161: 33.099293 | G161: 6060000
A162: 2013-12-06 | B162: 42.830002 | C162: 43.130001 | D162: 42.759998 | E162: 43.080002 | F162: 33.550999 | G162: 7108600
A163: 2013-12-09 | B163: 43.259998 | C163: 43.380001 | D163: 43.150002 | E163: 43.23 | F163: 33.667828 | G163: 5513100
A164: 2013-12-10 | B164: 43.139999 | C164: 43.189999 | D164: 42.740002 | E164: 42.860001 | F164: 33.379669 | G164: 3341900
A165: 2013-12-11 | B165: 42.849998 | C165: 43.130001 | D165: 42.849998 | E165: 42.93 | F165: 33.434185 | G165: 21705800
A166: 2013-12-12 | B166: 42.919998 | C166: 42.919998 | D166: 42.299999 | E166: 42.34 | F166: 32.974686 | G166: 9662500
A167: 2013-12-13 | B167: 42.470001 | C167: 42.470001 | D167: 42.139999 | E167: 42.27 | F167: 32.920162 | G167: 5929000
A168: 2013-12-16 | B168: 42.349998 | C168: 42.52 | D168: 42.169998 | E168: 42.259998 | F168: 32.91238 | G168: 5893100
A169: 2013-12-17 | B169: 42.220001 | C169: 42.279999 | D169: 41.959999 | E169: 42.060001 | F169: 32.75663 | G169: 7247300
A170: 2013-12-18 | B170: 42.110001 | C170: 42.779999 | D170: 41.689999 | E170: 42.759998 | F170: 33.301781 | G170: 11754200
A171: 2013-12-19 | B171: 42.650002 | C171: 42.73 | D171: 42.43 | E171: 42.68 | F171: 33.239491 | G171: 5698800
A172: 2013-12-20 | B172: 42.349998 | C172: 42.66 | D172: 42.290001 | E172: 42.549999 | F172: 33.390144 | G172: 11007300
A173: 2013-12-23 | B173: 42.650002 | C173: 42.689999 | D173: 42.360001 | E173: 42.509998 | F173: 33.358753 | G173: 6601700
A174: 2013-12-24 | B174: 42.509998 | C174: 42.66 | D174: 42.439999 | E174: 42.57 | F174: 33.405846 | G174: 5915300
A175: 2013-12-26 | B175: 42.599998 | C175: 42.740002 | D175: 42.540001 | E175: 42.740002 | F175: 33.539261 | G175: 15154600
A176: 2013-12-27 | B176: 42.810001 | C176: 42.919998 | D176: 42.759998 | E176: 42.84 | F176: 33.617722 | G176: 3590500
A177: 2013-12-30 | B177: 42.84 | C177: 42.98 | D177: 42.830002 | E177: 42.950001 | F177: 33.704044 | G177: 3245700
A178: 2013-12-31 | B178: 43.02 | C178: 43.07 | D178: 42.810001 | E178: 42.98 | F178: 33.727585 | G178: 6516500
A179: 2014-01-02 | B179: 42.849998 | C179: 42.869999 | D179: 42.380001 | E179: 42.450001 | F179: 33.31168 | G179: 14997000
A180: 2014-01-03 | B180: 42.540001 | C180: 42.610001 | D180: 42.34 | E180: 42.369999 | F180: 33.248882 | G180: 6298600
A181: 2014-01-06 | B181: 42.48 | C181: 42.529999 | D181: 42.110001 | E181: 42.209999 | F181: 33.123337 | G181: 9498600
A182: 2014-01-07 | B182: 42.43 | C182: 42.540001 | D182: 42.240002 | E182: 42.439999 | F182: 33.303833 | G182: 7479100
A183: 2014-01-08 | B183: 42.43 | C183: 42.43 | D183: 42.029999 | E183: 42.119999 | F183: 33.052715 | G183: 23824100
A184: 2014-01-09 | B184: 42.23 | C184: 42.400002 | D184: 42.060001 | E184: 42.34 | F184: 33.225349 | G184: 24438600
A185: 2014-01-10 | B185: 42.450001 | C185: 42.549999 | D185: 42.240002 | E185: 42.400002 | F185: 33.272442 | G185: 15903800
A186: 2014-01-13 | B186: 42.400002 | C186: 42.540001 | D186: 42.110001 | E186: 42.16 | F186: 33.084106 | G186: 9275100
A187: 2014-01-14 | B187: 42.27 | C187: 42.450001 | D187: 42.189999 | E187: 42.380001 | F187: 33.256748 | G187: 10885000
A188: 2014-01-15 | B188: 42.43 | C188: 42.540001 | D188: 42.290001 | E188: 42.389999 | F188: 33.264599 | G188: 4384200
A189: 2014-01-16 | B189: 42.27 | C189: 42.459999 | D189: 42.18 | E189: 42.400002 | F189: 33.272442 | G189: 6522100
A190: 2014-01-17 | B190: 42.349998 | C190: 42.380001 | D190: 42.029999 | E190: 42.07 | F190: 33.013485 | G190: 8233800
A191: 2014-01-21 | B191: 42.189999 | C191: 42.34 | D191: 41.950001 | E191: 42.23 | F191: 33.139034 | G191: 5618400
A192: 2014-01-22 | B192: 42.259998 | C192: 42.380001 | D192: 42.18 | E192: 42.23 | F192: 33.139034 | G192: 3615300
A193: 2014-01-23 | B193: 42.080002 | C193: 42.080002 | D193: 41.709999 | E193: 41.860001 | F193: 32.84869 | G193: 8916700
A194: 2014-01-24 | B194: 41.799999 | C194: 41.98 | D194: 41.439999 | E194: 41.48 | F194: 32.550488 | G194: 18509700
A195: 2014-01-27 | B195: 41.5 | C195: 41.549999 | D195: 41.240002 | E195: 41.310001 | F195: 32.417072 | G195: 8451500
A196: 2014-01-28 | B196: 41.380001 | C196: 41.709999 | D196: 41.360001 | E196: 41.630001 | F196: 32.668205 | G196: 5022200
A197: 2014-01-29 | B197: 41.360001 | C197: 41.419998 | D197: 40.790001 | E197: 40.900002 | F197: 32.095352 | G197: 36942400
A198: 2014-01-30 | B198: 41.049999 | C198: 41.119999 | D198: 40.889999 | E198: 40.959999 | F198: 32.142429 | G198: 19016600
A199: 2014-01-31 | B199: 40.490002 | C199: 41.040001 | D199: 40.32 | E199: 40.759998 | F199: 31.985481 | G199: 21959500
A200: 2014-02-03 | B200: 40.709999 | C200: 40.82 | D200: 39.830002 | E200: 39.880001 | F200: 31.294924 | G200: 41150000
... 2320 more rows

Sheet ADJ CLOSE
I1: Divide | J1: Divide | K1: Divide | L1: Divide | M1: Multiply
A2: Date | B2: Open | C2: High | D2: Low | E2: Close | F2: Adj Close | G2: Volume | H2: Adj Factor | I2: ="Adj "&B2 -> Adj Open | J2: ="Adj "&C2 -> Adj High | K2: ="Adj "&D2 -> Adj Low | L2: ="Adj "&E2 -> Adj Close | M2: ="Adj "&G2 -> Adj Volume
A3: 2013-04-22 | B3: 41.07 | C3: 41.189999 | D3: 40.810001 | E3: 41.110001 | F3: 31.609234 | G3: 5972300 | H3: =F3/E3 -> 0.7688940217 | I3: =B3*$H3 -> 31.57847747 | J3: =C3*$H3 -> 31.67074398 | K3: =D3*$H3 -> 31.37856579 | L3: =E3*$H3 -> 31.609234 | M3: =G3/$H3 -> 7767390.345
A4: 2013-04-23 | B4: 41.220001 | C4: 41.439999 | D4: 40.900002 | E4: 41.43 | F4: 31.855267 | G4: 13184200 | H4: =F4/E4 -> 0.7688937244 | I4: =B4*$H4 -> 31.69380009 | J4: =C4*$H4 -> 31.86295517 | K4: =D4*$H4 -> 31.44775486 | L4: =E4*$H4 -> 31.855267 | M4: =G4/$H4 -> 17146973.09
A5: 2013-04-24 | B5: 41.25 | C5: 41.369999 | D5: 40.73 | E5: 40.77 | F5: 31.347813 | G5: 30015500 | H5: =F5/E5 -> 0.7688941133 | I5: =B5*$H5 -> 31.71688217 | J5: =C5*$H5 -> 31.8091487 | K5: =D5*$H5 -> 31.31705724 | L5: =E5*$H5 -> 31.347813 | M5: =G5/$H5 -> 39037234.75
A6: 2013-04-25 | B6: 40.860001 | C6: 41.009998 | D6: 40.759998 | E6: 40.900002 | F6: 31.447756 | G6: 12200800 | H6: =F6/E6 -> 0.7688937521 | I6: =B6*$H6 -> 31.41699948 | J6: =C6*$H6 -> 31.53233124 | K6: =D6*$H6 -> 31.3401078 | L6: =E6*$H6 -> 31.447756 | M6: =G6/$H6 -> 15867992.12
A7: 2013-04-26 | B7: 40.799999 | C7: 41.009998 | D7: 40.799999 | E7: 40.889999 | F7: 31.440079 | G7: 9481800 | H7: =F7/E7 -> 0.7688941005 | I7: =B7*$H7 -> 31.37087853 | J7: =C7*$H7 -> 31.53234552 | K7: =D7*$H7 -> 31.37087853 | L7: =E7*$H7 -> 31.440079 | M7: =G7/$H7 -> 12331737.22
A8: 2013-04-29 | B8: 41.009998 | C8: 41.07 | D8: 40.860001 | E8: 41.02 | F8: 31.54003 | G8: 6696000 | H8: =F8/E8 -> 0.7688939542 | I8: =B8*$H8 -> 31.53233952 | J8: =C8*$H8 -> 31.5784747 | K8: =D8*$H8 -> 31.41700774 | L8: =E8*$H8 -> 31.54003 | M8: =G8/$H8 -> 8708613.15
A9: 2013-04-30 | B9: 40.98 | C9: 41.029999 | D9: 40.77 | E9: 40.939999 | F9: 31.478527 | G9: 11354900 | H9: =F9/E9 -> 0.768894181 | I9: =B9*$H9 -> 31.50928354 | J9: =C9*$H9 -> 31.54772748 | K9: =D9*$H9 -> 31.34781576 | L9: =E9*$H9 -> 31.478527 | M9: =G9/$H9 -> 14767831.88
A10: 2013-05-01 | B10: 40.889999 | C10: 41.200001 | D10: 40.84 | E10: 40.900002 | F10: 31.447756 | G10: 7556600 | H10: =F10/E10 -> 0.7688937521 | I10: =B10*$H10 -> 31.44006476 | J10: =C10*$H10 -> 31.67842336 | K10: =D10*$H10 -> 31.40162084 | L10: =E10*$H10 -> 31.447756 | M10: =G10/$H10 -> 9827885.815
A11: 2013-05-02 | B11: 40.91 | C11: 41.189999 | D11: 40.77 | E11: 41.049999 | F11: 31.563108 | G11: 9194000 | H11: =F11/E11 -> 0.7688942453 | I11: =B11*$H11 -> 31.45546357 | J11: =C11*$H11 -> 31.67075319 | K11: =D11*$H11 -> 31.34781838 | L11: =E11*$H11 -> 31.563108 | M11: =G11/$H11 -> 11957431.15
A12: 2013-05-03 | B12: 41.27 | C12: 41.369999 | D12: 41.099998 | E12: 41.23 | F12: 31.701498 | G12: 12843400 | H12: =F12/E12 -> 0.7688939607 | I12: =B12*$H12 -> 31.73225376 | J12: =C12*$H12 -> 31.80914239 | K12: =D12*$H12 -> 31.60154025 | L12: =E12*$H12 -> 31.701498 | M12: =G12/$H12 -> 16703733.75
A13: 2013-05-06 | B13: 41.200001 | C13: 41.200001 | D13: 40.880001 | E13: 40.93 | F13: 31.470827 | G13: 14530800 | H13: =F13/E13 -> 0.768893892 | I13: =B13*$H13 -> 31.67842912 | J13: =C13*$H13 -> 31.67842912 | K13: =D13*$H13 -> 31.43238307 | L13: =E13*$H13 -> 31.470827 | M13: =G13/$H13 -> 18898316.34
A14: 2013-05-07 | B14: 41.009998 | C14: 41.25 | D14: 40.939999 | E14: 41.240002 | F14: 31.7092 | G14: 8152200 | H14: =F14/E14 -> 0.7688942401 | I14: =B14*$H14 -> 31.53235125 | J14: =C14*$H14 -> 31.7168874 | K14: =D14*$H14 -> 31.47852942 | L14: =E14*$H14 -> 31.7092 | M14: =G14/$H14 -> 10602498.46
A15: 2013-05-08 | B15: 41.23 | C15: 41.299999 | D15: 41.139999 | E15: 41.290001 | F15: 31.747627 | G15: 6623300 | H15: =F15/E15 -> 0.7688938298 | I15: =B15*$H15 -> 31.7014926 | J15: =C15*$H15 -> 31.7553144 | K15: =D15*$H15 -> 31.63229139 | L15: =E15*$H15 -> 31.747627 | M15: =G15/$H15 -> 8614063.143
A16: 2013-05-09 | B16: 41.259998 | C16: 41.349998 | D16: 40.900002 | E16: 41 | F16: 31.524645 | G16: 12872500 | H16: =F16/E16 -> 0.7688937805 | I16: =B16*$H16 -> 31.72455585 | J16: =C16*$H16 -> 31.79375629 | K16: =D16*$H16 -> 31.44775716 | L16: =E16*$H16 -> 31.524645 | M16: =G16/$H16 -> 16741584.24
A17: 2013-05-10 | B17: 40.919998 | C17: 41.189999 | D17: 40.919998 | E17: 41.16 | F17: 31.647684 | G17: 8304700 | H17: =F17/E17 -> 0.7688941691 | I17: =B17*$H17 -> 31.46314786 | J17: =C17*$H17 -> 31.67075006 | K17: =D17*$H17 -> 31.46314786 | L17: =E17*$H17 -> 31.647684 | M17: =G17/$H17 -> 10800836.23
A18: 2013-05-13 | B18: 41.119999 | C18: 41.380001 | D18: 41.049999 | E18: 41.23 | F18: 31.701498 | G18: 7821600 | H18: =F18/E18 -> 0.7688939607 | I18: =B18*$H18 -> 31.6169189 | J18: =C18*$H18 -> 31.81683286 | K18: =D18*$H18 -> 31.56309632 | L18: =E18*$H18 -> 31.701498 | M18: =G18/$H18 -> 10172534.06
A19: 2013-05-14 | B19: 41.209999 | C19: 41.73 | D19: 41.209999 | E19: 41.720001 | F19: 32.078259 | G19: 7373100 | H19: =F19/E19 -> 0.7688940132 | I19: =B19*$H19 -> 31.68612152 | J19: =C19*$H19 -> 32.08594717 | K19: =D19*$H19 -> 31.68612152 | L19: =E19*$H19 -> 32.078259 | M19: =G19/$H19 -> 9589227.999
A20: 2013-05-15 | B20: 41.700001 | C20: 42.200001 | D20: 41.66 | E20: 42.130001 | F20: 32.393509 | G20: 11728700 | H20: =F20/E20 -> 0.7688940952 | I20: =B20*$H20 -> 32.06288454 | J20: =C20*$H20 -> 32.44733159 | K20: =D20*$H20 -> 32.03212801 | L20: =E20*$H20 -> 32.393509 | M20: =G20/$H20 -> 15253986.31
A21: 2013-05-16 | B21: 42.029999 | C21: 42.110001 | D21: 41.810001 | E21: 41.880001 | F21: 32.201279 | G21: 9313100 | H21: =F21/E21 -> 0.7688939406 | I21: =B21*$H21 -> 32.31661155 | J21: =C21*$H21 -> 32.37812461 | K21: =D21*$H21 -> 32.14745642 | L21: =E21*$H21 -> 32.201279 | M21: =G21/$H21 -> 12112333.72
A22: 2013-05-17 | B22: 41.889999 | C22: 41.970001 | D22: 41.639999 | E22: 41.939999 | F22: 32.247417 | G22: 9368100 | H22: =F22/E22 -> 0.7688940813 | I22: =B22*$H22 -> 32.2089723 | J22: =C22*$H22 -> 32.27048536 | K22: =D22*$H22 -> 32.01674878 | L22: =E22*$H22 -> 32.247417 | M22: =G22/$H22 -> 12183862.81
A23: 2013-05-20 | B23: 41.91 | C23: 41.950001 | D23: 41.48 | E23: 41.509998 | F23: 31.916786 | G23: 9866600 | H23: =F23/E23 -> 0.7688939421 | I23: =B23*$H23 -> 32.22434511 | J23: =C23*$H23 -> 32.25510164 | K23: =D23*$H23 -> 31.89372072 | L23: =E23*$H23 -> 31.916786 | M23: =G23/$H23 -> 12832198.9
A24: 2013-05-21 | B24: 41.630001 | C24: 41.669998 | D24: 41.27 | E24: 41.549999 | F24: 31.947536 | G24: 10408400 | H24: =F24/E24 -> 0.7688937851 | I24: =B24*$H24 -> 32.00904904 | J24: =C24*$H24 -> 32.03980249 | K24: =D24*$H24 -> 31.73224651 | L24: =E24*$H24 -> 31.947536 | M24: =G24/$H24 -> 13536850.22
A25: 2013-05-22 | B25: 41.580002 | C25: 42.02 | D25: 41.34 | E25: 41.48 | F25: 31.893713 | G25: 16899000 | H25: =F25/E25 -> 0.768893756 | I25: =B25*$H25 -> 31.97060391 | J25: =C25*$H25 -> 32.30891563 | K25: =D25*$H25 -> 31.78606787 | L25: =E25*$H25 -> 31.893713 | M25: =G25/$H25 -> 21978329.08
A26: 2013-05-23 | B26: 41.139999 | C26: 41.450001 | D26: 41.049999 | E26: 41.310001 | F26: 31.763 | G26: 12831900 | H26: =F26/E26 -> 0.7688937117 | I26: =B26*$H26 -> 31.63228653 | J26: =C26*$H26 -> 31.87064512 | K26: =D26*$H26 -> 31.5630861 | L26: =E26*$H26 -> 31.763 | M26: =G26/$H26 -> 16688782.6
A27: 2013-05-24 | B27: 41.32 | C27: 41.720001 | D27: 41.32 | E27: 41.700001 | F27: 32.062893 | G27: 16015800 | H27: =F27/E27 -> 0.7688942981 | I27: =B27*$H27 -> 31.7707124 | J27: =C27*$H27 -> 32.07827089 | K27: =D27*$H27 -> 31.7707124 | L27: =E27*$H27 -> 32.062893 | M27: =G27/$H27 -> 20829651.15
A28: 2013-05-28 | B28: 42.060001 | C28: 42.189999 | D28: 41.639999 | E28: 41.77 | F28: 32.116699 | G28: 15727400 | H28: =F28/E28 -> 0.7688939191 | I28: =B28*$H28 -> 32.33967901 | J28: =C28*$H28 -> 32.43963368 | K28: =D28*$H28 -> 32.01674202 | L28: =E28*$H28 -> 32.116699 | M28: =G28/$H28 -> 20454577.17
A29: 2013-05-29 | B29: 41.529999 | C29: 41.57 | D29: 40.889999 | E29: 40.970001 | F29: 31.50157 | G29: 21414900 | H29: =F29/E29 -> 0.7688935619 | I29: =B29*$H29 -> 31.93214886 | J29: =C29*$H29 -> 31.96290537 | K29: =D29*$H29 -> 31.44005698 | L29: =E29*$H29 -> 31.50157 | M29: =G29/$H29 -> 27851579.28
A30: 2013-05-30 | B30: 41.02 | C30: 41.16 | D30: 40.790001 | E30: 40.810001 | F30: 31.378571 | G30: 15949200 | H30: =F30/E30 -> 0.7688941493 | I30: =B30*$H30 -> 31.540038 | J30: =C30*$H30 -> 31.64768318 | K30: =D30*$H30 -> 31.36319312 | L30: =E30*$H30 -> 31.378571 | M30: =G30/$H30 -> 20743037.28
A31: 2013-05-31 | B31: 40.720001 | C31: 40.720001 | D31: 40.029999 | E31: 40.049999 | F31: 30.794199 | G31: 33824800 | H31: =F31/E31 -> 0.7688938769 | I31: =B31*$H31 -> 31.30935944 | J31: =C31*$H31 -> 31.30935944 | K31: =D31*$H31 -> 30.77882112 | L31: =E31*$H31 -> 30.794199 | M31: =G31/$H31 -> 43991506.52
A32: 2013-06-03 | B32: 40.150002 | C32: 40.5 | D32: 39.68 | E32: 40.490002 | F32: 31.132509 | G32: 39020500 | H32: =F32/E32 -> 0.7688937383 | I32: =B32*$H32 -> 30.87108513 | J32: =C32*$H32 -> 31.1401964 | K32: =D32*$H32 -> 30.50970353 | L32: =E32*$H32 -> 31.132509 | M32: =G32/$H32 -> 50748885.13
A33: 2013-06-04 | B33: 40.639999 | C33: 40.779999 | D33: 40.209999 | E33: 40.5 | F33: 31.140198 | G33: 12962800 | H33: =F33/E33 -> 0.7688937778 | I33: =B33*$H33 -> 31.24784236 | J33: =C33*$H33 -> 31.35548749 | K33: =D33*$H33 -> 30.91721804 | L33: =E33*$H33 -> 31.140198 | M33: =G33/$H33 -> 16859025.75
A34: 2013-06-05 | B34: 40.380001 | C34: 40.419998 | D34: 40 | E34: 40.009998 | F34: 30.763453 | G34: 17077900 | H34: =F34/E34 -> 0.7688941399 | I34: =B34*$H34 -> 31.04794614 | J34: =C34*$H34 -> 31.0786996 | K34: =D34*$H34 -> 30.7557656 | L34: =E34*$H34 -> 30.763453 | M34: =G34/$H34 -> 22210989.93
A35: 2013-06-06 | B35: 39.990002 | C35: 40.189999 | D35: 39.700001 | E35: 40.18 | F35: 30.894161 | G35: 12352700 | H35: =F35/E35 -> 0.768894002 | I35: =B35*$H35 -> 30.74807268 | J35: =C35*$H35 -> 30.90184917 | K35: =D35*$H35 -> 30.52509265 | L35: =E35*$H35 -> 30.894161 | M35: =G35/$H35 -> 16065543.45
A36: 2013-06-07 | B36: 40.389999 | C36: 40.849998 | D36: 40.389999 | E36: 40.68 | F36: 31.278614 | G36: 18700800 | H36: =F36/E36 -> 0.7688941495 | I36: =B36*$H36 -> 31.05563393 | J36: =C36*$H36 -> 31.40932447 | K36: =D36*$H36 -> 31.05563393 | L36: =E36*$H36 -> 31.278614 | M36: =G36/$H36 -> 24321683.31
A37: 2013-06-10 | B37: 40.849998 | C37: 40.849998 | D37: 40.490002 | E37: 40.68 | F37: 31.278614 | G37: 11190300 | H37: =F37/E37 -> 0.7688941495 | I37: =B37*$H37 -> 31.40932447 | J37: =C37*$H37 -> 31.40932447 | K37: =D37*$H37 -> 31.13252565 | L37: =E37*$H37 -> 31.278614 | M37: =G37/$H37 -> 14553758.81
A38: 2013-06-11 | B38: 40.450001 | C38: 40.860001 | D38: 40.32 | E38: 40.580002 | F38: 31.201727 | G38: 20334000 | H38: =F38/E38 -> 0.7688941711 | I38: =B38*$H38 -> 31.10176999 | J38: =C38*$H38 -> 31.4170166 | K38: =D38*$H38 -> 31.00181298 | L38: =E38*$H38 -> 31.201727 | M38: =G38/$H38 -> 26445772.08
A39: 2013-06-12 | B39: 40.73 | C39: 40.900002 | D39: 40.380001 | E39: 40.380001 | F39: 31.047943 | G39: 14908400 | H39: =F39/E39 -> 0.7688940622 | I39: =B39*$H39 -> 31.31705515 | J39: =C39*$H39 -> 31.44776868 | K39: =D39*$H39 -> 31.047943 | L39: =E39*$H39 -> 31.047943 | M39: =G39/$H39 -> 19389407.11
A40: 2013-06-13 | B40: 40.470001 | C40: 41.880001 | D40: 40.220001 | E40: 40.799999 | F40: 31.370874 | G40: 13048700 | H40: =F40/E40 -> 0.7688939894 | I40: =B40*$H40 -> 31.11714052 | J40: =C40*$H40 -> 32.20128105 | K40: =D40*$H40 -> 30.92491702 | L40: =E40*$H40 -> 31.370874 | M40: =G40/$H40 -> 16970740.02
A41: 2013-06-14 | B41: 40.73 | C41: 41.029999 | D41: 40.59 | E41: 40.700001 | F41: 31.293985 | G41: 8453300 | H41: =F41/E41 -> 0.7688939615 | I41: =B41*$H41 -> 31.31705105 | J41: =C41*$H41 -> 31.54771847 | K41: =D41*$H41 -> 31.2094059 | L41: =E41*$H41 -> 31.293985 | M41: =G41/$H41 -> 10994103.77
A42: 2013-06-17 | B42: 40.830002 | C42: 41.23 | D42: 40.779999 | E42: 41.060001 | F42: 31.57081 | G42: 9877200 | H42: =F42/E42 -> 0.7688945258 | I42: =B42*$H42 -> 31.39396503 | J42: =C42*$H42 -> 31.7015213 | K42: =D42*$H42 -> 31.35551799 | L42: =E42*$H42 -> 31.57081 | M42: =G42/$H42 -> 12845975.19
A43: 2013-06-18 | B43: 41.060001 | C43: 41.259998 | D43: 40.93 | E43: 41.209999 | F43: 31.686117 | G43: 8441200 | H43: =F43/E43 -> 0.7688939036 | I43: =B43*$H43 -> 31.57078445 | J43: =C43*$H43 -> 31.72456093 | K43: =D43*$H43 -> 31.47082748 | L43: =E43*$H43 -> 31.686117 | M43: =G43/$H43 -> 10978367.7
A44: 2013-06-19 | B44: 41.209999 | C44: 41.299999 | D44: 40.389999 | E44: 40.389999 | F44: 31.055634 | G44: 25795200 | H44: =F44/E44 -> 0.7688941512 | I44: =B44*$H44 -> 31.6861272 | J44: =C44*$H44 -> 31.75532768 | K44: =D44*$H44 -> 31.055634 | L44: =E44*$H44 -> 31.055634 | M44: =G44/$H44 -> 33548440.91
A45: 2013-06-20 | B45: 40.049999 | C45: 40.279999 | D45: 39.099998 | E45: 39.169998 | F45: 30.117569 | G45: 32296500 | H45: =F45/E45 -> 0.76889381 | I45: =B45*$H45 -> 30.79419632 | J45: =C45*$H45 -> 30.9710419 | K45: =D45*$H45 -> 30.06374643 | L45: =E45*$H45 -> 30.117569 | M45: =G45/$H45 -> 42003849.66
A46: 2013-06-21 | B46: 39.209999 | C46: 39.630001 | D46: 39.040001 | E46: 39.43 | F46: 30.51536 | G46: 22743500 | H46: =F46/E46 -> 0.7739122496 | I46: =B46*$H46 -> 30.34509853 | J46: =C46*$H46 -> 30.67014322 | K46: =D46*$H46 -> 30.213535 | L46: =E46*$H46 -> 30.51536 | M46: =G46/$H46 -> 29387698.69
A47: 2013-06-24 | B47: 39.150002 | C47: 39.650002 | D47: 38.869999 | E47: 39.27 | F47: 30.391542 | G47: 24973100 | H47: =F47/E47 -> 0.7739124523 | I47: =B47*$H47 -> 30.29867405 | J47: =C47*$H47 -> 30.68563028 | K47: =D47*$H47 -> 30.08197625 | L47: =E47*$H47 -> 30.391542 | M47: =G47/$H47 -> 32268637.01
A48: 2013-06-25 | B48: 39.439999 | C48: 39.48 | D48: 39.119999 | E48: 39.330002 | F48: 30.437981 | G48: 13004400 | H48: =F48/E48 -> 0.773912521 | I48: =B48*$H48 -> 30.52310906 | J48: =C48*$H48 -> 30.55406633 | K48: =D48*$H48 -> 30.27545705 | L48: =E48*$H48 -> 30.437981 | M48: =G48/$H48 -> 16803449.55
A49: 2013-06-26 | B49: 39.57 | C49: 39.889999 | D49: 39.57 | E49: 39.740002 | F49: 30.755276 | G49: 18133100 | H49: =F49/E49 -> 0.7739122912 | I49: =B49*$H49 -> 30.62370936 | J49: =C49*$H49 -> 30.87136052 | K49: =D49*$H49 -> 30.62370936 | L49: =E49*$H49 -> 30.755276 | M49: =G49/$H49 -> 23430432.89
A50: 2013-06-27 | B50: 39.990002 | C50: 40.290001 | D50: 39.900002 | E50: 39.919998 | F50: 30.894577 | G50: 10033600 | H50: =F50/E50 -> 0.7739122883 | I50: =B50*$H50 -> 30.94875396 | J50: =C50*$H50 -> 31.18092687 | K50: =D50*$H50 -> 30.87910185 | L50: =E50*$H50 -> 30.894577 | M50: =G50/$H50 -> 12964776.7
A51: 2013-06-28 | B51: 39.84 | C51: 40.040001 | D51: 39.639999 | E51: 39.669998 | F51: 30.701109 | G51: 11033300 | H51: =F51/E51 -> 0.7739125422 | I51: =B51*$H51 -> 30.83267568 | J51: =C51*$H51 -> 30.98745896 | K51: =D51*$H51 -> 30.6778924 | L51: =E51*$H51 -> 30.701109 | M51: =G51/$H51 -> 14256520.47
A52: 2013-07-01 | B52: 39.91 | C52: 40.25 | D52: 39.48 | E52: 39.959999 | F52: 30.925543 | G52: 11795300 | H52: =F52/E52 -> 0.7739125069 | I52: =B52*$H52 -> 30.88684815 | J52: =C52*$H52 -> 31.1499784 | K52: =D52*$H52 -> 30.55406577 | L52: =E52*$H52 -> 30.925543 | M52: =G52/$H52 -> 15241128.55
A53: 2013-07-02 | B53: 39.939999 | C53: 40.23 | D53: 39.869999 | E53: 40.009998 | F53: 30.964243 | G53: 5441200 | H53: =F53/E53 -> 0.7739126355 | I53: =B53*$H53 -> 30.91006989 | J53: =C53*$H53 -> 31.13450533 | K53: =D53*$H53 -> 30.855896 | L53: =E53*$H53 -> 30.964243 | M53: =G53/$H53 -> 7030767.751
A54: 2013-07-03 | B54: 39.880001 | C54: 40.02 | D54: 39.650002 | E54: 39.93 | F54: 30.902323 | G54: 3985400 | H54: =F54/E54 -> 0.7739124217 | I54: =B54*$H54 -> 30.86362815 | J54: =C54*$H54 -> 30.97197512 | K54: =D54*$H54 -> 30.68562907 | L54: =E54*$H54 -> 30.902323 | M54: =G54/$H54 -> 5149678.294
A55: 2013-07-05 | B55: 40.02 | C55: 40.200001 | D55: 39.650002 | E55: 40.029999 | F55: 30.979721 | G55: 10602600 | H55: =F55/E55 -> 0.7739126099 | I55: =B55*$H55 -> 30.97198265 | J55: =C55*$H55 -> 31.11128769 | K55: =D55*$H55 -> 30.68563653 | L55: =E55*$H55 -> 30.979721 | M55: =G55/$H55 -> 13699996.44
A56: 2013-07-08 | B56: 40.080002 | C56: 40.470001 | D56: 40.080002 | E56: 40.43 | F56: 31.289278 | G56: 7611700 | H56: =F56/E56 -> 0.7739123918 | I56: =B56*$H56 -> 31.01841021 | J56: =C56*$H56 -> 31.32023527 | K56: =D56*$H56 -> 31.01841021 | L56: =E56*$H56 -> 31.289278 | M56: =G56/$H56 -> 9835350.979
A57: 2013-07-09 | B57: 40.700001 | C57: 40.82 | D57: 40.630001 | E57: 40.73 | F57: 31.521458 | G57: 8937800 | H57: =F57/E57 -> 0.773912546 | I57: =B57*$H57 -> 31.4982414 | J57: =C57*$H57 -> 31.59111013 | K57: =D57*$H57 -> 31.44406752 | L57: =E57*$H57 -> 31.521458 | M57: =G57/$H57 -> 11548850.12
A58: 2013-07-10 | B58: 40.73 | C58: 40.959999 | D58: 40.669998 | E58: 40.779999 | F58: 31.560152 | G58: 7701700 | H58: =F58/E58 -> 0.7739125251 | I58: =B58*$H58 -> 31.52145715 | J58: =C58*$H58 -> 31.69945625 | K58: =D58*$H58 -> 31.47502085 | L58: =E58*$H58 -> 31.560152 | M58: =G58/$H58 -> 9951641.497
A59: 2013-07-11 | B59: 41.209999 | C59: 41.48 | D59: 41.169998 | E59: 41.419998 | F59: 32.055462 | G59: 12282200 | H59: =F59/E59 -> 0.7739126883 | I59: =B59*$H59 -> 31.89294111 | J59: =C59*$H59 -> 32.10189831 | K59: =D59*$H59 -> 31.86198383 | L59: =E59*$H59 -> 32.055462 | M59: =G59/$H59 -> 15870265.71
A60: 2013-07-12 | B60: 41.349998 | C60: 41.470001 | D60: 41.279999 | E60: 41.43 | F60: 32.063183 | G60: 5566100 | H60: =F60/E60 -> 0.7739122134 | I60: =B60*$H60 -> 32.00126848 | J60: =C60*$H60 -> 32.09414026 | K60: =D60*$H60 -> 31.94709539 | L60: =E60*$H60 -> 32.063183 | M60: =G60/$H60 -> 7192159.4
A61: 2013-07-15 | B61: 41.5 | C61: 41.5 | D61: 41.389999 | E61: 41.490002 | F61: 32.109627 | G61: 7076000 | H61: =F61/E61 -> 0.7739123994 | I61: =B61*$H61 -> 32.11736458 | J61: =C61*$H61 -> 32.11736458 | K61: =D61*$H61 -> 32.03223344 | L61: =E61*$H61 -> 32.109627 | M61: =G61/$H61 -> 9143153.676
A62: 2013-07-16 | B62: 41.130001 | C62: 41.419998 | D62: 41.130001 | E62: 41.34 | F62: 31.993544 | G62: 10156700 | H62: =F62/E62 -> 0.7739125302 | I62: =B62*$H62 -> 31.83102314 | J62: =C62*$H62 -> 32.05545545 | K62: =D62*$H62 -> 31.83102314 | L62: =E62*$H62 -> 31.993544 | M62: =G62/$H62 -> 13123834.55
A63: 2013-07-17 | B63: 41.41 | C63: 41.540001 | D63: 41.369999 | E63: 41.419998 | F63: 32.055462 | G63: 9365500 | H63: =F63/E63 -> 0.7739126883 | I63: =B63*$H63 -> 32.04772442 | J63: =C63*$H63 -> 32.14833384 | K63: =D63*$H63 -> 32.01676714 | L63: =E63*$H63 -> 32.055462 | M63: =G63/$H63 -> 12101494.32
A64: 2013-07-18 | B64: 41.41 | C64: 41.709999 | D64: 41.349998 | E64: 41.560001 | F64: 32.163803 | G64: 7136100 | H64: =F64/E64 -> 0.7739124693 | I64: =B64*$H64 -> 32.04771536 | J64: =C64*$H64 -> 32.27988832 | K64: =D64*$H64 -> 32.00127906 | L64: =E64*$H64 -> 32.163803 | M64: =G64/$H64 -> 9220810.211
A65: 2013-07-19 | B65: 41.57 | C65: 41.799999 | D65: 41.52 | E65: 41.799999 | F65: 32.349537 | G65: 8352700 | H65: =F65/E65 -> 0.7739123869 | I65: =B65*$H65 -> 32.17153792 | J65: =C65*$H65 -> 32.349537 | K65: =D65*$H65 -> 32.13284231 | L65: =E65*$H65 -> 32.349537 | M65: =G65/$H65 -> 10792823.76
A66: 2013-07-22 | B66: 41.84 | C66: 41.849998 | D66: 41.650002 | E66: 41.709999 | F66: 32.279888 | G66: 7887600 | H66: =F66/E66 -> 0.7739124616 | I66: =B66*$H66 -> 32.38049739 | J66: =C66*$H66 -> 32.38823497 | K66: =D66*$H66 -> 32.23345557 | L66: =E66*$H66 -> 32.279888 | M66: =G66/$H66 -> 10191850.36
A67: 2013-07-23 | B67: 41.75 | C67: 41.759998 | D67: 41.580002 | E67: 41.630001 | F67: 32.217979 | G67: 6122500 | H67: =F67/E67 -> 0.7739125204 | I67: =B67*$H67 -> 32.31084773 | J67: =C67*$H67 -> 32.31858531 | K67: =D67*$H67 -> 32.17928415 | L67: =E67*$H67 -> 32.217979 | M67: =G67/$H67 -> 7911100.852
A68: 2013-07-24 | B68: 41.740002 | C68: 41.740002 | D68: 41.27 | E68: 41.360001 | F68: 32.009026 | G68: 8262900 | H68: =F68/E68 -> 0.7739126022 | I68: =B68*$H68 -> 32.30311356 | J68: =C68*$H68 -> 32.30311356 | K68: =D68*$H68 -> 31.93937309 | L68: =E68*$H68 -> 32.009026 | M68: =G68/$H68 -> 10676786.99
A69: 2013-07-25 | B69: 41.279999 | C69: 41.619999 | D69: 41.25 | E69: 41.580002 | F69: 32.179276 | G69: 4720600 | H69: =F69/E69 -> 0.7739123245 | I69: =B69*$H69 -> 31.94709998 | J69: =C69*$H69 -> 32.21023017 | K69: =D69*$H69 -> 31.92388339 | L69: =E69*$H69 -> 32.179276 | M69: =G69/$H69 -> 6099657.352
A70: 2013-07-26 | B70: 41.419998 | C70: 41.549999 | D70: 41.02 | E70: 41.529999 | F70: 32.140579 | G70: 6073200 | H70: =F70/E70 -> 0.7739123471 | I70: =B70*$H70 -> 32.05544787 | J70: =C70*$H70 -> 32.15605725 | K70: =D70*$H70 -> 31.74588448 | L70: =E70*$H70 -> 32.140579 | M70: =G70/$H70 -> 7847400.32
A71: 2013-07-29 | B71: 41.470001 | C71: 41.540001 | D71: 41.34 | E71: 41.439999 | F71: 32.070934 | G71: 7493000 | H71: =F71/E71 -> 0.7739125187 | I71: =B71*$H71 -> 32.09415292 | J71: =C71*$H71 -> 32.1483268 | K71: =D71*$H71 -> 31.99354352 | L71: =E71*$H71 -> 32.070934 | M71: =G71/$H71 -> 9681972.858
A72: 2013-07-30 | B72: 41.509998 | C72: 41.68 | D72: 41.32 | E72: 41.400002 | F72: 32.039982 | G72: 5733600 | H72: =F72/E72 -> 0.7739125713 | I72: =B72*$H72 -> 32.12510929 | J72: =C72*$H72 -> 32.25667597 | K72: =D72*$H72 -> 31.97806745 | L72: =E72*$H72 -> 32.039982 | M72: =G72/$H72 -> 7408588.79
A73: 2013-07-31 | B73: 41.41 | C73: 41.610001 | D73: 41.34 | E73: 41.389999 | F73: 32.03223 | G73: 6735500 | H73: =F73/E73 -> 0.7739123164 | I73: =B73*$H73 -> 32.04770902 | J73: =C73*$H73 -> 32.20249226 | K73: =D73*$H73 -> 31.99353516 | L73: =E73*$H73 -> 32.03223 | M73: =G73/$H73 -> 8703182.334
A74: 2013-08-01 | B74: 41.599998 | C74: 41.799999 | D74: 41.599998 | E74: 41.73 | F74: 32.295361 | G74: 6207700 | H74: =F74/E74 -> 0.7739123173 | I74: =B74*$H74 -> 32.19475085 | J74: =C74*$H74 -> 32.34953409 | K74: =D74*$H74 -> 32.19475085 | L74: =E74*$H74 -> 32.295361 | M74: =G74/$H74 -> 8021192.92
A75: 2013-08-02 | B75: 41.610001 | C75: 41.77 | D75: 41.439999 | E75: 41.75 | F75: 32.310844 | G75: 3956400 | H75: =F75/E75 -> 0.7739124311 | I75: =B75*$H75 -> 32.20249703 | J75: =C75*$H75 -> 32.32632225 | K75: =D75*$H75 -> 32.07093037 | L75: =E75*$H75 -> 32.310844 | M75: =G75/$H75 -> 5112206.292
A76: 2013-08-05 | B76: 41.740002 | C76: 41.849998 | D76: 41.650002 | E76: 41.779999 | F76: 32.334049 | G76: 5010300 | H76: =F76/E76 -> 0.7739121535 | I76: =B76*$H76 -> 32.30309484 | J76: =C76*$H76 -> 32.38822208 | K76: =D76*$H76 -> 32.23344274 | L76: =E76*$H76 -> 32.334049 | M76: =G76/$H76 -> 6473990.591
A77: 2013-08-06 | B77: 41.759998 | C77: 41.790001 | D77: 41.580002 | E77: 41.73 | F77: 32.295361 | G77: 3148600 | H77: =F77/E77 -> 0.7739123173 | I77: =B77*$H77 -> 32.31857682 | J77: =C77*$H77 -> 32.34179651 | K77: =D77*$H77 -> 32.1792757 | L77: =E77*$H77 -> 32.295361 | M77: =G77/$H77 -> 4068419.548
A78: 2013-08-07 | B78: 41.59 | C78: 41.630001 | D78: 41.459999 | E78: 41.529999 | F78: 32.140579 | G78: 5987100 | H78: =F78/E78 -> 0.7739123471 | I78: =B78*$H78 -> 32.18701451 | J78: =C78*$H78 -> 32.21797178 | K78: =D78*$H78 -> 32.08640514 | L78: =E78*$H78 -> 32.140579 | M78: =G78/$H78 -> 7736147.411
A79: 2013-08-08 | B79: 41.650002 | C79: 41.799999 | D79: 41.52 | E79: 41.75 | F79: 32.310844 | G79: 2915000 | H79: =F79/E79 -> 0.7739124311 | I79: =B79*$H79 -> 32.2334543 | J79: =C79*$H79 -> 32.34953885 | K79: =D79*$H79 -> 32.13284414 | L79: =E79*$H79 -> 32.310844 | M79: =G79/$H79 -> 3766576.014
A80: 2013-08-09 | B80: 41.669998 | C80: 41.73 | D80: 41.459999 | E80: 41.57 | F80: 32.171551 | G80: 4266300 | H80: =F80/E80 -> 0.7739127015 | I80: =B80*$H80 -> 32.24894072 | J80: =C80*$H80 -> 32.29537703 | K80: =D80*$H80 -> 32.08641983 | L80: =E80*$H80 -> 32.171551 | M80: =G80/$H80 -> 5512637.268
A81: 2013-08-12 | B81: 41.41 | C81: 41.5 | D81: 41.259998 | E81: 41.450001 | F81: 32.078663 | G81: 4208600 | H81: =F81/E81 -> 0.7739122371 | I81: =B81*$H81 -> 32.04770574 | J81: =C81*$H81 -> 32.11735784 | K81: =D81*$H81 -> 31.93161735 | L81: =E81*$H81 -> 32.078663 | M81: =G81/$H81 -> 5438084.318
A82: 2013-08-13 | B82: 41.549999 | C82: 41.57 | D82: 41.27 | E82: 41.48 | F82: 32.101879 | G82: 4178500 | H82: =F82/E82 -> 0.7739122228 | I82: =B82*$H82 -> 32.15605208 | J82: =C82*$H82 -> 32.1715311 | K82: =D82*$H82 -> 31.93935743 | L82: =E82*$H82 -> 32.101879 | M82: =G82/$H82 -> 5399191.119
A83: 2013-08-14 | B83: 41.459999 | C83: 41.5 | D83: 41.169998 | E83: 41.189999 | F83: 31.877455 | G83: 4871500 | H83: =F83/E83 -> 0.7739124975 | I83: =B83*$H83 -> 32.08641137 | J83: =C83*$H83 -> 32.11736865 | K83: =D83*$H83 -> 31.86197598 | L83: =E83*$H83 -> 31.877455 | M83: =G83/$H83 -> 6294639.272
A84: 2013-08-15 | B84: 40.880001 | C84: 40.889999 | D84: 40.5 | E84: 40.529999 | F84: 31.366669 | G84: 8854300 | H84: =F84/E84 -> 0.773912405 | I84: =B84*$H84 -> 31.63753989 | J84: =C84*$H84 -> 31.64527747 | K84: =D84*$H84 -> 31.3434524 | L84: =E84*$H84 -> 31.366669 | M84: =G84/$H84 -> 11440958.88
A85: 2013-08-16 | B85: 40.459999 | C85: 40.529999 | D85: 40.130001 | E85: 40.290001 | F85: 31.180933 | G85: 8607300 | H85: =F85/E85 -> 0.7739124405 | I85: =B85*$H85 -> 31.31249657 | J85: =C85*$H85 -> 31.36667044 | K85: =D85*$H85 -> 31.05710701 | L85: =E85*$H85 -> 31.180933 | M85: =G85/$H85 -> 11121800.8
A86: 2013-08-19 | B86: 40.27 | C86: 40.27 | D86: 40.099998 | E86: 40.110001 | F86: 31.04163 | G86: 5126600 | H86: =F86/E86 -> 0.7739124714 | I86: =B86*$H86 -> 31.16545522 | J86: =C86*$H86 -> 31.16545522 | K86: =D86*$H86 -> 31.03388855 | L86: =E86*$H86 -> 31.04163 | M86: =G86/$H86 -> 6624263.324
A87: 2013-08-20 | B87: 40.189999 | C87: 40.349998 | D87: 40.060001 | E87: 40.119999 | F87: 31.049372 | G87: 7174100 | H87: =F87/E87 -> 0.7739125816 | I87: =B87*$H87 -> 31.10354588 | J87: =C87*$H87 -> 31.22737112 | K87: =D87*$H87 -> 31.00293879 | L87: =E87*$H87 -> 31.049372 | M87: =G87/$H87 -> 9269910.027
A88: 2013-08-21 | B88: 40.009998 | C88: 40.169998 | D88: 39.77 | E88: 39.810001 | F88: 30.809446 | G88: 7899700 | H88: =F88/E88 -> 0.7739122137 | I88: =B88*$H88 -> 30.96422612 | J88: =C88*$H88 -> 31.08805208 | K88: =D88*$H88 -> 30.77848874 | L88: =E88*$H88 -> 30.809446 | M88: =G88/$H88 -> 10207488.47
A89: 2013-08-22 | B89: 39.82 | C89: 40.07 | D89: 39.799999 | E89: 39.98 | F89: 30.941023 | G89: 5501900 | H89: =F89/E89 -> 0.7739125313 | I89: =B89*$H89 -> 30.81719699 | J89: =C89*$H89 -> 31.01067513 | K89: =D89*$H89 -> 30.80171797 | L89: =E89*$H89 -> 30.941023 | M89: =G89/$H89 -> 7109201.334
A90: 2013-08-23 | B90: 40.080002 | C90: 40.259998 | D90: 40.009998 | E90: 40.209999 | F90: 31.119022 | G90: 3352900 | H90: =F90/E90 -> 0.7739125286 | I90: =B90*$H90 -> 31.01841569 | J90: =C90*$H90 -> 31.15771685 | K90: =D90*$H90 -> 30.96423872 | L90: =E90*$H90 -> 31.119022 | M90: =G90/$H90 -> 4332401.759
A91: 2013-08-26 | B91: 40.220001 | C91: 40.27 | D91: 39.740002 | E91: 39.740002 | F91: 30.755276 | G91: 17412500 | H91: =F91/E91 -> 0.7739122912 | I91: =B91*$H91 -> 31.12675313 | J91: =C91*$H91 -> 31.16544797 | K91: =D91*$H91 -> 30.755276 | L91: =E91*$H91 -> 30.755276 | M91: =G91/$H91 -> 22499319.62
A92: 2013-08-27 | B92: 39.439999 | C92: 39.639999 | D92: 39.400002 | E92: 39.529999 | F92: 30.592766 | G92: 11462400 | H92: =F92/E92 -> 0.7739126429 | I92: =B92*$H92 -> 30.52311386 | J92: =C92*$H92 -> 30.67789639 | K92: =D92*$H92 -> 30.49215968 | L92: =E92*$H92 -> 30.592766 | M92: =G92/$H92 -> 14810973.96
A93: 2013-08-28 | B93: 39.439999 | C93: 39.450001 | D93: 39.200001 | E93: 39.23 | F93: 30.360579 | G93: 18628600 | H93: =F93/E93 -> 0.7739122865 | I93: =B93*$H93 -> 30.52309981 | J93: =C93*$H93 -> 30.53084048 | K93: =D93*$H93 -> 30.33736241 | L93: =E93*$H93 -> 30.360579 | M93: =G93/$H93 -> 24070686.46
A94: 2013-08-29 | B94: 39.080002 | C94: 39.560001 | D94: 39.049999 | E94: 39.389999 | F94: 30.484407 | G94: 7455000 | H94: =F94/E94 -> 0.7739123578 | I94: =B94*$H94 -> 30.24449649 | J94: =C94*$H94 -> 30.61597365 | K94: =D94*$H94 -> 30.2212768 | L94: =E94*$H94 -> 30.484407 | M94: =G94/$H94 -> 9632873.703
A95: 2013-08-30 | B95: 39.509998 | C95: 39.580002 | D95: 39.349998 | E95: 39.509998 | F95: 30.577282 | G95: 8672400 | H95: =F95/E95 -> 0.773912517 | I95: =B95*$H95 -> 30.577282 | J95: =C95*$H95 -> 30.63145897 | K95: =D95*$H95 -> 30.453456 | L95: =E95*$H95 -> 30.577282 | M95: =G95/$H95 -> 11205917.74
A96: 2013-09-03 | B96: 39.689999 | C96: 39.830002 | D96: 39.400002 | E96: 39.48 | F96: 30.554068 | G96: 15164200 | H96: =F96/E96 -> 0.7739125633 | I96: =B96*$H96 -> 30.71658886 | J96: =C96*$H96 -> 30.82493894 | K96: =D96*$H96 -> 30.49215654 | L96: =E96*$H96 -> 30.554068 | M96: =G96/$H96 -> 19594203.17
A97: 2013-09-04 | B97: 39.459999 | C97: 39.830002 | D97: 39.389999 | E97: 39.73 | F97: 30.747541 | G97: 6468800 | H97: =F97/E97 -> 0.7739124339 | I97: =B97*$H97 -> 30.53858387 | J97: =C97*$H97 -> 30.82493379 | K97: =D97*$H97 -> 30.48441 | L97: =E97*$H97 -> 30.747541 | M97: =G97/$H97 -> 8358568.381
A98: 2013-09-05 | B98: 39.790001 | C98: 39.82 | D98: 39.630001 | E98: 39.669998 | F98: 30.701109 | G98: 4525100 | H98: =F98/E98 -> 0.7739125422 | I98: =B98*$H98 -> 30.79398083 | J98: =C98*$H98 -> 30.81719743 | K98: =D98*$H98 -> 30.67015482 | L98: =E98*$H98 -> 30.701109 | M98: =G98/$H98 -> 5847043.113
A99: 2013-09-06 | B99: 39.810001 | C99: 39.950001 | D99: 39.389999 | E99: 39.77 | F99: 30.778505 | G99: 6976700 | H99: =F99/E99 -> 0.7739126226 | I99: =B99*$H99 -> 30.80946228 | J99: =C99*$H99 -> 30.91781005 | K99: =D99*$H99 -> 30.48441743 | L99: =E99*$H99 -> 30.778505 | M99: =G99/$H99 -> 9014841.981
A100: 2013-09-09 | B100: 39.790001 | C100: 40.09 | D100: 39.779999 | E100: 40.049999 | F100: 30.99519 | G100: 10347600 | H100: =F100/E100 -> 0.7739123789 | I100: =B100*$H100 -> 30.79397433 | J100: =C100*$H100 -> 31.02614727 | K100: =D100*$H100 -> 30.78623366 | L100: =E100*$H100 -> 30.99519 | M100: =G100/$H100 -> 13370505.86
A101: 2013-09-10 | B101: 40.16 | C101: 40.240002 | D101: 39.950001 | E101: 40.09 | F101: 31.026154 | G101: 6501800 | H101: =F101/E101 -> 0.7739125468 | I101: =B101*$H101 -> 31.08032788 | J101: =C101*$H101 -> 31.14224243 | K101: =D101*$H101 -> 30.91780702 | L101: =E101*$H101 -> 31.026154 | M101: =G101/$H101 -> 8401207.639
A102: 2013-09-11 | B102: 40.009998 | C102: 40.389999 | D102: 40.009998 | E102: 40.380001 | F102: 31.250589 | G102: 6812300 | H102: =F102/E102 -> 0.7739125366 | I102: =B102*$H102 -> 30.96423904 | J102: =C102*$H102 -> 31.25832658 | K102: =D102*$H102 -> 30.96423904 | L102: =E102*$H102 -> 31.250589 | M102: =G102/$H102 -> 8802415.878
A103: 2013-09-12 | B103: 40.389999 | C103: 40.509998 | D103: 40.349998 | E103: 40.389999 | F103: 31.258329 | G103: 7002900 | H103: =F103/E103 -> 0.7739125965 | I103: =B103*$H103 -> 31.258329 | J103: =C103*$H103 -> 31.35119774 | K103: =D103*$H103 -> 31.22737172 | L103: =E103*$H103 -> 31.258329 | M103: =G103/$H103 -> 9048696.237
A104: 2013-09-13 | B104: 40.48 | C104: 40.75 | D104: 40.48 | E104: 40.720001 | F104: 31.513721 | G104: 5063200 | H104: =F104/E104 -> 0.7739125792 | I104: =B104*$H104 -> 31.32798121 | J104: =C104*$H104 -> 31.5369376 | K104: =D104*$H104 -> 31.32798121 | L104: =E104*$H104 -> 31.513721 | M104: =G104/$H104 -> 6542341.003
A105: 2013-09-16 | B105: 41.060001 | C105: 41.220001 | D105: 41.009998 | E105: 41.09 | F105: 31.80006 | G105: 8178900 | H105: =F105/E105 -> 0.7739123874 | I105: =B105*$H105 -> 31.7768434 | J105: =C105*$H105 -> 31.90066938 | K105: =D105*$H105 -> 31.73814546 | L105: =E105*$H105 -> 31.80006 | M105: =G105/$H105 -> 10568250.53
A106: 2013-09-17 | B106: 41.080002 | C106: 41.27 | D106: 41.080002 | E106: 41.23 | F106: 31.908411 | G106: 5344500 | H106: =F106/E106 -> 0.7739124667 | I106: =B106*$H106 -> 31.79232568 | J106: =C106*$H106 -> 31.9393675 | K106: =D106*$H106 -> 31.79232568 | L106: =E106*$H106 -> 31.908411 | M106: =G106/$H106 -> 6905819.754
A107: 2013-09-18 | B107: 41.200001 | C107: 41.75 | D107: 40.990002 | E107: 41.720001 | F107: 32.287628 | G107: 12763900 | H107: =F107/E107 -> 0.7739124455 | I107: =B107*$H107 -> 31.88519353 | J107: =C107*$H107 -> 32.3108446 | K107: =D107*$H107 -> 31.72267269 | L107: =E107*$H107 -> 32.287628 | M107: =G107/$H107 -> 16492692.52
A108: 2013-09-19 | B108: 41.790001 | C108: 41.84 | D108: 41.439999 | E108: 41.529999 | F108: 32.140579 | G108: 6148500 | H108: =F108/E108 -> 0.7739123471 | I108: =B108*$H108 -> 32.34179776 | J108: =C108*$H108 -> 32.3804926 | K108: =D108*$H108 -> 32.07092689 | L108: =E108*$H108 -> 32.140579 | M108: =G108/$H108 -> 7944698.16
A109: 2013-09-20 | B109: 41.259998 | C109: 41.259998 | D109: 40.950001 | E109: 40.98 | F109: 31.915506 | G109: 7279100 | H109: =F109/E109 -> 0.7788068814 | I109: =B109*$H109 -> 32.13357037 | J109: =C109*$H109 -> 32.13357037 | K109: =D109*$H109 -> 31.89214257 | L109: =E109*$H109 -> 31.915506 | M109: =G109/$H109 -> 9346476.224
A110: 2013-09-23 | B110: 40.939999 | C110: 40.939999 | D110: 40.709999 | E110: 40.799999 | F110: 31.77532 | G110: 5586800 | H110: =F110/E110 -> 0.7788068818 | I110: =B110*$H110 -> 31.88435296 | J110: =C110*$H110 -> 31.88435296 | K110: =D110*$H110 -> 31.70522738 | L110: =E110*$H110 -> 31.77532 | M110: =G110/$H110 -> 7173537.022
A111: 2013-09-24 | B111: 40.799999 | C111: 40.869999 | D111: 40.549999 | E111: 40.610001 | F111: 31.627354 | G111: 6855000 | H111: =F111/E111 -> 0.7788070234 | I111: =B111*$H111 -> 31.77532578 | J111: =C111*$H111 -> 31.82984227 | K111: =D111*$H111 -> 31.58062402 | L111: =E111*$H111 -> 31.627354 | M111: =G111/$H111 -> 8801923.704
A112: 2013-09-25 | B112: 40.59 | C112: 40.66 | D112: 40.200001 | E112: 40.27 | F112: 31.36256 | G112: 8234700 | H112: =F112/E112 -> 0.7788070524 | I112: =B112*$H112 -> 31.61177826 | J112: =C112*$H112 -> 31.66629475 | K112: =D112*$H112 -> 31.30804429 | L112: =E112*$H112 -> 31.36256 | M112: =G112/$H112 -> 10573478.98
A113: 2013-09-26 | B113: 40.32 | C113: 40.48 | D113: 40.25 | E113: 40.48 | F113: 31.526104 | G113: 4560300 | H113: =F113/E113 -> 0.778806917 | I113: =B113*$H113 -> 31.40149489 | J113: =C113*$H113 -> 31.526104 | K113: =D113*$H113 -> 31.34697841 | L113: =E113*$H113 -> 31.526104 | M113: =G113/$H113 -> 5855494.989
A114: 2013-09-27 | B114: 40.34 | C114: 40.34 | D114: 40.049999 | E114: 40.23 | F114: 31.331396 | G114: 4453400 | H114: =F114/E114 -> 0.7788067611 | I114: =B114*$H114 -> 31.41706474 | J114: =C114*$H114 -> 31.41706474 | K114: =D114*$H114 -> 31.19121 | L114: =E114*$H114 -> 31.331396 | M114: =G114/$H114 -> 5718234.898
A115: 2013-09-30 | B115: 39.950001 | C115: 40.110001 | D115: 39.73 | E115: 39.799999 | F115: 30.996515 | G115: 8120800 | H115: =F115/E115 -> 0.7788069291 | I115: =B115*$H115 -> 31.1133376 | J115: =C115*$H115 -> 31.23794671 | K115: =D115*$H115 -> 30.94199929 | L115: =E115*$H115 -> 30.996515 | M115: =G115/$H115 -> 10427231.32
A116: 2013-10-01 | B116: 39.779999 | C116: 40.060001 | D116: 39.740002 | E116: 40.040001 | F116: 31.183418 | G116: 7152300 | H116: =F116/E116 -> 0.7788066239 | I116: =B116*$H116 -> 30.98092672 | J116: =C116*$H116 -> 31.19899413 | K116: =D116*$H116 -> 30.94977679 | L116: =E116*$H116 -> 31.183418 | M116: =G116/$H116 -> 9183666.112
A117: 2013-10-02 | B117: 39.919998 | C117: 39.959999 | D117: 39.580002 | E117: 39.950001 | F117: 31.113348 | G117: 5827400 | H117: =F117/E117 -> 0.7788071895 | I117: =B117*$H117 -> 31.08998145 | J117: =C117*$H117 -> 31.12113451 | K117: =D117*$H117 -> 30.82519012 | L117: =E117*$H117 -> 31.113348 | M117: =G117/$H117 -> 7482468.162
A118: 2013-10-03 | B118: 39.889999 | C118: 39.93 | D118: 39.630001 | E118: 39.75 | F118: 30.957569 | G118: 9686800 | H118: =F118/E118 -> 0.7788067673 | I118: =B118*$H118 -> 31.06660117 | J118: =C118*$H118 -> 31.09775422 | K118: =D118*$H118 -> 30.86411297 | L118: =E118*$H118 -> 30.957569 | M118: =G118/$H118 -> 12438001.83
A119: 2013-10-04 | B119: 39.759998 | C119: 39.959999 | D119: 39.650002 | E119: 39.810001 | F119: 31.004297 | G119: 5713900 | H119: =F119/E119 -> 0.7788067375 | I119: =B119*$H119 -> 30.96535433 | J119: =C119*$H119 -> 31.12111645 | K119: =D119*$H119 -> 30.8796887 | L119: =E119*$H119 -> 31.004297 | M119: =G119/$H119 -> 7336736.734
A120: 2013-10-07 | B120: 39.580002 | C120: 39.880001 | D120: 39.560001 | E120: 39.68 | F120: 30.903051 | G120: 5438900 | H120: =F120/E120 -> 0.7788067288 | I120: =B120*$H120 -> 30.82517188 | J120: =C120*$H120 -> 31.05881312 | K120: =D120*$H120 -> 30.80959497 | L120: =E120*$H120 -> 30.903051 | M120: =G120/$H120 -> 6983632.522
A121: 2013-10-08 | B121: 39.75 | C121: 39.939999 | D121: 39.639999 | E121: 39.68 | F121: 30.903051 | G121: 9532300 | H121: =F121/E121 -> 0.7788067288 | I121: =B121*$H121 -> 30.95756747 | J121: =C121*$H121 -> 31.10553997 | K121: =D121*$H121 -> 30.87189795 | L121: =E121*$H121 -> 30.903051 | M121: =G121/$H121 -> 12239622.04
A122: 2013-10-09 | B122: 39.73 | C122: 39.91 | D122: 39.580002 | E122: 39.709999 | F122: 30.926428 | G122: 8706800 | H122: =F122/E122 -> 0.7788070707 | I122: =B122*$H122 -> 30.94200492 | J122: =C122*$H122 -> 31.08219019 | K122: =D122*$H122 -> 30.82518542 | L122: =E122*$H122 -> 30.926428 | M122: =G122/$H122 -> 11179662.24
A123: 2013-10-10 | B123: 39.970001 | C123: 40.470001 | D123: 39.970001 | E123: 40.450001 | F123: 31.502752 | G123: 6104900 | H123: =F123/E123 -> 0.7788071995 | I123: =B123*$H123 -> 31.12892454 | J123: =C123*$H123 -> 31.51832814 | K123: =D123*$H123 -> 31.12892454 | L123: =E123*$H123 -> 31.502752 | M123: =G123/$H123 -> 7838782.183
A124: 2013-10-11 | B124: 40.419998 | C124: 40.580002 | D124: 40.330002 | E124: 40.57 | F124: 31.596203 | G124: 5451800 | H124: =F124/E124 -> 0.7788070742 | I124: =B124*$H124 -> 31.47938038 | J124: =C124*$H124 -> 31.60399263 | K124: =D124*$H124 -> 31.40929086 | L124: =E124*$H124 -> 31.596203 | M124: =G124/$H124 -> 7000193.219
A125: 2013-10-14 | B125: 40.349998 | C125: 40.75 | D125: 40.310001 | E125: 40.740002 | F125: 31.728594 | G125: 6808200 | H125: =F125/E125 -> 0.7788068837 | I125: =B125*$H125 -> 31.4248562 | J125: =C125*$H125 -> 31.73638051 | K125: =D125*$H125 -> 31.39370626 | L125: =E125*$H125 -> 31.728594 | M125: =G125/$H125 -> 8741833.364
A126: 2013-10-15 | B126: 40.68 | C126: 40.720001 | D126: 40.32 | E126: 40.369999 | F126: 31.440443 | G126: 7792900 | H126: =F126/E126 -> 0.7788071285 | I126: =B126*$H126 -> 31.68187399 | J126: =C126*$H126 -> 31.71302705 | K126: =D126*$H126 -> 31.40150342 | L126: =E126*$H126 -> 31.440443 | M126: =G126/$H126 -> 10006200.14
A127: 2013-10-16 | B127: 40.52 | C127: 40.990002 | D127: 40.52 | E127: 40.970001 | F127: 31.907705 | G127: 7034800 | H127: =F127/E127 -> 0.7788065468 | I127: =B127*$H127 -> 31.55724128 | J127: =C127*$H127 -> 31.92328191 | K127: =D127*$H127 -> 31.55724128 | L127: =E127*$H127 -> 31.907705 | M127: =G127/$H127 -> 9032795.152
A128: 2013-10-17 | B128: 40.84 | C128: 41.439999 | D128: 40.84 | E128: 41.43 | F128: 32.265965 | G128: 8498700 | H128: =F128/E128 -> 0.7788067825 | I128: =B128*$H128 -> 31.806469 | J128: =C128*$H128 -> 32.27375229 | K128: =D128*$H128 -> 31.806469 | L128: =E128*$H128 -> 32.265965 | M128: =G128/$H128 -> 10912462.75
A129: 2013-10-18 | B129: 41.490002 | C129: 41.549999 | D129: 41.349998 | E129: 41.490002 | F129: 32.312702 | G129: 5861400 | H129: =F129/E129 -> 0.7788069521 | I129: =B129*$H129 -> 32.312702 | J129: =C129*$H129 -> 32.35942808 | K129: =D129*$H129 -> 32.20366591 | L129: =E129*$H129 -> 32.312702 | M129: =G129/$H129 -> 7526126.962
A130: 2013-10-21 | B130: 41.43 | C130: 41.509998 | D130: 41.23 | E130: 41.400002 | F130: 32.242615 | G130: 3646400 | H130: =F130/E130 -> 0.778807088 | I130: =B130*$H130 -> 32.26597766 | J130: =C130*$H130 -> 32.32828066 | K130: =D130*$H130 -> 32.11021624 | L130: =E130*$H130 -> 32.242615 | M130: =G130/$H130 -> 4682032.375
A131: 2013-10-22 | B131: 41.5 | C131: 42.029999 | D131: 41.48 | E131: 41.919998 | F131: 32.647579 | G131: 9404700 | H131: =F131/E131 -> 0.7788067881 | I131: =B131*$H131 -> 32.32048171 | J131: =C131*$H131 -> 32.73324853 | K131: =D131*$H131 -> 32.30490557 | L131: =E131*$H131 -> 32.647579 | M131: =G131/$H131 -> 12075780.72
A132: 2013-10-23 | B132: 41.82 | C132: 42.09 | D132: 41.799999 | E132: 42 | F132: 32.709904 | G132: 8809800 | H132: =F132/E132 -> 0.7788072381 | I132: =B132*$H132 -> 32.5697187 | J132: =C132*$H132 -> 32.77999665 | K132: =D132*$H132 -> 32.55414177 | L132: =E132*$H132 -> 32.709904 | M132: =G132/$H132 -> 11311913.36
A133: 2013-10-24 | B133: 42.080002 | C133: 42.080002 | D133: 41.860001 | E133: 41.919998 | F133: 32.647579 | G133: 7754800 | H133: =F133/E133 -> 0.7788067881 | I133: =B133*$H133 -> 32.7721912 | J133: =C133*$H133 -> 32.7721912 | K133: =D133*$H133 -> 32.60085293 | L133: =E133*$H133 -> 32.647579 | M133: =G133/$H133 -> 9957283.524
A134: 2013-10-25 | B134: 41.93 | C134: 42.060001 | D134: 41.799999 | E134: 42.02 | F134: 32.725449 | G134: 4301900 | H134: =F134/E134 -> 0.7788064969 | I134: =B134*$H134 -> 32.65535642 | J134: =C134*$H134 -> 32.75660204 | K134: =D134*$H134 -> 32.55411079 | L134: =E134*$H134 -> 32.725449 | M134: =G134/$H134 -> 5523708.414
A135: 2013-10-28 | B135: 42.150002 | C135: 42.700001 | D135: 42.09 | E135: 42.57 | F135: 33.153812 | G135: 33007100 | H135: =F135/E135 -> 0.7788069533 | I135: =B135*$H135 -> 32.82671464 | J135: =C135*$H135 -> 33.25505768 | K135: =D135*$H135 -> 32.77998466 | L135: =E135*$H135 -> 33.153812 | M135: =G135/$H135 -> 42381619.56
A136: 2013-10-29 | B136: 42.66 | C136: 42.939999 | D136: 42.540001 | E136: 42.939999 | F136: 33.441975 | G136: 15133400 | H136: =F136/E136 -> 0.7788070745 | I136: =B136*$H136 -> 33.2239098 | J136: =C136*$H136 -> 33.441975 | K136: =D136*$H136 -> 33.13045373 | L136: =E136*$H136 -> 33.441975 | M136: =G136/$H136 -> 19431513.27
A137: 2013-10-30 | B137: 42.990002 | C137: 42.990002 | D137: 42.459999 | E137: 42.57 | F137: 33.153812 | G137: 11872100 | H137: =F137/E137 -> 0.7788069533 | I137: =B137*$H137 -> 33.48091248 | J137: =C137*$H137 -> 33.48091248 | K137: =D137*$H137 -> 33.06814246 | L137: =E137*$H137 -> 33.153812 | M137: =G137/$H137 -> 15243957.38
A138: 2013-10-31 | B138: 42.490002 | C138: 42.59 | D138: 42.290001 | E138: 42.349998 | F138: 32.982487 | G138: 11588100 | H138: =F138/E138 -> 0.7788072859 | I138: =B138*$H138 -> 33.09152314 | J138: =C138*$H138 -> 33.16940231 | K138: =D138*$H138 -> 32.9357609 | L138: =E138*$H138 -> 32.982487 | M138: =G138/$H138 -> 14879290.69
A139: 2013-11-01 | B139: 42.360001 | C139: 42.57 | D139: 42.27 | E139: 42.509998 | F139: 33.107075 | G139: 9055000 | H139: =F139/E139 -> 0.778806788 | I139: =B139*$H139 -> 32.99025632 | J139: =C139*$H139 -> 33.15380496 | K139: =D139*$H139 -> 32.92016293 | L139: =E139*$H139 -> 33.107075 | M139: =G139/$H139 -> 11626760.5
A140: 2013-11-04 | B140: 42.610001 | C140: 42.720001 | D140: 42.400002 | E140: 42.549999 | F140: 33.138241 | G140: 5305500 | H140: =F140/E140 -> 0.7788070923 | I140: =B140*$H140 -> 33.18497098 | J140: =C140*$H140 -> 33.27063976 | K140: =D140*$H140 -> 33.02142227 | L140: =E140*$H140 -> 33.138241 | M140: =G140/$H140 -> 6812341.66
A141: 2013-11-05 | B141: 42.509998 | C141: 42.759998 | D141: 42.380001 | E141: 42.630001 | F141: 33.200542 | G141: 6804500 | H141: =F141/E141 -> 0.7788069721 | I141: =B141*$H141 -> 33.10708283 | J141: =C141*$H141 -> 33.30178457 | K141: =D141*$H141 -> 33.00584026 | L141: =E141*$H141 -> 33.200542 | M141: =G141/$H141 -> 8737081.515
A142: 2013-11-06 | B142: 42.849998 | C142: 43.099998 | D142: 42.650002 | E142: 43.09 | F142: 33.558796 | G142: 7356400 | H142: =F142/E142 -> 0.778807055 | I142: =B142*$H142 -> 33.37188075 | J142: =C142*$H142 -> 33.56658251 | K142: =D142*$H142 -> 33.21612245 | L142: =E142*$H142 -> 33.558796 | M142: =G142/$H142 -> 9445728.506
A143: 2013-11-07 | B143: 43.060001 | C143: 43.080002 | D143: 42.369999 | E143: 42.459999 | F143: 33.06815 | G143: 11993800 | H143: =F143/E143 -> 0.7788071309 | I143: =B143*$H143 -> 33.53543584 | J143: =C143*$H143 -> 33.55101276 | K143: =D143*$H143 -> 32.99805736 | L143: =E143*$H143 -> 33.06815 | M143: =G143/$H143 -> 15400218.52
A144: 2013-11-08 | B144: 42.470001 | C144: 42.669998 | D144: 42.130001 | E144: 42.669998 | F144: 33.231693 | G144: 15162000 | H144: =F144/E144 -> 0.7788069969 | I144: =B144*$H144 -> 33.07593394 | J144: =C144*$H144 -> 33.231693 | K144: =D144*$H144 -> 32.81113956 | L144: =E144*$H144 -> 33.231693 | M144: =G144/$H144 -> 19468238.04
A145: 2013-11-11 | B145: 42.650002 | C145: 42.73 | D145: 42.5 | E145: 42.540001 | F145: 33.130444 | G145: 7981900 | H145: =F145/E145 -> 0.7788068458 | I145: =B145*$H145 -> 33.21611353 | J145: =C145*$H145 -> 33.27841652 | K145: =D145*$H145 -> 33.09929095 | L145: =E145*$H145 -> 33.130444 | M145: =G145/$H145 -> 10248882.69
A146: 2013-11-12 | B146: 42.439999 | C146: 42.639999 | D146: 42.400002 | E146: 42.610001 | F146: 33.184963 | G146: 5657100 | H146: =F146/E146 -> 0.778806905 | I146: =B146*$H146 -> 33.05256427 | J146: =C146*$H146 -> 33.20832565 | K146: =D146*$H146 -> 33.02141433 | L146: =E146*$H146 -> 33.184963 | M146: =G146/$H146 -> 7263803.086
A147: 2013-11-13 | B147: 42.459999 | C147: 42.990002 | D147: 42.419998 | E147: 42.970001 | F147: 33.465343 | G147: 7651500 | H147: =F147/E147 -> 0.7788071264 | I147: =B147*$H147 -> 33.06814981 | J147: =C147*$H147 -> 33.48091992 | K147: =D147*$H147 -> 33.03699674 | L147: =E147*$H147 -> 33.465343 | M147: =G147/$H147 -> 9824640.454
A148: 2013-11-14 | B148: 42.990002 | C148: 43.330002 | D148: 42.959999 | E148: 43.279999 | F148: 33.706757 | G148: 5891500 | H148: =F148/E148 -> 0.7788067879 | I148: =B148*$H148 -> 33.48090537 | J148: =C148*$H148 -> 33.74569968 | K148: =D148*$H148 -> 33.45753883 | L148: =E148*$H148 -> 33.706757 | M148: =G148/$H148 -> 7564777.416
A149: 2013-11-15 | B149: 43.259998 | C149: 43.43 | D149: 43.150002 | E149: 43.330002 | F149: 33.745716 | G149: 3054000 | H149: =F149/E149 -> 0.7788071646 | I149: =B149*$H149 -> 33.69119638 | J149: =C149*$H149 -> 33.82359516 | K149: =D149*$H149 -> 33.60553071 | L149: =E149*$H149 -> 33.745716 | M149: =G149/$H149 -> 3921381.491
A150: 2013-11-18 | B150: 43.459999 | C150: 43.459999 | D150: 43.110001 | E150: 43.200001 | F150: 33.644466 | G150: 3924900 | H150: =F150/E150 -> 0.7788070653 | I150: =B150*$H150 -> 33.84695428 | J150: =C150*$H150 -> 33.84695428 | K150: =D150*$H150 -> 33.57437336 | L150: =E150*$H150 -> 33.644466 | M150: =G150/$H150 -> 5039630.706
A151: 2013-11-19 | B151: 43.139999 | C151: 43.189999 | D151: 42.970001 | E151: 43.040001 | F151: 33.519852 | G151: 7013200 | H151: =F151/E151 -> 0.7788069522 | I151: =B151*$H151 -> 33.59773114 | J151: =C151*$H151 -> 33.63667149 | K151: =D151*$H151 -> 33.46533551 | L151: =E151*$H151 -> 33.519852 | M151: =G151/$H151 -> 9005055.721
A152: 2013-11-20 | B152: 43.09 | C152: 43.200001 | D152: 42.73 | E152: 42.860001 | F152: 33.379669 | G152: 7392100 | H152: =F152/E152 -> 0.7788070047 | I152: =B152*$H152 -> 33.55879383 | J152: =C152*$H152 -> 33.64446338 | K152: =D152*$H152 -> 33.27842331 | L152: =E152*$H152 -> 33.379669 | M152: =G152/$H152 -> 9491568.457
A153: 2013-11-21 | B153: 42.860001 | C153: 42.970001 | D153: 42.759998 | E153: 42.939999 | F153: 33.441975 | G153: 6777800 | H153: =F153/E153 -> 0.7788070745 | I153: =B153*$H153 -> 33.37967199 | J153: =C153*$H153 -> 33.46534077 | K153: =D153*$H153 -> 33.30178895 | L153: =E153*$H153 -> 33.441975 | M153: =G153/$H153 -> 8702797.165
A154: 2013-11-22 | B154: 43.009998 | C154: 43.189999 | D154: 42.860001 | E154: 43.16 | F154: 33.613312 | G154: 5443000 | H154: =F154/E154 -> 0.7788070436 | I154: =B154*$H154 -> 33.49648939 | J154: =C154*$H154 -> 33.63667543 | K154: =D154*$H154 -> 33.37967067 | L154: =E154*$H154 -> 33.613312 | M154: =G154/$H154 -> 6988894.162
A155: 2013-11-25 | B155: 43.299999 | C155: 43.34 | D155: 43.029999 | E155: 43.09 | F155: 33.558796 | G155: 4447200 | H155: =F155/E155 -> 0.778807055 | I155: =B155*$H155 -> 33.7223447 | J155: =C155*$H155 -> 33.75349776 | K155: =D155*$H155 -> 33.5120668 | L155: =E155*$H155 -> 33.558796 | M155: =G155/$H155 -> 5710271.846
A156: 2013-11-26 | B156: 43.139999 | C156: 43.25 | D156: 42.98 | E156: 43.049999 | F156: 33.527641 | G156: 3854300 | H156: =F156/E156 -> 0.77880701 | I156: =B156*$H156 -> 33.59773363 | J156: =C156*$H156 -> 33.68340318 | K156: =D156*$H156 -> 33.47312529 | L156: =E156*$H156 -> 33.527641 | M156: =G156/$H156 -> 4948979.594
A157: 2013-11-27 | B157: 43.189999 | C157: 43.189999 | D157: 42.959999 | E157: 43.080002 | F157: 33.550999 | G157: 3257000 | H157: =F157/E157 -> 0.7788068116 | I157: =B157*$H157 -> 33.63666541 | J157: =C157*$H157 -> 33.63666541 | K157: =D157*$H157 -> 33.45753985 | L157: =E157*$H157 -> 33.550999 | M157: =G157/$H157 -> 4182038.41
A158: 2013-11-29 | B158: 43.169998 | C158: 43.27 | D158: 42.959999 | E158: 43.009998 | F158: 33.496483 | G158: 2642100 | H158: =F158/E158 -> 0.7788068951 | I158: =B158*$H158 -> 33.6210921 | J158: =C158*$H158 -> 33.69897435 | K158: =D158*$H158 -> 33.45754343 | L158: =E158*$H158 -> 33.496483 | M158: =G158/$H158 -> 3392496.929
A159: 2013-12-02 | B159: 43.029999 | C159: 43.040001 | D159: 42.68 | E159: 42.779999 | F159: 33.317364 | G159: 5041700 | H159: =F159/E159 -> 0.7788070308 | I159: =B159*$H159 -> 33.51206576 | J159: =C159*$H159 -> 33.51985539 | K159: =D159*$H159 -> 33.23948408 | L159: =E159*$H159 -> 33.317364 | M159: =G159/$H159 -> 6473619.01
A160: 2013-12-03 | B160: 42.73 | C160: 43.009998 | D160: 42.73 | E160: 42.990002 | F160: 33.480919 | G160: 6124800 | H160: =F160/E160 -> 0.778807105 | I160: =B160*$H160 -> 33.2784276 | J160: =C160*$H160 -> 33.49649203 | K160: =D160*$H160 -> 33.2784276 | L160: =E160*$H160 -> 33.480919 | M160: =G160/$H160 -> 7864335.034
A161: 2013-12-04 | B161: 42.880001 | C161: 43 | D161: 42.549999 | E161: 42.889999 | F161: 33.403027 | G161: 8093100 | H161: =F161/E161 -> 0.7788068962 | I161: =B161*$H161 -> 33.39524049 | J161: =C161*$H161 -> 33.48869654 | K161: =D161*$H161 -> 33.13823266 | L161: =E161*$H161 -> 33.403027 | M161: =G161/$H161 -> 10391664.53
A162: 2013-12-05 | B162: 42.740002 | C162: 42.790001 | D162: 42.439999 | E162: 42.5 | F162: 33.099293 | G162: 6060000 | H162: =F162/E162 -> 0.7788068941 | I162: =B162*$H162 -> 33.28620821 | J162: =C162*$H162 -> 33.32514778 | K162: =D162*$H162 -> 33.05256381 | L162: =E162*$H162 -> 33.099293 | M162: =G162/$H162 -> 7781132.969
A163: 2013-12-06 | B163: 42.830002 | C163: 43.130001 | D163: 42.759998 | E163: 43.080002 | F163: 33.550999 | G163: 7108600 | H163: =F163/E163 -> 0.7788068116 | I163: =B163*$H163 -> 33.3562973 | J163: =C163*$H163 -> 33.58993856 | K163: =D163*$H163 -> 33.30177771 | L163: =E163*$H163 -> 33.550999 | M163: =G163/$H163 -> 9127552.423
A164: 2013-12-09 | B164: 43.259998 | C164: 43.380001 | D164: 43.150002 | E164: 43.23 | F164: 33.667828 | G164: 5513100 | H164: =F164/E164 -> 0.7788070322 | I164: =B164*$H164 -> 33.69119065 | J164: =C164*$H164 -> 33.78464983 | K164: =D164*$H164 -> 33.605525 | L164: =E164*$H164 -> 33.667828 | M164: =G164/$H164 -> 7078903.724
A165: 2013-12-10 | B165: 43.139999 | C165: 43.189999 | D165: 42.740002 | E165: 42.860001 | F165: 33.379669 | G165: 3341900 | H165: =F165/E165 -> 0.7788070047 | I165: =B165*$H165 -> 33.5977334 | J165: =C165*$H165 -> 33.63667375 | K165: =D165*$H165 -> 33.28621294 | L165: =E165*$H165 -> 33.379669 | M165: =G165/$H165 -> 4291050.26
A166: 2013-12-11 | B166: 42.849998 | C166: 43.130001 | D166: 42.849998 | E166: 42.93 | F166: 33.434185 | G166: 21705800 | H166: =F166/E166 -> 0.7788070114 | I166: =B166*$H166 -> 33.37187888 | J166: =C166*$H166 -> 33.58994718 | K166: =D166*$H166 -> 33.37187888 | L166: =E166*$H166 -> 33.434185 | M166: =G166/$H166 -> 27870576
A167: 2013-12-12 | B167: 42.919998 | C167: 42.919998 | D167: 42.299999 | E167: 42.34 | F167: 32.974686 | G167: 9662500 | H167: =F167/E167 -> 0.7788069438 | I167: =B167*$H167 -> 33.42639247 | J167: =C167*$H167 -> 33.42639247 | K167: =D167*$H167 -> 32.94353294 | L167: =E167*$H167 -> 32.974686 | M167: =G167/$H167 -> 12406797.44
A168: 2013-12-13 | B168: 42.470001 | C168: 42.470001 | D168: 42.139999 | E168: 42.27 | F168: 32.920162 | G168: 5929000 | H168: =F168/E168 -> 0.778806766 | I168: =B168*$H168 -> 33.07592413 | J168: =C168*$H168 -> 33.07592413 | K168: =D168*$H168 -> 32.81891634 | L168: =E168*$H168 -> 32.920162 | M168: =G168/$H168 -> 7612928.211
A169: 2013-12-16 | B169: 42.349998 | C169: 42.52 | D169: 42.169998 | E169: 42.259998 | F169: 32.91238 | G169: 5893100 | H169: =F169/E169 -> 0.7788069465 | I169: =B169*$H169 -> 32.98247263 | J169: =C169*$H169 -> 33.11487136 | K169: =D169*$H169 -> 32.84228737 | L169: =E169*$H169 -> 32.91238 | M169: =G169/$H169 -> 7566830.3
A170: 2013-12-17 | B170: 42.220001 | C170: 42.279999 | D170: 41.959999 | E170: 42.060001 | F170: 32.75663 | G170: 7247300 | H170: =F170/E170 -> 0.7788071617 | I170: =B170*$H170 -> 32.88123915 | J170: =C170*$H170 -> 32.92796602 | K170: =D170*$H170 -> 32.67874773 | L170: =E170*$H170 -> 32.75663 | M170: =G170/$H170 -> 9305641.186
A171: 2013-12-18 | B171: 42.110001 | C171: 42.779999 | D171: 41.689999 | E171: 42.759998 | F171: 33.301781 | G171: 11754200 | H171: =F171/E171 -> 0.7788068886 | I171: =B171*$H171 -> 32.79555886 | J171: =C171*$H171 -> 33.31735792 | K171: =D171*$H171 -> 32.46845841 | L171: =E171*$H171 -> 33.301781 | M171: =G171/$H171 -> 15092573.23
A172: 2013-12-19 | B172: 42.650002 | C172: 42.73 | D172: 42.43 | E172: 42.68 | F172: 33.239491 | G172: 5698800 | H172: =F172/E172 -> 0.7788071931 | I172: =B172*$H172 -> 33.21612834 | J172: =C172*$H172 -> 33.27843136 | K172: =D172*$H172 -> 33.0447892 | L172: =E172*$H172 -> 33.239491 | M172: =G172/$H172 -> 7317343.819
A173: 2013-12-20 | B173: 42.349998 | C173: 42.66 | D173: 42.290001 | E173: 42.549999 | F173: 33.390144 | G173: 11007300 | H173: =F173/E173 -> 0.784727257 | I173: =B173*$H173 -> 33.23319776 | J173: =C173*$H173 -> 33.47646478 | K173: =D173*$H173 -> 33.18611648 | L173: =E173*$H173 -> 33.390144 | M173: =G173/$H173 -> 14026911.77
A174: 2013-12-23 | B174: 42.650002 | C174: 42.689999 | D174: 42.360001 | E174: 42.509998 | F174: 33.358753 | G174: 6601700 | H174: =F174/E174 -> 0.7847272305 | I174: =B174*$H174 -> 33.46861795 | J174: =C174*$H174 -> 33.50000469 | K174: =D174*$H174 -> 33.24104627 | L174: =E174*$H174 -> 33.358753 | M174: =G174/$H174 -> 8412732.148
A175: 2013-12-24 | B175: 42.509998 | C175: 42.66 | D175: 42.439999 | E175: 42.57 | F175: 33.405846 | G175: 5915300 | H175: =F175/E175 -> 0.7847274137 | I175: =B175*$H175 -> 33.35876079 | J175: =C175*$H175 -> 33.47647147 | K175: =D175*$H175 -> 33.30383065 | L175: =E175*$H175 -> 33.405846 | M175: =G175/$H175 -> 7538031.547
A176: 2013-12-26 | B176: 42.599998 | C176: 42.740002 | D176: 42.540001 | E176: 42.740002 | F176: 33.539261 | G176: 15154600 | H176: =F176/E176 -> 0.7847276423 | I176: =B176*$H176 -> 33.42939599 | J176: =C176*$H176 -> 33.539261 | K176: =D176*$H176 -> 33.38231469 | L176: =E176*$H176 -> 33.539261 | M176: =G176/$H176 -> 19311923.25
A177: 2013-12-27 | B177: 42.810001 | C177: 42.919998 | D177: 42.759998 | E177: 42.84 | F177: 33.617722 | G177: 3590500 | H177: =F177/E177 -> 0.7847274043 | I177: =B177*$H177 -> 33.59418096 | J177: =C177*$H177 -> 33.68049862 | K177: =D177*$H177 -> 33.55494224 | L177: =E177*$H177 -> 33.617722 | M177: =G177/$H177 -> 4575474.21
A178: 2013-12-30 | B178: 42.84 | C178: 42.98 | D178: 42.830002 | E178: 42.950001 | F178: 33.704044 | G178: 3245700 | H178: =F178/E178 -> 0.7847274323 | I178: =B178*$H178 -> 33.6177232 | J178: =C178*$H178 -> 33.72758504 | K178: =D178*$H178 -> 33.60987749 | L178: =E178*$H178 -> 33.704044 | M178: =G178/$H178 -> 4136085.813
A179: 2013-12-31 | B179: 43.02 | C179: 43.07 | D179: 42.810001 | E179: 42.98 | F179: 33.727585 | G179: 6516500 | H179: =F179/E179 -> 0.7847274314 | I179: =B179*$H179 -> 33.7589741 | J179: =C179*$H179 -> 33.79821047 | K179: =D179*$H179 -> 33.59418212 | L179: =E179*$H179 -> 33.727585 | M179: =G179/$H179 -> 8304157.265
A180: 2014-01-02 | B180: 42.849998 | C180: 42.869999 | D180: 42.380001 | E180: 42.450001 | F180: 33.31168 | G180: 14997000 | H180: =F180/E180 -> 0.7847274256 | I180: =B180*$H180 -> 33.62556862 | J180: =C180*$H180 -> 33.64126395 | K180: =D180*$H180 -> 33.25674908 | L180: =E180*$H180 -> 33.31168 | M180: =G180/$H180 -> 19111094.52
A181: 2014-01-03 | B181: 42.540001 | C181: 42.610001 | D181: 42.34 | E181: 42.369999 | F181: 33.248882 | G181: 6298600 | H181: =F181/E181 -> 0.7847269952 | I181: =B181*$H181 -> 33.38228716 | J181: =C181*$H181 -> 33.43721805 | K181: =D181*$H181 -> 33.22534097 | L181: =E181*$H181 -> 33.248882 | M181: =G181/$H181 -> 8026485.694
A182: 2014-01-06 | B182: 42.48 | C182: 42.529999 | D182: 42.110001 | E182: 42.209999 | F182: 33.123337 | G182: 9498600 | H182: =F182/E182 -> 0.7847272633 | I182: =B182*$H182 -> 33.33521415 | J182: =C182*$H182 -> 33.37444972 | K182: =D182*$H182 -> 33.04486584 | L182: =E182*$H182 -> 33.123337 | M182: =G182/$H182 -> 12104332.86
A183: 2014-01-07 | B183: 42.43 | C183: 42.540001 | D183: 42.240002 | E183: 42.439999 | F183: 33.303833 | G183: 7479100 | H183: =F183/E183 -> 0.784727469 | I183: =B183*$H183 -> 33.29598651 | J183: =C183*$H183 -> 33.38230732 | K183: =D183*$H183 -> 33.14688986 | L183: =E183*$H183 -> 33.303833 | M183: =G183/$H183 -> 9530824.771
A184: 2014-01-08 | B184: 42.43 | C184: 42.43 | D184: 42.029999 | E184: 42.119999 | F184: 33.052715 | G184: 23824100 | H184: =F184/E184 -> 0.7847273453 | I184: =B184*$H184 -> 33.29598126 | J184: =C184*$H184 -> 33.29598126 | K184: =D184*$H184 -> 32.98208954 | L184: =E184*$H184 -> 33.052715 | M184: =G184/$H184 -> 30359716.84
A185: 2014-01-09 | B185: 42.23 | C185: 42.400002 | D185: 42.060001 | E185: 42.34 | F185: 33.225349 | G185: 24438600 | H185: =F185/E185 -> 0.7847271847 | I185: =B185*$H185 -> 33.13902901 | J185: =C185*$H185 -> 33.2724342 | K185: =D185*$H185 -> 33.00562617 | L185: =E185*$H185 -> 33.225349 | M185: =G185/$H185 -> 31142797.75
A186: 2014-01-10 | B186: 42.450001 | C186: 42.549999 | D186: 42.240002 | E186: 42.400002 | F186: 33.272442 | G186: 15903800 | H186: =F186/E186 -> 0.7847273686 | I186: =B186*$H186 -> 33.31167758 | J186: =C186*$H186 -> 33.39014875 | K186: =D186*$H186 -> 33.14688562 | L186: =E186*$H186 -> 33.272442 | M186: =G186/$H186 -> 20266656.47
A187: 2014-01-13 | B187: 42.400002 | C187: 42.540001 | D187: 42.110001 | E187: 42.16 | F187: 33.084106 | G187: 9275100 | H187: =F187/E187 -> 0.7847273719 | I187: =B187*$H187 -> 33.27244214 | J187: =C187*$H187 -> 33.38230319 | K187: =D187*$H187 -> 33.04487042 | L187: =E187*$H187 -> 33.084106 | M187: =G187/$H187 -> 11819518.9
A188: 2014-01-14 | B188: 42.27 | C188: 42.450001 | D188: 42.189999 | E188: 42.380001 | F188: 33.256748 | G188: 10885000 | H188: =F188/E188 -> 0.7847274001 | I188: =B188*$H188 -> 33.1704272 | J188: =C188*$H188 -> 33.31167892 | K188: =D188*$H188 -> 33.10764822 | L188: =E188*$H188 -> 33.256748 | M188: =G188/$H188 -> 13871058.92
A189: 2014-01-15 | B189: 42.43 | C189: 42.540001 | D189: 42.290001 | E189: 42.389999 | F189: 33.264599 | G189: 4384200 | H189: =F189/E189 -> 0.784727525 | I189: =B189*$H189 -> 33.29598889 | J189: =C189*$H189 -> 33.3823097 | K189: =D189*$H189 -> 33.18612782 | L189: =E189*$H189 -> 33.264599 | M189: =G189/$H189 -> 5586907.379
A190: 2014-01-16 | B190: 42.27 | C190: 42.459999 | D190: 42.18 | E190: 42.400002 | F190: 33.272442 | G190: 6522100 | H190: =F190/E190 -> 0.7847273686 | I190: =B190*$H190 -> 33.17042587 | J190: =C190*$H190 -> 33.31952329 | K190: =D190*$H190 -> 33.09980041 | L190: =E190*$H190 -> 33.272442 | M190: =G190/$H190 -> 8311294.165
A191: 2014-01-17 | B191: 42.349998 | C191: 42.380001 | D191: 42.029999 | E191: 42.07 | F191: 33.013485 | G191: 8233800 | H191: =F191/E191 -> 0.784727478 | I191: =B191*$H191 -> 33.23320712 | J191: =C191*$H191 -> 33.2567513 | K191: =D191*$H191 -> 32.98209512 | L191: =E191*$H191 -> 33.013485 | M191: =G191/$H191 -> 10492559.81
A192: 2014-01-21 | B192: 42.189999 | C192: 42.34 | D192: 41.950001 | E192: 42.23 | F192: 33.139034 | G192: 5618400 | H192: =F192/E192 -> 0.7847273029 | I192: =B192*$H192 -> 33.10764412 | J192: =C192*$H192 -> 33.225354 | K192: =D192*$H192 -> 32.91931114 | L192: =E192*$H192 -> 33.139034 | M192: =G192/$H192 -> 7159684.618
A193: 2014-01-22 | B193: 42.259998 | C193: 42.380001 | D193: 42.18 | E193: 42.23 | F193: 33.139034 | G193: 3615300 | H193: =F193/E193 -> 0.7847273029 | I193: =B193*$H193 -> 33.16257425 | J193: =C193*$H193 -> 33.25674388 | K193: =D193*$H193 -> 33.09979763 | L193: =E193*$H193 -> 33.139034 | M193: =G193/$H193 -> 4607078.136
A194: 2014-01-23 | B194: 42.080002 | C194: 42.080002 | D194: 41.709999 | E194: 41.860001 | F194: 32.84869 | G194: 8916700 | H194: =F194/E194 -> 0.784727406 | I194: =B194*$H194 -> 33.02133081 | J194: =C194*$H194 -> 33.02133081 | K194: =D194*$H194 -> 32.73097932 | L194: =E194*$H194 -> 32.84869 | M194: =G194/$H194 -> 11362799.28
A195: 2014-01-24 | B195: 41.799999 | C195: 41.98 | D195: 41.439999 | E195: 41.48 | F195: 32.550488 | G195: 18509700 | H195: =F195/E195 -> 0.7847272903 | I195: =B195*$H195 -> 32.80159995 | J195: =C195*$H195 -> 32.94285165 | K195: =D195*$H195 -> 32.51909812 | L195: =E195*$H195 -> 32.550488 | M195: =G195/$H195 -> 23587429.96
A196: 2014-01-27 | B196: 41.5 | C196: 41.549999 | D196: 41.240002 | E196: 41.310001 | F196: 32.417072 | G196: 8451500 | H196: =F196/E196 -> 0.784726972 | I196: =B196*$H196 -> 32.56616934 | J196: =C196*$H196 -> 32.6054049 | K196: =D196*$H196 -> 32.3621419 | L196: =E196*$H196 -> 32.417072 | M196: =G196/$H196 -> 10769987.91
A197: 2014-01-28 | B197: 41.380001 | C197: 41.709999 | D197: 41.360001 | E197: 41.630001 | F197: 32.668205 | G197: 5022200 | H197: =F197/E197 -> 0.7847274613 | I197: =B197*$H197 -> 32.47202313 | J197: =C197*$H197 -> 32.73098163 | K197: =D197*$H197 -> 32.45632859 | L197: =E197*$H197 -> 32.668205 | M197: =G197/$H197 -> 6399928.953
A198: 2014-01-29 | B198: 41.360001 | C198: 41.419998 | D198: 40.790001 | E198: 40.900002 | F198: 32.095352 | G198: 36942400 | H198: =F198/E198 -> 0.7847273944 | I198: =B198*$H198 -> 32.45632582 | J198: =C198*$H198 -> 32.50340711 | K198: =D198*$H198 -> 32.0090312 | L198: =E198*$H198 -> 32.095352 | M198: =G198/$H198 -> 47076730.42
A199: 2014-01-30 | B199: 41.049999 | C199: 41.119999 | D199: 40.889999 | E199: 40.959999 | F199: 32.142429 | G199: 19016600 | H199: =F199/E199 -> 0.7847272897 | I199: =B199*$H199 -> 32.21305446 | J199: =C199*$H199 -> 32.26798537 | K199: =D199*$H199 -> 32.08749809 | L199: =E199*$H199 -> 32.142429 | M199: =G199/$H199 -> 24233386.87
A200: 2014-01-31 | B200: 40.490002 | C200: 41.040001 | D200: 40.32 | E200: 40.759998 | F200: 31.985481 | G200: 21959500 | H200: =F200/E200 -> 0.7847272466 | I200: =B200*$H200 -> 31.77360778 | J200: =C200*$H200 -> 32.20520698 | K200: =D200*$H200 -> 31.64020258 | L200: =E200*$H200 -> 31.985481 | M200: =G200/$H200 -> 27983608.44
... 2321 more rows

Sheet ADJ DATA
A1: Date | B1: Open | C1: High | D1: Low | E1: Close | F1: Adj Close | G1: Volume | I1: Adj Factor | J1: ="Adj "&B1 -> Adj Open | K1: ="Adj "&C1 -> Adj High | L1: ="Adj "&D1 -> Adj Low | M1: ="Adj "&E1 -> Adj Close | N1: ="Adj "&G1 -> Adj Volume
A2: 2013-04-22 | B2: 41.07 | C2: 41.189999 | D2: 40.810001 | E2: 41.110001 | F2: 31.609234 | G2: 5972300 | I2: =F2/E2 -> 0.7688940217 | J2: =B2*$I2 -> 31.57847747 | K2: =C2*$I2 -> 31.67074398 | L2: =D2*$I2 -> 31.37856579 | M2: =E2*$I2 -> 31.609234 | N2: =G2/$I2 -> 7767390.345
A3: 2013-04-23 | B3: 41.220001 | C3: 41.439999 | D3: 40.900002 | E3: 41.43 | F3: 31.855267 | G3: 13184200 | I3: =F3/E3 -> 0.7688937244 | J3: =B3*$I3 -> 31.69380009 | K3: =C3*$I3 -> 31.86295517 | L3: =D3*$I3 -> 31.44775486 | M3: =E3*$I3 -> 31.855267 | N3: =G3/$I3 -> 17146973.09
A4: 2013-04-24 | B4: 41.25 | C4: 41.369999 | D4: 40.73 | E4: 40.77 | F4: 31.347813 | G4: 30015500 | I4: =F4/E4 -> 0.7688941133 | J4: =B4*$I4 -> 31.71688217 | K4: =C4*$I4 -> 31.8091487 | L4: =D4*$I4 -> 31.31705724 | M4: =E4*$I4 -> 31.347813 | N4: 39037234.75
A5: 2013-04-25 | B5: 40.860001 | C5: 41.009998 | D5: 40.759998 | E5: 40.900002 | F5: 31.447756 | G5: 12200800 | I5: =F5/E5 -> 0.7688937521 | J5: =B5*$I5 -> 31.41699948 | K5: =C5*$I5 -> 31.53233124 | L5: =D5*$I5 -> 31.3401078 | M5: =E5*$I5 -> 31.447756 | N5: 15867992.12
A6: 2013-04-26 | B6: 40.799999 | C6: 41.009998 | D6: 40.799999 | E6: 40.889999 | F6: 31.440079 | G6: 9481800 | I6: =F6/E6 -> 0.7688941005 | J6: =B6*$I6 -> 31.37087853 | K6: =C6*$I6 -> 31.53234552 | L6: =D6*$I6 -> 31.37087853 | M6: =E6*$I6 -> 31.440079 | N6: 12331737.22
A7: 2013-04-29 | B7: 41.009998 | C7: 41.07 | D7: 40.860001 | E7: 41.02 | F7: 31.54003 | G7: 6696000 | I7: =F7/E7 -> 0.7688939542 | J7: =B7*$I7 -> 31.53233952 | K7: =C7*$I7 -> 31.5784747 | L7: =D7*$I7 -> 31.41700774 | M7: =E7*$I7 -> 31.54003 | N7: 8708613.15
A8: 2013-04-30 | B8: 40.98 | C8: 41.029999 | D8: 40.77 | E8: 40.939999 | F8: 31.478527 | G8: 11354900 | I8: =F8/E8 -> 0.768894181 | J8: =B8*$I8 -> 31.50928354 | K8: =C8*$I8 -> 31.54772748 | L8: =D8*$I8 -> 31.34781576 | M8: =E8*$I8 -> 31.478527 | N8: 14767831.88
A9: 2013-05-01 | B9: 40.889999 | C9: 41.200001 | D9: 40.84 | E9: 40.900002 | F9: 31.447756 | G9: 7556600 | I9: =F9/E9 -> 0.7688937521 | J9: =B9*$I9 -> 31.44006476 | K9: =C9*$I9 -> 31.67842336 | L9: =D9*$I9 -> 31.40162084 | M9: =E9*$I9 -> 31.447756 | N9: 9827885.815
A10: 2013-05-02 | B10: 40.91 | C10: 41.189999 | D10: 40.77 | E10: 41.049999 | F10: 31.563108 | G10: 9194000 | I10: =F10/E10 -> 0.7688942453 | J10: =B10*$I10 -> 31.45546357 | K10: =C10*$I10 -> 31.67075319 | L10: =D10*$I10 -> 31.34781838 | M10: =E10*$I10 -> 31.563108 | N10: 11957431.15
A11: 2013-05-03 | B11: 41.27 | C11: 41.369999 | D11: 41.099998 | E11: 41.23 | F11: 31.701498 | G11: 12843400 | I11: =F11/E11 -> 0.7688939607 | J11: =B11*$I11 -> 31.73225376 | K11: =C11*$I11 -> 31.80914239 | L11: =D11*$I11 -> 31.60154025 | M11: =E11*$I11 -> 31.701498 | N11: 16703733.75
A12: 2013-05-06 | B12: 41.200001 | C12: 41.200001 | D12: 40.880001 | E12: 40.93 | F12: 31.470827 | G12: 14530800 | I12: =F12/E12 -> 0.768893892 | J12: =B12*$I12 -> 31.67842912 | K12: =C12*$I12 -> 31.67842912 | L12: =D12*$I12 -> 31.43238307 | M12: =E12*$I12 -> 31.470827 | N12: 18898316.34
A13: 2013-05-07 | B13: 41.009998 | C13: 41.25 | D13: 40.939999 | E13: 41.240002 | F13: 31.7092 | G13: 8152200 | I13: =F13/E13 -> 0.7688942401 | J13: =B13*$I13 -> 31.53235125 | K13: =C13*$I13 -> 31.7168874 | L13: =D13*$I13 -> 31.47852942 | M13: =E13*$I13 -> 31.7092 | N13: 10602498.46
A14: 2013-05-08 | B14: 41.23 | C14: 41.299999 | D14: 41.139999 | E14: 41.290001 | F14: 31.747627 | G14: 6623300 | I14: =F14/E14 -> 0.7688938298 | J14: =B14*$I14 -> 31.7014926 | K14: =C14*$I14 -> 31.7553144 | L14: =D14*$I14 -> 31.63229139 | M14: =E14*$I14 -> 31.747627 | N14: 8614063.143
A15: 2013-05-09 | B15: 41.259998 | C15: 41.349998 | D15: 40.900002 | E15: 41 | F15: 31.524645 | G15: 12872500 | I15: =F15/E15 -> 0.7688937805 | J15: =B15*$I15 -> 31.72455585 | K15: =C15*$I15 -> 31.79375629 | L15: =D15*$I15 -> 31.44775716 | M15: =E15*$I15 -> 31.524645 | N15: 16741584.24
A16: 2013-05-10 | B16: 40.919998 | C16: 41.189999 | D16: 40.919998 | E16: 41.16 | F16: 31.647684 | G16: 8304700 | I16: =F16/E16 -> 0.7688941691 | J16: =B16*$I16 -> 31.46314786 | K16: =C16*$I16 -> 31.67075006 | L16: =D16*$I16 -> 31.46314786 | M16: =E16*$I16 -> 31.647684 | N16: 10800836.23
A17: 2013-05-13 | B17: 41.119999 | C17: 41.380001 | D17: 41.049999 | E17: 41.23 | F17: 31.701498 | G17: 7821600 | I17: =F17/E17 -> 0.7688939607 | J17: =B17*$I17 -> 31.6169189 | K17: =C17*$I17 -> 31.81683286 | L17: =D17*$I17 -> 31.56309632 | M17: =E17*$I17 -> 31.701498 | N17: 10172534.06
A18: 2013-05-14 | B18: 41.209999 | C18: 41.73 | D18: 41.209999 | E18: 41.720001 | F18: 32.078259 | G18: 7373100 | I18: =F18/E18 -> 0.7688940132 | J18: =B18*$I18 -> 31.68612152 | K18: =C18*$I18 -> 32.08594717 | L18: =D18*$I18 -> 31.68612152 | M18: =E18*$I18 -> 32.078259 | N18: 9589227.999
A19: 2013-05-15 | B19: 41.700001 | C19: 42.200001 | D19: 41.66 | E19: 42.130001 | F19: 32.393509 | G19: 11728700 | I19: =F19/E19 -> 0.7688940952 | J19: =B19*$I19 -> 32.06288454 | K19: =C19*$I19 -> 32.44733159 | L19: =D19*$I19 -> 32.03212801 | M19: =E19*$I19 -> 32.393509 | N19: 15253986.31
A20: 2013-05-16 | B20: 42.029999 | C20: 42.110001 | D20: 41.810001 | E20: 41.880001 | F20: 32.201279 | G20: 9313100 | I20: =F20/E20 -> 0.7688939406 | J20: =B20*$I20 -> 32.31661155 | K20: =C20*$I20 -> 32.37812461 | L20: =D20*$I20 -> 32.14745642 | M20: =E20*$I20 -> 32.201279 | N20: 12112333.72
A21: 2013-05-17 | B21: 41.889999 | C21: 41.970001 | D21: 41.639999 | E21: 41.939999 | F21: 32.247417 | G21: 9368100 | I21: =F21/E21 -> 0.7688940813 | J21: =B21*$I21 -> 32.2089723 | K21: =C21*$I21 -> 32.27048536 | L21: =D21*$I21 -> 32.01674878 | M21: =E21*$I21 -> 32.247417 | N21: 12183862.81
A22: 2013-05-20 | B22: 41.91 | C22: 41.950001 | D22: 41.48 | E22: 41.509998 | F22: 31.916786 | G22: 9866600 | I22: =F22/E22 -> 0.7688939421 | J22: =B22*$I22 -> 32.22434511 | K22: =C22*$I22 -> 32.25510164 | L22: =D22*$I22 -> 31.89372072 | M22: =E22*$I22 -> 31.916786 | N22: 12832198.9
A23: 2013-05-21 | B23: 41.630001 | C23: 41.669998 | D23: 41.27 | E23: 41.549999 | F23: 31.947536 | G23: 10408400 | I23: =F23/E23 -> 0.7688937851 | J23: =B23*$I23 -> 32.00904904 | K23: =C23*$I23 -> 32.03980249 | L23: =D23*$I23 -> 31.73224651 | M23: =E23*$I23 -> 31.947536 | N23: 13536850.22
A24: 2013-05-22 | B24: 41.580002 | C24: 42.02 | D24: 41.34 | E24: 41.48 | F24: 31.893713 | G24: 16899000 | I24: =F24/E24 -> 0.768893756 | J24: =B24*$I24 -> 31.97060391 | K24: =C24*$I24 -> 32.30891563 | L24: =D24*$I24 -> 31.78606787 | M24: =E24*$I24 -> 31.893713 | N24: 21978329.08
A25: 2013-05-23 | B25: 41.139999 | C25: 41.450001 | D25: 41.049999 | E25: 41.310001 | F25: 31.763 | G25: 12831900 | I25: =F25/E25 -> 0.7688937117 | J25: =B25*$I25 -> 31.63228653 | K25: =C25*$I25 -> 31.87064512 | L25: =D25*$I25 -> 31.5630861 | M25: =E25*$I25 -> 31.763 | N25: 16688782.6
A26: 2013-05-24 | B26: 41.32 | C26: 41.720001 | D26: 41.32 | E26: 41.700001 | F26: 32.062893 | G26: 16015800 | I26: =F26/E26 -> 0.7688942981 | J26: =B26*$I26 -> 31.7707124 | K26: =C26*$I26 -> 32.07827089 | L26: =D26*$I26 -> 31.7707124 | M26: =E26*$I26 -> 32.062893 | N26: 20829651.15
A27: 2013-05-28 | B27: 42.060001 | C27: 42.189999 | D27: 41.639999 | E27: 41.77 | F27: 32.116699 | G27: 15727400 | I27: =F27/E27 -> 0.7688939191 | J27: =B27*$I27 -> 32.33967901 | K27: =C27*$I27 -> 32.43963368 | L27: =D27*$I27 -> 32.01674202 | M27: =E27*$I27 -> 32.116699 | N27: 20454577.17
A28: 2013-05-29 | B28: 41.529999 | C28: 41.57 | D28: 40.889999 | E28: 40.970001 | F28: 31.50157 | G28: 21414900 | I28: =F28/E28 -> 0.7688935619 | J28: =B28*$I28 -> 31.93214886 | K28: =C28*$I28 -> 31.96290537 | L28: =D28*$I28 -> 31.44005698 | M28: =E28*$I28 -> 31.50157 | N28: 27851579.28
A29: 2013-05-30 | B29: 41.02 | C29: 41.16 | D29: 40.790001 | E29: 40.810001 | F29: 31.378571 | G29: 15949200 | I29: =F29/E29 -> 0.7688941493 | J29: =B29*$I29 -> 31.540038 | K29: =C29*$I29 -> 31.64768318 | L29: =D29*$I29 -> 31.36319312 | M29: =E29*$I29 -> 31.378571 | N29: 20743037.28
A30: 2013-05-31 | B30: 40.720001 | C30: 40.720001 | D30: 40.029999 | E30: 40.049999 | F30: 30.794199 | G30: 33824800 | I30: =F30/E30 -> 0.7688938769 | J30: =B30*$I30 -> 31.30935944 | K30: =C30*$I30 -> 31.30935944 | L30: =D30*$I30 -> 30.77882112 | M30: =E30*$I30 -> 30.794199 | N30: 43991506.52
A31: 2013-06-03 | B31: 40.150002 | C31: 40.5 | D31: 39.68 | E31: 40.490002 | F31: 31.132509 | G31: 39020500 | I31: =F31/E31 -> 0.7688937383 | J31: =B31*$I31 -> 30.87108513 | K31: =C31*$I31 -> 31.1401964 | L31: =D31*$I31 -> 30.50970353 | M31: =E31*$I31 -> 31.132509 | N31: 50748885.13
A32: 2013-06-04 | B32: 40.639999 | C32: 40.779999 | D32: 40.209999 | E32: 40.5 | F32: 31.140198 | G32: 12962800 | I32: =F32/E32 -> 0.7688937778 | J32: =B32*$I32 -> 31.24784236 | K32: =C32*$I32 -> 31.35548749 | L32: =D32*$I32 -> 30.91721804 | M32: =E32*$I32 -> 31.140198 | N32: 16859025.75
A33: 2013-06-05 | B33: 40.380001 | C33: 40.419998 | D33: 40 | E33: 40.009998 | F33: 30.763453 | G33: 17077900 | I33: =F33/E33 -> 0.7688941399 | J33: =B33*$I33 -> 31.04794614 | K33: =C33*$I33 -> 31.0786996 | L33: =D33*$I33 -> 30.7557656 | M33: =E33*$I33 -> 30.763453 | N33: 22210989.93
A34: 2013-06-06 | B34: 39.990002 | C34: 40.189999 | D34: 39.700001 | E34: 40.18 | F34: 30.894161 | G34: 12352700 | I34: =F34/E34 -> 0.768894002 | J34: =B34*$I34 -> 30.74807268 | K34: =C34*$I34 -> 30.90184917 | L34: =D34*$I34 -> 30.52509265 | M34: =E34*$I34 -> 30.894161 | N34: 16065543.45
A35: 2013-06-07 | B35: 40.389999 | C35: 40.849998 | D35: 40.389999 | E35: 40.68 | F35: 31.278614 | G35: 18700800 | I35: =F35/E35 -> 0.7688941495 | J35: =B35*$I35 -> 31.05563393 | K35: =C35*$I35 -> 31.40932447 | L35: =D35*$I35 -> 31.05563393 | M35: =E35*$I35 -> 31.278614 | N35: 24321683.31
A36: 2013-06-10 | B36: 40.849998 | C36: 40.849998 | D36: 40.490002 | E36: 40.68 | F36: 31.278614 | G36: 11190300 | I36: =F36/E36 -> 0.7688941495 | J36: =B36*$I36 -> 31.40932447 | K36: =C36*$I36 -> 31.40932447 | L36: =D36*$I36 -> 31.13252565 | M36: =E36*$I36 -> 31.278614 | N36: 14553758.81
A37: 2013-06-11 | B37: 40.450001 | C37: 40.860001 | D37: 40.32 | E37: 40.580002 | F37: 31.201727 | G37: 20334000 | I37: =F37/E37 -> 0.7688941711 | J37: =B37*$I37 -> 31.10176999 | K37: =C37*$I37 -> 31.4170166 | L37: =D37*$I37 -> 31.00181298 | M37: =E37*$I37 -> 31.201727 | N37: 26445772.08
A38: 2013-06-12 | B38: 40.73 | C38: 40.900002 | D38: 40.380001 | E38: 40.380001 | F38: 31.047943 | G38: 14908400 | I38: =F38/E38 -> 0.7688940622 | J38: =B38*$I38 -> 31.31705515 | K38: =C38*$I38 -> 31.44776868 | L38: =D38*$I38 -> 31.047943 | M38: =E38*$I38 -> 31.047943 | N38: 19389407.11
A39: 2013-06-13 | B39: 40.470001 | C39: 41.880001 | D39: 40.220001 | E39: 40.799999 | F39: 31.370874 | G39: 13048700 | I39: =F39/E39 -> 0.7688939894 | J39: =B39*$I39 -> 31.11714052 | K39: =C39*$I39 -> 32.20128105 | L39: =D39*$I39 -> 30.92491702 | M39: =E39*$I39 -> 31.370874 | N39: 16970740.02
A40: 2013-06-14 | B40: 40.73 | C40: 41.029999 | D40: 40.59 | E40: 40.700001 | F40: 31.293985 | G40: 8453300 | I40: =F40/E40 -> 0.7688939615 | J40: =B40*$I40 -> 31.31705105 | K40: =C40*$I40 -> 31.54771847 | L40: =D40*$I40 -> 31.2094059 | M40: =E40*$I40 -> 31.293985 | N40: 10994103.77
A41: 2013-06-17 | B41: 40.830002 | C41: 41.23 | D41: 40.779999 | E41: 41.060001 | F41: 31.57081 | G41: 9877200 | I41: =F41/E41 -> 0.7688945258 | J41: =B41*$I41 -> 31.39396503 | K41: =C41*$I41 -> 31.7015213 | L41: =D41*$I41 -> 31.35551799 | M41: =E41*$I41 -> 31.57081 | N41: 12845975.19
A42: 2013-06-18 | B42: 41.060001 | C42: 41.259998 | D42: 40.93 | E42: 41.209999 | F42: 31.686117 | G42: 8441200 | I42: =F42/E42 -> 0.7688939036 | J42: =B42*$I42 -> 31.57078445 | K42: =C42*$I42 -> 31.72456093 | L42: =D42*$I42 -> 31.47082748 | M42: =E42*$I42 -> 31.686117 | N42: 10978367.7
A43: 2013-06-19 | B43: 41.209999 | C43: 41.299999 | D43: 40.389999 | E43: 40.389999 | F43: 31.055634 | G43: 25795200 | I43: =F43/E43 -> 0.7688941512 | J43: =B43*$I43 -> 31.6861272 | K43: =C43*$I43 -> 31.75532768 | L43: =D43*$I43 -> 31.055634 | M43: =E43*$I43 -> 31.055634 | N43: 33548440.91
A44: 2013-06-20 | B44: 40.049999 | C44: 40.279999 | D44: 39.099998 | E44: 39.169998 | F44: 30.117569 | G44: 32296500 | I44: =F44/E44 -> 0.76889381 | J44: =B44*$I44 -> 30.79419632 | K44: =C44*$I44 -> 30.9710419 | L44: =D44*$I44 -> 30.06374643 | M44: =E44*$I44 -> 30.117569 | N44: 42003849.66
A45: 2013-06-21 | B45: 39.209999 | C45: 39.630001 | D45: 39.040001 | E45: 39.43 | F45: 30.51536 | G45: 22743500 | I45: =F45/E45 -> 0.7739122496 | J45: =B45*$I45 -> 30.34509853 | K45: =C45*$I45 -> 30.67014322 | L45: =D45*$I45 -> 30.213535 | M45: =E45*$I45 -> 30.51536 | N45: 29387698.69
A46: 2013-06-24 | B46: 39.150002 | C46: 39.650002 | D46: 38.869999 | E46: 39.27 | F46: 30.391542 | G46: 24973100 | I46: =F46/E46 -> 0.7739124523 | J46: =B46*$I46 -> 30.29867405 | K46: =C46*$I46 -> 30.68563028 | L46: =D46*$I46 -> 30.08197625 | M46: =E46*$I46 -> 30.391542 | N46: 32268637.01
A47: 2013-06-25 | B47: 39.439999 | C47: 39.48 | D47: 39.119999 | E47: 39.330002 | F47: 30.437981 | G47: 13004400 | I47: =F47/E47 -> 0.773912521 | J47: =B47*$I47 -> 30.52310906 | K47: =C47*$I47 -> 30.55406633 | L47: =D47*$I47 -> 30.27545705 | M47: =E47*$I47 -> 30.437981 | N47: 16803449.55
A48: 2013-06-26 | B48: 39.57 | C48: 39.889999 | D48: 39.57 | E48: 39.740002 | F48: 30.755276 | G48: 18133100 | I48: =F48/E48 -> 0.7739122912 | J48: =B48*$I48 -> 30.62370936 | K48: =C48*$I48 -> 30.87136052 | L48: =D48*$I48 -> 30.62370936 | M48: =E48*$I48 -> 30.755276 | N48: 23430432.89
A49: 2013-06-27 | B49: 39.990002 | C49: 40.290001 | D49: 39.900002 | E49: 39.919998 | F49: 30.894577 | G49: 10033600 | I49: =F49/E49 -> 0.7739122883 | J49: =B49*$I49 -> 30.94875396 | K49: =C49*$I49 -> 31.18092687 | L49: =D49*$I49 -> 30.87910185 | M49: =E49*$I49 -> 30.894577 | N49: 12964776.7
A50: 2013-06-28 | B50: 39.84 | C50: 40.040001 | D50: 39.639999 | E50: 39.669998 | F50: 30.701109 | G50: 11033300 | I50: =F50/E50 -> 0.7739125422 | J50: =B50*$I50 -> 30.83267568 | K50: =C50*$I50 -> 30.98745896 | L50: =D50*$I50 -> 30.6778924 | M50: =E50*$I50 -> 30.701109 | N50: 14256520.47
A51: 2013-07-01 | B51: 39.91 | C51: 40.25 | D51: 39.48 | E51: 39.959999 | F51: 30.925543 | G51: 11795300 | I51: =F51/E51 -> 0.7739125069 | J51: =B51*$I51 -> 30.88684815 | K51: =C51*$I51 -> 31.1499784 | L51: =D51*$I51 -> 30.55406577 | M51: =E51*$I51 -> 30.925543 | N51: 15241128.55
A52: 2013-07-02 | B52: 39.939999 | C52: 40.23 | D52: 39.869999 | E52: 40.009998 | F52: 30.964243 | G52: 5441200 | I52: =F52/E52 -> 0.7739126355 | J52: =B52*$I52 -> 30.91006989 | K52: =C52*$I52 -> 31.13450533 | L52: =D52*$I52 -> 30.855896 | M52: =E52*$I52 -> 30.964243 | N52: 7030767.751
A53: 2013-07-03 | B53: 39.880001 | C53: 40.02 | D53: 39.650002 | E53: 39.93 | F53: 30.902323 | G53: 3985400 | I53: =F53/E53 -> 0.7739124217 | J53: =B53*$I53 -> 30.86362815 | K53: =C53*$I53 -> 30.97197512 | L53: =D53*$I53 -> 30.68562907 | M53: =E53*$I53 -> 30.902323 | N53: 5149678.294
A54: 2013-07-05 | B54: 40.02 | C54: 40.200001 | D54: 39.650002 | E54: 40.029999 | F54: 30.979721 | G54: 10602600 | I54: =F54/E54 -> 0.7739126099 | J54: =B54*$I54 -> 30.97198265 | K54: =C54*$I54 -> 31.11128769 | L54: =D54*$I54 -> 30.68563653 | M54: =E54*$I54 -> 30.979721 | N54: 13699996.44
A55: 2013-07-08 | B55: 40.080002 | C55: 40.470001 | D55: 40.080002 | E55: 40.43 | F55: 31.289278 | G55: 7611700 | I55: =F55/E55 -> 0.7739123918 | J55: =B55*$I55 -> 31.01841021 | K55: =C55*$I55 -> 31.32023527 | L55: =D55*$I55 -> 31.01841021 | M55: =E55*$I55 -> 31.289278 | N55: 9835350.979
A56: 2013-07-09 | B56: 40.700001 | C56: 40.82 | D56: 40.630001 | E56: 40.73 | F56: 31.521458 | G56: 8937800 | I56: =F56/E56 -> 0.773912546 | J56: =B56*$I56 -> 31.4982414 | K56: =C56*$I56 -> 31.59111013 | L56: =D56*$I56 -> 31.44406752 | M56: =E56*$I56 -> 31.521458 | N56: 11548850.12
A57: 2013-07-10 | B57: 40.73 | C57: 40.959999 | D57: 40.669998 | E57: 40.779999 | F57: 31.560152 | G57: 7701700 | I57: =F57/E57 -> 0.7739125251 | J57: =B57*$I57 -> 31.52145715 | K57: =C57*$I57 -> 31.69945625 | L57: =D57*$I57 -> 31.47502085 | M57: =E57*$I57 -> 31.560152 | N57: 9951641.497
A58: 2013-07-11 | B58: 41.209999 | C58: 41.48 | D58: 41.169998 | E58: 41.419998 | F58: 32.055462 | G58: 12282200 | I58: =F58/E58 -> 0.7739126883 | J58: =B58*$I58 -> 31.89294111 | K58: =C58*$I58 -> 32.10189831 | L58: =D58*$I58 -> 31.86198383 | M58: =E58*$I58 -> 32.055462 | N58: 15870265.71
A59: 2013-07-12 | B59: 41.349998 | C59: 41.470001 | D59: 41.279999 | E59: 41.43 | F59: 32.063183 | G59: 5566100 | I59: =F59/E59 -> 0.7739122134 | J59: =B59*$I59 -> 32.00126848 | K59: =C59*$I59 -> 32.09414026 | L59: =D59*$I59 -> 31.94709539 | M59: =E59*$I59 -> 32.063183 | N59: 7192159.4
A60: 2013-07-15 | B60: 41.5 | C60: 41.5 | D60: 41.389999 | E60: 41.490002 | F60: 32.109627 | G60: 7076000 | I60: =F60/E60 -> 0.7739123994 | J60: =B60*$I60 -> 32.11736458 | K60: =C60*$I60 -> 32.11736458 | L60: =D60*$I60 -> 32.03223344 | M60: =E60*$I60 -> 32.109627 | N60: 9143153.676
A61: 2013-07-16 | B61: 41.130001 | C61: 41.419998 | D61: 41.130001 | E61: 41.34 | F61: 31.993544 | G61: 10156700 | I61: =F61/E61 -> 0.7739125302 | J61: =B61*$I61 -> 31.83102314 | K61: =C61*$I61 -> 32.05545545 | L61: =D61*$I61 -> 31.83102314 | M61: =E61*$I61 -> 31.993544 | N61: 13123834.55
A62: 2013-07-17 | B62: 41.41 | C62: 41.540001 | D62: 41.369999 | E62: 41.419998 | F62: 32.055462 | G62: 9365500 | I62: =F62/E62 -> 0.7739126883 | J62: =B62*$I62 -> 32.04772442 | K62: =C62*$I62 -> 32.14833384 | L62: =D62*$I62 -> 32.01676714 | M62: =E62*$I62 -> 32.055462 | N62: 12101494.32
A63: 2013-07-18 | B63: 41.41 | C63: 41.709999 | D63: 41.349998 | E63: 41.560001 | F63: 32.163803 | G63: 7136100 | I63: =F63/E63 -> 0.7739124693 | J63: =B63*$I63 -> 32.04771536 | K63: =C63*$I63 -> 32.27988832 | L63: =D63*$I63 -> 32.00127906 | M63: =E63*$I63 -> 32.163803 | N63: 9220810.211
A64: 2013-07-19 | B64: 41.57 | C64: 41.799999 | D64: 41.52 | E64: 41.799999 | F64: 32.349537 | G64: 8352700 | I64: =F64/E64 -> 0.7739123869 | J64: =B64*$I64 -> 32.17153792 | K64: =C64*$I64 -> 32.349537 | L64: =D64*$I64 -> 32.13284231 | M64: =E64*$I64 -> 32.349537 | N64: 10792823.76
A65: 2013-07-22 | B65: 41.84 | C65: 41.849998 | D65: 41.650002 | E65: 41.709999 | F65: 32.279888 | G65: 7887600 | I65: =F65/E65 -> 0.7739124616 | J65: =B65*$I65 -> 32.38049739 | K65: =C65*$I65 -> 32.38823497 | L65: =D65*$I65 -> 32.23345557 | M65: =E65*$I65 -> 32.279888 | N65: 10191850.36
A66: 2013-07-23 | B66: 41.75 | C66: 41.759998 | D66: 41.580002 | E66: 41.630001 | F66: 32.217979 | G66: 6122500 | I66: =F66/E66 -> 0.7739125204 | J66: =B66*$I66 -> 32.31084773 | K66: =C66*$I66 -> 32.31858531 | L66: =D66*$I66 -> 32.17928415 | M66: =E66*$I66 -> 32.217979 | N66: 7911100.852
A67: 2013-07-24 | B67: 41.740002 | C67: 41.740002 | D67: 41.27 | E67: 41.360001 | F67: 32.009026 | G67: 8262900 | I67: =F67/E67 -> 0.7739126022 | J67: =B67*$I67 -> 32.30311356 | K67: =C67*$I67 -> 32.30311356 | L67: =D67*$I67 -> 31.93937309 | M67: =E67*$I67 -> 32.009026 | N67: =G67/$I67 -> 10676786.99
A68: 2013-07-25 | B68: 41.279999 | C68: 41.619999 | D68: 41.25 | E68: 41.580002 | F68: 32.179276 | G68: 4720600 | I68: =F68/E68 -> 0.7739123245 | J68: =B68*$I68 -> 31.94709998 | K68: =C68*$I68 -> 32.21023017 | L68: =D68*$I68 -> 31.92388339 | M68: =E68*$I68 -> 32.179276 | N68: 6099657.352
A69: 2013-07-26 | B69: 41.419998 | C69: 41.549999 | D69: 41.02 | E69: 41.529999 | F69: 32.140579 | G69: 6073200 | I69: =F69/E69 -> 0.7739123471 | J69: =B69*$I69 -> 32.05544787 | K69: =C69*$I69 -> 32.15605725 | L69: =D69*$I69 -> 31.74588448 | M69: =E69*$I69 -> 32.140579 | N69: 7847400.32
A70: 2013-07-29 | B70: 41.470001 | C70: 41.540001 | D70: 41.34 | E70: 41.439999 | F70: 32.070934 | G70: 7493000 | I70: =F70/E70 -> 0.7739125187 | J70: =B70*$I70 -> 32.09415292 | K70: =C70*$I70 -> 32.1483268 | L70: =D70*$I70 -> 31.99354352 | M70: =E70*$I70 -> 32.070934 | N70: 9681972.858
A71: 2013-07-30 | B71: 41.509998 | C71: 41.68 | D71: 41.32 | E71: 41.400002 | F71: 32.039982 | G71: 5733600 | I71: =F71/E71 -> 0.7739125713 | J71: =B71*$I71 -> 32.12510929 | K71: =C71*$I71 -> 32.25667597 | L71: =D71*$I71 -> 31.97806745 | M71: =E71*$I71 -> 32.039982 | N71: 7408588.79
A72: 2013-07-31 | B72: 41.41 | C72: 41.610001 | D72: 41.34 | E72: 41.389999 | F72: 32.03223 | G72: 6735500 | I72: =F72/E72 -> 0.7739123164 | J72: =B72*$I72 -> 32.04770902 | K72: =C72*$I72 -> 32.20249226 | L72: =D72*$I72 -> 31.99353516 | M72: =E72*$I72 -> 32.03223 | N72: 8703182.334
A73: 2013-08-01 | B73: 41.599998 | C73: 41.799999 | D73: 41.599998 | E73: 41.73 | F73: 32.295361 | G73: 6207700 | I73: =F73/E73 -> 0.7739123173 | J73: =B73*$I73 -> 32.19475085 | K73: =C73*$I73 -> 32.34953409 | L73: =D73*$I73 -> 32.19475085 | M73: =E73*$I73 -> 32.295361 | N73: 8021192.92
A74: 2013-08-02 | B74: 41.610001 | C74: 41.77 | D74: 41.439999 | E74: 41.75 | F74: 32.310844 | G74: 3956400 | I74: =F74/E74 -> 0.7739124311 | J74: =B74*$I74 -> 32.20249703 | K74: =C74*$I74 -> 32.32632225 | L74: =D74*$I74 -> 32.07093037 | M74: =E74*$I74 -> 32.310844 | N74: 5112206.292
A75: 2013-08-05 | B75: 41.740002 | C75: 41.849998 | D75: 41.650002 | E75: 41.779999 | F75: 32.334049 | G75: 5010300 | I75: =F75/E75 -> 0.7739121535 | J75: =B75*$I75 -> 32.30309484 | K75: =C75*$I75 -> 32.38822208 | L75: =D75*$I75 -> 32.23344274 | M75: =E75*$I75 -> 32.334049 | N75: 6473990.591
A76: 2013-08-06 | B76: 41.759998 | C76: 41.790001 | D76: 41.580002 | E76: 41.73 | F76: 32.295361 | G76: 3148600 | I76: =F76/E76 -> 0.7739123173 | J76: =B76*$I76 -> 32.31857682 | K76: =C76*$I76 -> 32.34179651 | L76: =D76*$I76 -> 32.1792757 | M76: =E76*$I76 -> 32.295361 | N76: 4068419.548
A77: 2013-08-07 | B77: 41.59 | C77: 41.630001 | D77: 41.459999 | E77: 41.529999 | F77: 32.140579 | G77: 5987100 | I77: =F77/E77 -> 0.7739123471 | J77: =B77*$I77 -> 32.18701451 | K77: =C77*$I77 -> 32.21797178 | L77: =D77*$I77 -> 32.08640514 | M77: =E77*$I77 -> 32.140579 | N77: 7736147.411
A78: 2013-08-08 | B78: 41.650002 | C78: 41.799999 | D78: 41.52 | E78: 41.75 | F78: 32.310844 | G78: 2915000 | I78: =F78/E78 -> 0.7739124311 | J78: =B78*$I78 -> 32.2334543 | K78: =C78*$I78 -> 32.34953885 | L78: =D78*$I78 -> 32.13284414 | M78: =E78*$I78 -> 32.310844 | N78: 3766576.014
A79: 2013-08-09 | B79: 41.669998 | C79: 41.73 | D79: 41.459999 | E79: 41.57 | F79: 32.171551 | G79: 4266300 | I79: =F79/E79 -> 0.7739127015 | J79: =B79*$I79 -> 32.24894072 | K79: =C79*$I79 -> 32.29537703 | L79: =D79*$I79 -> 32.08641983 | M79: =E79*$I79 -> 32.171551 | N79: 5512637.268
A80: 2013-08-12 | B80: 41.41 | C80: 41.5 | D80: 41.259998 | E80: 41.450001 | F80: 32.078663 | G80: 4208600 | I80: =F80/E80 -> 0.7739122371 | J80: =B80*$I80 -> 32.04770574 | K80: =C80*$I80 -> 32.11735784 | L80: =D80*$I80 -> 31.93161735 | M80: =E80*$I80 -> 32.078663 | N80: 5438084.318
A81: 2013-08-13 | B81: 41.549999 | C81: 41.57 | D81: 41.27 | E81: 41.48 | F81: 32.101879 | G81: 4178500 | I81: =F81/E81 -> 0.7739122228 | J81: =B81*$I81 -> 32.15605208 | K81: =C81*$I81 -> 32.1715311 | L81: =D81*$I81 -> 31.93935743 | M81: =E81*$I81 -> 32.101879 | N81: 5399191.119
A82: 2013-08-14 | B82: 41.459999 | C82: 41.5 | D82: 41.169998 | E82: 41.189999 | F82: 31.877455 | G82: 4871500 | I82: =F82/E82 -> 0.7739124975 | J82: =B82*$I82 -> 32.08641137 | K82: =C82*$I82 -> 32.11736865 | L82: =D82*$I82 -> 31.86197598 | M82: =E82*$I82 -> 31.877455 | N82: 6294639.272
A83: 2013-08-15 | B83: 40.880001 | C83: 40.889999 | D83: 40.5 | E83: 40.529999 | F83: 31.366669 | G83: 8854300 | I83: =F83/E83 -> 0.773912405 | J83: =B83*$I83 -> 31.63753989 | K83: =C83*$I83 -> 31.64527747 | L83: =D83*$I83 -> 31.3434524 | M83: =E83*$I83 -> 31.366669 | N83: 11440958.88
A84: 2013-08-16 | B84: 40.459999 | C84: 40.529999 | D84: 40.130001 | E84: 40.290001 | F84: 31.180933 | G84: 8607300 | I84: =F84/E84 -> 0.7739124405 | J84: =B84*$I84 -> 31.31249657 | K84: =C84*$I84 -> 31.36667044 | L84: =D84*$I84 -> 31.05710701 | M84: =E84*$I84 -> 31.180933 | N84: 11121800.8
A85: 2013-08-19 | B85: 40.27 | C85: 40.27 | D85: 40.099998 | E85: 40.110001 | F85: 31.04163 | G85: 5126600 | I85: =F85/E85 -> 0.7739124714 | J85: =B85*$I85 -> 31.16545522 | K85: =C85*$I85 -> 31.16545522 | L85: =D85*$I85 -> 31.03388855 | M85: =E85*$I85 -> 31.04163 | N85: 6624263.324
A86: 2013-08-20 | B86: 40.189999 | C86: 40.349998 | D86: 40.060001 | E86: 40.119999 | F86: 31.049372 | G86: 7174100 | I86: =F86/E86 -> 0.7739125816 | J86: =B86*$I86 -> 31.10354588 | K86: =C86*$I86 -> 31.22737112 | L86: =D86*$I86 -> 31.00293879 | M86: =E86*$I86 -> 31.049372 | N86: 9269910.027
A87: 2013-08-21 | B87: 40.009998 | C87: 40.169998 | D87: 39.77 | E87: 39.810001 | F87: 30.809446 | G87: 7899700 | I87: =F87/E87 -> 0.7739122137 | J87: =B87*$I87 -> 30.96422612 | K87: =C87*$I87 -> 31.08805208 | L87: =D87*$I87 -> 30.77848874 | M87: =E87*$I87 -> 30.809446 | N87: 10207488.47
A88: 2013-08-22 | B88: 39.82 | C88: 40.07 | D88: 39.799999 | E88: 39.98 | F88: 30.941023 | G88: 5501900 | I88: =F88/E88 -> 0.7739125313 | J88: =B88*$I88 -> 30.81719699 | K88: =C88*$I88 -> 31.01067513 | L88: =D88*$I88 -> 30.80171797 | M88: =E88*$I88 -> 30.941023 | N88: 7109201.334
A89: 2013-08-23 | B89: 40.080002 | C89: 40.259998 | D89: 40.009998 | E89: 40.209999 | F89: 31.119022 | G89: 3352900 | I89: =F89/E89 -> 0.7739125286 | J89: =B89*$I89 -> 31.01841569 | K89: =C89*$I89 -> 31.15771685 | L89: =D89*$I89 -> 30.96423872 | M89: =E89*$I89 -> 31.119022 | N89: 4332401.759
A90: 2013-08-26 | B90: 40.220001 | C90: 40.27 | D90: 39.740002 | E90: 39.740002 | F90: 30.755276 | G90: 17412500 | I90: =F90/E90 -> 0.7739122912 | J90: =B90*$I90 -> 31.12675313 | K90: =C90*$I90 -> 31.16544797 | L90: =D90*$I90 -> 30.755276 | M90: =E90*$I90 -> 30.755276 | N90: 22499319.62
A91: 2013-08-27 | B91: 39.439999 | C91: 39.639999 | D91: 39.400002 | E91: 39.529999 | F91: 30.592766 | G91: 11462400 | I91: =F91/E91 -> 0.7739126429 | J91: =B91*$I91 -> 30.52311386 | K91: =C91*$I91 -> 30.67789639 | L91: =D91*$I91 -> 30.49215968 | M91: =E91*$I91 -> 30.592766 | N91: 14810973.96
A92: 2013-08-28 | B92: 39.439999 | C92: 39.450001 | D92: 39.200001 | E92: 39.23 | F92: 30.360579 | G92: 18628600 | I92: =F92/E92 -> 0.7739122865 | J92: =B92*$I92 -> 30.52309981 | K92: =C92*$I92 -> 30.53084048 | L92: =D92*$I92 -> 30.33736241 | M92: =E92*$I92 -> 30.360579 | N92: 24070686.46
A93: 2013-08-29 | B93: 39.080002 | C93: 39.560001 | D93: 39.049999 | E93: 39.389999 | F93: 30.484407 | G93: 7455000 | I93: =F93/E93 -> 0.7739123578 | J93: =B93*$I93 -> 30.24449649 | K93: =C93*$I93 -> 30.61597365 | L93: =D93*$I93 -> 30.2212768 | M93: =E93*$I93 -> 30.484407 | N93: 9632873.703
A94: 2013-08-30 | B94: 39.509998 | C94: 39.580002 | D94: 39.349998 | E94: 39.509998 | F94: 30.577282 | G94: 8672400 | I94: =F94/E94 -> 0.773912517 | J94: =B94*$I94 -> 30.577282 | K94: =C94*$I94 -> 30.63145897 | L94: =D94*$I94 -> 30.453456 | M94: =E94*$I94 -> 30.577282 | N94: 11205917.74
A95: 2013-09-03 | B95: 39.689999 | C95: 39.830002 | D95: 39.400002 | E95: 39.48 | F95: 30.554068 | G95: 15164200 | I95: =F95/E95 -> 0.7739125633 | J95: =B95*$I95 -> 30.71658886 | K95: =C95*$I95 -> 30.82493894 | L95: =D95*$I95 -> 30.49215654 | M95: =E95*$I95 -> 30.554068 | N95: 19594203.17
A96: 2013-09-04 | B96: 39.459999 | C96: 39.830002 | D96: 39.389999 | E96: 39.73 | F96: 30.747541 | G96: 6468800 | I96: =F96/E96 -> 0.7739124339 | J96: =B96*$I96 -> 30.53858387 | K96: =C96*$I96 -> 30.82493379 | L96: =D96*$I96 -> 30.48441 | M96: =E96*$I96 -> 30.747541 | N96: 8358568.381
A97: 2013-09-05 | B97: 39.790001 | C97: 39.82 | D97: 39.630001 | E97: 39.669998 | F97: 30.701109 | G97: 4525100 | I97: =F97/E97 -> 0.7739125422 | J97: =B97*$I97 -> 30.79398083 | K97: =C97*$I97 -> 30.81719743 | L97: =D97*$I97 -> 30.67015482 | M97: =E97*$I97 -> 30.701109 | N97: 5847043.113
A98: 2013-09-06 | B98: 39.810001 | C98: 39.950001 | D98: 39.389999 | E98: 39.77 | F98: 30.778505 | G98: 6976700 | I98: =F98/E98 -> 0.7739126226 | J98: =B98*$I98 -> 30.80946228 | K98: =C98*$I98 -> 30.91781005 | L98: =D98*$I98 -> 30.48441743 | M98: =E98*$I98 -> 30.778505 | N98: 9014841.981
A99: 2013-09-09 | B99: 39.790001 | C99: 40.09 | D99: 39.779999 | E99: 40.049999 | F99: 30.99519 | G99: 10347600 | I99: =F99/E99 -> 0.7739123789 | J99: =B99*$I99 -> 30.79397433 | K99: =C99*$I99 -> 31.02614727 | L99: =D99*$I99 -> 30.78623366 | M99: =E99*$I99 -> 30.99519 | N99: 13370505.86
A100: 2013-09-10 | B100: 40.16 | C100: 40.240002 | D100: 39.950001 | E100: 40.09 | F100: 31.026154 | G100: 6501800 | I100: =F100/E100 -> 0.7739125468 | J100: =B100*$I100 -> 31.08032788 | K100: =C100*$I100 -> 31.14224243 | L100: =D100*$I100 -> 30.91780702 | M100: =E100*$I100 -> 31.026154 | N100: 8401207.639
A101: 2013-09-11 | B101: 40.009998 | C101: 40.389999 | D101: 40.009998 | E101: 40.380001 | F101: 31.250589 | G101: 6812300 | I101: =F101/E101 -> 0.7739125366 | J101: =B101*$I101 -> 30.96423904 | K101: =C101*$I101 -> 31.25832658 | L101: =D101*$I101 -> 30.96423904 | M101: =E101*$I101 -> 31.250589 | N101: 8802415.878
A102: 2013-09-12 | B102: 40.389999 | C102: 40.509998 | D102: 40.349998 | E102: 40.389999 | F102: 31.258329 | G102: 7002900 | I102: =F102/E102 -> 0.7739125965 | J102: =B102*$I102 -> 31.258329 | K102: =C102*$I102 -> 31.35119774 | L102: =D102*$I102 -> 31.22737172 | M102: =E102*$I102 -> 31.258329 | N102: 9048696.237
A103: 2013-09-13 | B103: 40.48 | C103: 40.75 | D103: 40.48 | E103: 40.720001 | F103: 31.513721 | G103: 5063200 | I103: =F103/E103 -> 0.7739125792 | J103: =B103*$I103 -> 31.32798121 | K103: =C103*$I103 -> 31.5369376 | L103: =D103*$I103 -> 31.32798121 | M103: =E103*$I103 -> 31.513721 | N103: 6542341.003
A104: 2013-09-16 | B104: 41.060001 | C104: 41.220001 | D104: 41.009998 | E104: 41.09 | F104: 31.80006 | G104: 8178900 | I104: =F104/E104 -> 0.7739123874 | J104: =B104*$I104 -> 31.7768434 | K104: =C104*$I104 -> 31.90066938 | L104: =D104*$I104 -> 31.73814546 | M104: =E104*$I104 -> 31.80006 | N104: 10568250.53
A105: 2013-09-17 | B105: 41.080002 | C105: 41.27 | D105: 41.080002 | E105: 41.23 | F105: 31.908411 | G105: 5344500 | I105: =F105/E105 -> 0.7739124667 | J105: =B105*$I105 -> 31.79232568 | K105: =C105*$I105 -> 31.9393675 | L105: =D105*$I105 -> 31.79232568 | M105: =E105*$I105 -> 31.908411 | N105: 6905819.754
A106: 2013-09-18 | B106: 41.200001 | C106: 41.75 | D106: 40.990002 | E106: 41.720001 | F106: 32.287628 | G106: 12763900 | I106: =F106/E106 -> 0.7739124455 | J106: =B106*$I106 -> 31.88519353 | K106: =C106*$I106 -> 32.3108446 | L106: =D106*$I106 -> 31.72267269 | M106: =E106*$I106 -> 32.287628 | N106: 16492692.52
A107: 2013-09-19 | B107: 41.790001 | C107: 41.84 | D107: 41.439999 | E107: 41.529999 | F107: 32.140579 | G107: 6148500 | I107: =F107/E107 -> 0.7739123471 | J107: =B107*$I107 -> 32.34179776 | K107: =C107*$I107 -> 32.3804926 | L107: =D107*$I107 -> 32.07092689 | M107: =E107*$I107 -> 32.140579 | N107: 7944698.16
A108: 2013-09-20 | B108: 41.259998 | C108: 41.259998 | D108: 40.950001 | E108: 40.98 | F108: 31.915506 | G108: 7279100 | I108: =F108/E108 -> 0.7788068814 | J108: =B108*$I108 -> 32.13357037 | K108: =C108*$I108 -> 32.13357037 | L108: =D108*$I108 -> 31.89214257 | M108: =E108*$I108 -> 31.915506 | N108: 9346476.224
A109: 2013-09-23 | B109: 40.939999 | C109: 40.939999 | D109: 40.709999 | E109: 40.799999 | F109: 31.77532 | G109: 5586800 | I109: =F109/E109 -> 0.7788068818 | J109: =B109*$I109 -> 31.88435296 | K109: =C109*$I109 -> 31.88435296 | L109: =D109*$I109 -> 31.70522738 | M109: =E109*$I109 -> 31.77532 | N109: 7173537.022
A110: 2013-09-24 | B110: 40.799999 | C110: 40.869999 | D110: 40.549999 | E110: 40.610001 | F110: 31.627354 | G110: 6855000 | I110: =F110/E110 -> 0.7788070234 | J110: =B110*$I110 -> 31.77532578 | K110: =C110*$I110 -> 31.82984227 | L110: =D110*$I110 -> 31.58062402 | M110: =E110*$I110 -> 31.627354 | N110: 8801923.704
A111: 2013-09-25 | B111: 40.59 | C111: 40.66 | D111: 40.200001 | E111: 40.27 | F111: 31.36256 | G111: 8234700 | I111: =F111/E111 -> 0.7788070524 | J111: =B111*$I111 -> 31.61177826 | K111: =C111*$I111 -> 31.66629475 | L111: =D111*$I111 -> 31.30804429 | M111: =E111*$I111 -> 31.36256 | N111: 10573478.98
A112: 2013-09-26 | B112: 40.32 | C112: 40.48 | D112: 40.25 | E112: 40.48 | F112: 31.526104 | G112: 4560300 | I112: =F112/E112 -> 0.778806917 | J112: =B112*$I112 -> 31.40149489 | K112: =C112*$I112 -> 31.526104 | L112: =D112*$I112 -> 31.34697841 | M112: =E112*$I112 -> 31.526104 | N112: 5855494.989
A113: 2013-09-27 | B113: 40.34 | C113: 40.34 | D113: 40.049999 | E113: 40.23 | F113: 31.331396 | G113: 4453400 | I113: =F113/E113 -> 0.7788067611 | J113: =B113*$I113 -> 31.41706474 | K113: =C113*$I113 -> 31.41706474 | L113: =D113*$I113 -> 31.19121 | M113: =E113*$I113 -> 31.331396 | N113: 5718234.898
A114: 2013-09-30 | B114: 39.950001 | C114: 40.110001 | D114: 39.73 | E114: 39.799999 | F114: 30.996515 | G114: 8120800 | I114: =F114/E114 -> 0.7788069291 | J114: =B114*$I114 -> 31.1133376 | K114: =C114*$I114 -> 31.23794671 | L114: =D114*$I114 -> 30.94199929 | M114: =E114*$I114 -> 30.996515 | N114: 10427231.32
A115: 2013-10-01 | B115: 39.779999 | C115: 40.060001 | D115: 39.740002 | E115: 40.040001 | F115: 31.183418 | G115: 7152300 | I115: =F115/E115 -> 0.7788066239 | J115: =B115*$I115 -> 30.98092672 | K115: =C115*$I115 -> 31.19899413 | L115: =D115*$I115 -> 30.94977679 | M115: =E115*$I115 -> 31.183418 | N115: 9183666.112
A116: 2013-10-02 | B116: 39.919998 | C116: 39.959999 | D116: 39.580002 | E116: 39.950001 | F116: 31.113348 | G116: 5827400 | I116: =F116/E116 -> 0.7788071895 | J116: =B116*$I116 -> 31.08998145 | K116: =C116*$I116 -> 31.12113451 | L116: =D116*$I116 -> 30.82519012 | M116: =E116*$I116 -> 31.113348 | N116: 7482468.162
A117: 2013-10-03 | B117: 39.889999 | C117: 39.93 | D117: 39.630001 | E117: 39.75 | F117: 30.957569 | G117: 9686800 | I117: =F117/E117 -> 0.7788067673 | J117: =B117*$I117 -> 31.06660117 | K117: =C117*$I117 -> 31.09775422 | L117: =D117*$I117 -> 30.86411297 | M117: =E117*$I117 -> 30.957569 | N117: 12438001.83
A118: 2013-10-04 | B118: 39.759998 | C118: 39.959999 | D118: 39.650002 | E118: 39.810001 | F118: 31.004297 | G118: 5713900 | I118: =F118/E118 -> 0.7788067375 | J118: =B118*$I118 -> 30.96535433 | K118: =C118*$I118 -> 31.12111645 | L118: =D118*$I118 -> 30.8796887 | M118: =E118*$I118 -> 31.004297 | N118: 7336736.734
A119: 2013-10-07 | B119: 39.580002 | C119: 39.880001 | D119: 39.560001 | E119: 39.68 | F119: 30.903051 | G119: 5438900 | I119: =F119/E119 -> 0.7788067288 | J119: =B119*$I119 -> 30.82517188 | K119: =C119*$I119 -> 31.05881312 | L119: =D119*$I119 -> 30.80959497 | M119: =E119*$I119 -> 30.903051 | N119: 6983632.522
A120: 2013-10-08 | B120: 39.75 | C120: 39.939999 | D120: 39.639999 | E120: 39.68 | F120: 30.903051 | G120: 9532300 | I120: =F120/E120 -> 0.7788067288 | J120: =B120*$I120 -> 30.95756747 | K120: =C120*$I120 -> 31.10553997 | L120: =D120*$I120 -> 30.87189795 | M120: =E120*$I120 -> 30.903051 | N120: 12239622.04
A121: 2013-10-09 | B121: 39.73 | C121: 39.91 | D121: 39.580002 | E121: 39.709999 | F121: 30.926428 | G121: 8706800 | I121: =F121/E121 -> 0.7788070707 | J121: =B121*$I121 -> 30.94200492 | K121: =C121*$I121 -> 31.08219019 | L121: =D121*$I121 -> 30.82518542 | M121: =E121*$I121 -> 30.926428 | N121: 11179662.24
A122: 2013-10-10 | B122: 39.970001 | C122: 40.470001 | D122: 39.970001 | E122: 40.450001 | F122: 31.502752 | G122: 6104900 | I122: =F122/E122 -> 0.7788071995 | J122: =B122*$I122 -> 31.12892454 | K122: =C122*$I122 -> 31.51832814 | L122: =D122*$I122 -> 31.12892454 | M122: =E122*$I122 -> 31.502752 | N122: 7838782.183
A123: 2013-10-11 | B123: 40.419998 | C123: 40.580002 | D123: 40.330002 | E123: 40.57 | F123: 31.596203 | G123: 5451800 | I123: =F123/E123 -> 0.7788070742 | J123: =B123*$I123 -> 31.47938038 | K123: =C123*$I123 -> 31.60399263 | L123: =D123*$I123 -> 31.40929086 | M123: =E123*$I123 -> 31.596203 | N123: 7000193.219
A124: 2013-10-14 | B124: 40.349998 | C124: 40.75 | D124: 40.310001 | E124: 40.740002 | F124: 31.728594 | G124: 6808200 | I124: =F124/E124 -> 0.7788068837 | J124: =B124*$I124 -> 31.4248562 | K124: =C124*$I124 -> 31.73638051 | L124: =D124*$I124 -> 31.39370626 | M124: =E124*$I124 -> 31.728594 | N124: 8741833.364
A125: 2013-10-15 | B125: 40.68 | C125: 40.720001 | D125: 40.32 | E125: 40.369999 | F125: 31.440443 | G125: 7792900 | I125: =F125/E125 -> 0.7788071285 | J125: =B125*$I125 -> 31.68187399 | K125: =C125*$I125 -> 31.71302705 | L125: =D125*$I125 -> 31.40150342 | M125: =E125*$I125 -> 31.440443 | N125: 10006200.14
A126: 2013-10-16 | B126: 40.52 | C126: 40.990002 | D126: 40.52 | E126: 40.970001 | F126: 31.907705 | G126: 7034800 | I126: =F126/E126 -> 0.7788065468 | J126: =B126*$I126 -> 31.55724128 | K126: =C126*$I126 -> 31.92328191 | L126: =D126*$I126 -> 31.55724128 | M126: =E126*$I126 -> 31.907705 | N126: 9032795.152
A127: 2013-10-17 | B127: 40.84 | C127: 41.439999 | D127: 40.84 | E127: 41.43 | F127: 32.265965 | G127: 8498700 | I127: =F127/E127 -> 0.7788067825 | J127: =B127*$I127 -> 31.806469 | K127: =C127*$I127 -> 32.27375229 | L127: =D127*$I127 -> 31.806469 | M127: =E127*$I127 -> 32.265965 | N127: 10912462.75
A128: 2013-10-18 | B128: 41.490002 | C128: 41.549999 | D128: 41.349998 | E128: 41.490002 | F128: 32.312702 | G128: 5861400 | I128: =F128/E128 -> 0.7788069521 | J128: =B128*$I128 -> 32.312702 | K128: =C128*$I128 -> 32.35942808 | L128: =D128*$I128 -> 32.20366591 | M128: =E128*$I128 -> 32.312702 | N128: 7526126.962
A129: 2013-10-21 | B129: 41.43 | C129: 41.509998 | D129: 41.23 | E129: 41.400002 | F129: 32.242615 | G129: 3646400 | I129: =F129/E129 -> 0.778807088 | J129: =B129*$I129 -> 32.26597766 | K129: =C129*$I129 -> 32.32828066 | L129: =D129*$I129 -> 32.11021624 | M129: =E129*$I129 -> 32.242615 | N129: 4682032.375
A130: 2013-10-22 | B130: 41.5 | C130: 42.029999 | D130: 41.48 | E130: 41.919998 | F130: 32.647579 | G130: 9404700 | I130: =F130/E130 -> 0.7788067881 | J130: =B130*$I130 -> 32.32048171 | K130: =C130*$I130 -> 32.73324853 | L130: =D130*$I130 -> 32.30490557 | M130: =E130*$I130 -> 32.647579 | N130: 12075780.72
A131: 2013-10-23 | B131: 41.82 | C131: 42.09 | D131: 41.799999 | E131: 42 | F131: 32.709904 | G131: 8809800 | I131: =F131/E131 -> 0.7788072381 | J131: =B131*$I131 -> 32.5697187 | K131: =C131*$I131 -> 32.77999665 | L131: =D131*$I131 -> 32.55414177 | M131: =E131*$I131 -> 32.709904 | N131: =G131/$I131 -> 11311913.36
A132: 2013-10-24 | B132: 42.080002 | C132: 42.080002 | D132: 41.860001 | E132: 41.919998 | F132: 32.647579 | G132: 7754800 | I132: =F132/E132 -> 0.7788067881 | J132: =B132*$I132 -> 32.7721912 | K132: =C132*$I132 -> 32.7721912 | L132: =D132*$I132 -> 32.60085293 | M132: =E132*$I132 -> 32.647579 | N132: 9957283.524
A133: 2013-10-25 | B133: 41.93 | C133: 42.060001 | D133: 41.799999 | E133: 42.02 | F133: 32.725449 | G133: 4301900 | I133: =F133/E133 -> 0.7788064969 | J133: =B133*$I133 -> 32.65535642 | K133: =C133*$I133 -> 32.75660204 | L133: =D133*$I133 -> 32.55411079 | M133: =E133*$I133 -> 32.725449 | N133: 5523708.414
A134: 2013-10-28 | B134: 42.150002 | C134: 42.700001 | D134: 42.09 | E134: 42.57 | F134: 33.153812 | G134: 33007100 | I134: =F134/E134 -> 0.7788069533 | J134: =B134*$I134 -> 32.82671464 | K134: =C134*$I134 -> 33.25505768 | L134: =D134*$I134 -> 32.77998466 | M134: =E134*$I134 -> 33.153812 | N134: 42381619.56
A135: 2013-10-29 | B135: 42.66 | C135: 42.939999 | D135: 42.540001 | E135: 42.939999 | F135: 33.441975 | G135: 15133400 | I135: =F135/E135 -> 0.7788070745 | J135: =B135*$I135 -> 33.2239098 | K135: =C135*$I135 -> 33.441975 | L135: =D135*$I135 -> 33.13045373 | M135: =E135*$I135 -> 33.441975 | N135: 19431513.27
A136: 2013-10-30 | B136: 42.990002 | C136: 42.990002 | D136: 42.459999 | E136: 42.57 | F136: 33.153812 | G136: 11872100 | I136: =F136/E136 -> 0.7788069533 | J136: =B136*$I136 -> 33.48091248 | K136: =C136*$I136 -> 33.48091248 | L136: =D136*$I136 -> 33.06814246 | M136: =E136*$I136 -> 33.153812 | N136: 15243957.38
A137: 2013-10-31 | B137: 42.490002 | C137: 42.59 | D137: 42.290001 | E137: 42.349998 | F137: 32.982487 | G137: 11588100 | I137: =F137/E137 -> 0.7788072859 | J137: =B137*$I137 -> 33.09152314 | K137: =C137*$I137 -> 33.16940231 | L137: =D137*$I137 -> 32.9357609 | M137: =E137*$I137 -> 32.982487 | N137: 14879290.69
A138: 2013-11-01 | B138: 42.360001 | C138: 42.57 | D138: 42.27 | E138: 42.509998 | F138: 33.107075 | G138: 9055000 | I138: =F138/E138 -> 0.778806788 | J138: =B138*$I138 -> 32.99025632 | K138: =C138*$I138 -> 33.15380496 | L138: =D138*$I138 -> 32.92016293 | M138: =E138*$I138 -> 33.107075 | N138: 11626760.5
A139: 2013-11-04 | B139: 42.610001 | C139: 42.720001 | D139: 42.400002 | E139: 42.549999 | F139: 33.138241 | G139: 5305500 | I139: =F139/E139 -> 0.7788070923 | J139: =B139*$I139 -> 33.18497098 | K139: =C139*$I139 -> 33.27063976 | L139: =D139*$I139 -> 33.02142227 | M139: =E139*$I139 -> 33.138241 | N139: 6812341.66
A140: 2013-11-05 | B140: 42.509998 | C140: 42.759998 | D140: 42.380001 | E140: 42.630001 | F140: 33.200542 | G140: 6804500 | I140: =F140/E140 -> 0.7788069721 | J140: =B140*$I140 -> 33.10708283 | K140: =C140*$I140 -> 33.30178457 | L140: =D140*$I140 -> 33.00584026 | M140: =E140*$I140 -> 33.200542 | N140: 8737081.515
A141: 2013-11-06 | B141: 42.849998 | C141: 43.099998 | D141: 42.650002 | E141: 43.09 | F141: 33.558796 | G141: 7356400 | I141: =F141/E141 -> 0.778807055 | J141: =B141*$I141 -> 33.37188075 | K141: =C141*$I141 -> 33.56658251 | L141: =D141*$I141 -> 33.21612245 | M141: =E141*$I141 -> 33.558796 | N141: 9445728.506
A142: 2013-11-07 | B142: 43.060001 | C142: 43.080002 | D142: 42.369999 | E142: 42.459999 | F142: 33.06815 | G142: 11993800 | I142: =F142/E142 -> 0.7788071309 | J142: =B142*$I142 -> 33.53543584 | K142: =C142*$I142 -> 33.55101276 | L142: =D142*$I142 -> 32.99805736 | M142: =E142*$I142 -> 33.06815 | N142: 15400218.52
A143: 2013-11-08 | B143: 42.470001 | C143: 42.669998 | D143: 42.130001 | E143: 42.669998 | F143: 33.231693 | G143: 15162000 | I143: =F143/E143 -> 0.7788069969 | J143: =B143*$I143 -> 33.07593394 | K143: =C143*$I143 -> 33.231693 | L143: =D143*$I143 -> 32.81113956 | M143: =E143*$I143 -> 33.231693 | N143: 19468238.04
A144: 2013-11-11 | B144: 42.650002 | C144: 42.73 | D144: 42.5 | E144: 42.540001 | F144: 33.130444 | G144: 7981900 | I144: =F144/E144 -> 0.7788068458 | J144: =B144*$I144 -> 33.21611353 | K144: =C144*$I144 -> 33.27841652 | L144: =D144*$I144 -> 33.09929095 | M144: =E144*$I144 -> 33.130444 | N144: 10248882.69
A145: 2013-11-12 | B145: 42.439999 | C145: 42.639999 | D145: 42.400002 | E145: 42.610001 | F145: 33.184963 | G145: 5657100 | I145: =F145/E145 -> 0.778806905 | J145: =B145*$I145 -> 33.05256427 | K145: =C145*$I145 -> 33.20832565 | L145: =D145*$I145 -> 33.02141433 | M145: =E145*$I145 -> 33.184963 | N145: 7263803.086
A146: 2013-11-13 | B146: 42.459999 | C146: 42.990002 | D146: 42.419998 | E146: 42.970001 | F146: 33.465343 | G146: 7651500 | I146: =F146/E146 -> 0.7788071264 | J146: =B146*$I146 -> 33.06814981 | K146: =C146*$I146 -> 33.48091992 | L146: =D146*$I146 -> 33.03699674 | M146: =E146*$I146 -> 33.465343 | N146: 9824640.454
A147: 2013-11-14 | B147: 42.990002 | C147: 43.330002 | D147: 42.959999 | E147: 43.279999 | F147: 33.706757 | G147: 5891500 | I147: =F147/E147 -> 0.7788067879 | J147: =B147*$I147 -> 33.48090537 | K147: =C147*$I147 -> 33.74569968 | L147: =D147*$I147 -> 33.45753883 | M147: =E147*$I147 -> 33.706757 | N147: 7564777.416
A148: 2013-11-15 | B148: 43.259998 | C148: 43.43 | D148: 43.150002 | E148: 43.330002 | F148: 33.745716 | G148: 3054000 | I148: =F148/E148 -> 0.7788071646 | J148: =B148*$I148 -> 33.69119638 | K148: =C148*$I148 -> 33.82359516 | L148: =D148*$I148 -> 33.60553071 | M148: =E148*$I148 -> 33.745716 | N148: 3921381.491
A149: 2013-11-18 | B149: 43.459999 | C149: 43.459999 | D149: 43.110001 | E149: 43.200001 | F149: 33.644466 | G149: 3924900 | I149: =F149/E149 -> 0.7788070653 | J149: =B149*$I149 -> 33.84695428 | K149: =C149*$I149 -> 33.84695428 | L149: =D149*$I149 -> 33.57437336 | M149: =E149*$I149 -> 33.644466 | N149: 5039630.706
A150: 2013-11-19 | B150: 43.139999 | C150: 43.189999 | D150: 42.970001 | E150: 43.040001 | F150: 33.519852 | G150: 7013200 | I150: =F150/E150 -> 0.7788069522 | J150: =B150*$I150 -> 33.59773114 | K150: =C150*$I150 -> 33.63667149 | L150: =D150*$I150 -> 33.46533551 | M150: =E150*$I150 -> 33.519852 | N150: 9005055.721
A151: 2013-11-20 | B151: 43.09 | C151: 43.200001 | D151: 42.73 | E151: 42.860001 | F151: 33.379669 | G151: 7392100 | I151: =F151/E151 -> 0.7788070047 | J151: =B151*$I151 -> 33.55879383 | K151: =C151*$I151 -> 33.64446338 | L151: =D151*$I151 -> 33.27842331 | M151: =E151*$I151 -> 33.379669 | N151: 9491568.457
A152: 2013-11-21 | B152: 42.860001 | C152: 42.970001 | D152: 42.759998 | E152: 42.939999 | F152: 33.441975 | G152: 6777800 | I152: =F152/E152 -> 0.7788070745 | J152: =B152*$I152 -> 33.37967199 | K152: =C152*$I152 -> 33.46534077 | L152: =D152*$I152 -> 33.30178895 | M152: =E152*$I152 -> 33.441975 | N152: 8702797.165
A153: 2013-11-22 | B153: 43.009998 | C153: 43.189999 | D153: 42.860001 | E153: 43.16 | F153: 33.613312 | G153: 5443000 | I153: =F153/E153 -> 0.7788070436 | J153: =B153*$I153 -> 33.49648939 | K153: =C153*$I153 -> 33.63667543 | L153: =D153*$I153 -> 33.37967067 | M153: =E153*$I153 -> 33.613312 | N153: 6988894.162
A154: 2013-11-25 | B154: 43.299999 | C154: 43.34 | D154: 43.029999 | E154: 43.09 | F154: 33.558796 | G154: 4447200 | I154: =F154/E154 -> 0.778807055 | J154: =B154*$I154 -> 33.7223447 | K154: =C154*$I154 -> 33.75349776 | L154: =D154*$I154 -> 33.5120668 | M154: =E154*$I154 -> 33.558796 | N154: 5710271.846
A155: 2013-11-26 | B155: 43.139999 | C155: 43.25 | D155: 42.98 | E155: 43.049999 | F155: 33.527641 | G155: 3854300 | I155: =F155/E155 -> 0.77880701 | J155: =B155*$I155 -> 33.59773363 | K155: =C155*$I155 -> 33.68340318 | L155: =D155*$I155 -> 33.47312529 | M155: =E155*$I155 -> 33.527641 | N155: 4948979.594
A156: 2013-11-27 | B156: 43.189999 | C156: 43.189999 | D156: 42.959999 | E156: 43.080002 | F156: 33.550999 | G156: 3257000 | I156: =F156/E156 -> 0.7788068116 | J156: =B156*$I156 -> 33.63666541 | K156: =C156*$I156 -> 33.63666541 | L156: =D156*$I156 -> 33.45753985 | M156: =E156*$I156 -> 33.550999 | N156: 4182038.41
A157: 2013-11-29 | B157: 43.169998 | C157: 43.27 | D157: 42.959999 | E157: 43.009998 | F157: 33.496483 | G157: 2642100 | I157: =F157/E157 -> 0.7788068951 | J157: =B157*$I157 -> 33.6210921 | K157: =C157*$I157 -> 33.69897435 | L157: =D157*$I157 -> 33.45754343 | M157: =E157*$I157 -> 33.496483 | N157: 3392496.929
A158: 2013-12-02 | B158: 43.029999 | C158: 43.040001 | D158: 42.68 | E158: 42.779999 | F158: 33.317364 | G158: 5041700 | I158: =F158/E158 -> 0.7788070308 | J158: =B158*$I158 -> 33.51206576 | K158: =C158*$I158 -> 33.51985539 | L158: =D158*$I158 -> 33.23948408 | M158: =E158*$I158 -> 33.317364 | N158: 6473619.01
A159: 2013-12-03 | B159: 42.73 | C159: 43.009998 | D159: 42.73 | E159: 42.990002 | F159: 33.480919 | G159: 6124800 | I159: =F159/E159 -> 0.778807105 | J159: =B159*$I159 -> 33.2784276 | K159: =C159*$I159 -> 33.49649203 | L159: =D159*$I159 -> 33.2784276 | M159: =E159*$I159 -> 33.480919 | N159: 7864335.034
A160: 2013-12-04 | B160: 42.880001 | C160: 43 | D160: 42.549999 | E160: 42.889999 | F160: 33.403027 | G160: 8093100 | I160: =F160/E160 -> 0.7788068962 | J160: =B160*$I160 -> 33.39524049 | K160: =C160*$I160 -> 33.48869654 | L160: =D160*$I160 -> 33.13823266 | M160: =E160*$I160 -> 33.403027 | N160: 10391664.53
A161: 2013-12-05 | B161: 42.740002 | C161: 42.790001 | D161: 42.439999 | E161: 42.5 | F161: 33.099293 | G161: 6060000 | I161: =F161/E161 -> 0.7788068941 | J161: =B161*$I161 -> 33.28620821 | K161: =C161*$I161 -> 33.32514778 | L161: =D161*$I161 -> 33.05256381 | M161: =E161*$I161 -> 33.099293 | N161: 7781132.969
A162: 2013-12-06 | B162: 42.830002 | C162: 43.130001 | D162: 42.759998 | E162: 43.080002 | F162: 33.550999 | G162: 7108600 | I162: =F162/E162 -> 0.7788068116 | J162: =B162*$I162 -> 33.3562973 | K162: =C162*$I162 -> 33.58993856 | L162: =D162*$I162 -> 33.30177771 | M162: =E162*$I162 -> 33.550999 | N162: 9127552.423
A163: 2013-12-09 | B163: 43.259998 | C163: 43.380001 | D163: 43.150002 | E163: 43.23 | F163: 33.667828 | G163: 5513100 | I163: =F163/E163 -> 0.7788070322 | J163: =B163*$I163 -> 33.69119065 | K163: =C163*$I163 -> 33.78464983 | L163: =D163*$I163 -> 33.605525 | M163: =E163*$I163 -> 33.667828 | N163: 7078903.724
A164: 2013-12-10 | B164: 43.139999 | C164: 43.189999 | D164: 42.740002 | E164: 42.860001 | F164: 33.379669 | G164: 3341900 | I164: =F164/E164 -> 0.7788070047 | J164: =B164*$I164 -> 33.5977334 | K164: =C164*$I164 -> 33.63667375 | L164: =D164*$I164 -> 33.28621294 | M164: =E164*$I164 -> 33.379669 | N164: 4291050.26
A165: 2013-12-11 | B165: 42.849998 | C165: 43.130001 | D165: 42.849998 | E165: 42.93 | F165: 33.434185 | G165: 21705800 | I165: =F165/E165 -> 0.7788070114 | J165: =B165*$I165 -> 33.37187888 | K165: =C165*$I165 -> 33.58994718 | L165: =D165*$I165 -> 33.37187888 | M165: =E165*$I165 -> 33.434185 | N165: 27870576
A166: 2013-12-12 | B166: 42.919998 | C166: 42.919998 | D166: 42.299999 | E166: 42.34 | F166: 32.974686 | G166: 9662500 | I166: =F166/E166 -> 0.7788069438 | J166: =B166*$I166 -> 33.42639247 | K166: =C166*$I166 -> 33.42639247 | L166: =D166*$I166 -> 32.94353294 | M166: =E166*$I166 -> 32.974686 | N166: 12406797.44
A167: 2013-12-13 | B167: 42.470001 | C167: 42.470001 | D167: 42.139999 | E167: 42.27 | F167: 32.920162 | G167: 5929000 | I167: =F167/E167 -> 0.778806766 | J167: =B167*$I167 -> 33.07592413 | K167: =C167*$I167 -> 33.07592413 | L167: =D167*$I167 -> 32.81891634 | M167: =E167*$I167 -> 32.920162 | N167: 7612928.211
A168: 2013-12-16 | B168: 42.349998 | C168: 42.52 | D168: 42.169998 | E168: 42.259998 | F168: 32.91238 | G168: 5893100 | I168: =F168/E168 -> 0.7788069465 | J168: =B168*$I168 -> 32.98247263 | K168: =C168*$I168 -> 33.11487136 | L168: =D168*$I168 -> 32.84228737 | M168: =E168*$I168 -> 32.91238 | N168: 7566830.3
A169: 2013-12-17 | B169: 42.220001 | C169: 42.279999 | D169: 41.959999 | E169: 42.060001 | F169: 32.75663 | G169: 7247300 | I169: =F169/E169 -> 0.7788071617 | J169: =B169*$I169 -> 32.88123915 | K169: =C169*$I169 -> 32.92796602 | L169: =D169*$I169 -> 32.67874773 | M169: =E169*$I169 -> 32.75663 | N169: 9305641.186
A170: 2013-12-18 | B170: 42.110001 | C170: 42.779999 | D170: 41.689999 | E170: 42.759998 | F170: 33.301781 | G170: 11754200 | I170: =F170/E170 -> 0.7788068886 | J170: =B170*$I170 -> 32.79555886 | K170: =C170*$I170 -> 33.31735792 | L170: =D170*$I170 -> 32.46845841 | M170: =E170*$I170 -> 33.301781 | N170: 15092573.23
A171: 2013-12-19 | B171: 42.650002 | C171: 42.73 | D171: 42.43 | E171: 42.68 | F171: 33.239491 | G171: 5698800 | I171: =F171/E171 -> 0.7788071931 | J171: =B171*$I171 -> 33.21612834 | K171: =C171*$I171 -> 33.27843136 | L171: =D171*$I171 -> 33.0447892 | M171: =E171*$I171 -> 33.239491 | N171: 7317343.819
A172: 2013-12-20 | B172: 42.349998 | C172: 42.66 | D172: 42.290001 | E172: 42.549999 | F172: 33.390144 | G172: 11007300 | I172: =F172/E172 -> 0.784727257 | J172: =B172*$I172 -> 33.23319776 | K172: =C172*$I172 -> 33.47646478 | L172: =D172*$I172 -> 33.18611648 | M172: =E172*$I172 -> 33.390144 | N172: 14026911.77
A173: 2013-12-23 | B173: 42.650002 | C173: 42.689999 | D173: 42.360001 | E173: 42.509998 | F173: 33.358753 | G173: 6601700 | I173: =F173/E173 -> 0.7847272305 | J173: =B173*$I173 -> 33.46861795 | K173: =C173*$I173 -> 33.50000469 | L173: =D173*$I173 -> 33.24104627 | M173: =E173*$I173 -> 33.358753 | N173: 8412732.148
A174: 2013-12-24 | B174: 42.509998 | C174: 42.66 | D174: 42.439999 | E174: 42.57 | F174: 33.405846 | G174: 5915300 | I174: =F174/E174 -> 0.7847274137 | J174: =B174*$I174 -> 33.35876079 | K174: =C174*$I174 -> 33.47647147 | L174: =D174*$I174 -> 33.30383065 | M174: =E174*$I174 -> 33.405846 | N174: 7538031.547
A175: 2013-12-26 | B175: 42.599998 | C175: 42.740002 | D175: 42.540001 | E175: 42.740002 | F175: 33.539261 | G175: 15154600 | I175: =F175/E175 -> 0.7847276423 | J175: =B175*$I175 -> 33.42939599 | K175: =C175*$I175 -> 33.539261 | L175: =D175*$I175 -> 33.38231469 | M175: =E175*$I175 -> 33.539261 | N175: 19311923.25
A176: 2013-12-27 | B176: 42.810001 | C176: 42.919998 | D176: 42.759998 | E176: 42.84 | F176: 33.617722 | G176: 3590500 | I176: =F176/E176 -> 0.7847274043 | J176: =B176*$I176 -> 33.59418096 | K176: =C176*$I176 -> 33.68049862 | L176: =D176*$I176 -> 33.55494224 | M176: =E176*$I176 -> 33.617722 | N176: 4575474.21
A177: 2013-12-30 | B177: 42.84 | C177: 42.98 | D177: 42.830002 | E177: 42.950001 | F177: 33.704044 | G177: 3245700 | I177: =F177/E177 -> 0.7847274323 | J177: =B177*$I177 -> 33.6177232 | K177: =C177*$I177 -> 33.72758504 | L177: =D177*$I177 -> 33.60987749 | M177: =E177*$I177 -> 33.704044 | N177: 4136085.813
A178: 2013-12-31 | B178: 43.02 | C178: 43.07 | D178: 42.810001 | E178: 42.98 | F178: 33.727585 | G178: 6516500 | I178: =F178/E178 -> 0.7847274314 | J178: =B178*$I178 -> 33.7589741 | K178: =C178*$I178 -> 33.79821047 | L178: =D178*$I178 -> 33.59418212 | M178: =E178*$I178 -> 33.727585 | N178: 8304157.265
A179: 2014-01-02 | B179: 42.849998 | C179: 42.869999 | D179: 42.380001 | E179: 42.450001 | F179: 33.31168 | G179: 14997000 | I179: =F179/E179 -> 0.7847274256 | J179: =B179*$I179 -> 33.62556862 | K179: =C179*$I179 -> 33.64126395 | L179: =D179*$I179 -> 33.25674908 | M179: =E179*$I179 -> 33.31168 | N179: 19111094.52
A180: 2014-01-03 | B180: 42.540001 | C180: 42.610001 | D180: 42.34 | E180: 42.369999 | F180: 33.248882 | G180: 6298600 | I180: =F180/E180 -> 0.7847269952 | J180: =B180*$I180 -> 33.38228716 | K180: =C180*$I180 -> 33.43721805 | L180: =D180*$I180 -> 33.22534097 | M180: =E180*$I180 -> 33.248882 | N180: 8026485.694
A181: 2014-01-06 | B181: 42.48 | C181: 42.529999 | D181: 42.110001 | E181: 42.209999 | F181: 33.123337 | G181: 9498600 | I181: =F181/E181 -> 0.7847272633 | J181: =B181*$I181 -> 33.33521415 | K181: =C181*$I181 -> 33.37444972 | L181: =D181*$I181 -> 33.04486584 | M181: =E181*$I181 -> 33.123337 | N181: 12104332.86
A182: 2014-01-07 | B182: 42.43 | C182: 42.540001 | D182: 42.240002 | E182: 42.439999 | F182: 33.303833 | G182: 7479100 | I182: =F182/E182 -> 0.784727469 | J182: =B182*$I182 -> 33.29598651 | K182: =C182*$I182 -> 33.38230732 | L182: =D182*$I182 -> 33.14688986 | M182: =E182*$I182 -> 33.303833 | N182: 9530824.771
A183: 2014-01-08 | B183: 42.43 | C183: 42.43 | D183: 42.029999 | E183: 42.119999 | F183: 33.052715 | G183: 23824100 | I183: =F183/E183 -> 0.7847273453 | J183: =B183*$I183 -> 33.29598126 | K183: =C183*$I183 -> 33.29598126 | L183: =D183*$I183 -> 32.98208954 | M183: =E183*$I183 -> 33.052715 | N183: 30359716.84
A184: 2014-01-09 | B184: 42.23 | C184: 42.400002 | D184: 42.060001 | E184: 42.34 | F184: 33.225349 | G184: 24438600 | I184: =F184/E184 -> 0.7847271847 | J184: =B184*$I184 -> 33.13902901 | K184: =C184*$I184 -> 33.2724342 | L184: =D184*$I184 -> 33.00562617 | M184: =E184*$I184 -> 33.225349 | N184: 31142797.75
A185: 2014-01-10 | B185: 42.450001 | C185: 42.549999 | D185: 42.240002 | E185: 42.400002 | F185: 33.272442 | G185: 15903800 | I185: =F185/E185 -> 0.7847273686 | J185: =B185*$I185 -> 33.31167758 | K185: =C185*$I185 -> 33.39014875 | L185: =D185*$I185 -> 33.14688562 | M185: =E185*$I185 -> 33.272442 | N185: 20266656.47
A186: 2014-01-13 | B186: 42.400002 | C186: 42.540001 | D186: 42.110001 | E186: 42.16 | F186: 33.084106 | G186: 9275100 | I186: =F186/E186 -> 0.7847273719 | J186: =B186*$I186 -> 33.27244214 | K186: =C186*$I186 -> 33.38230319 | L186: =D186*$I186 -> 33.04487042 | M186: =E186*$I186 -> 33.084106 | N186: 11819518.9
A187: 2014-01-14 | B187: 42.27 | C187: 42.450001 | D187: 42.189999 | E187: 42.380001 | F187: 33.256748 | G187: 10885000 | I187: =F187/E187 -> 0.7847274001 | J187: =B187*$I187 -> 33.1704272 | K187: =C187*$I187 -> 33.31167892 | L187: =D187*$I187 -> 33.10764822 | M187: =E187*$I187 -> 33.256748 | N187: 13871058.92
A188: 2014-01-15 | B188: 42.43 | C188: 42.540001 | D188: 42.290001 | E188: 42.389999 | F188: 33.264599 | G188: 4384200 | I188: =F188/E188 -> 0.784727525 | J188: =B188*$I188 -> 33.29598889 | K188: =C188*$I188 -> 33.3823097 | L188: =D188*$I188 -> 33.18612782 | M188: =E188*$I188 -> 33.264599 | N188: 5586907.379
A189: 2014-01-16 | B189: 42.27 | C189: 42.459999 | D189: 42.18 | E189: 42.400002 | F189: 33.272442 | G189: 6522100 | I189: =F189/E189 -> 0.7847273686 | J189: =B189*$I189 -> 33.17042587 | K189: =C189*$I189 -> 33.31952329 | L189: =D189*$I189 -> 33.09980041 | M189: =E189*$I189 -> 33.272442 | N189: 8311294.165
A190: 2014-01-17 | B190: 42.349998 | C190: 42.380001 | D190: 42.029999 | E190: 42.07 | F190: 33.013485 | G190: 8233800 | I190: =F190/E190 -> 0.784727478 | J190: =B190*$I190 -> 33.23320712 | K190: =C190*$I190 -> 33.2567513 | L190: =D190*$I190 -> 32.98209512 | M190: =E190*$I190 -> 33.013485 | N190: 10492559.81
A191: 2014-01-21 | B191: 42.189999 | C191: 42.34 | D191: 41.950001 | E191: 42.23 | F191: 33.139034 | G191: 5618400 | I191: =F191/E191 -> 0.7847273029 | J191: =B191*$I191 -> 33.10764412 | K191: =C191*$I191 -> 33.225354 | L191: =D191*$I191 -> 32.91931114 | M191: =E191*$I191 -> 33.139034 | N191: 7159684.618
A192: 2014-01-22 | B192: 42.259998 | C192: 42.380001 | D192: 42.18 | E192: 42.23 | F192: 33.139034 | G192: 3615300 | I192: =F192/E192 -> 0.7847273029 | J192: =B192*$I192 -> 33.16257425 | K192: =C192*$I192 -> 33.25674388 | L192: =D192*$I192 -> 33.09979763 | M192: =E192*$I192 -> 33.139034 | N192: 4607078.136
A193: 2014-01-23 | B193: 42.080002 | C193: 42.080002 | D193: 41.709999 | E193: 41.860001 | F193: 32.84869 | G193: 8916700 | I193: =F193/E193 -> 0.784727406 | J193: =B193*$I193 -> 33.02133081 | K193: =C193*$I193 -> 33.02133081 | L193: =D193*$I193 -> 32.73097932 | M193: =E193*$I193 -> 32.84869 | N193: 11362799.28
A194: 2014-01-24 | B194: 41.799999 | C194: 41.98 | D194: 41.439999 | E194: 41.48 | F194: 32.550488 | G194: 18509700 | I194: =F194/E194 -> 0.7847272903 | J194: =B194*$I194 -> 32.80159995 | K194: =C194*$I194 -> 32.94285165 | L194: =D194*$I194 -> 32.51909812 | M194: =E194*$I194 -> 32.550488 | N194: 23587429.96
A195: 2014-01-27 | B195: 41.5 | C195: 41.549999 | D195: 41.240002 | E195: 41.310001 | F195: 32.417072 | G195: 8451500 | I195: =F195/E195 -> 0.784726972 | J195: =B195*$I195 -> 32.56616934 | K195: =C195*$I195 -> 32.6054049 | L195: =D195*$I195 -> 32.3621419 | M195: =E195*$I195 -> 32.417072 | N195: =G195/$I195 -> 10769987.91
A196: 2014-01-28 | B196: 41.380001 | C196: 41.709999 | D196: 41.360001 | E196: 41.630001 | F196: 32.668205 | G196: 5022200 | I196: =F196/E196 -> 0.7847274613 | J196: =B196*$I196 -> 32.47202313 | K196: =C196*$I196 -> 32.73098163 | L196: =D196*$I196 -> 32.45632859 | M196: =E196*$I196 -> 32.668205 | N196: 6399928.953
A197: 2014-01-29 | B197: 41.360001 | C197: 41.419998 | D197: 40.790001 | E197: 40.900002 | F197: 32.095352 | G197: 36942400 | I197: =F197/E197 -> 0.7847273944 | J197: =B197*$I197 -> 32.45632582 | K197: =C197*$I197 -> 32.50340711 | L197: =D197*$I197 -> 32.0090312 | M197: =E197*$I197 -> 32.095352 | N197: 47076730.42
A198: 2014-01-30 | B198: 41.049999 | C198: 41.119999 | D198: 40.889999 | E198: 40.959999 | F198: 32.142429 | G198: 19016600 | I198: =F198/E198 -> 0.7847272897 | J198: =B198*$I198 -> 32.21305446 | K198: =C198*$I198 -> 32.26798537 | L198: =D198*$I198 -> 32.08749809 | M198: =E198*$I198 -> 32.142429 | N198: 24233386.87
A199: 2014-01-31 | B199: 40.490002 | C199: 41.040001 | D199: 40.32 | E199: 40.759998 | F199: 31.985481 | G199: 21959500 | I199: =F199/E199 -> 0.7847272466 | J199: =B199*$I199 -> 31.77360778 | K199: =C199*$I199 -> 32.20520698 | L199: =D199*$I199 -> 31.64020258 | M199: =E199*$I199 -> 31.985481 | N199: 27983608.44
A200: 2014-02-03 | B200: 40.709999 | C200: 40.82 | D200: 39.830002 | E200: 39.880001 | F200: 31.294924 | G200: 41150000 | I200: =F200/E200 -> 0.7847272622 | J200: =B200*$I200 -> 31.94624606 | K200: =C200*$I200 -> 32.03256684 | L200: =D200*$I200 -> 31.25568842 | M200: =E200*$I200 -> 31.294924 | N200: 52438601.26
... 2320 more rows

Sheet LABELS
A1: Date | B1: Open | C1: High | D1: Low | E1: Close | F1: Adj Close | G1: Volume | I1: Adj Factor | J1: ="Adj "&B1 -> Adj Open | K1: ="Adj "&C1 -> Adj High | L1: ="Adj "&D1 -> Adj Low | M1: ="Adj "&E1 -> Adj Close | O1: LABELS
A2: 2013-04-22 | B2: 41.07 | C2: 41.189999 | D2: 40.810001 | E2: 41.110001 | F2: 31.609234 | G2: 5972300 | I2: =F2/E2 -> 0.7688940217 | J2: =B2*$I2 -> 31.57847747 | K2: =C2*$I2 -> 31.67074398 | L2: =D2*$I2 -> 31.37856579 | M2: =E2*$I2 -> 31.609234
A3: 2013-04-23 | B3: 41.220001 | C3: 41.439999 | D3: 40.900002 | E3: 41.43 | F3: 31.855267 | G3: 13184200 | I3: =F3/E3 -> 0.7688937244 | J3: =B3*$I3 -> 31.69380009 | K3: =C3*$I3 -> 31.86295517 | L3: =D3*$I3 -> 31.44775486 | M3: =E3*$I3 -> 31.855267 | O3: =IF(M3>=M2,"INCREASE","DECREASE") -> INCREASE
A4: 2013-04-24 | B4: 41.25 | C4: 41.369999 | D4: 40.73 | E4: 40.77 | F4: 31.347813 | G4: 30015500 | I4: =F4/E4 -> 0.7688941133 | J4: =B4*$I4 -> 31.71688217 | K4: =C4*$I4 -> 31.8091487 | L4: =D4*$I4 -> 31.31705724 | M4: =E4*$I4 -> 31.347813 | O4: DECREASE
A5: 2013-04-25 | B5: 40.860001 | C5: 41.009998 | D5: 40.759998 | E5: 40.900002 | F5: 31.447756 | G5: 12200800 | I5: =F5/E5 -> 0.7688937521 | J5: =B5*$I5 -> 31.41699948 | K5: =C5*$I5 -> 31.53233124 | L5: =D5*$I5 -> 31.3401078 | M5: =E5*$I5 -> 31.447756 | O5: INCREASE
A6: 2013-04-26 | B6: 40.799999 | C6: 41.009998 | D6: 40.799999 | E6: 40.889999 | F6: 31.440079 | G6: 9481800 | I6: =F6/E6 -> 0.7688941005 | J6: =B6*$I6 -> 31.37087853 | K6: =C6*$I6 -> 31.53234552 | L6: =D6*$I6 -> 31.37087853 | M6: =E6*$I6 -> 31.440079 | O6: DECREASE
A7: 2013-04-29 | B7: 41.009998 | C7: 41.07 | D7: 40.860001 | E7: 41.02 | F7: 31.54003 | G7: 6696000 | I7: =F7/E7 -> 0.7688939542 | J7: =B7*$I7 -> 31.53233952 | K7: =C7*$I7 -> 31.5784747 | L7: =D7*$I7 -> 31.41700774 | M7: =E7*$I7 -> 31.54003 | O7: INCREASE
A8: 2013-04-30 | B8: 40.98 | C8: 41.029999 | D8: 40.77 | E8: 40.939999 | F8: 31.478527 | G8: 11354900 | I8: =F8/E8 -> 0.768894181 | J8: =B8*$I8 -> 31.50928354 | K8: =C8*$I8 -> 31.54772748 | L8: =D8*$I8 -> 31.34781576 | M8: =E8*$I8 -> 31.478527 | O8: DECREASE
A9: 2013-05-01 | B9: 40.889999 | C9: 41.200001 | D9: 40.84 | E9: 40.900002 | F9: 31.447756 | G9: 7556600 | I9: =F9/E9 -> 0.7688937521 | J9: =B9*$I9 -> 31.44006476 | K9: =C9*$I9 -> 31.67842336 | L9: =D9*$I9 -> 31.40162084 | M9: =E9*$I9 -> 31.447756 | O9: DECREASE
A10: 2013-05-02 | B10: 40.91 | C10: 41.189999 | D10: 40.77 | E10: 41.049999 | F10: 31.563108 | G10: 9194000 | I10: =F10/E10 -> 0.7688942453 | J10: =B10*$I10 -> 31.45546357 | K10: =C10*$I10 -> 31.67075319 | L10: =D10*$I10 -> 31.34781838 | M10: =E10*$I10 -> 31.563108 | O10: INCREASE
A11: 2013-05-03 | B11: 41.27 | C11: 41.369999 | D11: 41.099998 | E11: 41.23 | F11: 31.701498 | G11: 12843400 | I11: =F11/E11 -> 0.7688939607 | J11: =B11*$I11 -> 31.73225376 | K11: =C11*$I11 -> 31.80914239 | L11: =D11*$I11 -> 31.60154025 | M11: =E11*$I11 -> 31.701498 | O11: INCREASE
A12: 2013-05-06 | B12: 41.200001 | C12: 41.200001 | D12: 40.880001 | E12: 40.93 | F12: 31.470827 | G12: 14530800 | I12: =F12/E12 -> 0.768893892 | J12: =B12*$I12 -> 31.67842912 | K12: =C12*$I12 -> 31.67842912 | L12: =D12*$I12 -> 31.43238307 | M12: =E12*$I12 -> 31.470827 | O12: DECREASE
A13: 2013-05-07 | B13: 41.009998 | C13: 41.25 | D13: 40.939999 | E13: 41.240002 | F13: 31.7092 | G13: 8152200 | I13: =F13/E13 -> 0.7688942401 | J13: =B13*$I13 -> 31.53235125 | K13: =C13*$I13 -> 31.7168874 | L13: =D13*$I13 -> 31.47852942 | M13: =E13*$I13 -> 31.7092 | O13: INCREASE
A14: 2013-05-08 | B14: 41.23 | C14: 41.299999 | D14: 41.139999 | E14: 41.290001 | F14: 31.747627 | G14: 6623300 | I14: =F14/E14 -> 0.7688938298 | J14: =B14*$I14 -> 31.7014926 | K14: =C14*$I14 -> 31.7553144 | L14: =D14*$I14 -> 31.63229139 | M14: =E14*$I14 -> 31.747627 | O14: INCREASE
A15: 2013-05-09 | B15: 41.259998 | C15: 41.349998 | D15: 40.900002 | E15: 41 | F15: 31.524645 | G15: 12872500 | I15: =F15/E15 -> 0.7688937805 | J15: =B15*$I15 -> 31.72455585 | K15: =C15*$I15 -> 31.79375629 | L15: =D15*$I15 -> 31.44775716 | M15: =E15*$I15 -> 31.524645 | O15: DECREASE
A16: 2013-05-10 | B16: 40.919998 | C16: 41.189999 | D16: 40.919998 | E16: 41.16 | F16: 31.647684 | G16: 8304700 | I16: =F16/E16 -> 0.7688941691 | J16: =B16*$I16 -> 31.46314786 | K16: =C16*$I16 -> 31.67075006 | L16: =D16*$I16 -> 31.46314786 | M16: =E16*$I16 -> 31.647684 | O16: INCREASE
A17: 2013-05-13 | B17: 41.119999 | C17: 41.380001 | D17: 41.049999 | E17: 41.23 | F17: 31.701498 | G17: 7821600 | I17: =F17/E17 -> 0.7688939607 | J17: =B17*$I17 -> 31.6169189 | K17: =C17*$I17 -> 31.81683286 | L17: =D17*$I17 -> 31.56309632 | M17: =E17*$I17 -> 31.701498 | O17: INCREASE
A18: 2013-05-14 | B18: 41.209999 | C18: 41.73 | D18: 41.209999 | E18: 41.720001 | F18: 32.078259 | G18: 7373100 | I18: =F18/E18 -> 0.7688940132 | J18: =B18*$I18 -> 31.68612152 | K18: =C18*$I18 -> 32.08594717 | L18: =D18*$I18 -> 31.68612152 | M18: =E18*$I18 -> 32.078259 | O18: INCREASE
A19: 2013-05-15 | B19: 41.700001 | C19: 42.200001 | D19: 41.66 | E19: 42.130001 | F19: 32.393509 | G19: 11728700 | I19: =F19/E19 -> 0.7688940952 | J19: =B19*$I19 -> 32.06288454 | K19: =C19*$I19 -> 32.44733159 | L19: =D19*$I19 -> 32.03212801 | M19: =E19*$I19 -> 32.393509 | O19: INCREASE
A20: 2013-05-16 | B20: 42.029999 | C20: 42.110001 | D20: 41.810001 | E20: 41.880001 | F20: 32.201279 | G20: 9313100 | I20: =F20/E20 -> 0.7688939406 | J20: =B20*$I20 -> 32.31661155 | K20: =C20*$I20 -> 32.37812461 | L20: =D20*$I20 -> 32.14745642 | M20: =E20*$I20 -> 32.201279 | O20: DECREASE
A21: 2013-05-17 | B21: 41.889999 | C21: 41.970001 | D21: 41.639999 | E21: 41.939999 | F21: 32.247417 | G21: 9368100 | I21: =F21/E21 -> 0.7688940813 | J21: =B21*$I21 -> 32.2089723 | K21: =C21*$I21 -> 32.27048536 | L21: =D21*$I21 -> 32.01674878 | M21: =E21*$I21 -> 32.247417 | O21: INCREASE
A22: 2013-05-20 | B22: 41.91 | C22: 41.950001 | D22: 41.48 | E22: 41.509998 | F22: 31.916786 | G22: 9866600 | I22: =F22/E22 -> 0.7688939421 | J22: =B22*$I22 -> 32.22434511 | K22: =C22*$I22 -> 32.25510164 | L22: =D22*$I22 -> 31.89372072 | M22: =E22*$I22 -> 31.916786 | O22: DECREASE
A23: 2013-05-21 | B23: 41.630001 | C23: 41.669998 | D23: 41.27 | E23: 41.549999 | F23: 31.947536 | G23: 10408400 | I23: =F23/E23 -> 0.7688937851 | J23: =B23*$I23 -> 32.00904904 | K23: =C23*$I23 -> 32.03980249 | L23: =D23*$I23 -> 31.73224651 | M23: =E23*$I23 -> 31.947536 | O23: INCREASE
A24: 2013-05-22 | B24: 41.580002 | C24: 42.02 | D24: 41.34 | E24: 41.48 | F24: 31.893713 | G24: 16899000 | I24: =F24/E24 -> 0.768893756 | J24: =B24*$I24 -> 31.97060391 | K24: =C24*$I24 -> 32.30891563 | L24: =D24*$I24 -> 31.78606787 | M24: =E24*$I24 -> 31.893713 | O24: DECREASE
A25: 2013-05-23 | B25: 41.139999 | C25: 41.450001 | D25: 41.049999 | E25: 41.310001 | F25: 31.763 | G25: 12831900 | I25: =F25/E25 -> 0.7688937117 | J25: =B25*$I25 -> 31.63228653 | K25: =C25*$I25 -> 31.87064512 | L25: =D25*$I25 -> 31.5630861 | M25: =E25*$I25 -> 31.763 | O25: DECREASE
A26: 2013-05-24 | B26: 41.32 | C26: 41.720001 | D26: 41.32 | E26: 41.700001 | F26: 32.062893 | G26: 16015800 | I26: =F26/E26 -> 0.7688942981 | J26: =B26*$I26 -> 31.7707124 | K26: =C26*$I26 -> 32.07827089 | L26: =D26*$I26 -> 31.7707124 | M26: =E26*$I26 -> 32.062893 | O26: INCREASE
A27: 2013-05-28 | B27: 42.060001 | C27: 42.189999 | D27: 41.639999 | E27: 41.77 | F27: 32.116699 | G27: 15727400 | I27: =F27/E27 -> 0.7688939191 | J27: =B27*$I27 -> 32.33967901 | K27: =C27*$I27 -> 32.43963368 | L27: =D27*$I27 -> 32.01674202 | M27: =E27*$I27 -> 32.116699 | O27: INCREASE
A28: 2013-05-29 | B28: 41.529999 | C28: 41.57 | D28: 40.889999 | E28: 40.970001 | F28: 31.50157 | G28: 21414900 | I28: =F28/E28 -> 0.7688935619 | J28: =B28*$I28 -> 31.93214886 | K28: =C28*$I28 -> 31.96290537 | L28: =D28*$I28 -> 31.44005698 | M28: =E28*$I28 -> 31.50157 | O28: DECREASE
A29: 2013-05-30 | B29: 41.02 | C29: 41.16 | D29: 40.790001 | E29: 40.810001 | F29: 31.378571 | G29: 15949200 | I29: =F29/E29 -> 0.7688941493 | J29: =B29*$I29 -> 31.540038 | K29: =C29*$I29 -> 31.64768318 | L29: =D29*$I29 -> 31.36319312 | M29: =E29*$I29 -> 31.378571 | O29: DECREASE
A30: 2013-05-31 | B30: 40.720001 | C30: 40.720001 | D30: 40.029999 | E30: 40.049999 | F30: 30.794199 | G30: 33824800 | I30: =F30/E30 -> 0.7688938769 | J30: =B30*$I30 -> 31.30935944 | K30: =C30*$I30 -> 31.30935944 | L30: =D30*$I30 -> 30.77882112 | M30: =E30*$I30 -> 30.794199 | O30: DECREASE
A31: 2013-06-03 | B31: 40.150002 | C31: 40.5 | D31: 39.68 | E31: 40.490002 | F31: 31.132509 | G31: 39020500 | I31: =F31/E31 -> 0.7688937383 | J31: =B31*$I31 -> 30.87108513 | K31: =C31*$I31 -> 31.1401964 | L31: =D31*$I31 -> 30.50970353 | M31: =E31*$I31 -> 31.132509 | O31: INCREASE
A32: 2013-06-04 | B32: 40.639999 | C32: 40.779999 | D32: 40.209999 | E32: 40.5 | F32: 31.140198 | G32: 12962800 | I32: =F32/E32 -> 0.7688937778 | J32: =B32*$I32 -> 31.24784236 | K32: =C32*$I32 -> 31.35548749 | L32: =D32*$I32 -> 30.91721804 | M32: =E32*$I32 -> 31.140198 | O32: INCREASE
A33: 2013-06-05 | B33: 40.380001 | C33: 40.419998 | D33: 40 | E33: 40.009998 | F33: 30.763453 | G33: 17077900 | I33: =F33/E33 -> 0.7688941399 | J33: =B33*$I33 -> 31.04794614 | K33: =C33*$I33 -> 31.0786996 | L33: =D33*$I33 -> 30.7557656 | M33: =E33*$I33 -> 30.763453 | O33: DECREASE
A34: 2013-06-06 | B34: 39.990002 | C34: 40.189999 | D34: 39.700001 | E34: 40.18 | F34: 30.894161 | G34: 12352700 | I34: =F34/E34 -> 0.768894002 | J34: =B34*$I34 -> 30.74807268 | K34: =C34*$I34 -> 30.90184917 | L34: =D34*$I34 -> 30.52509265 | M34: =E34*$I34 -> 30.894161 | O34: INCREASE
A35: 2013-06-07 | B35: 40.389999 | C35: 40.849998 | D35: 40.389999 | E35: 40.68 | F35: 31.278614 | G35: 18700800 | I35: =F35/E35 -> 0.7688941495 | J35: =B35*$I35 -> 31.05563393 | K35: =C35*$I35 -> 31.40932447 | L35: =D35*$I35 -> 31.05563393 | M35: =E35*$I35 -> 31.278614 | O35: INCREASE
A36: 2013-06-10 | B36: 40.849998 | C36: 40.849998 | D36: 40.490002 | E36: 40.68 | F36: 31.278614 | G36: 11190300 | I36: =F36/E36 -> 0.7688941495 | J36: =B36*$I36 -> 31.40932447 | K36: =C36*$I36 -> 31.40932447 | L36: =D36*$I36 -> 31.13252565 | M36: =E36*$I36 -> 31.278614 | O36: INCREASE
A37: 2013-06-11 | B37: 40.450001 | C37: 40.860001 | D37: 40.32 | E37: 40.580002 | F37: 31.201727 | G37: 20334000 | I37: =F37/E37 -> 0.7688941711 | J37: =B37*$I37 -> 31.10176999 | K37: =C37*$I37 -> 31.4170166 | L37: =D37*$I37 -> 31.00181298 | M37: =E37*$I37 -> 31.201727 | O37: DECREASE
A38: 2013-06-12 | B38: 40.73 | C38: 40.900002 | D38: 40.380001 | E38: 40.380001 | F38: 31.047943 | G38: 14908400 | I38: =F38/E38 -> 0.7688940622 | J38: =B38*$I38 -> 31.31705515 | K38: =C38*$I38 -> 31.44776868 | L38: =D38*$I38 -> 31.047943 | M38: =E38*$I38 -> 31.047943 | O38: DECREASE
A39: 2013-06-13 | B39: 40.470001 | C39: 41.880001 | D39: 40.220001 | E39: 40.799999 | F39: 31.370874 | G39: 13048700 | I39: =F39/E39 -> 0.7688939894 | J39: =B39*$I39 -> 31.11714052 | K39: =C39*$I39 -> 32.20128105 | L39: =D39*$I39 -> 30.92491702 | M39: =E39*$I39 -> 31.370874 | O39: INCREASE
A40: 2013-06-14 | B40: 40.73 | C40: 41.029999 | D40: 40.59 | E40: 40.700001 | F40: 31.293985 | G40: 8453300 | I40: =F40/E40 -> 0.7688939615 | J40: =B40*$I40 -> 31.31705105 | K40: =C40*$I40 -> 31.54771847 | L40: =D40*$I40 -> 31.2094059 | M40: =E40*$I40 -> 31.293985 | O40: DECREASE
A41: 2013-06-17 | B41: 40.830002 | C41: 41.23 | D41: 40.779999 | E41: 41.060001 | F41: 31.57081 | G41: 9877200 | I41: =F41/E41 -> 0.7688945258 | J41: =B41*$I41 -> 31.39396503 | K41: =C41*$I41 -> 31.7015213 | L41: =D41*$I41 -> 31.35551799 | M41: =E41*$I41 -> 31.57081 | O41: INCREASE
A42: 2013-06-18 | B42: 41.060001 | C42: 41.259998 | D42: 40.93 | E42: 41.209999 | F42: 31.686117 | G42: 8441200 | I42: =F42/E42 -> 0.7688939036 | J42: =B42*$I42 -> 31.57078445 | K42: =C42*$I42 -> 31.72456093 | L42: =D42*$I42 -> 31.47082748 | M42: =E42*$I42 -> 31.686117 | O42: INCREASE
A43: 2013-06-19 | B43: 41.209999 | C43: 41.299999 | D43: 40.389999 | E43: 40.389999 | F43: 31.055634 | G43: 25795200 | I43: =F43/E43 -> 0.7688941512 | J43: =B43*$I43 -> 31.6861272 | K43: =C43*$I43 -> 31.75532768 | L43: =D43*$I43 -> 31.055634 | M43: =E43*$I43 -> 31.055634 | O43: DECREASE
A44: 2013-06-20 | B44: 40.049999 | C44: 40.279999 | D44: 39.099998 | E44: 39.169998 | F44: 30.117569 | G44: 32296500 | I44: =F44/E44 -> 0.76889381 | J44: =B44*$I44 -> 30.79419632 | K44: =C44*$I44 -> 30.9710419 | L44: =D44*$I44 -> 30.06374643 | M44: =E44*$I44 -> 30.117569 | O44: DECREASE
A45: 2013-06-21 | B45: 39.209999 | C45: 39.630001 | D45: 39.040001 | E45: 39.43 | F45: 30.51536 | G45: 22743500 | I45: =F45/E45 -> 0.7739122496 | J45: =B45*$I45 -> 30.34509853 | K45: =C45*$I45 -> 30.67014322 | L45: =D45*$I45 -> 30.213535 | M45: =E45*$I45 -> 30.51536 | O45: INCREASE
A46: 2013-06-24 | B46: 39.150002 | C46: 39.650002 | D46: 38.869999 | E46: 39.27 | F46: 30.391542 | G46: 24973100 | I46: =F46/E46 -> 0.7739124523 | J46: =B46*$I46 -> 30.29867405 | K46: =C46*$I46 -> 30.68563028 | L46: =D46*$I46 -> 30.08197625 | M46: =E46*$I46 -> 30.391542 | O46: DECREASE
A47: 2013-06-25 | B47: 39.439999 | C47: 39.48 | D47: 39.119999 | E47: 39.330002 | F47: 30.437981 | G47: 13004400 | I47: =F47/E47 -> 0.773912521 | J47: =B47*$I47 -> 30.52310906 | K47: =C47*$I47 -> 30.55406633 | L47: =D47*$I47 -> 30.27545705 | M47: =E47*$I47 -> 30.437981 | O47: INCREASE
A48: 2013-06-26 | B48: 39.57 | C48: 39.889999 | D48: 39.57 | E48: 39.740002 | F48: 30.755276 | G48: 18133100 | I48: =F48/E48 -> 0.7739122912 | J48: =B48*$I48 -> 30.62370936 | K48: =C48*$I48 -> 30.87136052 | L48: =D48*$I48 -> 30.62370936 | M48: =E48*$I48 -> 30.755276 | O48: INCREASE
A49: 2013-06-27 | B49: 39.990002 | C49: 40.290001 | D49: 39.900002 | E49: 39.919998 | F49: 30.894577 | G49: 10033600 | I49: =F49/E49 -> 0.7739122883 | J49: =B49*$I49 -> 30.94875396 | K49: =C49*$I49 -> 31.18092687 | L49: =D49*$I49 -> 30.87910185 | M49: =E49*$I49 -> 30.894577 | O49: INCREASE
A50: 2013-06-28 | B50: 39.84 | C50: 40.040001 | D50: 39.639999 | E50: 39.669998 | F50: 30.701109 | G50: 11033300 | I50: =F50/E50 -> 0.7739125422 | J50: =B50*$I50 -> 30.83267568 | K50: =C50*$I50 -> 30.98745896 | L50: =D50*$I50 -> 30.6778924 | M50: =E50*$I50 -> 30.701109 | O50: DECREASE
A51: 2013-07-01 | B51: 39.91 | C51: 40.25 | D51: 39.48 | E51: 39.959999 | F51: 30.925543 | G51: 11795300 | I51: =F51/E51 -> 0.7739125069 | J51: =B51*$I51 -> 30.88684815 | K51: =C51*$I51 -> 31.1499784 | L51: =D51*$I51 -> 30.55406577 | M51: =E51*$I51 -> 30.925543 | O51: INCREASE
A52: 2013-07-02 | B52: 39.939999 | C52: 40.23 | D52: 39.869999 | E52: 40.009998 | F52: 30.964243 | G52: 5441200 | I52: =F52/E52 -> 0.7739126355 | J52: =B52*$I52 -> 30.91006989 | K52: =C52*$I52 -> 31.13450533 | L52: =D52*$I52 -> 30.855896 | M52: =E52*$I52 -> 30.964243 | O52: INCREASE
A53: 2013-07-03 | B53: 39.880001 | C53: 40.02 | D53: 39.650002 | E53: 39.93 | F53: 30.902323 | G53: 3985400 | I53: =F53/E53 -> 0.7739124217 | J53: =B53*$I53 -> 30.86362815 | K53: =C53*$I53 -> 30.97197512 | L53: =D53*$I53 -> 30.68562907 | M53: =E53*$I53 -> 30.902323 | O53: DECREASE
A54: 2013-07-05 | B54: 40.02 | C54: 40.200001 | D54: 39.650002 | E54: 40.029999 | F54: 30.979721 | G54: 10602600 | I54: =F54/E54 -> 0.7739126099 | J54: =B54*$I54 -> 30.97198265 | K54: =C54*$I54 -> 31.11128769 | L54: =D54*$I54 -> 30.68563653 | M54: =E54*$I54 -> 30.979721 | O54: INCREASE
A55: 2013-07-08 | B55: 40.080002 | C55: 40.470001 | D55: 40.080002 | E55: 40.43 | F55: 31.289278 | G55: 7611700 | I55: =F55/E55 -> 0.7739123918 | J55: =B55*$I55 -> 31.01841021 | K55: =C55*$I55 -> 31.32023527 | L55: =D55*$I55 -> 31.01841021 | M55: =E55*$I55 -> 31.289278 | O55: INCREASE
A56: 2013-07-09 | B56: 40.700001 | C56: 40.82 | D56: 40.630001 | E56: 40.73 | F56: 31.521458 | G56: 8937800 | I56: =F56/E56 -> 0.773912546 | J56: =B56*$I56 -> 31.4982414 | K56: =C56*$I56 -> 31.59111013 | L56: =D56*$I56 -> 31.44406752 | M56: =E56*$I56 -> 31.521458 | O56: INCREASE
A57: 2013-07-10 | B57: 40.73 | C57: 40.959999 | D57: 40.669998 | E57: 40.779999 | F57: 31.560152 | G57: 7701700 | I57: =F57/E57 -> 0.7739125251 | J57: =B57*$I57 -> 31.52145715 | K57: =C57*$I57 -> 31.69945625 | L57: =D57*$I57 -> 31.47502085 | M57: =E57*$I57 -> 31.560152 | O57: INCREASE
A58: 2013-07-11 | B58: 41.209999 | C58: 41.48 | D58: 41.169998 | E58: 41.419998 | F58: 32.055462 | G58: 12282200 | I58: =F58/E58 -> 0.7739126883 | J58: =B58*$I58 -> 31.89294111 | K58: =C58*$I58 -> 32.10189831 | L58: =D58*$I58 -> 31.86198383 | M58: =E58*$I58 -> 32.055462 | O58: INCREASE
A59: 2013-07-12 | B59: 41.349998 | C59: 41.470001 | D59: 41.279999 | E59: 41.43 | F59: 32.063183 | G59: 5566100 | I59: =F59/E59 -> 0.7739122134 | J59: =B59*$I59 -> 32.00126848 | K59: =C59*$I59 -> 32.09414026 | L59: =D59*$I59 -> 31.94709539 | M59: =E59*$I59 -> 32.063183 | O59: INCREASE
A60: 2013-07-15 | B60: 41.5 | C60: 41.5 | D60: 41.389999 | E60: 41.490002 | F60: 32.109627 | G60: 7076000 | I60: =F60/E60 -> 0.7739123994 | J60: =B60*$I60 -> 32.11736458 | K60: =C60*$I60 -> 32.11736458 | L60: =D60*$I60 -> 32.03223344 | M60: =E60*$I60 -> 32.109627 | O60: INCREASE
A61: 2013-07-16 | B61: 41.130001 | C61: 41.419998 | D61: 41.130001 | E61: 41.34 | F61: 31.993544 | G61: 10156700 | I61: =F61/E61 -> 0.7739125302 | J61: =B61*$I61 -> 31.83102314 | K61: =C61*$I61 -> 32.05545545 | L61: =D61*$I61 -> 31.83102314 | M61: =E61*$I61 -> 31.993544 | O61: DECREASE
A62: 2013-07-17 | B62: 41.41 | C62: 41.540001 | D62: 41.369999 | E62: 41.419998 | F62: 32.055462 | G62: 9365500 | I62: =F62/E62 -> 0.7739126883 | J62: =B62*$I62 -> 32.04772442 | K62: =C62*$I62 -> 32.14833384 | L62: =D62*$I62 -> 32.01676714 | M62: =E62*$I62 -> 32.055462 | O62: INCREASE
A63: 2013-07-18 | B63: 41.41 | C63: 41.709999 | D63: 41.349998 | E63: 41.560001 | F63: 32.163803 | G63: 7136100 | I63: =F63/E63 -> 0.7739124693 | J63: =B63*$I63 -> 32.04771536 | K63: =C63*$I63 -> 32.27988832 | L63: =D63*$I63 -> 32.00127906 | M63: =E63*$I63 -> 32.163803 | O63: INCREASE
A64: 2013-07-19 | B64: 41.57 | C64: 41.799999 | D64: 41.52 | E64: 41.799999 | F64: 32.349537 | G64: 8352700 | I64: =F64/E64 -> 0.7739123869 | J64: =B64*$I64 -> 32.17153792 | K64: =C64*$I64 -> 32.349537 | L64: =D64*$I64 -> 32.13284231 | M64: =E64*$I64 -> 32.349537 | O64: INCREASE
A65: 2013-07-22 | B65: 41.84 | C65: 41.849998 | D65: 41.650002 | E65: 41.709999 | F65: 32.279888 | G65: 7887600 | I65: =F65/E65 -> 0.7739124616 | J65: =B65*$I65 -> 32.38049739 | K65: =C65*$I65 -> 32.38823497 | L65: =D65*$I65 -> 32.23345557 | M65: =E65*$I65 -> 32.279888 | O65: DECREASE
A66: 2013-07-23 | B66: 41.75 | C66: 41.759998 | D66: 41.580002 | E66: 41.630001 | F66: 32.217979 | G66: 6122500 | I66: =F66/E66 -> 0.7739125204 | J66: =B66*$I66 -> 32.31084773 | K66: =C66*$I66 -> 32.31858531 | L66: =D66*$I66 -> 32.17928415 | M66: =E66*$I66 -> 32.217979 | O66: DECREASE
A67: 2013-07-24 | B67: 41.740002 | C67: 41.740002 | D67: 41.27 | E67: 41.360001 | F67: 32.009026 | G67: 8262900 | I67: =F67/E67 -> 0.7739126022 | J67: =B67*$I67 -> 32.30311356 | K67: =C67*$I67 -> 32.30311356 | L67: =D67*$I67 -> 31.93937309 | M67: =E67*$I67 -> 32.009026 | O67: =IF(M67>=M66,"INCREASE","DECREASE") -> DECREASE
A68: 2013-07-25 | B68: 41.279999 | C68: 41.619999 | D68: 41.25 | E68: 41.580002 | F68: 32.179276 | G68: 4720600 | I68: =F68/E68 -> 0.7739123245 | J68: =B68*$I68 -> 31.94709998 | K68: =C68*$I68 -> 32.21023017 | L68: =D68*$I68 -> 31.92388339 | M68: =E68*$I68 -> 32.179276 | O68: INCREASE
A69: 2013-07-26 | B69: 41.419998 | C69: 41.549999 | D69: 41.02 | E69: 41.529999 | F69: 32.140579 | G69: 6073200 | I69: =F69/E69 -> 0.7739123471 | J69: =B69*$I69 -> 32.05544787 | K69: =C69*$I69 -> 32.15605725 | L69: =D69*$I69 -> 31.74588448 | M69: =E69*$I69 -> 32.140579 | O69: DECREASE
A70: 2013-07-29 | B70: 41.470001 | C70: 41.540001 | D70: 41.34 | E70: 41.439999 | F70: 32.070934 | G70: 7493000 | I70: =F70/E70 -> 0.7739125187 | J70: =B70*$I70 -> 32.09415292 | K70: =C70*$I70 -> 32.1483268 | L70: =D70*$I70 -> 31.99354352 | M70: =E70*$I70 -> 32.070934 | O70: DECREASE
A71: 2013-07-30 | B71: 41.509998 | C71: 41.68 | D71: 41.32 | E71: 41.400002 | F71: 32.039982 | G71: 5733600 | I71: =F71/E71 -> 0.7739125713 | J71: =B71*$I71 -> 32.12510929 | K71: =C71*$I71 -> 32.25667597 | L71: =D71*$I71 -> 31.97806745 | M71: =E71*$I71 -> 32.039982 | O71: DECREASE
A72: 2013-07-31 | B72: 41.41 | C72: 41.610001 | D72: 41.34 | E72: 41.389999 | F72: 32.03223 | G72: 6735500 | I72: =F72/E72 -> 0.7739123164 | J72: =B72*$I72 -> 32.04770902 | K72: =C72*$I72 -> 32.20249226 | L72: =D72*$I72 -> 31.99353516 | M72: =E72*$I72 -> 32.03223 | O72: DECREASE
A73: 2013-08-01 | B73: 41.599998 | C73: 41.799999 | D73: 41.599998 | E73: 41.73 | F73: 32.295361 | G73: 6207700 | I73: =F73/E73 -> 0.7739123173 | J73: =B73*$I73 -> 32.19475085 | K73: =C73*$I73 -> 32.34953409 | L73: =D73*$I73 -> 32.19475085 | M73: =E73*$I73 -> 32.295361 | O73: INCREASE
A74: 2013-08-02 | B74: 41.610001 | C74: 41.77 | D74: 41.439999 | E74: 41.75 | F74: 32.310844 | G74: 3956400 | I74: =F74/E74 -> 0.7739124311 | J74: =B74*$I74 -> 32.20249703 | K74: =C74*$I74 -> 32.32632225 | L74: =D74*$I74 -> 32.07093037 | M74: =E74*$I74 -> 32.310844 | O74: INCREASE
A75: 2013-08-05 | B75: 41.740002 | C75: 41.849998 | D75: 41.650002 | E75: 41.779999 | F75: 32.334049 | G75: 5010300 | I75: =F75/E75 -> 0.7739121535 | J75: =B75*$I75 -> 32.30309484 | K75: =C75*$I75 -> 32.38822208 | L75: =D75*$I75 -> 32.23344274 | M75: =E75*$I75 -> 32.334049 | O75: INCREASE
A76: 2013-08-06 | B76: 41.759998 | C76: 41.790001 | D76: 41.580002 | E76: 41.73 | F76: 32.295361 | G76: 3148600 | I76: =F76/E76 -> 0.7739123173 | J76: =B76*$I76 -> 32.31857682 | K76: =C76*$I76 -> 32.34179651 | L76: =D76*$I76 -> 32.1792757 | M76: =E76*$I76 -> 32.295361 | O76: DECREASE
A77: 2013-08-07 | B77: 41.59 | C77: 41.630001 | D77: 41.459999 | E77: 41.529999 | F77: 32.140579 | G77: 5987100 | I77: =F77/E77 -> 0.7739123471 | J77: =B77*$I77 -> 32.18701451 | K77: =C77*$I77 -> 32.21797178 | L77: =D77*$I77 -> 32.08640514 | M77: =E77*$I77 -> 32.140579 | O77: DECREASE
A78: 2013-08-08 | B78: 41.650002 | C78: 41.799999 | D78: 41.52 | E78: 41.75 | F78: 32.310844 | G78: 2915000 | I78: =F78/E78 -> 0.7739124311 | J78: =B78*$I78 -> 32.2334543 | K78: =C78*$I78 -> 32.34953885 | L78: =D78*$I78 -> 32.13284414 | M78: =E78*$I78 -> 32.310844 | O78: INCREASE
A79: 2013-08-09 | B79: 41.669998 | C79: 41.73 | D79: 41.459999 | E79: 41.57 | F79: 32.171551 | G79: 4266300 | I79: =F79/E79 -> 0.7739127015 | J79: =B79*$I79 -> 32.24894072 | K79: =C79*$I79 -> 32.29537703 | L79: =D79*$I79 -> 32.08641983 | M79: =E79*$I79 -> 32.171551 | O79: DECREASE
A80: 2013-08-12 | B80: 41.41 | C80: 41.5 | D80: 41.259998 | E80: 41.450001 | F80: 32.078663 | G80: 4208600 | I80: =F80/E80 -> 0.7739122371 | J80: =B80*$I80 -> 32.04770574 | K80: =C80*$I80 -> 32.11735784 | L80: =D80*$I80 -> 31.93161735 | M80: =E80*$I80 -> 32.078663 | O80: DECREASE
A81: 2013-08-13 | B81: 41.549999 | C81: 41.57 | D81: 41.27 | E81: 41.48 | F81: 32.101879 | G81: 4178500 | I81: =F81/E81 -> 0.7739122228 | J81: =B81*$I81 -> 32.15605208 | K81: =C81*$I81 -> 32.1715311 | L81: =D81*$I81 -> 31.93935743 | M81: =E81*$I81 -> 32.101879 | O81: INCREASE
A82: 2013-08-14 | B82: 41.459999 | C82: 41.5 | D82: 41.169998 | E82: 41.189999 | F82: 31.877455 | G82: 4871500 | I82: =F82/E82 -> 0.7739124975 | J82: =B82*$I82 -> 32.08641137 | K82: =C82*$I82 -> 32.11736865 | L82: =D82*$I82 -> 31.86197598 | M82: =E82*$I82 -> 31.877455 | O82: DECREASE
A83: 2013-08-15 | B83: 40.880001 | C83: 40.889999 | D83: 40.5 | E83: 40.529999 | F83: 31.366669 | G83: 8854300 | I83: =F83/E83 -> 0.773912405 | J83: =B83*$I83 -> 31.63753989 | K83: =C83*$I83 -> 31.64527747 | L83: =D83*$I83 -> 31.3434524 | M83: =E83*$I83 -> 31.366669 | O83: DECREASE
A84: 2013-08-16 | B84: 40.459999 | C84: 40.529999 | D84: 40.130001 | E84: 40.290001 | F84: 31.180933 | G84: 8607300 | I84: =F84/E84 -> 0.7739124405 | J84: =B84*$I84 -> 31.31249657 | K84: =C84*$I84 -> 31.36667044 | L84: =D84*$I84 -> 31.05710701 | M84: =E84*$I84 -> 31.180933 | O84: DECREASE
A85: 2013-08-19 | B85: 40.27 | C85: 40.27 | D85: 40.099998 | E85: 40.110001 | F85: 31.04163 | G85: 5126600 | I85: =F85/E85 -> 0.7739124714 | J85: =B85*$I85 -> 31.16545522 | K85: =C85*$I85 -> 31.16545522 | L85: =D85*$I85 -> 31.03388855 | M85: =E85*$I85 -> 31.04163 | O85: DECREASE
A86: 2013-08-20 | B86: 40.189999 | C86: 40.349998 | D86: 40.060001 | E86: 40.119999 | F86: 31.049372 | G86: 7174100 | I86: =F86/E86 -> 0.7739125816 | J86: =B86*$I86 -> 31.10354588 | K86: =C86*$I86 -> 31.22737112 | L86: =D86*$I86 -> 31.00293879 | M86: =E86*$I86 -> 31.049372 | O86: INCREASE
A87: 2013-08-21 | B87: 40.009998 | C87: 40.169998 | D87: 39.77 | E87: 39.810001 | F87: 30.809446 | G87: 7899700 | I87: =F87/E87 -> 0.7739122137 | J87: =B87*$I87 -> 30.96422612 | K87: =C87*$I87 -> 31.08805208 | L87: =D87*$I87 -> 30.77848874 | M87: =E87*$I87 -> 30.809446 | O87: DECREASE
A88: 2013-08-22 | B88: 39.82 | C88: 40.07 | D88: 39.799999 | E88: 39.98 | F88: 30.941023 | G88: 5501900 | I88: =F88/E88 -> 0.7739125313 | J88: =B88*$I88 -> 30.81719699 | K88: =C88*$I88 -> 31.01067513 | L88: =D88*$I88 -> 30.80171797 | M88: =E88*$I88 -> 30.941023 | O88: INCREASE
A89: 2013-08-23 | B89: 40.080002 | C89: 40.259998 | D89: 40.009998 | E89: 40.209999 | F89: 31.119022 | G89: 3352900 | I89: =F89/E89 -> 0.7739125286 | J89: =B89*$I89 -> 31.01841569 | K89: =C89*$I89 -> 31.15771685 | L89: =D89*$I89 -> 30.96423872 | M89: =E89*$I89 -> 31.119022 | O89: INCREASE
A90: 2013-08-26 | B90: 40.220001 | C90: 40.27 | D90: 39.740002 | E90: 39.740002 | F90: 30.755276 | G90: 17412500 | I90: =F90/E90 -> 0.7739122912 | J90: =B90*$I90 -> 31.12675313 | K90: =C90*$I90 -> 31.16544797 | L90: =D90*$I90 -> 30.755276 | M90: =E90*$I90 -> 30.755276 | O90: DECREASE
A91: 2013-08-27 | B91: 39.439999 | C91: 39.639999 | D91: 39.400002 | E91: 39.529999 | F91: 30.592766 | G91: 11462400 | I91: =F91/E91 -> 0.7739126429 | J91: =B91*$I91 -> 30.52311386 | K91: =C91*$I91 -> 30.67789639 | L91: =D91*$I91 -> 30.49215968 | M91: =E91*$I91 -> 30.592766 | O91: DECREASE
A92: 2013-08-28 | B92: 39.439999 | C92: 39.450001 | D92: 39.200001 | E92: 39.23 | F92: 30.360579 | G92: 18628600 | I92: =F92/E92 -> 0.7739122865 | J92: =B92*$I92 -> 30.52309981 | K92: =C92*$I92 -> 30.53084048 | L92: =D92*$I92 -> 30.33736241 | M92: =E92*$I92 -> 30.360579 | O92: DECREASE
A93: 2013-08-29 | B93: 39.080002 | C93: 39.560001 | D93: 39.049999 | E93: 39.389999 | F93: 30.484407 | G93: 7455000 | I93: =F93/E93 -> 0.7739123578 | J93: =B93*$I93 -> 30.24449649 | K93: =C93*$I93 -> 30.61597365 | L93: =D93*$I93 -> 30.2212768 | M93: =E93*$I93 -> 30.484407 | O93: INCREASE
A94: 2013-08-30 | B94: 39.509998 | C94: 39.580002 | D94: 39.349998 | E94: 39.509998 | F94: 30.577282 | G94: 8672400 | I94: =F94/E94 -> 0.773912517 | J94: =B94*$I94 -> 30.577282 | K94: =C94*$I94 -> 30.63145897 | L94: =D94*$I94 -> 30.453456 | M94: =E94*$I94 -> 30.577282 | O94: INCREASE
A95: 2013-09-03 | B95: 39.689999 | C95: 39.830002 | D95: 39.400002 | E95: 39.48 | F95: 30.554068 | G95: 15164200 | I95: =F95/E95 -> 0.7739125633 | J95: =B95*$I95 -> 30.71658886 | K95: =C95*$I95 -> 30.82493894 | L95: =D95*$I95 -> 30.49215654 | M95: =E95*$I95 -> 30.554068 | O95: DECREASE
A96: 2013-09-04 | B96: 39.459999 | C96: 39.830002 | D96: 39.389999 | E96: 39.73 | F96: 30.747541 | G96: 6468800 | I96: =F96/E96 -> 0.7739124339 | J96: =B96*$I96 -> 30.53858387 | K96: =C96*$I96 -> 30.82493379 | L96: =D96*$I96 -> 30.48441 | M96: =E96*$I96 -> 30.747541 | O96: INCREASE
A97: 2013-09-05 | B97: 39.790001 | C97: 39.82 | D97: 39.630001 | E97: 39.669998 | F97: 30.701109 | G97: 4525100 | I97: =F97/E97 -> 0.7739125422 | J97: =B97*$I97 -> 30.79398083 | K97: =C97*$I97 -> 30.81719743 | L97: =D97*$I97 -> 30.67015482 | M97: =E97*$I97 -> 30.701109 | O97: DECREASE
A98: 2013-09-06 | B98: 39.810001 | C98: 39.950001 | D98: 39.389999 | E98: 39.77 | F98: 30.778505 | G98: 6976700 | I98: =F98/E98 -> 0.7739126226 | J98: =B98*$I98 -> 30.80946228 | K98: =C98*$I98 -> 30.91781005 | L98: =D98*$I98 -> 30.48441743 | M98: =E98*$I98 -> 30.778505 | O98: INCREASE
A99: 2013-09-09 | B99: 39.790001 | C99: 40.09 | D99: 39.779999 | E99: 40.049999 | F99: 30.99519 | G99: 10347600 | I99: =F99/E99 -> 0.7739123789 | J99: =B99*$I99 -> 30.79397433 | K99: =C99*$I99 -> 31.02614727 | L99: =D99*$I99 -> 30.78623366 | M99: =E99*$I99 -> 30.99519 | O99: INCREASE
A100: 2013-09-10 | B100: 40.16 | C100: 40.240002 | D100: 39.950001 | E100: 40.09 | F100: 31.026154 | G100: 6501800 | I100: =F100/E100 -> 0.7739125468 | J100: =B100*$I100 -> 31.08032788 | K100: =C100*$I100 -> 31.14224243 | L100: =D100*$I100 -> 30.91780702 | M100: =E100*$I100 -> 31.026154 | O100: INCREASE
A101: 2013-09-11 | B101: 40.009998 | C101: 40.389999 | D101: 40.009998 | E101: 40.380001 | F101: 31.250589 | G101: 6812300 | I101: =F101/E101 -> 0.7739125366 | J101: =B101*$I101 -> 30.96423904 | K101: =C101*$I101 -> 31.25832658 | L101: =D101*$I101 -> 30.96423904 | M101: =E101*$I101 -> 31.250589 | O101: INCREASE
A102: 2013-09-12 | B102: 40.389999 | C102: 40.509998 | D102: 40.349998 | E102: 40.389999 | F102: 31.258329 | G102: 7002900 | I102: =F102/E102 -> 0.7739125965 | J102: =B102*$I102 -> 31.258329 | K102: =C102*$I102 -> 31.35119774 | L102: =D102*$I102 -> 31.22737172 | M102: =E102*$I102 -> 31.258329 | O102: INCREASE
A103: 2013-09-13 | B103: 40.48 | C103: 40.75 | D103: 40.48 | E103: 40.720001 | F103: 31.513721 | G103: 5063200 | I103: =F103/E103 -> 0.7739125792 | J103: =B103*$I103 -> 31.32798121 | K103: =C103*$I103 -> 31.5369376 | L103: =D103*$I103 -> 31.32798121 | M103: =E103*$I103 -> 31.513721 | O103: INCREASE
A104: 2013-09-16 | B104: 41.060001 | C104: 41.220001 | D104: 41.009998 | E104: 41.09 | F104: 31.80006 | G104: 8178900 | I104: =F104/E104 -> 0.7739123874 | J104: =B104*$I104 -> 31.7768434 | K104: =C104*$I104 -> 31.90066938 | L104: =D104*$I104 -> 31.73814546 | M104: =E104*$I104 -> 31.80006 | O104: INCREASE
A105: 2013-09-17 | B105: 41.080002 | C105: 41.27 | D105: 41.080002 | E105: 41.23 | F105: 31.908411 | G105: 5344500 | I105: =F105/E105 -> 0.7739124667 | J105: =B105*$I105 -> 31.79232568 | K105: =C105*$I105 -> 31.9393675 | L105: =D105*$I105 -> 31.79232568 | M105: =E105*$I105 -> 31.908411 | O105: INCREASE
A106: 2013-09-18 | B106: 41.200001 | C106: 41.75 | D106: 40.990002 | E106: 41.720001 | F106: 32.287628 | G106: 12763900 | I106: =F106/E106 -> 0.7739124455 | J106: =B106*$I106 -> 31.88519353 | K106: =C106*$I106 -> 32.3108446 | L106: =D106*$I106 -> 31.72267269 | M106: =E106*$I106 -> 32.287628 | O106: INCREASE
A107: 2013-09-19 | B107: 41.790001 | C107: 41.84 | D107: 41.439999 | E107: 41.529999 | F107: 32.140579 | G107: 6148500 | I107: =F107/E107 -> 0.7739123471 | J107: =B107*$I107 -> 32.34179776 | K107: =C107*$I107 -> 32.3804926 | L107: =D107*$I107 -> 32.07092689 | M107: =E107*$I107 -> 32.140579 | O107: DECREASE
A108: 2013-09-20 | B108: 41.259998 | C108: 41.259998 | D108: 40.950001 | E108: 40.98 | F108: 31.915506 | G108: 7279100 | I108: =F108/E108 -> 0.7788068814 | J108: =B108*$I108 -> 32.13357037 | K108: =C108*$I108 -> 32.13357037 | L108: =D108*$I108 -> 31.89214257 | M108: =E108*$I108 -> 31.915506 | O108: DECREASE
A109: 2013-09-23 | B109: 40.939999 | C109: 40.939999 | D109: 40.709999 | E109: 40.799999 | F109: 31.77532 | G109: 5586800 | I109: =F109/E109 -> 0.7788068818 | J109: =B109*$I109 -> 31.88435296 | K109: =C109*$I109 -> 31.88435296 | L109: =D109*$I109 -> 31.70522738 | M109: =E109*$I109 -> 31.77532 | O109: DECREASE
A110: 2013-09-24 | B110: 40.799999 | C110: 40.869999 | D110: 40.549999 | E110: 40.610001 | F110: 31.627354 | G110: 6855000 | I110: =F110/E110 -> 0.7788070234 | J110: =B110*$I110 -> 31.77532578 | K110: =C110*$I110 -> 31.82984227 | L110: =D110*$I110 -> 31.58062402 | M110: =E110*$I110 -> 31.627354 | O110: DECREASE
A111: 2013-09-25 | B111: 40.59 | C111: 40.66 | D111: 40.200001 | E111: 40.27 | F111: 31.36256 | G111: 8234700 | I111: =F111/E111 -> 0.7788070524 | J111: =B111*$I111 -> 31.61177826 | K111: =C111*$I111 -> 31.66629475 | L111: =D111*$I111 -> 31.30804429 | M111: =E111*$I111 -> 31.36256 | O111: DECREASE
A112: 2013-09-26 | B112: 40.32 | C112: 40.48 | D112: 40.25 | E112: 40.48 | F112: 31.526104 | G112: 4560300 | I112: =F112/E112 -> 0.778806917 | J112: =B112*$I112 -> 31.40149489 | K112: =C112*$I112 -> 31.526104 | L112: =D112*$I112 -> 31.34697841 | M112: =E112*$I112 -> 31.526104 | O112: INCREASE
A113: 2013-09-27 | B113: 40.34 | C113: 40.34 | D113: 40.049999 | E113: 40.23 | F113: 31.331396 | G113: 4453400 | I113: =F113/E113 -> 0.7788067611 | J113: =B113*$I113 -> 31.41706474 | K113: =C113*$I113 -> 31.41706474 | L113: =D113*$I113 -> 31.19121 | M113: =E113*$I113 -> 31.331396 | O113: DECREASE
A114: 2013-09-30 | B114: 39.950001 | C114: 40.110001 | D114: 39.73 | E114: 39.799999 | F114: 30.996515 | G114: 8120800 | I114: =F114/E114 -> 0.7788069291 | J114: =B114*$I114 -> 31.1133376 | K114: =C114*$I114 -> 31.23794671 | L114: =D114*$I114 -> 30.94199929 | M114: =E114*$I114 -> 30.996515 | O114: DECREASE
A115: 2013-10-01 | B115: 39.779999 | C115: 40.060001 | D115: 39.740002 | E115: 40.040001 | F115: 31.183418 | G115: 7152300 | I115: =F115/E115 -> 0.7788066239 | J115: =B115*$I115 -> 30.98092672 | K115: =C115*$I115 -> 31.19899413 | L115: =D115*$I115 -> 30.94977679 | M115: =E115*$I115 -> 31.183418 | O115: INCREASE
A116: 2013-10-02 | B116: 39.919998 | C116: 39.959999 | D116: 39.580002 | E116: 39.950001 | F116: 31.113348 | G116: 5827400 | I116: =F116/E116 -> 0.7788071895 | J116: =B116*$I116 -> 31.08998145 | K116: =C116*$I116 -> 31.12113451 | L116: =D116*$I116 -> 30.82519012 | M116: =E116*$I116 -> 31.113348 | O116: DECREASE
A117: 2013-10-03 | B117: 39.889999 | C117: 39.93 | D117: 39.630001 | E117: 39.75 | F117: 30.957569 | G117: 9686800 | I117: =F117/E117 -> 0.7788067673 | J117: =B117*$I117 -> 31.06660117 | K117: =C117*$I117 -> 31.09775422 | L117: =D117*$I117 -> 30.86411297 | M117: =E117*$I117 -> 30.957569 | O117: DECREASE
A118: 2013-10-04 | B118: 39.759998 | C118: 39.959999 | D118: 39.650002 | E118: 39.810001 | F118: 31.004297 | G118: 5713900 | I118: =F118/E118 -> 0.7788067375 | J118: =B118*$I118 -> 30.96535433 | K118: =C118*$I118 -> 31.12111645 | L118: =D118*$I118 -> 30.8796887 | M118: =E118*$I118 -> 31.004297 | O118: INCREASE
A119: 2013-10-07 | B119: 39.580002 | C119: 39.880001 | D119: 39.560001 | E119: 39.68 | F119: 30.903051 | G119: 5438900 | I119: =F119/E119 -> 0.7788067288 | J119: =B119*$I119 -> 30.82517188 | K119: =C119*$I119 -> 31.05881312 | L119: =D119*$I119 -> 30.80959497 | M119: =E119*$I119 -> 30.903051 | O119: DECREASE
A120: 2013-10-08 | B120: 39.75 | C120: 39.939999 | D120: 39.639999 | E120: 39.68 | F120: 30.903051 | G120: 9532300 | I120: =F120/E120 -> 0.7788067288 | J120: =B120*$I120 -> 30.95756747 | K120: =C120*$I120 -> 31.10553997 | L120: =D120*$I120 -> 30.87189795 | M120: =E120*$I120 -> 30.903051 | O120: INCREASE
A121: 2013-10-09 | B121: 39.73 | C121: 39.91 | D121: 39.580002 | E121: 39.709999 | F121: 30.926428 | G121: 8706800 | I121: =F121/E121 -> 0.7788070707 | J121: =B121*$I121 -> 30.94200492 | K121: =C121*$I121 -> 31.08219019 | L121: =D121*$I121 -> 30.82518542 | M121: =E121*$I121 -> 30.926428 | O121: INCREASE
A122: 2013-10-10 | B122: 39.970001 | C122: 40.470001 | D122: 39.970001 | E122: 40.450001 | F122: 31.502752 | G122: 6104900 | I122: =F122/E122 -> 0.7788071995 | J122: =B122*$I122 -> 31.12892454 | K122: =C122*$I122 -> 31.51832814 | L122: =D122*$I122 -> 31.12892454 | M122: =E122*$I122 -> 31.502752 | O122: INCREASE
A123: 2013-10-11 | B123: 40.419998 | C123: 40.580002 | D123: 40.330002 | E123: 40.57 | F123: 31.596203 | G123: 5451800 | I123: =F123/E123 -> 0.7788070742 | J123: =B123*$I123 -> 31.47938038 | K123: =C123*$I123 -> 31.60399263 | L123: =D123*$I123 -> 31.40929086 | M123: =E123*$I123 -> 31.596203 | O123: INCREASE
A124: 2013-10-14 | B124: 40.349998 | C124: 40.75 | D124: 40.310001 | E124: 40.740002 | F124: 31.728594 | G124: 6808200 | I124: =F124/E124 -> 0.7788068837 | J124: =B124*$I124 -> 31.4248562 | K124: =C124*$I124 -> 31.73638051 | L124: =D124*$I124 -> 31.39370626 | M124: =E124*$I124 -> 31.728594 | O124: INCREASE
A125: 2013-10-15 | B125: 40.68 | C125: 40.720001 | D125: 40.32 | E125: 40.369999 | F125: 31.440443 | G125: 7792900 | I125: =F125/E125 -> 0.7788071285 | J125: =B125*$I125 -> 31.68187399 | K125: =C125*$I125 -> 31.71302705 | L125: =D125*$I125 -> 31.40150342 | M125: =E125*$I125 -> 31.440443 | O125: DECREASE
A126: 2013-10-16 | B126: 40.52 | C126: 40.990002 | D126: 40.52 | E126: 40.970001 | F126: 31.907705 | G126: 7034800 | I126: =F126/E126 -> 0.7788065468 | J126: =B126*$I126 -> 31.55724128 | K126: =C126*$I126 -> 31.92328191 | L126: =D126*$I126 -> 31.55724128 | M126: =E126*$I126 -> 31.907705 | O126: INCREASE
A127: 2013-10-17 | B127: 40.84 | C127: 41.439999 | D127: 40.84 | E127: 41.43 | F127: 32.265965 | G127: 8498700 | I127: =F127/E127 -> 0.7788067825 | J127: =B127*$I127 -> 31.806469 | K127: =C127*$I127 -> 32.27375229 | L127: =D127*$I127 -> 31.806469 | M127: =E127*$I127 -> 32.265965 | O127: INCREASE
A128: 2013-10-18 | B128: 41.490002 | C128: 41.549999 | D128: 41.349998 | E128: 41.490002 | F128: 32.312702 | G128: 5861400 | I128: =F128/E128 -> 0.7788069521 | J128: =B128*$I128 -> 32.312702 | K128: =C128*$I128 -> 32.35942808 | L128: =D128*$I128 -> 32.20366591 | M128: =E128*$I128 -> 32.312702 | O128: INCREASE
A129: 2013-10-21 | B129: 41.43 | C129: 41.509998 | D129: 41.23 | E129: 41.400002 | F129: 32.242615 | G129: 3646400 | I129: =F129/E129 -> 0.778807088 | J129: =B129*$I129 -> 32.26597766 | K129: =C129*$I129 -> 32.32828066 | L129: =D129*$I129 -> 32.11021624 | M129: =E129*$I129 -> 32.242615 | O129: DECREASE
A130: 2013-10-22 | B130: 41.5 | C130: 42.029999 | D130: 41.48 | E130: 41.919998 | F130: 32.647579 | G130: 9404700 | I130: =F130/E130 -> 0.7788067881 | J130: =B130*$I130 -> 32.32048171 | K130: =C130*$I130 -> 32.73324853 | L130: =D130*$I130 -> 32.30490557 | M130: =E130*$I130 -> 32.647579 | O130: INCREASE
A131: 2013-10-23 | B131: 41.82 | C131: 42.09 | D131: 41.799999 | E131: 42 | F131: 32.709904 | G131: 8809800 | I131: =F131/E131 -> 0.7788072381 | J131: =B131*$I131 -> 32.5697187 | K131: =C131*$I131 -> 32.77999665 | L131: =D131*$I131 -> 32.55414177 | M131: =E131*$I131 -> 32.709904 | O131: =IF(M131>=M130,"INCREASE","DECREASE") -> INCREASE
A132: 2013-10-24 | B132: 42.080002 | C132: 42.080002 | D132: 41.860001 | E132: 41.919998 | F132: 32.647579 | G132: 7754800 | I132: =F132/E132 -> 0.7788067881 | J132: =B132*$I132 -> 32.7721912 | K132: =C132*$I132 -> 32.7721912 | L132: =D132*$I132 -> 32.60085293 | M132: =E132*$I132 -> 32.647579 | O132: DECREASE
A133: 2013-10-25 | B133: 41.93 | C133: 42.060001 | D133: 41.799999 | E133: 42.02 | F133: 32.725449 | G133: 4301900 | I133: =F133/E133 -> 0.7788064969 | J133: =B133*$I133 -> 32.65535642 | K133: =C133*$I133 -> 32.75660204 | L133: =D133*$I133 -> 32.55411079 | M133: =E133*$I133 -> 32.725449 | O133: INCREASE
A134: 2013-10-28 | B134: 42.150002 | C134: 42.700001 | D134: 42.09 | E134: 42.57 | F134: 33.153812 | G134: 33007100 | I134: =F134/E134 -> 0.7788069533 | J134: =B134*$I134 -> 32.82671464 | K134: =C134*$I134 -> 33.25505768 | L134: =D134*$I134 -> 32.77998466 | M134: =E134*$I134 -> 33.153812 | O134: INCREASE
A135: 2013-10-29 | B135: 42.66 | C135: 42.939999 | D135: 42.540001 | E135: 42.939999 | F135: 33.441975 | G135: 15133400 | I135: =F135/E135 -> 0.7788070745 | J135: =B135*$I135 -> 33.2239098 | K135: =C135*$I135 -> 33.441975 | L135: =D135*$I135 -> 33.13045373 | M135: =E135*$I135 -> 33.441975 | O135: INCREASE
A136: 2013-10-30 | B136: 42.990002 | C136: 42.990002 | D136: 42.459999 | E136: 42.57 | F136: 33.153812 | G136: 11872100 | I136: =F136/E136 -> 0.7788069533 | J136: =B136*$I136 -> 33.48091248 | K136: =C136*$I136 -> 33.48091248 | L136: =D136*$I136 -> 33.06814246 | M136: =E136*$I136 -> 33.153812 | O136: DECREASE
A137: 2013-10-31 | B137: 42.490002 | C137: 42.59 | D137: 42.290001 | E137: 42.349998 | F137: 32.982487 | G137: 11588100 | I137: =F137/E137 -> 0.7788072859 | J137: =B137*$I137 -> 33.09152314 | K137: =C137*$I137 -> 33.16940231 | L137: =D137*$I137 -> 32.9357609 | M137: =E137*$I137 -> 32.982487 | O137: DECREASE
A138: 2013-11-01 | B138: 42.360001 | C138: 42.57 | D138: 42.27 | E138: 42.509998 | F138: 33.107075 | G138: 9055000 | I138: =F138/E138 -> 0.778806788 | J138: =B138*$I138 -> 32.99025632 | K138: =C138*$I138 -> 33.15380496 | L138: =D138*$I138 -> 32.92016293 | M138: =E138*$I138 -> 33.107075 | O138: INCREASE
A139: 2013-11-04 | B139: 42.610001 | C139: 42.720001 | D139: 42.400002 | E139: 42.549999 | F139: 33.138241 | G139: 5305500 | I139: =F139/E139 -> 0.7788070923 | J139: =B139*$I139 -> 33.18497098 | K139: =C139*$I139 -> 33.27063976 | L139: =D139*$I139 -> 33.02142227 | M139: =E139*$I139 -> 33.138241 | O139: INCREASE
A140: 2013-11-05 | B140: 42.509998 | C140: 42.759998 | D140: 42.380001 | E140: 42.630001 | F140: 33.200542 | G140: 6804500 | I140: =F140/E140 -> 0.7788069721 | J140: =B140*$I140 -> 33.10708283 | K140: =C140*$I140 -> 33.30178457 | L140: =D140*$I140 -> 33.00584026 | M140: =E140*$I140 -> 33.200542 | O140: INCREASE
A141: 2013-11-06 | B141: 42.849998 | C141: 43.099998 | D141: 42.650002 | E141: 43.09 | F141: 33.558796 | G141: 7356400 | I141: =F141/E141 -> 0.778807055 | J141: =B141*$I141 -> 33.37188075 | K141: =C141*$I141 -> 33.56658251 | L141: =D141*$I141 -> 33.21612245 | M141: =E141*$I141 -> 33.558796 | O141: INCREASE
A142: 2013-11-07 | B142: 43.060001 | C142: 43.080002 | D142: 42.369999 | E142: 42.459999 | F142: 33.06815 | G142: 11993800 | I142: =F142/E142 -> 0.7788071309 | J142: =B142*$I142 -> 33.53543584 | K142: =C142*$I142 -> 33.55101276 | L142: =D142*$I142 -> 32.99805736 | M142: =E142*$I142 -> 33.06815 | O142: DECREASE
A143: 2013-11-08 | B143: 42.470001 | C143: 42.669998 | D143: 42.130001 | E143: 42.669998 | F143: 33.231693 | G143: 15162000 | I143: =F143/E143 -> 0.7788069969 | J143: =B143*$I143 -> 33.07593394 | K143: =C143*$I143 -> 33.231693 | L143: =D143*$I143 -> 32.81113956 | M143: =E143*$I143 -> 33.231693 | O143: INCREASE
A144: 2013-11-11 | B144: 42.650002 | C144: 42.73 | D144: 42.5 | E144: 42.540001 | F144: 33.130444 | G144: 7981900 | I144: =F144/E144 -> 0.7788068458 | J144: =B144*$I144 -> 33.21611353 | K144: =C144*$I144 -> 33.27841652 | L144: =D144*$I144 -> 33.09929095 | M144: =E144*$I144 -> 33.130444 | O144: DECREASE
A145: 2013-11-12 | B145: 42.439999 | C145: 42.639999 | D145: 42.400002 | E145: 42.610001 | F145: 33.184963 | G145: 5657100 | I145: =F145/E145 -> 0.778806905 | J145: =B145*$I145 -> 33.05256427 | K145: =C145*$I145 -> 33.20832565 | L145: =D145*$I145 -> 33.02141433 | M145: =E145*$I145 -> 33.184963 | O145: INCREASE
A146: 2013-11-13 | B146: 42.459999 | C146: 42.990002 | D146: 42.419998 | E146: 42.970001 | F146: 33.465343 | G146: 7651500 | I146: =F146/E146 -> 0.7788071264 | J146: =B146*$I146 -> 33.06814981 | K146: =C146*$I146 -> 33.48091992 | L146: =D146*$I146 -> 33.03699674 | M146: =E146*$I146 -> 33.465343 | O146: INCREASE
A147: 2013-11-14 | B147: 42.990002 | C147: 43.330002 | D147: 42.959999 | E147: 43.279999 | F147: 33.706757 | G147: 5891500 | I147: =F147/E147 -> 0.7788067879 | J147: =B147*$I147 -> 33.48090537 | K147: =C147*$I147 -> 33.74569968 | L147: =D147*$I147 -> 33.45753883 | M147: =E147*$I147 -> 33.706757 | O147: INCREASE
A148: 2013-11-15 | B148: 43.259998 | C148: 43.43 | D148: 43.150002 | E148: 43.330002 | F148: 33.745716 | G148: 3054000 | I148: =F148/E148 -> 0.7788071646 | J148: =B148*$I148 -> 33.69119638 | K148: =C148*$I148 -> 33.82359516 | L148: =D148*$I148 -> 33.60553071 | M148: =E148*$I148 -> 33.745716 | O148: INCREASE
A149: 2013-11-18 | B149: 43.459999 | C149: 43.459999 | D149: 43.110001 | E149: 43.200001 | F149: 33.644466 | G149: 3924900 | I149: =F149/E149 -> 0.7788070653 | J149: =B149*$I149 -> 33.84695428 | K149: =C149*$I149 -> 33.84695428 | L149: =D149*$I149 -> 33.57437336 | M149: =E149*$I149 -> 33.644466 | O149: DECREASE
A150: 2013-11-19 | B150: 43.139999 | C150: 43.189999 | D150: 42.970001 | E150: 43.040001 | F150: 33.519852 | G150: 7013200 | I150: =F150/E150 -> 0.7788069522 | J150: =B150*$I150 -> 33.59773114 | K150: =C150*$I150 -> 33.63667149 | L150: =D150*$I150 -> 33.46533551 | M150: =E150*$I150 -> 33.519852 | O150: DECREASE
A151: 2013-11-20 | B151: 43.09 | C151: 43.200001 | D151: 42.73 | E151: 42.860001 | F151: 33.379669 | G151: 7392100 | I151: =F151/E151 -> 0.7788070047 | J151: =B151*$I151 -> 33.55879383 | K151: =C151*$I151 -> 33.64446338 | L151: =D151*$I151 -> 33.27842331 | M151: =E151*$I151 -> 33.379669 | O151: DECREASE
A152: 2013-11-21 | B152: 42.860001 | C152: 42.970001 | D152: 42.759998 | E152: 42.939999 | F152: 33.441975 | G152: 6777800 | I152: =F152/E152 -> 0.7788070745 | J152: =B152*$I152 -> 33.37967199 | K152: =C152*$I152 -> 33.46534077 | L152: =D152*$I152 -> 33.30178895 | M152: =E152*$I152 -> 33.441975 | O152: INCREASE
A153: 2013-11-22 | B153: 43.009998 | C153: 43.189999 | D153: 42.860001 | E153: 43.16 | F153: 33.613312 | G153: 5443000 | I153: =F153/E153 -> 0.7788070436 | J153: =B153*$I153 -> 33.49648939 | K153: =C153*$I153 -> 33.63667543 | L153: =D153*$I153 -> 33.37967067 | M153: =E153*$I153 -> 33.613312 | O153: INCREASE
A154: 2013-11-25 | B154: 43.299999 | C154: 43.34 | D154: 43.029999 | E154: 43.09 | F154: 33.558796 | G154: 4447200 | I154: =F154/E154 -> 0.778807055 | J154: =B154*$I154 -> 33.7223447 | K154: =C154*$I154 -> 33.75349776 | L154: =D154*$I154 -> 33.5120668 | M154: =E154*$I154 -> 33.558796 | O154: DECREASE
A155: 2013-11-26 | B155: 43.139999 | C155: 43.25 | D155: 42.98 | E155: 43.049999 | F155: 33.527641 | G155: 3854300 | I155: =F155/E155 -> 0.77880701 | J155: =B155*$I155 -> 33.59773363 | K155: =C155*$I155 -> 33.68340318 | L155: =D155*$I155 -> 33.47312529 | M155: =E155*$I155 -> 33.527641 | O155: DECREASE
A156: 2013-11-27 | B156: 43.189999 | C156: 43.189999 | D156: 42.959999 | E156: 43.080002 | F156: 33.550999 | G156: 3257000 | I156: =F156/E156 -> 0.7788068116 | J156: =B156*$I156 -> 33.63666541 | K156: =C156*$I156 -> 33.63666541 | L156: =D156*$I156 -> 33.45753985 | M156: =E156*$I156 -> 33.550999 | O156: INCREASE
A157: 2013-11-29 | B157: 43.169998 | C157: 43.27 | D157: 42.959999 | E157: 43.009998 | F157: 33.496483 | G157: 2642100 | I157: =F157/E157 -> 0.7788068951 | J157: =B157*$I157 -> 33.6210921 | K157: =C157*$I157 -> 33.69897435 | L157: =D157*$I157 -> 33.45754343 | M157: =E157*$I157 -> 33.496483 | O157: DECREASE
A158: 2013-12-02 | B158: 43.029999 | C158: 43.040001 | D158: 42.68 | E158: 42.779999 | F158: 33.317364 | G158: 5041700 | I158: =F158/E158 -> 0.7788070308 | J158: =B158*$I158 -> 33.51206576 | K158: =C158*$I158 -> 33.51985539 | L158: =D158*$I158 -> 33.23948408 | M158: =E158*$I158 -> 33.317364 | O158: DECREASE
A159: 2013-12-03 | B159: 42.73 | C159: 43.009998 | D159: 42.73 | E159: 42.990002 | F159: 33.480919 | G159: 6124800 | I159: =F159/E159 -> 0.778807105 | J159: =B159*$I159 -> 33.2784276 | K159: =C159*$I159 -> 33.49649203 | L159: =D159*$I159 -> 33.2784276 | M159: =E159*$I159 -> 33.480919 | O159: INCREASE
A160: 2013-12-04 | B160: 42.880001 | C160: 43 | D160: 42.549999 | E160: 42.889999 | F160: 33.403027 | G160: 8093100 | I160: =F160/E160 -> 0.7788068962 | J160: =B160*$I160 -> 33.39524049 | K160: =C160*$I160 -> 33.48869654 | L160: =D160*$I160 -> 33.13823266 | M160: =E160*$I160 -> 33.403027 | O160: DECREASE
A161: 2013-12-05 | B161: 42.740002 | C161: 42.790001 | D161: 42.439999 | E161: 42.5 | F161: 33.099293 | G161: 6060000 | I161: =F161/E161 -> 0.7788068941 | J161: =B161*$I161 -> 33.28620821 | K161: =C161*$I161 -> 33.32514778 | L161: =D161*$I161 -> 33.05256381 | M161: =E161*$I161 -> 33.099293 | O161: DECREASE
A162: 2013-12-06 | B162: 42.830002 | C162: 43.130001 | D162: 42.759998 | E162: 43.080002 | F162: 33.550999 | G162: 7108600 | I162: =F162/E162 -> 0.7788068116 | J162: =B162*$I162 -> 33.3562973 | K162: =C162*$I162 -> 33.58993856 | L162: =D162*$I162 -> 33.30177771 | M162: =E162*$I162 -> 33.550999 | O162: INCREASE
A163: 2013-12-09 | B163: 43.259998 | C163: 43.380001 | D163: 43.150002 | E163: 43.23 | F163: 33.667828 | G163: 5513100 | I163: =F163/E163 -> 0.7788070322 | J163: =B163*$I163 -> 33.69119065 | K163: =C163*$I163 -> 33.78464983 | L163: =D163*$I163 -> 33.605525 | M163: =E163*$I163 -> 33.667828 | O163: INCREASE
A164: 2013-12-10 | B164: 43.139999 | C164: 43.189999 | D164: 42.740002 | E164: 42.860001 | F164: 33.379669 | G164: 3341900 | I164: =F164/E164 -> 0.7788070047 | J164: =B164*$I164 -> 33.5977334 | K164: =C164*$I164 -> 33.63667375 | L164: =D164*$I164 -> 33.28621294 | M164: =E164*$I164 -> 33.379669 | O164: DECREASE
A165: 2013-12-11 | B165: 42.849998 | C165: 43.130001 | D165: 42.849998 | E165: 42.93 | F165: 33.434185 | G165: 21705800 | I165: =F165/E165 -> 0.7788070114 | J165: =B165*$I165 -> 33.37187888 | K165: =C165*$I165 -> 33.58994718 | L165: =D165*$I165 -> 33.37187888 | M165: =E165*$I165 -> 33.434185 | O165: INCREASE
A166: 2013-12-12 | B166: 42.919998 | C166: 42.919998 | D166: 42.299999 | E166: 42.34 | F166: 32.974686 | G166: 9662500 | I166: =F166/E166 -> 0.7788069438 | J166: =B166*$I166 -> 33.42639247 | K166: =C166*$I166 -> 33.42639247 | L166: =D166*$I166 -> 32.94353294 | M166: =E166*$I166 -> 32.974686 | O166: DECREASE
A167: 2013-12-13 | B167: 42.470001 | C167: 42.470001 | D167: 42.139999 | E167: 42.27 | F167: 32.920162 | G167: 5929000 | I167: =F167/E167 -> 0.778806766 | J167: =B167*$I167 -> 33.07592413 | K167: =C167*$I167 -> 33.07592413 | L167: =D167*$I167 -> 32.81891634 | M167: =E167*$I167 -> 32.920162 | O167: DECREASE
A168: 2013-12-16 | B168: 42.349998 | C168: 42.52 | D168: 42.169998 | E168: 42.259998 | F168: 32.91238 | G168: 5893100 | I168: =F168/E168 -> 0.7788069465 | J168: =B168*$I168 -> 32.98247263 | K168: =C168*$I168 -> 33.11487136 | L168: =D168*$I168 -> 32.84228737 | M168: =E168*$I168 -> 32.91238 | O168: DECREASE
A169: 2013-12-17 | B169: 42.220001 | C169: 42.279999 | D169: 41.959999 | E169: 42.060001 | F169: 32.75663 | G169: 7247300 | I169: =F169/E169 -> 0.7788071617 | J169: =B169*$I169 -> 32.88123915 | K169: =C169*$I169 -> 32.92796602 | L169: =D169*$I169 -> 32.67874773 | M169: =E169*$I169 -> 32.75663 | O169: DECREASE
A170: 2013-12-18 | B170: 42.110001 | C170: 42.779999 | D170: 41.689999 | E170: 42.759998 | F170: 33.301781 | G170: 11754200 | I170: =F170/E170 -> 0.7788068886 | J170: =B170*$I170 -> 32.79555886 | K170: =C170*$I170 -> 33.31735792 | L170: =D170*$I170 -> 32.46845841 | M170: =E170*$I170 -> 33.301781 | O170: INCREASE
A171: 2013-12-19 | B171: 42.650002 | C171: 42.73 | D171: 42.43 | E171: 42.68 | F171: 33.239491 | G171: 5698800 | I171: =F171/E171 -> 0.7788071931 | J171: =B171*$I171 -> 33.21612834 | K171: =C171*$I171 -> 33.27843136 | L171: =D171*$I171 -> 33.0447892 | M171: =E171*$I171 -> 33.239491 | O171: DECREASE
A172: 2013-12-20 | B172: 42.349998 | C172: 42.66 | D172: 42.290001 | E172: 42.549999 | F172: 33.390144 | G172: 11007300 | I172: =F172/E172 -> 0.784727257 | J172: =B172*$I172 -> 33.23319776 | K172: =C172*$I172 -> 33.47646478 | L172: =D172*$I172 -> 33.18611648 | M172: =E172*$I172 -> 33.390144 | O172: INCREASE
A173: 2013-12-23 | B173: 42.650002 | C173: 42.689999 | D173: 42.360001 | E173: 42.509998 | F173: 33.358753 | G173: 6601700 | I173: =F173/E173 -> 0.7847272305 | J173: =B173*$I173 -> 33.46861795 | K173: =C173*$I173 -> 33.50000469 | L173: =D173*$I173 -> 33.24104627 | M173: =E173*$I173 -> 33.358753 | O173: DECREASE
A174: 2013-12-24 | B174: 42.509998 | C174: 42.66 | D174: 42.439999 | E174: 42.57 | F174: 33.405846 | G174: 5915300 | I174: =F174/E174 -> 0.7847274137 | J174: =B174*$I174 -> 33.35876079 | K174: =C174*$I174 -> 33.47647147 | L174: =D174*$I174 -> 33.30383065 | M174: =E174*$I174 -> 33.405846 | O174: INCREASE
A175: 2013-12-26 | B175: 42.599998 | C175: 42.740002 | D175: 42.540001 | E175: 42.740002 | F175: 33.539261 | G175: 15154600 | I175: =F175/E175 -> 0.7847276423 | J175: =B175*$I175 -> 33.42939599 | K175: =C175*$I175 -> 33.539261 | L175: =D175*$I175 -> 33.38231469 | M175: =E175*$I175 -> 33.539261 | O175: INCREASE
A176: 2013-12-27 | B176: 42.810001 | C176: 42.919998 | D176: 42.759998 | E176: 42.84 | F176: 33.617722 | G176: 3590500 | I176: =F176/E176 -> 0.7847274043 | J176: =B176*$I176 -> 33.59418096 | K176: =C176*$I176 -> 33.68049862 | L176: =D176*$I176 -> 33.55494224 | M176: =E176*$I176 -> 33.617722 | O176: INCREASE
A177: 2013-12-30 | B177: 42.84 | C177: 42.98 | D177: 42.830002 | E177: 42.950001 | F177: 33.704044 | G177: 3245700 | I177: =F177/E177 -> 0.7847274323 | J177: =B177*$I177 -> 33.6177232 | K177: =C177*$I177 -> 33.72758504 | L177: =D177*$I177 -> 33.60987749 | M177: =E177*$I177 -> 33.704044 | O177: INCREASE
A178: 2013-12-31 | B178: 43.02 | C178: 43.07 | D178: 42.810001 | E178: 42.98 | F178: 33.727585 | G178: 6516500 | I178: =F178/E178 -> 0.7847274314 | J178: =B178*$I178 -> 33.7589741 | K178: =C178*$I178 -> 33.79821047 | L178: =D178*$I178 -> 33.59418212 | M178: =E178*$I178 -> 33.727585 | O178: INCREASE
A179: 2014-01-02 | B179: 42.849998 | C179: 42.869999 | D179: 42.380001 | E179: 42.450001 | F179: 33.31168 | G179: 14997000 | I179: =F179/E179 -> 0.7847274256 | J179: =B179*$I179 -> 33.62556862 | K179: =C179*$I179 -> 33.64126395 | L179: =D179*$I179 -> 33.25674908 | M179: =E179*$I179 -> 33.31168 | O179: DECREASE
A180: 2014-01-03 | B180: 42.540001 | C180: 42.610001 | D180: 42.34 | E180: 42.369999 | F180: 33.248882 | G180: 6298600 | I180: =F180/E180 -> 0.7847269952 | J180: =B180*$I180 -> 33.38228716 | K180: =C180*$I180 -> 33.43721805 | L180: =D180*$I180 -> 33.22534097 | M180: =E180*$I180 -> 33.248882 | O180: DECREASE
A181: 2014-01-06 | B181: 42.48 | C181: 42.529999 | D181: 42.110001 | E181: 42.209999 | F181: 33.123337 | G181: 9498600 | I181: =F181/E181 -> 0.7847272633 | J181: =B181*$I181 -> 33.33521415 | K181: =C181*$I181 -> 33.37444972 | L181: =D181*$I181 -> 33.04486584 | M181: =E181*$I181 -> 33.123337 | O181: DECREASE
A182: 2014-01-07 | B182: 42.43 | C182: 42.540001 | D182: 42.240002 | E182: 42.439999 | F182: 33.303833 | G182: 7479100 | I182: =F182/E182 -> 0.784727469 | J182: =B182*$I182 -> 33.29598651 | K182: =C182*$I182 -> 33.38230732 | L182: =D182*$I182 -> 33.14688986 | M182: =E182*$I182 -> 33.303833 | O182: INCREASE
A183: 2014-01-08 | B183: 42.43 | C183: 42.43 | D183: 42.029999 | E183: 42.119999 | F183: 33.052715 | G183: 23824100 | I183: =F183/E183 -> 0.7847273453 | J183: =B183*$I183 -> 33.29598126 | K183: =C183*$I183 -> 33.29598126 | L183: =D183*$I183 -> 32.98208954 | M183: =E183*$I183 -> 33.052715 | O183: DECREASE
A184: 2014-01-09 | B184: 42.23 | C184: 42.400002 | D184: 42.060001 | E184: 42.34 | F184: 33.225349 | G184: 24438600 | I184: =F184/E184 -> 0.7847271847 | J184: =B184*$I184 -> 33.13902901 | K184: =C184*$I184 -> 33.2724342 | L184: =D184*$I184 -> 33.00562617 | M184: =E184*$I184 -> 33.225349 | O184: INCREASE
A185: 2014-01-10 | B185: 42.450001 | C185: 42.549999 | D185: 42.240002 | E185: 42.400002 | F185: 33.272442 | G185: 15903800 | I185: =F185/E185 -> 0.7847273686 | J185: =B185*$I185 -> 33.31167758 | K185: =C185*$I185 -> 33.39014875 | L185: =D185*$I185 -> 33.14688562 | M185: =E185*$I185 -> 33.272442 | O185: INCREASE
A186: 2014-01-13 | B186: 42.400002 | C186: 42.540001 | D186: 42.110001 | E186: 42.16 | F186: 33.084106 | G186: 9275100 | I186: =F186/E186 -> 0.7847273719 | J186: =B186*$I186 -> 33.27244214 | K186: =C186*$I186 -> 33.38230319 | L186: =D186*$I186 -> 33.04487042 | M186: =E186*$I186 -> 33.084106 | O186: DECREASE
A187: 2014-01-14 | B187: 42.27 | C187: 42.450001 | D187: 42.189999 | E187: 42.380001 | F187: 33.256748 | G187: 10885000 | I187: =F187/E187 -> 0.7847274001 | J187: =B187*$I187 -> 33.1704272 | K187: =C187*$I187 -> 33.31167892 | L187: =D187*$I187 -> 33.10764822 | M187: =E187*$I187 -> 33.256748 | O187: INCREASE
A188: 2014-01-15 | B188: 42.43 | C188: 42.540001 | D188: 42.290001 | E188: 42.389999 | F188: 33.264599 | G188: 4384200 | I188: =F188/E188 -> 0.784727525 | J188: =B188*$I188 -> 33.29598889 | K188: =C188*$I188 -> 33.3823097 | L188: =D188*$I188 -> 33.18612782 | M188: =E188*$I188 -> 33.264599 | O188: INCREASE
A189: 2014-01-16 | B189: 42.27 | C189: 42.459999 | D189: 42.18 | E189: 42.400002 | F189: 33.272442 | G189: 6522100 | I189: =F189/E189 -> 0.7847273686 | J189: =B189*$I189 -> 33.17042587 | K189: =C189*$I189 -> 33.31952329 | L189: =D189*$I189 -> 33.09980041 | M189: =E189*$I189 -> 33.272442 | O189: INCREASE
A190: 2014-01-17 | B190: 42.349998 | C190: 42.380001 | D190: 42.029999 | E190: 42.07 | F190: 33.013485 | G190: 8233800 | I190: =F190/E190 -> 0.784727478 | J190: =B190*$I190 -> 33.23320712 | K190: =C190*$I190 -> 33.2567513 | L190: =D190*$I190 -> 32.98209512 | M190: =E190*$I190 -> 33.013485 | O190: DECREASE
A191: 2014-01-21 | B191: 42.189999 | C191: 42.34 | D191: 41.950001 | E191: 42.23 | F191: 33.139034 | G191: 5618400 | I191: =F191/E191 -> 0.7847273029 | J191: =B191*$I191 -> 33.10764412 | K191: =C191*$I191 -> 33.225354 | L191: =D191*$I191 -> 32.91931114 | M191: =E191*$I191 -> 33.139034 | O191: INCREASE
A192: 2014-01-22 | B192: 42.259998 | C192: 42.380001 | D192: 42.18 | E192: 42.23 | F192: 33.139034 | G192: 3615300 | I192: =F192/E192 -> 0.7847273029 | J192: =B192*$I192 -> 33.16257425 | K192: =C192*$I192 -> 33.25674388 | L192: =D192*$I192 -> 33.09979763 | M192: =E192*$I192 -> 33.139034 | O192: INCREASE
A193: 2014-01-23 | B193: 42.080002 | C193: 42.080002 | D193: 41.709999 | E193: 41.860001 | F193: 32.84869 | G193: 8916700 | I193: =F193/E193 -> 0.784727406 | J193: =B193*$I193 -> 33.02133081 | K193: =C193*$I193 -> 33.02133081 | L193: =D193*$I193 -> 32.73097932 | M193: =E193*$I193 -> 32.84869 | O193: DECREASE
A194: 2014-01-24 | B194: 41.799999 | C194: 41.98 | D194: 41.439999 | E194: 41.48 | F194: 32.550488 | G194: 18509700 | I194: =F194/E194 -> 0.7847272903 | J194: =B194*$I194 -> 32.80159995 | K194: =C194*$I194 -> 32.94285165 | L194: =D194*$I194 -> 32.51909812 | M194: =E194*$I194 -> 32.550488 | O194: DECREASE
A195: 2014-01-27 | B195: 41.5 | C195: 41.549999 | D195: 41.240002 | E195: 41.310001 | F195: 32.417072 | G195: 8451500 | I195: =F195/E195 -> 0.784726972 | J195: =B195*$I195 -> 32.56616934 | K195: =C195*$I195 -> 32.6054049 | L195: =D195*$I195 -> 32.3621419 | M195: =E195*$I195 -> 32.417072 | O195: =IF(M195>=M194,"INCREASE","DECREASE") -> DECREASE
A196: 2014-01-28 | B196: 41.380001 | C196: 41.709999 | D196: 41.360001 | E196: 41.630001 | F196: 32.668205 | G196: 5022200 | I196: =F196/E196 -> 0.7847274613 | J196: =B196*$I196 -> 32.47202313 | K196: =C196*$I196 -> 32.73098163 | L196: =D196*$I196 -> 32.45632859 | M196: =E196*$I196 -> 32.668205 | O196: INCREASE
A197: 2014-01-29 | B197: 41.360001 | C197: 41.419998 | D197: 40.790001 | E197: 40.900002 | F197: 32.095352 | G197: 36942400 | I197: =F197/E197 -> 0.7847273944 | J197: =B197*$I197 -> 32.45632582 | K197: =C197*$I197 -> 32.50340711 | L197: =D197*$I197 -> 32.0090312 | M197: =E197*$I197 -> 32.095352 | O197: DECREASE
A198: 2014-01-30 | B198: 41.049999 | C198: 41.119999 | D198: 40.889999 | E198: 40.959999 | F198: 32.142429 | G198: 19016600 | I198: =F198/E198 -> 0.7847272897 | J198: =B198*$I198 -> 32.21305446 | K198: =C198*$I198 -> 32.26798537 | L198: =D198*$I198 -> 32.08749809 | M198: =E198*$I198 -> 32.142429 | O198: INCREASE
A199: 2014-01-31 | B199: 40.490002 | C199: 41.040001 | D199: 40.32 | E199: 40.759998 | F199: 31.985481 | G199: 21959500 | I199: =F199/E199 -> 0.7847272466 | J199: =B199*$I199 -> 31.77360778 | K199: =C199*$I199 -> 32.20520698 | L199: =D199*$I199 -> 31.64020258 | M199: =E199*$I199 -> 31.985481 | O199: DECREASE
A200: 2014-02-03 | B200: 40.709999 | C200: 40.82 | D200: 39.830002 | E200: 39.880001 | F200: 31.294924 | G200: 41150000 | I200: =F200/E200 -> 0.7847272622 | J200: =B200*$I200 -> 31.94624606 | K200: =C200*$I200 -> 32.03256684 | L200: =D200*$I200 -> 31.25568842 | M200: =E200*$I200 -> 31.294924 | O200: DECREASE
... 2320 more rows

Sheet Moving Averages
A1: Date | B1: Open | C1: High | D1: Low | E1: Close | F1: Adj Close | G1: Volume | I1: Adj Factor | J1: ="Adj "&B1 -> Adj Open | K1: ="Adj "&C1 -> Adj High | L1: ="Adj "&D1 -> Adj Low | M1: ="Adj "&E1 -> Adj Close | O1: MA30 | P1: MA100 | Q1: SIGNAL | R1: TRADING PRICE | S1: Net Qty | T1: Qty Traded That day | U1: RETURNS
A2: 2013-04-22 | B2: 41.07 | C2: 41.189999 | D2: 40.810001 | E2: 41.110001 | F2: 31.609234 | G2: 5972300 | I2: =F2/E2 -> 0.7688940217 | J2: =B2*$I2 -> 31.57847747 | K2: =C2*$I2 -> 31.67074398 | L2: =D2*$I2 -> 31.37856579 | M2: =E2*$I2 -> 31.609234
A3: 2013-04-23 | B3: 41.220001 | C3: 41.439999 | D3: 40.900002 | E3: 41.43 | F3: 31.855267 | G3: 13184200 | I3: =F3/E3 -> 0.7688937244 | J3: =B3*$I3 -> 31.69380009 | K3: =C3*$I3 -> 31.86295517 | L3: =D3*$I3 -> 31.44775486 | M3: =E3*$I3 -> 31.855267
A4: 2013-04-24 | B4: 41.25 | C4: 41.369999 | D4: 40.73 | E4: 40.77 | F4: 31.347813 | G4: 30015500 | I4: =F4/E4 -> 0.7688941133 | J4: =B4*$I4 -> 31.71688217 | K4: =C4*$I4 -> 31.8091487 | L4: =D4*$I4 -> 31.31705724 | M4: =E4*$I4 -> 31.347813
A5: 2013-04-25 | B5: 40.860001 | C5: 41.009998 | D5: 40.759998 | E5: 40.900002 | F5: 31.447756 | G5: 12200800 | I5: =F5/E5 -> 0.7688937521 | J5: =B5*$I5 -> 31.41699948 | K5: =C5*$I5 -> 31.53233124 | L5: =D5*$I5 -> 31.3401078 | M5: =E5*$I5 -> 31.447756
A6: 2013-04-26 | B6: 40.799999 | C6: 41.009998 | D6: 40.799999 | E6: 40.889999 | F6: 31.440079 | G6: 9481800 | I6: =F6/E6 -> 0.7688941005 | J6: =B6*$I6 -> 31.37087853 | K6: =C6*$I6 -> 31.53234552 | L6: =D6*$I6 -> 31.37087853 | M6: =E6*$I6 -> 31.440079
A7: 2013-04-29 | B7: 41.009998 | C7: 41.07 | D7: 40.860001 | E7: 41.02 | F7: 31.54003 | G7: 6696000 | I7: =F7/E7 -> 0.7688939542 | J7: =B7*$I7 -> 31.53233952 | K7: =C7*$I7 -> 31.5784747 | L7: =D7*$I7 -> 31.41700774 | M7: =E7*$I7 -> 31.54003
A8: 2013-04-30 | B8: 40.98 | C8: 41.029999 | D8: 40.77 | E8: 40.939999 | F8: 31.478527 | G8: 11354900 | I8: =F8/E8 -> 0.768894181 | J8: =B8*$I8 -> 31.50928354 | K8: =C8*$I8 -> 31.54772748 | L8: =D8*$I8 -> 31.34781576 | M8: =E8*$I8 -> 31.478527
A9: 2013-05-01 | B9: 40.889999 | C9: 41.200001 | D9: 40.84 | E9: 40.900002 | F9: 31.447756 | G9: 7556600 | I9: =F9/E9 -> 0.7688937521 | J9: =B9*$I9 -> 31.44006476 | K9: =C9*$I9 -> 31.67842336 | L9: =D9*$I9 -> 31.40162084 | M9: =E9*$I9 -> 31.447756
A10: 2013-05-02 | B10: 40.91 | C10: 41.189999 | D10: 40.77 | E10: 41.049999 | F10: 31.563108 | G10: 9194000 | I10: =F10/E10 -> 0.7688942453 | J10: =B10*$I10 -> 31.45546357 | K10: =C10*$I10 -> 31.67075319 | L10: =D10*$I10 -> 31.34781838 | M10: =E10*$I10 -> 31.563108
A11: 2013-05-03 | B11: 41.27 | C11: 41.369999 | D11: 41.099998 | E11: 41.23 | F11: 31.701498 | G11: 12843400 | I11: =F11/E11 -> 0.7688939607 | J11: =B11*$I11 -> 31.73225376 | K11: =C11*$I11 -> 31.80914239 | L11: =D11*$I11 -> 31.60154025 | M11: =E11*$I11 -> 31.701498
A12: 2013-05-06 | B12: 41.200001 | C12: 41.200001 | D12: 40.880001 | E12: 40.93 | F12: 31.470827 | G12: 14530800 | I12: =F12/E12 -> 0.768893892 | J12: =B12*$I12 -> 31.67842912 | K12: =C12*$I12 -> 31.67842912 | L12: =D12*$I12 -> 31.43238307 | M12: =E12*$I12 -> 31.470827
A13: 2013-05-07 | B13: 41.009998 | C13: 41.25 | D13: 40.939999 | E13: 41.240002 | F13: 31.7092 | G13: 8152200 | I13: =F13/E13 -> 0.7688942401 | J13: =B13*$I13 -> 31.53235125 | K13: =C13*$I13 -> 31.7168874 | L13: =D13*$I13 -> 31.47852942 | M13: =E13*$I13 -> 31.7092
A14: 2013-05-08 | B14: 41.23 | C14: 41.299999 | D14: 41.139999 | E14: 41.290001 | F14: 31.747627 | G14: 6623300 | I14: =F14/E14 -> 0.7688938298 | J14: =B14*$I14 -> 31.7014926 | K14: =C14*$I14 -> 31.7553144 | L14: =D14*$I14 -> 31.63229139 | M14: =E14*$I14 -> 31.747627
A15: 2013-05-09 | B15: 41.259998 | C15: 41.349998 | D15: 40.900002 | E15: 41 | F15: 31.524645 | G15: 12872500 | I15: =F15/E15 -> 0.7688937805 | J15: =B15*$I15 -> 31.72455585 | K15: =C15*$I15 -> 31.79375629 | L15: =D15*$I15 -> 31.44775716 | M15: =E15*$I15 -> 31.524645
A16: 2013-05-10 | B16: 40.919998 | C16: 41.189999 | D16: 40.919998 | E16: 41.16 | F16: 31.647684 | G16: 8304700 | I16: =F16/E16 -> 0.7688941691 | J16: =B16*$I16 -> 31.46314786 | K16: =C16*$I16 -> 31.67075006 | L16: =D16*$I16 -> 31.46314786 | M16: =E16*$I16 -> 31.647684
A17: 2013-05-13 | B17: 41.119999 | C17: 41.380001 | D17: 41.049999 | E17: 41.23 | F17: 31.701498 | G17: 7821600 | I17: =F17/E17 -> 0.7688939607 | J17: =B17*$I17 -> 31.6169189 | K17: =C17*$I17 -> 31.81683286 | L17: =D17*$I17 -> 31.56309632 | M17: =E17*$I17 -> 31.701498
A18: 2013-05-14 | B18: 41.209999 | C18: 41.73 | D18: 41.209999 | E18: 41.720001 | F18: 32.078259 | G18: 7373100 | I18: =F18/E18 -> 0.7688940132 | J18: =B18*$I18 -> 31.68612152 | K18: =C18*$I18 -> 32.08594717 | L18: =D18*$I18 -> 31.68612152 | M18: =E18*$I18 -> 32.078259
A19: 2013-05-15 | B19: 41.700001 | C19: 42.200001 | D19: 41.66 | E19: 42.130001 | F19: 32.393509 | G19: 11728700 | I19: =F19/E19 -> 0.7688940952 | J19: =B19*$I19 -> 32.06288454 | K19: =C19*$I19 -> 32.44733159 | L19: =D19*$I19 -> 32.03212801 | M19: =E19*$I19 -> 32.393509
A20: 2013-05-16 | B20: 42.029999 | C20: 42.110001 | D20: 41.810001 | E20: 41.880001 | F20: 32.201279 | G20: 9313100 | I20: =F20/E20 -> 0.7688939406 | J20: =B20*$I20 -> 32.31661155 | K20: =C20*$I20 -> 32.37812461 | L20: =D20*$I20 -> 32.14745642 | M20: =E20*$I20 -> 32.201279
A21: 2013-05-17 | B21: 41.889999 | C21: 41.970001 | D21: 41.639999 | E21: 41.939999 | F21: 32.247417 | G21: 9368100 | I21: =F21/E21 -> 0.7688940813 | J21: =B21*$I21 -> 32.2089723 | K21: =C21*$I21 -> 32.27048536 | L21: =D21*$I21 -> 32.01674878 | M21: =E21*$I21 -> 32.247417
A22: 2013-05-20 | B22: 41.91 | C22: 41.950001 | D22: 41.48 | E22: 41.509998 | F22: 31.916786 | G22: 9866600 | I22: =F22/E22 -> 0.7688939421 | J22: =B22*$I22 -> 32.22434511 | K22: =C22*$I22 -> 32.25510164 | L22: =D22*$I22 -> 31.89372072 | M22: =E22*$I22 -> 31.916786
A23: 2013-05-21 | B23: 41.630001 | C23: 41.669998 | D23: 41.27 | E23: 41.549999 | F23: 31.947536 | G23: 10408400 | I23: =F23/E23 -> 0.7688937851 | J23: =B23*$I23 -> 32.00904904 | K23: =C23*$I23 -> 32.03980249 | L23: =D23*$I23 -> 31.73224651 | M23: =E23*$I23 -> 31.947536
A24: 2013-05-22 | B24: 41.580002 | C24: 42.02 | D24: 41.34 | E24: 41.48 | F24: 31.893713 | G24: 16899000 | I24: =F24/E24 -> 0.768893756 | J24: =B24*$I24 -> 31.97060391 | K24: =C24*$I24 -> 32.30891563 | L24: =D24*$I24 -> 31.78606787 | M24: =E24*$I24 -> 31.893713
A25: 2013-05-23 | B25: 41.139999 | C25: 41.450001 | D25: 41.049999 | E25: 41.310001 | F25: 31.763 | G25: 12831900 | I25: =F25/E25 -> 0.7688937117 | J25: =B25*$I25 -> 31.63228653 | K25: =C25*$I25 -> 31.87064512 | L25: =D25*$I25 -> 31.5630861 | M25: =E25*$I25 -> 31.763
A26: 2013-05-24 | B26: 41.32 | C26: 41.720001 | D26: 41.32 | E26: 41.700001 | F26: 32.062893 | G26: 16015800 | I26: =F26/E26 -> 0.7688942981 | J26: =B26*$I26 -> 31.7707124 | K26: =C26*$I26 -> 32.07827089 | L26: =D26*$I26 -> 31.7707124 | M26: =E26*$I26 -> 32.062893
A27: 2013-05-28 | B27: 42.060001 | C27: 42.189999 | D27: 41.639999 | E27: 41.77 | F27: 32.116699 | G27: 15727400 | I27: =F27/E27 -> 0.7688939191 | J27: =B27*$I27 -> 32.33967901 | K27: =C27*$I27 -> 32.43963368 | L27: =D27*$I27 -> 32.01674202 | M27: =E27*$I27 -> 32.116699
A28: 2013-05-29 | B28: 41.529999 | C28: 41.57 | D28: 40.889999 | E28: 40.970001 | F28: 31.50157 | G28: 21414900 | I28: =F28/E28 -> 0.7688935619 | J28: =B28*$I28 -> 31.93214886 | K28: =C28*$I28 -> 31.96290537 | L28: =D28*$I28 -> 31.44005698 | M28: =E28*$I28 -> 31.50157
A29: 2013-05-30 | B29: 41.02 | C29: 41.16 | D29: 40.790001 | E29: 40.810001 | F29: 31.378571 | G29: 15949200 | I29: =F29/E29 -> 0.7688941493 | J29: =B29*$I29 -> 31.540038 | K29: =C29*$I29 -> 31.64768318 | L29: =D29*$I29 -> 31.36319312 | M29: =E29*$I29 -> 31.378571
A30: 2013-05-31 | B30: 40.720001 | C30: 40.720001 | D30: 40.029999 | E30: 40.049999 | F30: 30.794199 | G30: 33824800 | I30: =F30/E30 -> 0.7688938769 | J30: =B30*$I30 -> 31.30935944 | K30: =C30*$I30 -> 31.30935944 | L30: =D30*$I30 -> 30.77882112 | M30: =E30*$I30 -> 30.794199
A31: 2013-06-03 | B31: 40.150002 | C31: 40.5 | D31: 39.68 | E31: 40.490002 | F31: 31.132509 | G31: 39020500 | I31: =F31/E31 -> 0.7688937383 | J31: =B31*$I31 -> 30.87108513 | K31: =C31*$I31 -> 31.1401964 | L31: =D31*$I31 -> 30.50970353 | M31: =E31*$I31 -> 31.132509 | O31: =AVERAGE(M2:M31) -> 31.68868297
A32: 2013-06-04 | B32: 40.639999 | C32: 40.779999 | D32: 40.209999 | E32: 40.5 | F32: 31.140198 | G32: 12962800 | I32: =F32/E32 -> 0.7688937778 | J32: =B32*$I32 -> 31.24784236 | K32: =C32*$I32 -> 31.35548749 | L32: =D32*$I32 -> 30.91721804 | M32: =E32*$I32 -> 31.140198 | O32: =AVERAGE(M3:M32) -> 31.67304843
A33: 2013-06-05 | B33: 40.380001 | C33: 40.419998 | D33: 40 | E33: 40.009998 | F33: 30.763453 | G33: 17077900 | I33: =F33/E33 -> 0.7688941399 | J33: =B33*$I33 -> 31.04794614 | K33: =C33*$I33 -> 31.0786996 | L33: =D33*$I33 -> 30.7557656 | M33: =E33*$I33 -> 30.763453 | O33: 31.63665463
A34: 2013-06-06 | B34: 39.990002 | C34: 40.189999 | D34: 39.700001 | E34: 40.18 | F34: 30.894161 | G34: 12352700 | I34: =F34/E34 -> 0.768894002 | J34: =B34*$I34 -> 30.74807268 | K34: =C34*$I34 -> 30.90184917 | L34: =D34*$I34 -> 30.52509265 | M34: =E34*$I34 -> 30.894161 | O34: 31.6215329
A35: 2013-06-07 | B35: 40.389999 | C35: 40.849998 | D35: 40.389999 | E35: 40.68 | F35: 31.278614 | G35: 18700800 | I35: =F35/E35 -> 0.7688941495 | J35: =B35*$I35 -> 31.05563393 | K35: =C35*$I35 -> 31.40932447 | L35: =D35*$I35 -> 31.05563393 | M35: =E35*$I35 -> 31.278614 | O35: 31.61589483
A36: 2013-06-10 | B36: 40.849998 | C36: 40.849998 | D36: 40.490002 | E36: 40.68 | F36: 31.278614 | G36: 11190300 | I36: =F36/E36 -> 0.7688941495 | J36: =B36*$I36 -> 31.40932447 | K36: =C36*$I36 -> 31.40932447 | L36: =D36*$I36 -> 31.13252565 | M36: =E36*$I36 -> 31.278614 | O36: 31.61051267
A37: 2013-06-11 | B37: 40.450001 | C37: 40.860001 | D37: 40.32 | E37: 40.580002 | F37: 31.201727 | G37: 20334000 | I37: =F37/E37 -> 0.7688941711 | J37: =B37*$I37 -> 31.10176999 | K37: =C37*$I37 -> 31.4170166 | L37: =D37*$I37 -> 31.00181298 | M37: =E37*$I37 -> 31.201727 | O37: 31.5992359
A38: 2013-06-12 | B38: 40.73 | C38: 40.900002 | D38: 40.380001 | E38: 40.380001 | F38: 31.047943 | G38: 14908400 | I38: =F38/E38 -> 0.7688940622 | J38: =B38*$I38 -> 31.31705515 | K38: =C38*$I38 -> 31.44776868 | L38: =D38*$I38 -> 31.047943 | M38: =E38*$I38 -> 31.047943 | O38: 31.5848831
A39: 2013-06-13 | B39: 40.470001 | C39: 41.880001 | D39: 40.220001 | E39: 40.799999 | F39: 31.370874 | G39: 13048700 | I39: =F39/E39 -> 0.7688939894 | J39: =B39*$I39 -> 31.11714052 | K39: =C39*$I39 -> 32.20128105 | L39: =D39*$I39 -> 30.92491702 | M39: =E39*$I39 -> 31.370874 | O39: 31.58232037
A40: 2013-06-14 | B40: 40.73 | C40: 41.029999 | D40: 40.59 | E40: 40.700001 | F40: 31.293985 | G40: 8453300 | I40: =F40/E40 -> 0.7688939615 | J40: =B40*$I40 -> 31.31705105 | K40: =C40*$I40 -> 31.54771847 | L40: =D40*$I40 -> 31.2094059 | M40: =E40*$I40 -> 31.293985 | O40: 31.5733496
A41: 2013-06-17 | B41: 40.830002 | C41: 41.23 | D41: 40.779999 | E41: 41.060001 | F41: 31.57081 | G41: 9877200 | I41: =F41/E41 -> 0.7688945258 | J41: =B41*$I41 -> 31.39396503 | K41: =C41*$I41 -> 31.7015213 | L41: =D41*$I41 -> 31.35551799 | M41: =E41*$I41 -> 31.57081 | O41: 31.56899333
A42: 2013-06-18 | B42: 41.060001 | C42: 41.259998 | D42: 40.93 | E42: 41.209999 | F42: 31.686117 | G42: 8441200 | I42: =F42/E42 -> 0.7688939036 | J42: =B42*$I42 -> 31.57078445 | K42: =C42*$I42 -> 31.72456093 | L42: =D42*$I42 -> 31.47082748 | M42: =E42*$I42 -> 31.686117 | O42: 31.57616967
A43: 2013-06-19 | B43: 41.209999 | C43: 41.299999 | D43: 40.389999 | E43: 40.389999 | F43: 31.055634 | G43: 25795200 | I43: =F43/E43 -> 0.7688941512 | J43: =B43*$I43 -> 31.6861272 | K43: =C43*$I43 -> 31.75532768 | L43: =D43*$I43 -> 31.055634 | M43: =E43*$I43 -> 31.055634 | O43: 31.55438413
A44: 2013-06-20 | B44: 40.049999 | C44: 40.279999 | D44: 39.099998 | E44: 39.169998 | F44: 30.117569 | G44: 32296500 | I44: =F44/E44 -> 0.76889381 | J44: =B44*$I44 -> 30.79419632 | K44: =C44*$I44 -> 30.9710419 | L44: =D44*$I44 -> 30.06374643 | M44: =E44*$I44 -> 30.117569 | O44: 31.50004887
A45: 2013-06-21 | B45: 39.209999 | C45: 39.630001 | D45: 39.040001 | E45: 39.43 | F45: 30.51536 | G45: 22743500 | I45: =F45/E45 -> 0.7739122496 | J45: =B45*$I45 -> 30.34509853 | K45: =C45*$I45 -> 30.67014322 | L45: =D45*$I45 -> 30.213535 | M45: =E45*$I45 -> 30.51536 | O45: 31.46640603
A46: 2013-06-24 | B46: 39.150002 | C46: 39.650002 | D46: 38.869999 | E46: 39.27 | F46: 30.391542 | G46: 24973100 | I46: =F46/E46 -> 0.7739124523 | J46: =B46*$I46 -> 30.29867405 | K46: =C46*$I46 -> 30.68563028 | L46: =D46*$I46 -> 30.08197625 | M46: =E46*$I46 -> 30.391542 | O46: 31.42453463
A47: 2013-06-25 | B47: 39.439999 | C47: 39.48 | D47: 39.119999 | E47: 39.330002 | F47: 30.437981 | G47: 13004400 | I47: =F47/E47 -> 0.773912521 | J47: =B47*$I47 -> 30.52310906 | K47: =C47*$I47 -> 30.55406633 | L47: =D47*$I47 -> 30.27545705 | M47: =E47*$I47 -> 30.437981 | O47: 31.3824174
A48: 2013-06-26 | B48: 39.57 | C48: 39.889999 | D48: 39.57 | E48: 39.740002 | F48: 30.755276 | G48: 18133100 | I48: =F48/E48 -> 0.7739122912 | J48: =B48*$I48 -> 30.62370936 | K48: =C48*$I48 -> 30.87136052 | L48: =D48*$I48 -> 30.62370936 | M48: =E48*$I48 -> 30.755276 | O48: 31.33831797
A49: 2013-06-27 | B49: 39.990002 | C49: 40.290001 | D49: 39.900002 | E49: 39.919998 | F49: 30.894577 | G49: 10033600 | I49: =F49/E49 -> 0.7739122883 | J49: =B49*$I49 -> 30.94875396 | K49: =C49*$I49 -> 31.18092687 | L49: =D49*$I49 -> 30.87910185 | M49: =E49*$I49 -> 30.894577 | O49: 31.28835357
A50: 2013-06-28 | B50: 39.84 | C50: 40.040001 | D50: 39.639999 | E50: 39.669998 | F50: 30.701109 | G50: 11033300 | I50: =F50/E50 -> 0.7739125422 | J50: =B50*$I50 -> 30.83267568 | K50: =C50*$I50 -> 30.98745896 | L50: =D50*$I50 -> 30.6778924 | M50: =E50*$I50 -> 30.701109 | O50: 31.2383479
A51: 2013-07-01 | B51: 39.91 | C51: 40.25 | D51: 39.48 | E51: 39.959999 | F51: 30.925543 | G51: 11795300 | I51: =F51/E51 -> 0.7739125069 | J51: =B51*$I51 -> 30.88684815 | K51: =C51*$I51 -> 31.1499784 | L51: =D51*$I51 -> 30.55406577 | M51: =E51*$I51 -> 30.925543 | O51: 31.19428543
A52: 2013-07-02 | B52: 39.939999 | C52: 40.23 | D52: 39.869999 | E52: 40.009998 | F52: 30.964243 | G52: 5441200 | I52: =F52/E52 -> 0.7739126355 | J52: =B52*$I52 -> 30.91006989 | K52: =C52*$I52 -> 31.13450533 | L52: =D52*$I52 -> 30.855896 | M52: =E52*$I52 -> 30.964243 | O52: 31.162534
A53: 2013-07-03 | B53: 39.880001 | C53: 40.02 | D53: 39.650002 | E53: 39.93 | F53: 30.902323 | G53: 3985400 | I53: =F53/E53 -> 0.7739124217 | J53: =B53*$I53 -> 30.86362815 | K53: =C53*$I53 -> 30.97197512 | L53: =D53*$I53 -> 30.68562907 | M53: =E53*$I53 -> 30.902323 | O53: 31.12769357
A54: 2013-07-05 | B54: 40.02 | C54: 40.200001 | D54: 39.650002 | E54: 40.029999 | F54: 30.979721 | G54: 10602600 | I54: =F54/E54 -> 0.7739126099 | J54: =B54*$I54 -> 30.97198265 | K54: =C54*$I54 -> 31.11128769 | L54: =D54*$I54 -> 30.68563653 | M54: =E54*$I54 -> 30.979721 | O54: 31.09722717
A55: 2013-07-08 | B55: 40.080002 | C55: 40.470001 | D55: 40.080002 | E55: 40.43 | F55: 31.289278 | G55: 7611700 | I55: =F55/E55 -> 0.7739123918 | J55: =B55*$I55 -> 31.01841021 | K55: =C55*$I55 -> 31.32023527 | L55: =D55*$I55 -> 31.01841021 | M55: =E55*$I55 -> 31.289278 | O55: 31.08143643
A56: 2013-07-09 | B56: 40.700001 | C56: 40.82 | D56: 40.630001 | E56: 40.73 | F56: 31.521458 | G56: 8937800 | I56: =F56/E56 -> 0.773912546 | J56: =B56*$I56 -> 31.4982414 | K56: =C56*$I56 -> 31.59111013 | L56: =D56*$I56 -> 31.44406752 | M56: =E56*$I56 -> 31.521458 | O56: 31.0633886
A57: 2013-07-10 | B57: 40.73 | C57: 40.959999 | D57: 40.669998 | E57: 40.779999 | F57: 31.560152 | G57: 7701700 | I57: =F57/E57 -> 0.7739125251 | J57: =B57*$I57 -> 31.52145715 | K57: =C57*$I57 -> 31.69945625 | L57: =D57*$I57 -> 31.47502085 | M57: =E57*$I57 -> 31.560152 | O57: 31.04483703
A58: 2013-07-11 | B58: 41.209999 | C58: 41.48 | D58: 41.169998 | E58: 41.419998 | F58: 32.055462 | G58: 12282200 | I58: =F58/E58 -> 0.7739126883 | J58: =B58*$I58 -> 31.89294111 | K58: =C58*$I58 -> 32.10189831 | L58: =D58*$I58 -> 31.86198383 | M58: =E58*$I58 -> 32.055462 | O58: 31.0633001
A59: 2013-07-12 | B59: 41.349998 | C59: 41.470001 | D59: 41.279999 | E59: 41.43 | F59: 32.063183 | G59: 5566100 | I59: =F59/E59 -> 0.7739122134 | J59: =B59*$I59 -> 32.00126848 | K59: =C59*$I59 -> 32.09414026 | L59: =D59*$I59 -> 31.94709539 | M59: =E59*$I59 -> 32.063183 | O59: 31.0861205
A60: 2013-07-15 | B60: 41.5 | C60: 41.5 | D60: 41.389999 | E60: 41.490002 | F60: 32.109627 | G60: 7076000 | I60: =F60/E60 -> 0.7739123994 | J60: =B60*$I60 -> 32.11736458 | K60: =C60*$I60 -> 32.11736458 | L60: =D60*$I60 -> 32.03223344 | M60: =E60*$I60 -> 32.109627 | O60: 31.1299681
A61: 2013-07-16 | B61: 41.130001 | C61: 41.419998 | D61: 41.130001 | E61: 41.34 | F61: 31.993544 | G61: 10156700 | I61: =F61/E61 -> 0.7739125302 | J61: =B61*$I61 -> 31.83102314 | K61: =C61*$I61 -> 32.05545545 | L61: =D61*$I61 -> 31.83102314 | M61: =E61*$I61 -> 31.993544 | O61: 31.15866927
A62: 2013-07-17 | B62: 41.41 | C62: 41.540001 | D62: 41.369999 | E62: 41.419998 | F62: 32.055462 | G62: 9365500 | I62: =F62/E62 -> 0.7739126883 | J62: =B62*$I62 -> 32.04772442 | K62: =C62*$I62 -> 32.14833384 | L62: =D62*$I62 -> 32.01676714 | M62: =E62*$I62 -> 32.055462 | O62: 31.18917807
A63: 2013-07-18 | B63: 41.41 | C63: 41.709999 | D63: 41.349998 | E63: 41.560001 | F63: 32.163803 | G63: 7136100 | I63: =F63/E63 -> 0.7739124693 | J63: =B63*$I63 -> 32.04771536 | K63: =C63*$I63 -> 32.27988832 | L63: =D63*$I63 -> 32.00127906 | M63: =E63*$I63 -> 32.163803 | O63: 31.2358564
A64: 2013-07-19 | B64: 41.57 | C64: 41.799999 | D64: 41.52 | E64: 41.799999 | F64: 32.349537 | G64: 8352700 | I64: =F64/E64 -> 0.7739123869 | J64: =B64*$I64 -> 32.17153792 | K64: =C64*$I64 -> 32.349537 | L64: =D64*$I64 -> 32.13284231 | M64: =E64*$I64 -> 32.349537 | O64: 31.28436893
A65: 2013-07-22 | B65: 41.84 | C65: 41.849998 | D65: 41.650002 | E65: 41.709999 | F65: 32.279888 | G65: 7887600 | I65: =F65/E65 -> 0.7739124616 | J65: =B65*$I65 -> 32.38049739 | K65: =C65*$I65 -> 32.38823497 | L65: =D65*$I65 -> 32.23345557 | M65: =E65*$I65 -> 32.279888 | O65: 31.31774473
A66: 2013-07-23 | B66: 41.75 | C66: 41.759998 | D66: 41.580002 | E66: 41.630001 | F66: 32.217979 | G66: 6122500 | I66: =F66/E66 -> 0.7739125204 | J66: =B66*$I66 -> 32.31084773 | K66: =C66*$I66 -> 32.31858531 | L66: =D66*$I66 -> 32.17928415 | M66: =E66*$I66 -> 32.217979 | O66: 31.3490569
A67: 2013-07-24 | B67: 41.740002 | C67: 41.740002 | D67: 41.27 | E67: 41.360001 | F67: 32.009026 | G67: 8262900 | I67: =F67/E67 -> 0.7739126022 | J67: =B67*$I67 -> 32.30311356 | K67: =C67*$I67 -> 32.30311356 | L67: =D67*$I67 -> 31.93937309 | M67: =E67*$I67 -> 32.009026 | O67: 31.37596687
A68: 2013-07-25 | B68: 41.279999 | C68: 41.619999 | D68: 41.25 | E68: 41.580002 | F68: 32.179276 | G68: 4720600 | I68: =F68/E68 -> 0.7739123245 | J68: =B68*$I68 -> 31.94709998 | K68: =C68*$I68 -> 32.21023017 | L68: =D68*$I68 -> 31.92388339 | M68: =E68*$I68 -> 32.179276 | O68: 31.41367797
A69: 2013-07-26 | B69: 41.419998 | C69: 41.549999 | D69: 41.02 | E69: 41.529999 | F69: 32.140579 | G69: 6073200 | I69: =F69/E69 -> 0.7739123471 | J69: =B69*$I69 -> 32.05544787 | K69: =C69*$I69 -> 32.15605725 | L69: =D69*$I69 -> 31.74588448 | M69: =E69*$I69 -> 32.140579 | O69: 31.4393348
A70: 2013-07-29 | B70: 41.470001 | C70: 41.540001 | D70: 41.34 | E70: 41.439999 | F70: 32.070934 | G70: 7493000 | I70: =F70/E70 -> 0.7739125187 | J70: =B70*$I70 -> 32.09415292 | K70: =C70*$I70 -> 32.1483268 | L70: =D70*$I70 -> 31.99354352 | M70: =E70*$I70 -> 32.070934 | O70: 31.4652331
A71: 2013-07-30 | B71: 41.509998 | C71: 41.68 | D71: 41.32 | E71: 41.400002 | F71: 32.039982 | G71: 5733600 | I71: =F71/E71 -> 0.7739125713 | J71: =B71*$I71 -> 32.12510929 | K71: =C71*$I71 -> 32.25667597 | L71: =D71*$I71 -> 31.97806745 | M71: =E71*$I71 -> 32.039982 | O71: 31.48087217
A72: 2013-07-31 | B72: 41.41 | C72: 41.610001 | D72: 41.34 | E72: 41.389999 | F72: 32.03223 | G72: 6735500 | I72: =F72/E72 -> 0.7739123164 | J72: =B72*$I72 -> 32.04770902 | K72: =C72*$I72 -> 32.20249226 | L72: =D72*$I72 -> 31.99353516 | M72: =E72*$I72 -> 32.03223 | O72: 31.49240927
A73: 2013-08-01 | B73: 41.599998 | C73: 41.799999 | D73: 41.599998 | E73: 41.73 | F73: 32.295361 | G73: 6207700 | I73: =F73/E73 -> 0.7739123173 | J73: =B73*$I73 -> 32.19475085 | K73: =C73*$I73 -> 32.34953409 | L73: =D73*$I73 -> 32.19475085 | M73: =E73*$I73 -> 32.295361 | O73: 31.5337335
A74: 2013-08-02 | B74: 41.610001 | C74: 41.77 | D74: 41.439999 | E74: 41.75 | F74: 32.310844 | G74: 3956400 | I74: =F74/E74 -> 0.7739124311 | J74: =B74*$I74 -> 32.20249703 | K74: =C74*$I74 -> 32.32632225 | L74: =D74*$I74 -> 32.07093037 | M74: =E74*$I74 -> 32.310844 | O74: 31.60684267
A75: 2013-08-05 | B75: 41.740002 | C75: 41.849998 | D75: 41.650002 | E75: 41.779999 | F75: 32.334049 | G75: 5010300 | I75: =F75/E75 -> 0.7739121535 | J75: =B75*$I75 -> 32.30309484 | K75: =C75*$I75 -> 32.38822208 | L75: =D75*$I75 -> 32.23344274 | M75: =E75*$I75 -> 32.334049 | O75: 31.66746563
A76: 2013-08-06 | B76: 41.759998 | C76: 41.790001 | D76: 41.580002 | E76: 41.73 | F76: 32.295361 | G76: 3148600 | I76: =F76/E76 -> 0.7739123173 | J76: =B76*$I76 -> 32.31857682 | K76: =C76*$I76 -> 32.34179651 | L76: =D76*$I76 -> 32.1792757 | M76: =E76*$I76 -> 32.295361 | O76: 31.73092627
A77: 2013-08-07 | B77: 41.59 | C77: 41.630001 | D77: 41.459999 | E77: 41.529999 | F77: 32.140579 | G77: 5987100 | I77: =F77/E77 -> 0.7739123471 | J77: =B77*$I77 -> 32.18701451 | K77: =C77*$I77 -> 32.21797178 | L77: =D77*$I77 -> 32.08640514 | M77: =E77*$I77 -> 32.140579 | O77: 31.78767953
A78: 2013-08-08 | B78: 41.650002 | C78: 41.799999 | D78: 41.52 | E78: 41.75 | F78: 32.310844 | G78: 2915000 | I78: =F78/E78 -> 0.7739124311 | J78: =B78*$I78 -> 32.2334543 | K78: =C78*$I78 -> 32.34953885 | L78: =D78*$I78 -> 32.13284414 | M78: =E78*$I78 -> 32.310844 | O78: 31.8395318
A79: 2013-08-09 | B79: 41.669998 | C79: 41.73 | D79: 41.459999 | E79: 41.57 | F79: 32.171551 | G79: 4266300 | I79: =F79/E79 -> 0.7739127015 | J79: =B79*$I79 -> 32.24894072 | K79: =C79*$I79 -> 32.29537703 | L79: =D79*$I79 -> 32.08641983 | M79: =E79*$I79 -> 32.171551 | O79: 31.8820976
A80: 2013-08-12 | B80: 41.41 | C80: 41.5 | D80: 41.259998 | E80: 41.450001 | F80: 32.078663 | G80: 4208600 | I80: =F80/E80 -> 0.7739122371 | J80: =B80*$I80 -> 32.04770574 | K80: =C80*$I80 -> 32.11735784 | L80: =D80*$I80 -> 31.93161735 | M80: =E80*$I80 -> 32.078663 | O80: 31.92801607
A81: 2013-08-13 | B81: 41.549999 | C81: 41.57 | D81: 41.27 | E81: 41.48 | F81: 32.101879 | G81: 4178500 | I81: =F81/E81 -> 0.7739122228 | J81: =B81*$I81 -> 32.15605208 | K81: =C81*$I81 -> 32.1715311 | L81: =D81*$I81 -> 31.93935743 | M81: =E81*$I81 -> 32.101879 | O81: 31.96722727
A82: 2013-08-14 | B82: 41.459999 | C82: 41.5 | D82: 41.169998 | E82: 41.189999 | F82: 31.877455 | G82: 4871500 | I82: =F82/E82 -> 0.7739124975 | J82: =B82*$I82 -> 32.08641137 | K82: =C82*$I82 -> 32.11736865 | L82: =D82*$I82 -> 31.86197598 | M82: =E82*$I82 -> 31.877455 | O82: 31.99766767
A83: 2013-08-15 | B83: 40.880001 | C83: 40.889999 | D83: 40.5 | E83: 40.529999 | F83: 31.366669 | G83: 8854300 | I83: =F83/E83 -> 0.773912405 | J83: =B83*$I83 -> 31.63753989 | K83: =C83*$I83 -> 31.64527747 | L83: =D83*$I83 -> 31.3434524 | M83: =E83*$I83 -> 31.366669 | O83: 32.01314587
A84: 2013-08-16 | B84: 40.459999 | C84: 40.529999 | D84: 40.130001 | E84: 40.290001 | F84: 31.180933 | G84: 8607300 | I84: =F84/E84 -> 0.7739124405 | J84: =B84*$I84 -> 31.31249657 | K84: =C84*$I84 -> 31.36667044 | L84: =D84*$I84 -> 31.05710701 | M84: =E84*$I84 -> 31.180933 | O84: 32.01985293
A85: 2013-08-19 | B85: 40.27 | C85: 40.27 | D85: 40.099998 | E85: 40.110001 | F85: 31.04163 | G85: 5126600 | I85: =F85/E85 -> 0.7739124714 | J85: =B85*$I85 -> 31.16545522 | K85: =C85*$I85 -> 31.16545522 | L85: =D85*$I85 -> 31.03388855 | M85: =E85*$I85 -> 31.04163 | O85: 32.011598
A86: 2013-08-20 | B86: 40.189999 | C86: 40.349998 | D86: 40.060001 | E86: 40.119999 | F86: 31.049372 | G86: 7174100 | I86: =F86/E86 -> 0.7739125816 | J86: =B86*$I86 -> 31.10354588 | K86: =C86*$I86 -> 31.22737112 | L86: =D86*$I86 -> 31.00293879 | M86: =E86*$I86 -> 31.049372 | O86: 31.9958618
A87: 2013-08-21 | B87: 40.009998 | C87: 40.169998 | D87: 39.77 | E87: 39.810001 | F87: 30.809446 | G87: 7899700 | I87: =F87/E87 -> 0.7739122137 | J87: =B87*$I87 -> 30.96422612 | K87: =C87*$I87 -> 31.08805208 | L87: =D87*$I87 -> 30.77848874 | M87: =E87*$I87 -> 30.809446 | O87: 31.97083827
A88: 2013-08-22 | B88: 39.82 | C88: 40.07 | D88: 39.799999 | E88: 39.98 | F88: 30.941023 | G88: 5501900 | I88: =F88/E88 -> 0.7739125313 | J88: =B88*$I88 -> 30.81719699 | K88: =C88*$I88 -> 31.01067513 | L88: =D88*$I88 -> 30.80171797 | M88: =E88*$I88 -> 30.941023 | O88: 31.9336903
A89: 2013-08-23 | B89: 40.080002 | C89: 40.259998 | D89: 40.009998 | E89: 40.209999 | F89: 31.119022 | G89: 3352900 | I89: =F89/E89 -> 0.7739125286 | J89: =B89*$I89 -> 31.01841569 | K89: =C89*$I89 -> 31.15771685 | L89: =D89*$I89 -> 30.96423872 | M89: =E89*$I89 -> 31.119022 | O89: 31.90221827
A90: 2013-08-26 | B90: 40.220001 | C90: 40.27 | D90: 39.740002 | E90: 39.740002 | F90: 30.755276 | G90: 17412500 | I90: =F90/E90 -> 0.7739122912 | J90: =B90*$I90 -> 31.12675313 | K90: =C90*$I90 -> 31.16544797 | L90: =D90*$I90 -> 30.755276 | M90: =E90*$I90 -> 30.755276 | O90: 31.85707323
A91: 2013-08-27 | B91: 39.439999 | C91: 39.639999 | D91: 39.400002 | E91: 39.529999 | F91: 30.592766 | G91: 11462400 | I91: =F91/E91 -> 0.7739126429 | J91: =B91*$I91 -> 30.52311386 | K91: =C91*$I91 -> 30.67789639 | L91: =D91*$I91 -> 30.49215968 | M91: =E91*$I91 -> 30.592766 | O91: 31.81038063
A92: 2013-08-28 | B92: 39.439999 | C92: 39.450001 | D92: 39.200001 | E92: 39.23 | F92: 30.360579 | G92: 18628600 | I92: =F92/E92 -> 0.7739122865 | J92: =B92*$I92 -> 30.52309981 | K92: =C92*$I92 -> 30.53084048 | L92: =D92*$I92 -> 30.33736241 | M92: =E92*$I92 -> 30.360579 | O92: 31.75388453
A93: 2013-08-29 | B93: 39.080002 | C93: 39.560001 | D93: 39.049999 | E93: 39.389999 | F93: 30.484407 | G93: 7455000 | I93: =F93/E93 -> 0.7739123578 | J93: =B93*$I93 -> 30.24449649 | K93: =C93*$I93 -> 30.61597365 | L93: =D93*$I93 -> 30.2212768 | M93: =E93*$I93 -> 30.484407 | O93: 31.69790467
A94: 2013-08-30 | B94: 39.509998 | C94: 39.580002 | D94: 39.349998 | E94: 39.509998 | F94: 30.577282 | G94: 8672400 | I94: =F94/E94 -> 0.773912517 | J94: =B94*$I94 -> 30.577282 | K94: =C94*$I94 -> 30.63145897 | L94: =D94*$I94 -> 30.453456 | M94: =E94*$I94 -> 30.577282 | O94: 31.6388295
A95: 2013-09-03 | B95: 39.689999 | C95: 39.830002 | D95: 39.400002 | E95: 39.48 | F95: 30.554068 | G95: 15164200 | I95: =F95/E95 -> 0.7739125633 | J95: =B95*$I95 -> 30.71658886 | K95: =C95*$I95 -> 30.82493894 | L95: =D95*$I95 -> 30.49215654 | M95: =E95*$I95 -> 30.554068 | O95: 31.58130217
A96: 2013-09-04 | B96: 39.459999 | C96: 39.830002 | D96: 39.389999 | E96: 39.73 | F96: 30.747541 | G96: 6468800 | I96: =F96/E96 -> 0.7739124339 | J96: =B96*$I96 -> 30.53858387 | K96: =C96*$I96 -> 30.82493379 | L96: =D96*$I96 -> 30.48441 | M96: =E96*$I96 -> 30.747541 | O96: =AVERAGE(M67:M96) -> 31.53228757
A97: 2013-09-05 | B97: 39.790001 | C97: 39.82 | D97: 39.630001 | E97: 39.669998 | F97: 30.701109 | G97: 4525100 | I97: =F97/E97 -> 0.7739125422 | J97: =B97*$I97 -> 30.79398083 | K97: =C97*$I97 -> 30.81719743 | L97: =D97*$I97 -> 30.67015482 | M97: =E97*$I97 -> 30.701109 | O97: 31.48869033
A98: 2013-09-06 | B98: 39.810001 | C98: 39.950001 | D98: 39.389999 | E98: 39.77 | F98: 30.778505 | G98: 6976700 | I98: =F98/E98 -> 0.7739126226 | J98: =B98*$I98 -> 30.80946228 | K98: =C98*$I98 -> 30.91781005 | L98: =D98*$I98 -> 30.48441743 | M98: =E98*$I98 -> 30.778505 | O98: 31.44199797
A99: 2013-09-09 | B99: 39.790001 | C99: 40.09 | D99: 39.779999 | E99: 40.049999 | F99: 30.99519 | G99: 10347600 | I99: =F99/E99 -> 0.7739123789 | J99: =B99*$I99 -> 30.79397433 | K99: =C99*$I99 -> 31.02614727 | L99: =D99*$I99 -> 30.78623366 | M99: =E99*$I99 -> 30.99519 | O99: 31.40381833
A100: 2013-09-10 | B100: 40.16 | C100: 40.240002 | D100: 39.950001 | E100: 40.09 | F100: 31.026154 | G100: 6501800 | I100: =F100/E100 -> 0.7739125468 | J100: =B100*$I100 -> 31.08032788 | K100: =C100*$I100 -> 31.14224243 | L100: =D100*$I100 -> 30.91780702 | M100: =E100*$I100 -> 31.026154 | O100: 31.36899233
A101: 2013-09-11 | B101: 40.009998 | C101: 40.389999 | D101: 40.009998 | E101: 40.380001 | F101: 31.250589 | G101: 6812300 | I101: =F101/E101 -> 0.7739125366 | J101: =B101*$I101 -> 30.96423904 | K101: =C101*$I101 -> 31.25832658 | L101: =D101*$I101 -> 30.96423904 | M101: =E101*$I101 -> 31.250589 | O101: 31.34267923 | P101: =AVERAGE(M2:M101) -> 31.4720741
A102: 2013-09-12 | B102: 40.389999 | C102: 40.509998 | D102: 40.349998 | E102: 40.389999 | F102: 31.258329 | G102: 7002900 | I102: =F102/E102 -> 0.7739125965 | J102: =B102*$I102 -> 31.258329 | K102: =C102*$I102 -> 31.35119774 | L102: =D102*$I102 -> 31.22737172 | M102: =E102*$I102 -> 31.258329 | O102: 31.31688253 | P102: =AVERAGE(M3:M102) -> 31.46856505 | Q102: =IF(AND(O101<=P101,O102>P102),"BUY",IF(AND(O101>=P101,O102<P102),"SELL",0)) -> 0 | R102: =M102 -> 31.258329 | S102: =S101+T102 -> 0 | T102: =IF($Q102="BUY",1,IF($Q102="SELL",-1,0)) -> 0 | U102: =IF(Q102="SELL",(R102-R101)/R101,IF(Q102="BUY",(R101-R102)/R101,0)) -> 0 | W102: Whenever we get a signal we exit the previous position and enter a new position
A103: 2013-09-13 | B103: 40.48 | C103: 40.75 | D103: 40.48 | E103: 40.720001 | F103: 31.513721 | G103: 5063200 | I103: =F103/E103 -> 0.7739125792 | J103: =B103*$I103 -> 31.32798121 | K103: =C103*$I103 -> 31.5369376 | L103: =D103*$I103 -> 31.32798121 | M103: =E103*$I103 -> 31.513721 | O103: 31.29082787 | P103: 31.46514959 | Q103: =IF(AND(O102<=P102,O103>P103),"BUY",IF(AND(O102>=P102,O103<P103),"SELL",0)) -> 0 | R103: =IF(Q103<>0,M103,R102) -> 31.258329 | S103: =S102+T103 -> 0 | T103: 0 | U103: =IF(Q103="SELL",(R103-R102)/R102,IF(Q103="BUY",(R102-R103)/R102,0)) -> 0
A104: 2013-09-16 | B104: 41.060001 | C104: 41.220001 | D104: 41.009998 | E104: 41.09 | F104: 31.80006 | G104: 8178900 | I104: =F104/E104 -> 0.7739123874 | J104: =B104*$I104 -> 31.7768434 | K104: =C104*$I104 -> 31.90066938 | L104: =D104*$I104 -> 31.73814546 | M104: =E104*$I104 -> 31.80006 | O104: 31.27380173 | P104: 31.46967206 | Q104: 0 | R104: =IF(Q104<>0,M104,R103) -> 31.258329 | S104: 0 | T104: 0 | U104: 0
A105: 2013-09-17 | B105: 41.080002 | C105: 41.27 | D105: 41.080002 | E105: 41.23 | F105: 31.908411 | G105: 5344500 | I105: =F105/E105 -> 0.7739124667 | J105: =B105*$I105 -> 31.79232568 | K105: =C105*$I105 -> 31.9393675 | L105: =D105*$I105 -> 31.79232568 | M105: =E105*$I105 -> 31.908411 | O105: 31.2596138 | P105: 31.47427861 | Q105: 0 | R105: 31.258329 | S105: 0 | T105: 0 | U105: 0
A106: 2013-09-18 | B106: 41.200001 | C106: 41.75 | D106: 40.990002 | E106: 41.720001 | F106: 32.287628 | G106: 12763900 | I106: =F106/E106 -> 0.7739124455 | J106: =B106*$I106 -> 31.88519353 | K106: =C106*$I106 -> 32.3108446 | L106: =D106*$I106 -> 31.72267269 | M106: =E106*$I106 -> 32.287628 | O106: 31.25935603 | P106: 31.4827541 | Q106: 0 | R106: 31.258329 | S106: 0 | T106: 0 | U106: 0
A107: 2013-09-19 | B107: 41.790001 | C107: 41.84 | D107: 41.439999 | E107: 41.529999 | F107: 32.140579 | G107: 6148500 | I107: =F107/E107 -> 0.7739123471 | J107: =B107*$I107 -> 32.34179776 | K107: =C107*$I107 -> 32.3804926 | L107: =D107*$I107 -> 32.07092689 | M107: =E107*$I107 -> 32.140579 | O107: 31.25935603 | P107: 31.48875959 | Q107: 0 | R107: 31.258329 | S107: 0 | T107: 0 | U107: 0
A108: 2013-09-20 | B108: 41.259998 | C108: 41.259998 | D108: 40.950001 | E108: 40.98 | F108: 31.915506 | G108: 7279100 | I108: =F108/E108 -> 0.7788068814 | J108: =B108*$I108 -> 32.13357037 | K108: =C108*$I108 -> 32.13357037 | L108: =D108*$I108 -> 31.89214257 | M108: =E108*$I108 -> 31.915506 | O108: 31.2461781 | P108: 31.49312938 | Q108: 0 | R108: 31.258329 | S108: 0 | T108: 0 | U108: 0
A109: 2013-09-23 | B109: 40.939999 | C109: 40.939999 | D109: 40.709999 | E109: 40.799999 | F109: 31.77532 | G109: 5586800 | I109: =F109/E109 -> 0.7788068818 | J109: =B109*$I109 -> 31.88435296 | K109: =C109*$I109 -> 31.88435296 | L109: =D109*$I109 -> 31.70522738 | M109: =E109*$I109 -> 31.77532 | O109: 31.2329704 | P109: 31.49640502 | Q109: 0 | R109: 31.258329 | S109: 0 | T109: 0 | U109: 0
A110: 2013-09-24 | B110: 40.799999 | C110: 40.869999 | D110: 40.549999 | E110: 40.610001 | F110: 31.627354 | G110: 6855000 | I110: =F110/E110 -> 0.7788070234 | J110: =B110*$I110 -> 31.77532578 | K110: =C110*$I110 -> 31.82984227 | L110: =D110*$I110 -> 31.58062402 | M110: =E110*$I110 -> 31.627354 | O110: 31.21792677 | P110: 31.49704748 | Q110: 0 | R110: 31.258329 | S110: 0 | T110: 0 | U110: 0
A111: 2013-09-25 | B111: 40.59 | C111: 40.66 | D111: 40.200001 | E111: 40.27 | F111: 31.36256 | G111: 8234700 | I111: =F111/E111 -> 0.7788070524 | J111: =B111*$I111 -> 31.61177826 | K111: =C111*$I111 -> 31.66629475 | L111: =D111*$I111 -> 31.30804429 | M111: =E111*$I111 -> 31.36256 | O111: 31.1932828 | P111: 31.4936581 | Q111: 0 | R111: 31.258329 | S111: 0 | T111: 0 | U111: 0
A112: 2013-09-26 | B112: 40.32 | C112: 40.48 | D112: 40.25 | E112: 40.48 | F112: 31.526104 | G112: 4560300 | I112: =F112/E112 -> 0.778806917 | J112: =B112*$I112 -> 31.40149489 | K112: =C112*$I112 -> 31.526104 | L112: =D112*$I112 -> 31.34697841 | M112: =E112*$I112 -> 31.526104 | O112: 31.1815711 | P112: 31.49421087 | Q112: 0 | R112: 31.258329 | S112: 0 | T112: 0 | U112: 0
A113: 2013-09-27 | B113: 40.34 | C113: 40.34 | D113: 40.049999 | E113: 40.23 | F113: 31.331396 | G113: 4453400 | I113: =F113/E113 -> 0.7788067611 | J113: =B113*$I113 -> 31.41706474 | K113: =C113*$I113 -> 31.41706474 | L113: =D113*$I113 -> 31.19121 | M113: =E113*$I113 -> 31.331396 | O113: 31.18039533 | P113: 31.49043283 | Q113: 0 | R113: 31.258329 | S113: 0 | T113: 0 | U113: 0
A114: 2013-09-30 | B114: 39.950001 | C114: 40.110001 | D114: 39.73 | E114: 39.799999 | F114: 30.996515 | G114: 8120800 | I114: =F114/E114 -> 0.7788069291 | J114: =B114*$I114 -> 31.1133376 | K114: =C114*$I114 -> 31.23794671 | L114: =D114*$I114 -> 30.94199929 | M114: =E114*$I114 -> 30.996515 | O114: 31.17424807 | P114: 31.48292171 | Q114: 0 | R114: 31.258329 | S114: 0 | T114: 0 | U114: 0
A115: 2013-10-01 | B115: 39.779999 | C115: 40.060001 | D115: 39.740002 | E115: 40.040001 | F115: 31.183418 | G115: 7152300 | I115: =F115/E115 -> 0.7788066239 | J115: =B115*$I115 -> 30.98092672 | K115: =C115*$I115 -> 31.19899413 | L115: =D115*$I115 -> 30.94977679 | M115: =E115*$I115 -> 31.183418 | O115: 31.17897433 | P115: 31.47950944 | Q115: 0 | R115: 31.258329 | S115: 0 | T115: 0 | U115: 0
A116: 2013-10-02 | B116: 39.919998 | C116: 39.959999 | D116: 39.580002 | E116: 39.950001 | F116: 31.113348 | G116: 5827400 | I116: =F116/E116 -> 0.7788071895 | J116: =B116*$I116 -> 31.08998145 | K116: =C116*$I116 -> 31.12113451 | L116: =D116*$I116 -> 30.82519012 | M116: =E116*$I116 -> 31.113348 | O116: 31.18110687 | P116: 31.47416608 | Q116: 0 | R116: 31.258329 | S116: 0 | T116: 0 | U116: 0
A117: 2013-10-03 | B117: 39.889999 | C117: 39.93 | D117: 39.630001 | E117: 39.75 | F117: 30.957569 | G117: 9686800 | I117: =F117/E117 -> 0.7788067673 | J117: =B117*$I117 -> 31.06660117 | K117: =C117*$I117 -> 31.09775422 | L117: =D117*$I117 -> 30.86411297 | M117: =E117*$I117 -> 30.957569 | O117: 31.1860443 | P117: 31.46672679 | Q117: 0 | R117: 31.258329 | S117: 0 | T117: 0 | U117: 0
A118: 2013-10-04 | B118: 39.759998 | C118: 39.959999 | D118: 39.650002 | E118: 39.810001 | F118: 31.004297 | G118: 5713900 | I118: =F118/E118 -> 0.7788067375 | J118: =B118*$I118 -> 30.96535433 | K118: =C118*$I118 -> 31.12111645 | L118: =D118*$I118 -> 30.8796887 | M118: =E118*$I118 -> 31.004297 | O118: 31.18815343 | P118: 31.45598717 | Q118: 0 | R118: 31.258329 | S118: 0 | T118: 0 | U118: 0
A119: 2013-10-07 | B119: 39.580002 | C119: 39.880001 | D119: 39.560001 | E119: 39.68 | F119: 30.903051 | G119: 5438900 | I119: =F119/E119 -> 0.7788067288 | J119: =B119*$I119 -> 30.82517188 | K119: =C119*$I119 -> 31.05881312 | L119: =D119*$I119 -> 30.80959497 | M119: =E119*$I119 -> 30.903051 | O119: 31.1809544 | P119: 31.44108259 | Q119: 0 | R119: 31.258329 | S119: 0 | T119: 0 | U119: 0
A120: 2013-10-08 | B120: 39.75 | C120: 39.939999 | D120: 39.639999 | E120: 39.68 | F120: 30.903051 | G120: 9532300 | I120: =F120/E120 -> 0.7788067288 | J120: =B120*$I120 -> 30.95756747 | K120: =C120*$I120 -> 31.10553997 | L120: =D120*$I120 -> 30.87189795 | M120: =E120*$I120 -> 30.903051 | O120: 31.18588023 | P120: 31.42810031 | Q120: 0 | R120: 31.258329 | S120: 0 | T120: 0 | U120: 0
A121: 2013-10-09 | B121: 39.73 | C121: 39.91 | D121: 39.580002 | E121: 39.709999 | F121: 30.926428 | G121: 8706800 | I121: =F121/E121 -> 0.7788070707 | J121: =B121*$I121 -> 30.94200492 | K121: =C121*$I121 -> 31.08219019 | L121: =D121*$I121 -> 30.82518542 | M121: =E121*$I121 -> 30.926428 | O121: 31.1970023 | P121: 31.41489042 | Q121: 0 | R121: 31.258329 | S121: 0 | T121: 0 | U121: 0
A122: 2013-10-10 | B122: 39.970001 | C122: 40.470001 | D122: 39.970001 | E122: 40.450001 | F122: 31.502752 | G122: 6104900 | I122: =F122/E122 -> 0.7788071995 | J122: =B122*$I122 -> 31.12892454 | K122: =C122*$I122 -> 31.51832814 | L122: =D122*$I122 -> 31.12892454 | M122: =E122*$I122 -> 31.502752 | O122: 31.23507473 | P122: 31.41075008 | Q122: 0 | R122: 31.258329 | S122: 0 | T122: 0 | U122: 0
A123: 2013-10-11 | B123: 40.419998 | C123: 40.580002 | D123: 40.330002 | E123: 40.57 | F123: 31.596203 | G123: 5451800 | I123: =F123/E123 -> 0.7788070742 | J123: =B123*$I123 -> 31.47938038 | K123: =C123*$I123 -> 31.60399263 | L123: =D123*$I123 -> 31.40929086 | M123: =E123*$I123 -> 31.596203 | O123: 31.2721346 | P123: 31.40723675 | Q123: 0 | R123: 31.258329 | S123: 0 | T123: 0 | U123: 0
A124: 2013-10-14 | B124: 40.349998 | C124: 40.75 | D124: 40.310001 | E124: 40.740002 | F124: 31.728594 | G124: 6808200 | I124: =F124/E124 -> 0.7788068837 | J124: =B124*$I124 -> 31.4248562 | K124: =C124*$I124 -> 31.73638051 | L124: =D124*$I124 -> 31.39370626 | M124: =E124*$I124 -> 31.728594 | O124: 31.31051167 | P124: 31.40558556 | Q124: 0 | R124: 31.258329 | S124: 0 | T124: 0 | U124: 0
A125: 2013-10-15 | B125: 40.68 | C125: 40.720001 | D125: 40.32 | E125: 40.369999 | F125: 31.440443 | G125: 7792900 | I125: =F125/E125 -> 0.7788071285 | J125: =B125*$I125 -> 31.68187399 | K125: =C125*$I125 -> 31.71302705 | L125: =D125*$I125 -> 31.40150342 | M125: =E125*$I125 -> 31.440443 | O125: 31.3400575 | P125: 31.40235999 | Q125: 0 | R125: 31.258329 | S125: 0 | T125: 0 | U125: 0
A126: 2013-10-16 | B126: 40.52 | C126: 40.990002 | D126: 40.52 | E126: 40.970001 | F126: 31.907705 | G126: 7034800 | I126: =F126/E126 -> 0.7788065468 | J126: =B126*$I126 -> 31.55724128 | K126: =C126*$I126 -> 31.92328191 | L126: =D126*$I126 -> 31.55724128 | M126: =E126*$I126 -> 31.907705 | O126: 31.37872963 | P126: 31.40080811 | Q126: 0 | R126: 31.258329 | S126: 0 | T126: 0 | U126: 0
A127: 2013-10-17 | B127: 40.84 | C127: 41.439999 | D127: 40.84 | E127: 41.43 | F127: 32.265965 | G127: 8498700 | I127: =F127/E127 -> 0.7788067825 | J127: =B127*$I127 -> 31.806469 | K127: =C127*$I127 -> 32.27375229 | L127: =D127*$I127 -> 31.806469 | M127: =E127*$I127 -> 32.265965 | O127: 31.4308915 | P127: 31.40230077 | Q127: BUY | R127: 32.265965 | S127: 1 | T127: 1 | U127: -0.03223576027
A128: 2013-10-18 | B128: 41.490002 | C128: 41.549999 | D128: 41.349998 | E128: 41.490002 | F128: 32.312702 | G128: 5861400 | I128: =F128/E128 -> 0.7788069521 | J128: =B128*$I128 -> 32.312702 | K128: =C128*$I128 -> 32.35942808 | L128: =D128*$I128 -> 32.20366591 | M128: =E128*$I128 -> 32.312702 | O128: 31.4820314 | P128: 31.41041209 | Q128: 0 | R128: 32.265965 | S128: 1 | T128: 0 | U128: 0
A129: 2013-10-21 | B129: 41.43 | C129: 41.509998 | D129: 41.23 | E129: 41.400002 | F129: 32.242615 | G129: 3646400 | I129: =F129/E129 -> 0.778807088 | J129: =B129*$I129 -> 32.26597766 | K129: =C129*$I129 -> 32.32828066 | L129: =D129*$I129 -> 32.11021624 | M129: =E129*$I129 -> 32.242615 | O129: 31.52361223 | P129: 31.41905253 | Q129: 0 | R129: 32.265965 | S129: 1 | T129: 0 | U129: 0
A130: 2013-10-22 | B130: 41.5 | C130: 42.029999 | D130: 41.48 | E130: 41.919998 | F130: 32.647579 | G130: 9404700 | I130: =F130/E130 -> 0.7788067881 | J130: =B130*$I130 -> 32.32048171 | K130: =C130*$I130 -> 32.73324853 | L130: =D130*$I130 -> 32.30490557 | M130: =E130*$I130 -> 32.647579 | O130: 31.57765973 | P130: 31.43758633 | Q130: 0 | R130: 32.265965 | S130: 1 | T130: 0 | U130: 0
A131: 2013-10-23 | B131: 41.82 | C131: 42.09 | D131: 41.799999 | E131: 42 | F131: 32.709904 | G131: 8809800 | I131: =F131/E131 -> 0.7788072381 | J131: =B131*$I131 -> 32.5697187 | K131: =C131*$I131 -> 32.77999665 | L131: =D131*$I131 -> 32.55414177 | M131: =E131*$I131 -> 32.709904 | O131: 31.62630357 | P131: 31.45336028 | Q131: 0 | R131: =IF(Q131<>0,M131,R130) -> 32.265965 | S131: 1 | T131: 0 | U131: 0
A132: 2013-10-24 | B132: 42.080002 | C132: 42.080002 | D132: 41.860001 | E132: 41.919998 | F132: 32.647579 | G132: 7754800 | I132: =F132/E132 -> 0.7788067881 | J132: =B132*$I132 -> 32.7721912 | K132: =C132*$I132 -> 32.7721912 | L132: =D132*$I132 -> 32.60085293 | M132: =E132*$I132 -> 32.647579 | O132: 31.6726119 | P132: 31.46843409 | Q132: 0 | R132: 32.265965 | S132: 1 | T132: 0 | U132: 0
A133: 2013-10-25 | B133: 41.93 | C133: 42.060001 | D133: 41.799999 | E133: 42.02 | F133: 32.725449 | G133: 4301900 | I133: =F133/E133 -> 0.7788064969 | J133: =B133*$I133 -> 32.65535642 | K133: =C133*$I133 -> 32.75660204 | L133: =D133*$I133 -> 32.55411079 | M133: =E133*$I133 -> 32.725449 | O133: 31.71300283 | P133: 31.48805405 | Q133: 0 | R133: 32.265965 | S133: 1 | T133: 0 | U133: 0
A134: 2013-10-28 | B134: 42.150002 | C134: 42.700001 | D134: 42.09 | E134: 42.57 | F134: 33.153812 | G134: 33007100 | I134: =F134/E134 -> 0.7788069533 | J134: =B134*$I134 -> 32.82671464 | K134: =C134*$I134 -> 33.25505768 | L134: =D134*$I134 -> 32.77998466 | M134: =E134*$I134 -> 33.153812 | O134: 31.7581279 | P134: 31.51065056 | Q134: 0 | R134: 32.265965 | S134: 1 | T134: 0 | U134: 0
A135: 2013-10-29 | B135: 42.66 | C135: 42.939999 | D135: 42.540001 | E135: 42.939999 | F135: 33.441975 | G135: 15133400 | I135: =F135/E135 -> 0.7788070745 | J135: =B135*$I135 -> 33.2239098 | K135: =C135*$I135 -> 33.441975 | L135: =D135*$I135 -> 33.13045373 | M135: =E135*$I135 -> 33.441975 | O135: 31.8092467 | P135: 31.53228417 | Q135: 0 | R135: 32.265965 | S135: 1 | T135: 0 | U135: 0
A136: 2013-10-30 | B136: 42.990002 | C136: 42.990002 | D136: 42.459999 | E136: 42.57 | F136: 33.153812 | G136: 11872100 | I136: =F136/E136 -> 0.7788069533 | J136: =B136*$I136 -> 33.48091248 | K136: =C136*$I136 -> 33.48091248 | L136: =D136*$I136 -> 33.06814246 | M136: =E136*$I136 -> 33.153812 | O136: 31.8381195 | P136: 31.55103615 | Q136: 0 | R136: 32.265965 | S136: 1 | T136: 0 | U136: 0
A137: 2013-10-31 | B137: 42.490002 | C137: 42.59 | D137: 42.290001 | E137: 42.349998 | F137: 32.982487 | G137: 11588100 | I137: =F137/E137 -> 0.7788072859 | J137: =B137*$I137 -> 33.09152314 | K137: =C137*$I137 -> 33.16940231 | L137: =D137*$I137 -> 32.9357609 | M137: =E137*$I137 -> 32.982487 | O137: 31.8661831 | P137: 31.56884375 | Q137: 0 | R137: 32.265965 | S137: 1 | T137: 0 | U137: 0
A138: 2013-11-01 | B138: 42.360001 | C138: 42.57 | D138: 42.27 | E138: 42.509998 | F138: 33.107075 | G138: 9055000 | I138: =F138/E138 -> 0.778806788 | J138: =B138*$I138 -> 32.99025632 | K138: =C138*$I138 -> 33.15380496 | L138: =D138*$I138 -> 32.92016293 | M138: =E138*$I138 -> 33.107075 | O138: 31.90590207 | P138: 31.58943507 | Q138: 0 | R138: 32.265965 | S138: 1 | T138: 0 | U138: 0
A139: 2013-11-04 | B139: 42.610001 | C139: 42.720001 | D139: 42.400002 | E139: 42.549999 | F139: 33.138241 | G139: 5305500 | I139: =F139/E139 -> 0.7788070923 | J139: =B139*$I139 -> 33.18497098 | K139: =C139*$I139 -> 33.27063976 | L139: =D139*$I139 -> 33.02142227 | M139: =E139*$I139 -> 33.138241 | O139: 31.95133277 | P139: 31.60710874 | Q139: 0 | R139: 32.265965 | S139: 1 | T139: 0 | U139: 0
A140: 2013-11-05 | B140: 42.509998 | C140: 42.759998 | D140: 42.380001 | E140: 42.630001 | F140: 33.200542 | G140: 6804500 | I140: =F140/E140 -> 0.7788069721 | J140: =B140*$I140 -> 33.10708283 | K140: =C140*$I140 -> 33.30178457 | L140: =D140*$I140 -> 33.00584026 | M140: =E140*$I140 -> 33.200542 | O140: 32.00377237 | P140: 31.62617431 | Q140: 0 | R140: 32.265965 | S140: 1 | T140: 0 | U140: 0
A141: 2013-11-06 | B141: 42.849998 | C141: 43.099998 | D141: 42.650002 | E141: 43.09 | F141: 33.558796 | G141: 7356400 | I141: =F141/E141 -> 0.778807055 | J141: =B141*$I141 -> 33.37188075 | K141: =C141*$I141 -> 33.56658251 | L141: =D141*$I141 -> 33.21612245 | M141: =E141*$I141 -> 33.558796 | O141: 32.07698023 | P141: 31.64605417 | Q141: 0 | R141: 32.265965 | S141: 1 | T141: 0 | U141: 0
A142: 2013-11-07 | B142: 43.060001 | C142: 43.080002 | D142: 42.369999 | E142: 42.459999 | F142: 33.06815 | G142: 11993800 | I142: =F142/E142 -> 0.7788071309 | J142: =B142*$I142 -> 33.53543584 | K142: =C142*$I142 -> 33.55101276 | L142: =D142*$I142 -> 32.99805736 | M142: =E142*$I142 -> 33.06815 | O142: 32.12838177 | P142: 31.6598745 | Q142: 0 | R142: 32.265965 | S142: 1 | T142: 0 | U142: 0
A143: 2013-11-08 | B143: 42.470001 | C143: 42.669998 | D143: 42.130001 | E143: 42.669998 | F143: 33.231693 | G143: 15162000 | I143: =F143/E143 -> 0.7788069969 | J143: =B143*$I143 -> 33.07593394 | K143: =C143*$I143 -> 33.231693 | L143: =D143*$I143 -> 32.81113956 | M143: =E143*$I143 -> 33.231693 | O143: 32.191725 | P143: 31.68163509 | Q143: 0 | R143: 32.265965 | S143: 1 | T143: 0 | U143: 0
A144: 2013-11-11 | B144: 42.650002 | C144: 42.73 | D144: 42.5 | E144: 42.540001 | F144: 33.130444 | G144: 7981900 | I144: =F144/E144 -> 0.7788068458 | J144: =B144*$I144 -> 33.21611353 | K144: =C144*$I144 -> 33.27841652 | L144: =D144*$I144 -> 33.09929095 | M144: =E144*$I144 -> 33.130444 | O144: 32.26285597 | P144: 31.71176384 | Q144: 0 | R144: 32.265965 | S144: 1 | T144: 0 | U144: 0
A145: 2013-11-12 | B145: 42.439999 | C145: 42.639999 | D145: 42.400002 | E145: 42.610001 | F145: 33.184963 | G145: 5657100 | I145: =F145/E145 -> 0.778806905 | J145: =B145*$I145 -> 33.05256427 | K145: =C145*$I145 -> 33.20832565 | L145: =D145*$I145 -> 33.02141433 | M145: =E145*$I145 -> 33.184963 | O145: 32.32957413 | P145: 31.73845987 | Q145: 0 | R145: 32.265965 | S145: 1 | T145: 0 | U145: 0
A146: 2013-11-13 | B146: 42.459999 | C146: 42.990002 | D146: 42.419998 | E146: 42.970001 | F146: 33.465343 | G146: 7651500 | I146: =F146/E146 -> 0.7788071264 | J146: =B146*$I146 -> 33.06814981 | K146: =C146*$I146 -> 33.48091992 | L146: =D146*$I146 -> 33.03699674 | M146: =E146*$I146 -> 33.465343 | O146: 32.40797397 | P146: 31.76919788 | Q146: 0 | R146: 32.265965 | S146: 1 | T146: 0 | U146: 0
A147: 2013-11-14 | B147: 42.990002 | C147: 43.330002 | D147: 42.959999 | E147: 43.279999 | F147: 33.706757 | G147: 5891500 | I147: =F147/E147 -> 0.7788067879 | J147: =B147*$I147 -> 33.48090537 | K147: =C147*$I147 -> 33.74569968 | L147: =D147*$I147 -> 33.45753883 | M147: =E147*$I147 -> 33.706757 | O147: 32.49961357 | P147: 31.80188564 | Q147: 0 | R147: 32.265965 | S147: 1 | T147: 0 | U147: 0
A148: 2013-11-15 | B148: 43.259998 | C148: 43.43 | D148: 43.150002 | E148: 43.330002 | F148: 33.745716 | G148: 3054000 | I148: =F148/E148 -> 0.7788071646 | J148: =B148*$I148 -> 33.69119638 | K148: =C148*$I148 -> 33.82359516 | L148: =D148*$I148 -> 33.60553071 | M148: =E148*$I148 -> 33.745716 | O148: 32.5909942 | P148: 31.83179004 | Q148: 0 | R148: 32.265965 | S148: 1 | T148: 0 | U148: 0
A149: 2013-11-18 | B149: 43.459999 | C149: 43.459999 | D149: 43.110001 | E149: 43.200001 | F149: 33.644466 | G149: 3924900 | I149: =F149/E149 -> 0.7788070653 | J149: =B149*$I149 -> 33.84695428 | K149: =C149*$I149 -> 33.84695428 | L149: =D149*$I149 -> 33.57437336 | M149: =E149*$I149 -> 33.644466 | O149: 32.6823747 | P149: 31.85928893 | Q149: 0 | R149: 32.265965 | S149: 1 | T149: 0 | U149: 0
A150: 2013-11-19 | B150: 43.139999 | C150: 43.189999 | D150: 42.970001 | E150: 43.040001 | F150: 33.519852 | G150: 7013200 | I150: =F150/E150 -> 0.7788069522 | J150: =B150*$I150 -> 33.59773114 | K150: =C150*$I150 -> 33.63667149 | L150: =D150*$I150 -> 33.46533551 | M150: =E150*$I150 -> 33.519852 | O150: 32.7696014 | P150: 31.88747636 | Q150: 0 | R150: 32.265965 | S150: 1 | T150: 0 | U150: 0
A151: 2013-11-20 | B151: 43.09 | C151: 43.200001 | D151: 42.73 | E151: 42.860001 | F151: 33.379669 | G151: 7392100 | I151: =F151/E151 -> 0.7788070047 | J151: =B151*$I151 -> 33.55879383 | K151: =C151*$I151 -> 33.64446338 | L151: =D151*$I151 -> 33.27842331 | M151: =E151*$I151 -> 33.379669 | O151: 32.8513761 | P151: 31.91201762 | Q151: 0 | R151: 32.265965 | S151: 1 | T151: 0 | U151: 0
A152: 2013-11-21 | B152: 42.860001 | C152: 42.970001 | D152: 42.759998 | E152: 42.939999 | F152: 33.441975 | G152: 6777800 | I152: =F152/E152 -> 0.7788070745 | J152: =B152*$I152 -> 33.37967199 | K152: =C152*$I152 -> 33.46534077 | L152: =D152*$I152 -> 33.30178895 | M152: =E152*$I152 -> 33.441975 | O152: 32.91601687 | P152: 31.93679494 | Q152: 0 | R152: 32.265965 | S152: 1 | T152: 0 | U152: 0
A153: 2013-11-22 | B153: 43.009998 | C153: 43.189999 | D153: 42.860001 | E153: 43.16 | F153: 33.613312 | G153: 5443000 | I153: =F153/E153 -> 0.7788070436 | J153: =B153*$I153 -> 33.49648939 | K153: =C153*$I153 -> 33.63667543 | L153: =D153*$I153 -> 33.37967067 | M153: =E153*$I153 -> 33.613312 | O153: 32.98325383 | P153: 31.96390483 | Q153: 0 | R153: 32.265965 | S153: 1 | T153: 0 | U153: 0
A154: 2013-11-25 | B154: 43.299999 | C154: 43.34 | D154: 43.029999 | E154: 43.09 | F154: 33.558796 | G154: 4447200 | I154: =F154/E154 -> 0.778807055 | J154: =B154*$I154 -> 33.7223447 | K154: =C154*$I154 -> 33.75349776 | L154: =D154*$I154 -> 33.5120668 | M154: =E154*$I154 -> 33.558796 | O154: 33.04426057 | P154: 31.98969558 | Q154: 0 | R154: 32.265965 | S154: 1 | T154: 0 | U154: 0
A155: 2013-11-26 | B155: 43.139999 | C155: 43.25 | D155: 42.98 | E155: 43.049999 | F155: 33.527641 | G155: 3854300 | I155: =F155/E155 -> 0.77880701 | J155: =B155*$I155 -> 33.59773363 | K155: =C155*$I155 -> 33.68340318 | L155: =D155*$I155 -> 33.47312529 | M155: =E155*$I155 -> 33.527641 | O155: 33.11383383 | P155: 32.01207921 | Q155: 0 | R155: 32.265965 | S155: 1 | T155: 0 | U155: 0
A156: 2013-11-27 | B156: 43.189999 | C156: 43.189999 | D156: 42.959999 | E156: 43.080002 | F156: 33.550999 | G156: 3257000 | I156: =F156/E156 -> 0.7788068116 | J156: =B156*$I156 -> 33.63666541 | K156: =C156*$I156 -> 33.63666541 | L156: =D156*$I156 -> 33.45753985 | M156: =E156*$I156 -> 33.550999 | O156: 33.1686103 | P156: 32.03237462 | Q156: 0 | R156: 32.265965 | S156: 1 | T156: 0 | U156: 0
A157: 2013-11-29 | B157: 43.169998 | C157: 43.27 | D157: 42.959999 | E157: 43.009998 | F157: 33.496483 | G157: 2642100 | I157: =F157/E157 -> 0.7788068951 | J157: =B157*$I157 -> 33.6210921 | K157: =C157*$I157 -> 33.69897435 | L157: =D157*$I157 -> 33.45754343 | M157: =E157*$I157 -> 33.496483 | O157: 33.20962757 | P157: 32.05173793 | Q157: 0 | R157: 32.265965 | S157: 1 | T157: 0 | U157: 0
A158: 2013-12-02 | B158: 43.029999 | C158: 43.040001 | D158: 42.68 | E158: 42.779999 | F158: 33.317364 | G158: 5041700 | I158: =F158/E158 -> 0.7788070308 | J158: =B158*$I158 -> 33.51206576 | K158: =C158*$I158 -> 33.51985539 | L158: =D158*$I158 -> 33.23948408 | M158: =E158*$I158 -> 33.317364 | O158: 33.2431163 | P158: 32.06435695 | Q158: 0 | R158: 32.265965 | S158: 1 | T158: 0 | U158: 0
A159: 2013-12-03 | B159: 42.73 | C159: 43.009998 | D159: 42.73 | E159: 42.990002 | F159: 33.480919 | G159: 6124800 | I159: =F159/E159 -> 0.778807105 | J159: =B159*$I159 -> 33.2784276 | K159: =C159*$I159 -> 33.49649203 | L159: =D159*$I159 -> 33.2784276 | M159: =E159*$I159 -> 33.480919 | O159: 33.2843931 | P159: 32.07853431 | Q159: 0 | R159: 32.265965 | S159: 1 | T159: 0 | U159: 0
A160: 2013-12-04 | B160: 42.880001 | C160: 43 | D160: 42.549999 | E160: 42.889999 | F160: 33.403027 | G160: 8093100 | I160: =F160/E160 -> 0.7788068962 | J160: =B160*$I160 -> 33.39524049 | K160: =C160*$I160 -> 33.48869654 | L160: =D160*$I160 -> 33.13823266 | M160: =E160*$I160 -> 33.403027 | O160: =AVERAGE(M131:M160) -> 33.3095747 | P160: 32.09146831 | Q160: 0 | R160: 32.265965 | S160: 1 | T160: 0 | U160: 0
A161: 2013-12-05 | B161: 42.740002 | C161: 42.790001 | D161: 42.439999 | E161: 42.5 | F161: 33.099293 | G161: 6060000 | I161: =F161/E161 -> 0.7788068941 | J161: =B161*$I161 -> 33.28620821 | K161: =C161*$I161 -> 33.32514778 | L161: =D161*$I161 -> 33.05256381 | M161: =E161*$I161 -> 33.099293 | O161: 33.32255433 | P161: 32.1025258 | Q161: 0 | R161: 32.265965 | S161: 1 | T161: 0 | U161: 0
A162: 2013-12-06 | B162: 42.830002 | C162: 43.130001 | D162: 42.759998 | E162: 43.080002 | F162: 33.550999 | G162: 7108600 | I162: =F162/E162 -> 0.7788068116 | J162: =B162*$I162 -> 33.3562973 | K162: =C162*$I162 -> 33.58993856 | L162: =D162*$I162 -> 33.30177771 | M162: =E162*$I162 -> 33.550999 | O162: 33.35266833 | P162: 32.11748117 | Q162: 0 | R162: 32.265965 | S162: 1 | T162: 0 | U162: 0
A163: 2013-12-09 | B163: 43.259998 | C163: 43.380001 | D163: 43.150002 | E163: 43.23 | F163: 33.667828 | G163: 5513100 | I163: =F163/E163 -> 0.7788070322 | J163: =B163*$I163 -> 33.69119065 | K163: =C163*$I163 -> 33.78464983 | L163: =D163*$I163 -> 33.605525 | M163: =E163*$I163 -> 33.667828 | O163: 33.38408097 | P163: 32.13252142 | Q163: 0 | R163: 32.265965 | S163: 1 | T163: 0 | U163: 0
A164: 2013-12-10 | B164: 43.139999 | C164: 43.189999 | D164: 42.740002 | E164: 42.860001 | F164: 33.379669 | G164: 3341900 | I164: =F164/E164 -> 0.7788070047 | J164: =B164*$I164 -> 33.5977334 | K164: =C164*$I164 -> 33.63667375 | L164: =D164*$I164 -> 33.28621294 | M164: =E164*$I164 -> 33.379669 | O164: 33.39160953 | P164: 32.14282274 | Q164: 0 | R164: 32.265965 | S164: 1 | T164: 0 | U164: 0
A165: 2013-12-11 | B165: 42.849998 | C165: 43.130001 | D165: 42.849998 | E165: 42.93 | F165: 33.434185 | G165: 21705800 | I165: =F165/E165 -> 0.7788070114 | J165: =B165*$I165 -> 33.37187888 | K165: =C165*$I165 -> 33.58994718 | L165: =D165*$I165 -> 33.37187888 | M165: =E165*$I165 -> 33.434185 | O165: 33.39134987 | P165: 32.15436571 | Q165: 0 | R165: 32.265965 | S165: 1 | T165: 0 | U165: 0
A166: 2013-12-12 | B166: 42.919998 | C166: 42.919998 | D166: 42.299999 | E166: 42.34 | F166: 32.974686 | G166: 9662500 | I166: =F166/E166 -> 0.7788069438 | J166: =B166*$I166 -> 33.42639247 | K166: =C166*$I166 -> 33.42639247 | L166: =D166*$I166 -> 32.94353294 | M166: =E166*$I166 -> 32.974686 | O166: 33.385379 | P166: =AVERAGE(M67:M166) -> 32.16193278 | Q166: 0 | R166: 32.265965 | S166: 1 | T166: =IF($Q166="BUY",1,IF($Q166="SELL",-1,0)) -> 0 | U166: 0
A167: 2013-12-13 | B167: 42.470001 | C167: 42.470001 | D167: 42.139999 | E167: 42.27 | F167: 32.920162 | G167: 5929000 | I167: =F167/E167 -> 0.778806766 | J167: =B167*$I167 -> 33.07592413 | K167: =C167*$I167 -> 33.07592413 | L167: =D167*$I167 -> 32.81891634 | M167: =E167*$I167 -> 32.920162 | O167: 33.3833015 | P167: 32.17104414 | Q167: =IF(AND(O166<=P166,O167>P167),"BUY",IF(AND(O166>=P166,O167<P167),"SELL",0)) -> 0 | R167: 32.265965 | S167: =S166+T167 -> 1 | T167: 0 | U167: =IF(Q167="SELL",(R167-R166)/R166,IF(Q167="BUY",(R166-R167)/R166,0)) -> 0
A168: 2013-12-16 | B168: 42.349998 | C168: 42.52 | D168: 42.169998 | E168: 42.259998 | F168: 32.91238 | G168: 5893100 | I168: =F168/E168 -> 0.7788069465 | J168: =B168*$I168 -> 32.98247263 | K168: =C168*$I168 -> 33.11487136 | L168: =D168*$I168 -> 32.84228737 | M168: =E168*$I168 -> 32.91238 | O168: 33.37681167 | P168: 32.17837518 | Q168: 0 | R168: 32.265965 | S168: 1 | T168: 0 | U168: 0
A169: 2013-12-17 | B169: 42.220001 | C169: 42.279999 | D169: 41.959999 | E169: 42.060001 | F169: 32.75663 | G169: 7247300 | I169: =F169/E169 -> 0.7788071617 | J169: =B169*$I169 -> 32.88123915 | K169: =C169*$I169 -> 32.92796602 | L169: =D169*$I169 -> 32.67874773 | M169: =E169*$I169 -> 32.75663 | O169: 33.3640913 | P169: 32.18453569 | Q169: 0 | R169: 32.265965 | S169: 1 | T169: 0 | U169: 0
A170: 2013-12-18 | B170: 42.110001 | C170: 42.779999 | D170: 41.689999 | E170: 42.759998 | F170: 33.301781 | G170: 11754200 | I170: =F170/E170 -> 0.7788068886 | J170: =B170*$I170 -> 32.79555886 | K170: =C170*$I170 -> 33.31735792 | L170: =D170*$I170 -> 32.46845841 | M170: =E170*$I170 -> 33.301781 | O170: 33.36746593 | P170: 32.19684416 | Q170: 0 | R170: 32.265965 | S170: 1 | T170: 0 | U170: 0
A171: 2013-12-19 | B171: 42.650002 | C171: 42.73 | D171: 42.43 | E171: 42.68 | F171: 33.239491 | G171: 5698800 | I171: =F171/E171 -> 0.7788071931 | J171: =B171*$I171 -> 33.21612834 | K171: =C171*$I171 -> 33.27843136 | L171: =D171*$I171 -> 33.0447892 | M171: =E171*$I171 -> 33.239491 | O171: 33.35682243 | P171: 32.20883925 | Q171: 0 | R171: 32.265965 | S171: 1 | T171: 0 | U171: 0
A172: 2013-12-20 | B172: 42.349998 | C172: 42.66 | D172: 42.290001 | E172: 42.549999 | F172: 33.390144 | G172: 11007300 | I172: =F172/E172 -> 0.784727257 | J172: =B172*$I172 -> 33.23319776 | K172: =C172*$I172 -> 33.47646478 | L172: =D172*$I172 -> 33.18611648 | M172: =E172*$I172 -> 33.390144 | O172: 33.36755557 | P172: 32.22241839 | Q172: 0 | R172: 32.265965 | S172: 1 | T172: 0 | U172: 0
A173: 2013-12-23 | B173: 42.650002 | C173: 42.689999 | D173: 42.360001 | E173: 42.509998 | F173: 33.358753 | G173: 6601700 | I173: =F173/E173 -> 0.7847272305 | J173: =B173*$I173 -> 33.46861795 | K173: =C173*$I173 -> 33.50000469 | L173: =D173*$I173 -> 33.24104627 | M173: =E173*$I173 -> 33.358753 | O173: 33.3717909 | P173: 32.23305231 | Q173: 0 | R173: 32.265965 | S173: 1 | T173: 0 | U173: 0
A174: 2013-12-24 | B174: 42.509998 | C174: 42.66 | D174: 42.439999 | E174: 42.57 | F174: 33.405846 | G174: 5915300 | I174: =F174/E174 -> 0.7847274137 | J174: =B174*$I174 -> 33.35876079 | K174: =C174*$I174 -> 33.47647147 | L174: =D174*$I174 -> 33.30383065 | M174: =E174*$I174 -> 33.405846 | O174: 33.38097097 | P174: 32.24400233 | Q174: 0 | R174: 32.265965 | S174: 1 | T174: 0 | U174: 0
A175: 2013-12-26 | B175: 42.599998 | C175: 42.740002 | D175: 42.540001 | E175: 42.740002 | F175: 33.539261 | G175: 15154600 | I175: =F175/E175 -> 0.7847276423 | J175: =B175*$I175 -> 33.42939599 | K175: =C175*$I175 -> 33.539261 | L175: =D175*$I175 -> 33.38231469 | M175: =E175*$I175 -> 33.539261 | O175: 33.3927809 | P175: 32.25605445 | Q175: 0 | R175: 32.265965 | S175: 1 | T175: 0 | U175: 0
A176: 2013-12-27 | B176: 42.810001 | C176: 42.919998 | D176: 42.759998 | E176: 42.84 | F176: 33.617722 | G176: 3590500 | I176: =F176/E176 -> 0.7847274043 | J176: =B176*$I176 -> 33.59418096 | K176: =C176*$I176 -> 33.68049862 | L176: =D176*$I176 -> 33.55494224 | M176: =E176*$I176 -> 33.617722 | O176: 33.3978602 | P176: 32.26927806 | Q176: 0 | R176: 32.265965 | S176: 1 | T176: 0 | U176: 0
A177: 2013-12-30 | B177: 42.84 | C177: 42.98 | D177: 42.830002 | E177: 42.950001 | F177: 33.704044 | G177: 3245700 | I177: =F177/E177 -> 0.7847274323 | J177: =B177*$I177 -> 33.6177232 | K177: =C177*$I177 -> 33.72758504 | L177: =D177*$I177 -> 33.60987749 | M177: =E177*$I177 -> 33.704044 | O177: 33.39776977 | P177: 32.28491271 | Q177: 0 | R177: 32.265965 | S177: 1 | T177: 0 | U177: 0
A178: 2013-12-31 | B178: 43.02 | C178: 43.07 | D178: 42.810001 | E178: 42.98 | F178: 33.727585 | G178: 6516500 | I178: =F178/E178 -> 0.7847274314 | J178: =B178*$I178 -> 33.7589741 | K178: =C178*$I178 -> 33.79821047 | L178: =D178*$I178 -> 33.59418212 | M178: =E178*$I178 -> 33.727585 | O178: 33.3971654 | P178: 32.29908012 | Q178: 0 | R178: 32.265965 | S178: 1 | T178: 0 | U178: 0
A179: 2014-01-02 | B179: 42.849998 | C179: 42.869999 | D179: 42.380001 | E179: 42.450001 | F179: 33.31168 | G179: 14997000 | I179: =F179/E179 -> 0.7847274256 | J179: =B179*$I179 -> 33.62556862 | K179: =C179*$I179 -> 33.64126395 | L179: =D179*$I179 -> 33.25674908 | M179: =E179*$I179 -> 33.31168 | O179: 33.38607253 | P179: 32.31048141 | Q179: 0 | R179: 32.265965 | S179: 1 | T179: 0 | U179: 0
A180: 2014-01-03 | B180: 42.540001 | C180: 42.610001 | D180: 42.34 | E180: 42.369999 | F180: 33.248882 | G180: 6298600 | I180: =F180/E180 -> 0.7847269952 | J180: =B180*$I180 -> 33.38228716 | K180: =C180*$I180 -> 33.43721805 | L180: =D180*$I180 -> 33.22534097 | M180: =E180*$I180 -> 33.248882 | O180: 33.3770402 | P180: 32.3221836 | Q180: 0 | R180: 32.265965 | S180: 1 | T180: 0 | U180: 0
A181: 2014-01-06 | B181: 42.48 | C181: 42.529999 | D181: 42.110001 | E181: 42.209999 | F181: 33.123337 | G181: 9498600 | I181: =F181/E181 -> 0.7847272633 | J181: =B181*$I181 -> 33.33521415 | K181: =C181*$I181 -> 33.37444972 | L181: =D181*$I181 -> 33.04486584 | M181: =E181*$I181 -> 33.123337 | O181: 33.3684958 | P181: 32.33239818 | Q181: 0 | R181: 32.265965 | S181: 1 | T181: 0 | U181: 0
A182: 2014-01-07 | B182: 42.43 | C182: 42.540001 | D182: 42.240002 | E182: 42.439999 | F182: 33.303833 | G182: 7479100 | I182: =F182/E182 -> 0.784727469 | J182: =B182*$I182 -> 33.29598651 | K182: =C182*$I182 -> 33.38230732 | L182: =D182*$I182 -> 33.14688986 | M182: =E182*$I182 -> 33.303833 | O182: 33.36389107 | P182: 32.34666196 | Q182: 0 | R182: 32.265965 | S182: 1 | T182: 0 | U182: 0
A183: 2014-01-08 | B183: 42.43 | C183: 42.43 | D183: 42.029999 | E183: 42.119999 | F183: 33.052715 | G183: 23824100 | I183: =F183/E183 -> 0.7847273453 | J183: =B183*$I183 -> 33.29598126 | K183: =C183*$I183 -> 33.29598126 | L183: =D183*$I183 -> 32.98208954 | M183: =E183*$I183 -> 33.052715 | O183: 33.3452045 | P183: 32.36352242 | Q183: 0 | R183: 32.265965 | S183: 1 | T183: 0 | U183: 0
A184: 2014-01-09 | B184: 42.23 | C184: 42.400002 | D184: 42.060001 | E184: 42.34 | F184: 33.225349 | G184: 24438600 | I184: =F184/E184 -> 0.7847271847 | J184: =B184*$I184 -> 33.13902901 | K184: =C184*$I184 -> 33.2724342 | L184: =D184*$I184 -> 33.00562617 | M184: =E184*$I184 -> 33.225349 | O184: 33.3340896 | P184: 32.38396658 | Q184: 0 | R184: 32.265965 | S184: 1 | T184: 0 | U184: 0
A185: 2014-01-10 | B185: 42.450001 | C185: 42.549999 | D185: 42.240002 | E185: 42.400002 | F185: 33.272442 | G185: 15903800 | I185: =F185/E185 -> 0.7847273686 | J185: =B185*$I185 -> 33.31167758 | K185: =C185*$I185 -> 33.39014875 | L185: =D185*$I185 -> 33.14688562 | M185: =E185*$I185 -> 33.272442 | O185: 33.32558297 | P185: 32.4062747 | Q185: 0 | R185: 32.265965 | S185: 1 | T185: 0 | U185: 0
A186: 2014-01-13 | B186: 42.400002 | C186: 42.540001 | D186: 42.110001 | E186: 42.16 | F186: 33.084106 | G186: 9275100 | I186: =F186/E186 -> 0.7847273719 | J186: =B186*$I186 -> 33.27244214 | K186: =C186*$I186 -> 33.38230319 | L186: =D186*$I186 -> 33.04487042 | M186: =E186*$I186 -> 33.084106 | O186: 33.31001987 | P186: 32.42662204 | Q186: 0 | R186: 32.265965 | S186: 1 | T186: 0 | U186: 0
A187: 2014-01-14 | B187: 42.27 | C187: 42.450001 | D187: 42.189999 | E187: 42.380001 | F187: 33.256748 | G187: 10885000 | I187: =F187/E187 -> 0.7847274001 | J187: =B187*$I187 -> 33.1704272 | K187: =C187*$I187 -> 33.31167892 | L187: =D187*$I187 -> 33.10764822 | M187: =E187*$I187 -> 33.256748 | O187: 33.3020287 | P187: 32.45109506 | Q187: 0 | R187: 32.265965 | S187: 1 | T187: 0 | U187: 0
A188: 2014-01-15 | B188: 42.43 | C188: 42.540001 | D188: 42.290001 | E188: 42.389999 | F188: 33.264599 | G188: 4384200 | I188: =F188/E188 -> 0.784727525 | J188: =B188*$I188 -> 33.29598889 | K188: =C188*$I188 -> 33.3823097 | L188: =D188*$I188 -> 33.18612782 | M188: =E188*$I188 -> 33.264599 | O188: 33.30026987 | P188: 32.47433082 | Q188: 0 | R188: 32.265965 | S188: 1 | T188: 0 | U188: 0
A189: 2014-01-16 | B189: 42.27 | C189: 42.459999 | D189: 42.18 | E189: 42.400002 | F189: 33.272442 | G189: 6522100 | I189: =F189/E189 -> 0.7847273686 | J189: =B189*$I189 -> 33.17042587 | K189: =C189*$I189 -> 33.31952329 | L189: =D189*$I189 -> 33.09980041 | M189: =E189*$I189 -> 33.272442 | O189: 33.29332063 | P189: 32.49586502 | Q189: 0 | R189: 32.265965 | S189: 1 | T189: 0 | U189: 0
A190: 2014-01-17 | B190: 42.349998 | C190: 42.380001 | D190: 42.029999 | E190: 42.07 | F190: 33.013485 | G190: 8233800 | I190: =F190/E190 -> 0.784727478 | J190: =B190*$I190 -> 33.23320712 | K190: =C190*$I190 -> 33.2567513 | L190: =D190*$I190 -> 32.98209512 | M190: =E190*$I190 -> 33.013485 | O190: 33.2803359 | P190: 32.51844711 | Q190: 0 | R190: 32.265965 | S190: 1 | T190: 0 | U190: 0
A191: 2014-01-21 | B191: 42.189999 | C191: 42.34 | D191: 41.950001 | E191: 42.23 | F191: 33.139034 | G191: 5618400 | I191: =F191/E191 -> 0.7847273029 | J191: =B191*$I191 -> 33.10764412 | K191: =C191*$I191 -> 33.225354 | L191: =D191*$I191 -> 32.91931114 | M191: =E191*$I191 -> 33.139034 | O191: 33.2816606 | P191: 32.54390979 | Q191: 0 | R191: 32.265965 | S191: 1 | T191: 0 | U191: 0
A192: 2014-01-22 | B192: 42.259998 | C192: 42.380001 | D192: 42.18 | E192: 42.23 | F192: 33.139034 | G192: 3615300 | I192: =F192/E192 -> 0.7847273029 | J192: =B192*$I192 -> 33.16257425 | K192: =C192*$I192 -> 33.25674388 | L192: =D192*$I192 -> 33.09979763 | M192: =E192*$I192 -> 33.139034 | O192: 33.26792843 | P192: 32.57169434 | Q192: 0 | R192: 32.265965 | S192: 1 | T192: 0 | U192: 0
A193: 2014-01-23 | B193: 42.080002 | C193: 42.080002 | D193: 41.709999 | E193: 41.860001 | F193: 32.84869 | G193: 8916700 | I193: =F193/E193 -> 0.784727406 | J193: =B193*$I193 -> 33.02133081 | K193: =C193*$I193 -> 33.02133081 | L193: =D193*$I193 -> 32.73097932 | M193: =E193*$I193 -> 32.84869 | O193: 33.24062383 | P193: 32.59533717 | Q193: 0 | R193: 32.265965 | S193: 1 | T193: 0 | U193: 0
A194: 2014-01-24 | B194: 41.799999 | C194: 41.98 | D194: 41.439999 | E194: 41.48 | F194: 32.550488 | G194: 18509700 | I194: =F194/E194 -> 0.7847272903 | J194: =B194*$I194 -> 32.80159995 | K194: =C194*$I194 -> 32.94285165 | L194: =D194*$I194 -> 32.51909812 | M194: =E194*$I194 -> 32.550488 | O194: 33.21298447 | P194: 32.61506923 | Q194: 0 | R194: 32.265965 | S194: 1 | T194: 0 | U194: 0
A195: 2014-01-27 | B195: 41.5 | C195: 41.549999 | D195: 41.240002 | E195: 41.310001 | F195: 32.417072 | G195: 8451500 | I195: =F195/E195 -> 0.784726972 | J195: =B195*$I195 -> 32.56616934 | K195: =C195*$I195 -> 32.6054049 | L195: =D195*$I195 -> 32.3621419 | M195: =E195*$I195 -> 32.417072 | O195: 33.1790807 | P195: 32.63369927 | Q195: 0 | R195: =IF(Q195<>0,M195,R194) -> 32.265965 | S195: 1 | T195: 0 | U195: 0
A196: 2014-01-28 | B196: 41.380001 | C196: 41.709999 | D196: 41.360001 | E196: 41.630001 | F196: 32.668205 | G196: 5022200 | I196: =F196/E196 -> 0.7847274613 | J196: =B196*$I196 -> 32.47202313 | K196: =C196*$I196 -> 32.73098163 | L196: =D196*$I196 -> 32.45632859 | M196: =E196*$I196 -> 32.668205 | O196: 33.16886467 | P196: 32.65290591 | Q196: 0 | R196: 32.265965 | S196: 1 | T196: 0 | U196: 0
A197: 2014-01-29 | B197: 41.360001 | C197: 41.419998 | D197: 40.790001 | E197: 40.900002 | F197: 32.095352 | G197: 36942400 | I197: =F197/E197 -> 0.7847273944 | J197: =B197*$I197 -> 32.45632582 | K197: =C197*$I197 -> 32.50340711 | L197: =D197*$I197 -> 32.0090312 | M197: =E197*$I197 -> 32.095352 | O197: 33.141371 | P197: 32.66684834 | Q197: 0 | R197: 32.265965 | S197: 1 | T197: 0 | U197: 0
A198: 2014-01-30 | B198: 41.049999 | C198: 41.119999 | D198: 40.889999 | E198: 40.959999 | F198: 32.142429 | G198: 19016600 | I198: =F198/E198 -> 0.7847272897 | J198: =B198*$I198 -> 32.21305446 | K198: =C198*$I198 -> 32.26798537 | L198: =D198*$I198 -> 32.08749809 | M198: =E198*$I198 -> 32.142429 | O198: 33.11570597 | P198: 32.68048758 | Q198: 0 | R198: 32.265965 | S198: 1 | T198: 0 | U198: 0
A199: 2014-01-31 | B199: 40.490002 | C199: 41.040001 | D199: 40.32 | E199: 40.759998 | F199: 31.985481 | G199: 21959500 | I199: =F199/E199 -> 0.7847272466 | J199: =B199*$I199 -> 31.77360778 | K199: =C199*$I199 -> 32.20520698 | L199: =D199*$I199 -> 31.64020258 | M199: =E199*$I199 -> 31.985481 | O199: 33.090001 | P199: 32.69039049 | Q199: 0 | R199: 32.265965 | S199: 1 | T199: 0 | U199: 0
A200: 2014-02-03 | B200: 40.709999 | C200: 40.82 | D200: 39.830002 | E200: 39.880001 | F200: 31.294924 | G200: 41150000 | I200: =F200/E200 -> 0.7847272622 | J200: =B200*$I200 -> 31.94624606 | K200: =C200*$I200 -> 32.03256684 | L200: =D200*$I200 -> 31.25568842 | M200: =E200*$I200 -> 31.294924 | O200: 33.02310577 | P200: 32.69307819 | Q200: 0 | R200: 32.265965 | S200: 1 | T200: 0 | U200: 0
... 2324 more rows

Sheet VWAP
A1: Date | B1: Open | C1: High | D1: Low | E1: Close | F1: Adj Close | G1: Volume | I1: Adj Factor | J1: ="Adj "&B1 -> Adj Open | K1: ="Adj "&C1 -> Adj High | L1: ="Adj "&D1 -> Adj Low | M1: ="Adj "&E1 -> Adj Close | N1: ="Adj "&G1 -> Adj Volume | P1: AVERAGE PRICE FOR THE DAY | Q1: Price * Volume | R1: Cumulative P*V | S1: Cumulative Volume | T1: VWAP | U1: SIGNAL | V1: TRADE | W1: TRADING PRICE | X1: RETURNS
A2: 2013-04-22 | B2: 41.07 | C2: 41.189999 | D2: 40.810001 | E2: 41.110001 | F2: 31.609234 | G2: 5972300 | I2: =F2/E2 -> 0.7688940217 | J2: =B2*$I2 -> 31.57847747 | K2: =C2*$I2 -> 31.67074398 | L2: =D2*$I2 -> 31.37856579 | M2: =E2*$I2 -> 31.609234 | N2: =G2/$I2 -> 7767390.345 | P2: =AVERAGE(K2:M2) -> 31.55284793 | Q2: =P2*N2 -> 245083286.3 | R2: =Q2 -> 245083286.3 | S2: =N2 -> 7767390.345 | T2: =R2/S2 -> 31.55284793 | U2: =IF(M2>=T2,"SELL","BUY") -> SELL | V2: =IF(U2<>U1,U2,0) -> SELL | W2: =IF(V2<>0,M2,W1) -> 31.609234 | X2: - | Z2: Adjusted Volume is divided by adjustment factor
A3: 2013-04-23 | B3: 41.220001 | C3: 41.439999 | D3: 40.900002 | E3: 41.43 | F3: 31.855267 | G3: 13184200 | I3: =F3/E3 -> 0.7688937244 | J3: =B3*$I3 -> 31.69380009 | K3: =C3*$I3 -> 31.86295517 | L3: =D3*$I3 -> 31.44775486 | M3: =E3*$I3 -> 31.855267 | N3: =G3/$I3 -> 17146973.09 | P3: =AVERAGE(K3:M3) -> 31.72199234 | Q3: =P3*N3 -> 543936149.1 | R3: =Q3+R2 -> 789019435.4 | S3: =N3+S2 -> 24914363.43 | T3: =R3/S3 -> 31.66925928 | U3: SELL | V3: =IF(U3<>U2,U3,0) -> 0 | W3: =IF(V3<>0,M3,W2) -> 31.609234 | X3: =IF(U3="SELL",(W3-W2)/W2,IF(U3="BUY",(W2-W3)/W2,0)) -> 0
A4: 2013-04-24 | B4: 41.25 | C4: 41.369999 | D4: 40.73 | E4: 40.77 | F4: 31.347813 | G4: 30015500 | I4: =F4/E4 -> 0.7688941133 | J4: =B4*$I4 -> 31.71688217 | K4: =C4*$I4 -> 31.8091487 | L4: =D4*$I4 -> 31.31705724 | M4: =E4*$I4 -> 31.347813 | N4: 39037234.75 | P4: 31.49133964 | Q4: 1229334818 | R4: =Q4+R3 -> 2018354254 | S4: =N4+S3 -> 63951598.18 | T4: =R4/S4 -> 31.56065385 | U4: BUY | V4: BUY | W4: 31.347813 | X4: =IF(U4="SELL",(W4-W3)/W3,IF(U4="BUY",(W3-W4)/W3,0)) -> 0.008270399719 | Z4: We don't use open, because it includes pre-market trades
A5: 2013-04-25 | B5: 40.860001 | C5: 41.009998 | D5: 40.759998 | E5: 40.900002 | F5: 31.447756 | G5: 12200800 | I5: =F5/E5 -> 0.7688937521 | J5: =B5*$I5 -> 31.41699948 | K5: =C5*$I5 -> 31.53233124 | L5: =D5*$I5 -> 31.3401078 | M5: =E5*$I5 -> 31.447756 | N5: 15867992.12 | P5: 31.44006501 | Q5: 498890703.9 | R5: 2517244958 | S5: 79819590.3 | T5: =R5/S5 -> 31.53668101 | U5: BUY | V5: 0 | W5: 31.347813 | X5: 0
A6: 2013-04-26 | B6: 40.799999 | C6: 41.009998 | D6: 40.799999 | E6: 40.889999 | F6: 31.440079 | G6: 9481800 | I6: =F6/E6 -> 0.7688941005 | J6: =B6*$I6 -> 31.37087853 | K6: =C6*$I6 -> 31.53234552 | L6: =D6*$I6 -> 31.37087853 | M6: =E6*$I6 -> 31.440079 | N6: 12331737.22 | P6: 31.44776768 | Q6: 387805607.4 | R6: 2905050565 | S6: 92151327.53 | T6: 31.52478258 | U6: BUY | V6: 0 | W6: 31.347813 | X6: 0 | Z6: TRADING IDEA
A7: 2013-04-29 | B7: 41.009998 | C7: 41.07 | D7: 40.860001 | E7: 41.02 | F7: 31.54003 | G7: 6696000 | I7: =F7/E7 -> 0.7688939542 | J7: =B7*$I7 -> 31.53233952 | K7: =C7*$I7 -> 31.5784747 | L7: =D7*$I7 -> 31.41700774 | M7: =E7*$I7 -> 31.54003 | N7: 8708613.15 | P7: 31.51183748 | Q7: 274424402.2 | R7: 3179474967 | S7: 100859940.7 | T7: 31.52366485 | U7: SELL | V7: SELL | W7: 31.54003 | X7: 0.00613175152 | Z7: If Current price below VWAP: BUY
A8: 2013-04-30 | B8: 40.98 | C8: 41.029999 | D8: 40.77 | E8: 40.939999 | F8: 31.478527 | G8: 11354900 | I8: =F8/E8 -> 0.768894181 | J8: =B8*$I8 -> 31.50928354 | K8: =C8*$I8 -> 31.54772748 | L8: =D8*$I8 -> 31.34781576 | M8: =E8*$I8 -> 31.478527 | N8: 14767831.88 | P8: 31.45802341 | Q8: 464566801.1 | R8: 3644041768 | S8: 115627772.6 | T8: 31.51528121 | U8: BUY | V8: BUY | W8: 31.478527 | X8: 0.001949998145 | Z8: If Current price above VWAP: SELL
A9: 2013-05-01 | B9: 40.889999 | C9: 41.200001 | D9: 40.84 | E9: 40.900002 | F9: 31.447756 | G9: 7556600 | I9: =F9/E9 -> 0.7688937521 | J9: =B9*$I9 -> 31.44006476 | K9: =C9*$I9 -> 31.67842336 | L9: =D9*$I9 -> 31.40162084 | M9: =E9*$I9 -> 31.447756 | N9: 9827885.815 | P9: 31.50926673 | Q9: 309669475.6 | R9: 3953711244 | S9: 125455658.4 | T9: 31.51481005 | U9: BUY | V9: 0 | W9: 31.478527 | X9: 0
A10: 2013-05-02 | B10: 40.91 | C10: 41.189999 | D10: 40.77 | E10: 41.049999 | F10: 31.563108 | G10: 9194000 | I10: =F10/E10 -> 0.7688942453 | J10: =B10*$I10 -> 31.45546357 | K10: =C10*$I10 -> 31.67075319 | L10: =D10*$I10 -> 31.34781838 | M10: =E10*$I10 -> 31.563108 | N10: 11957431.15 | P10: 31.52722652 | Q10: 376984640.5 | R10: 4330695884 | S10: 137413089.5 | T10: 31.51589051 | U10: SELL | V10: SELL | W10: 31.563108 | X10: 0.002686942753 | Z10: Must Close Off Position on Final Row
A11: 2013-05-03 | B11: 41.27 | C11: 41.369999 | D11: 41.099998 | E11: 41.23 | F11: 31.701498 | G11: 12843400 | I11: =F11/E11 -> 0.7688939607 | J11: =B11*$I11 -> 31.73225376 | K11: =C11*$I11 -> 31.80914239 | L11: =D11*$I11 -> 31.60154025 | M11: =E11*$I11 -> 31.701498 | N11: 16703733.75 | P11: 31.70406021 | Q11: 529576180.5 | R11: 4860272065 | S11: 154116823.3 | T11: 31.53628502 | U11: SELL | V11: 0 | W11: 31.563108 | X11: 0 | Z11: VERY IMPORTANT
A12: 2013-05-06 | B12: 41.200001 | C12: 41.200001 | D12: 40.880001 | E12: 40.93 | F12: 31.470827 | G12: 14530800 | I12: =F12/E12 -> 0.768893892 | J12: =B12*$I12 -> 31.67842912 | K12: =C12*$I12 -> 31.67842912 | L12: =D12*$I12 -> 31.43238307 | M12: =E12*$I12 -> 31.470827 | N12: 18898316.34 | P12: 31.52721306 | Q12: 595811245.7 | R12: 5456083311 | S12: 173015139.6 | T12: 31.5352941 | U12: BUY | V12: BUY | W12: 31.470827 | X12: 0.002923698135
A13: 2013-05-07 | B13: 41.009998 | C13: 41.25 | D13: 40.939999 | E13: 41.240002 | F13: 31.7092 | G13: 8152200 | I13: =F13/E13 -> 0.7688942401 | J13: =B13*$I13 -> 31.53235125 | K13: =C13*$I13 -> 31.7168874 | L13: =D13*$I13 -> 31.47852942 | M13: =E13*$I13 -> 31.7092 | N13: 10602498.46 | P13: 31.63487228 | Q13: 335408684.7 | R13: 5791491995 | S13: 183617638.1 | T13: 31.54104397 | U13: SELL | V13: SELL | W13: 31.7092 | X13: 0.007574411692 | Z13: We only enter one sell or one buy position at a time
A14: 2013-05-08 | B14: 41.23 | C14: 41.299999 | D14: 41.139999 | E14: 41.290001 | F14: 31.747627 | G14: 6623300 | I14: =F14/E14 -> 0.7688938298 | J14: =B14*$I14 -> 31.7014926 | K14: =C14*$I14 -> 31.7553144 | L14: =D14*$I14 -> 31.63229139 | M14: =E14*$I14 -> 31.747627 | N14: 8614063.143 | P14: 31.71174426 | Q14: 273166967.5 | R14: 6064658963 | S14: 192231701.2 | T14: 31.54869319 | U14: SELL | V14: 0 | W14: 31.7092 | X14: 0
A15: 2013-05-09 | B15: 41.259998 | C15: 41.349998 | D15: 40.900002 | E15: 41 | F15: 31.524645 | G15: 12872500 | I15: =F15/E15 -> 0.7688937805 | J15: =B15*$I15 -> 31.72455585 | K15: =C15*$I15 -> 31.79375629 | L15: =D15*$I15 -> 31.44775716 | M15: =E15*$I15 -> 31.524645 | N15: 16741584.24 | P15: 31.58871948 | Q15: 528845208.3 | R15: 6593504171 | S15: 208973285.5 | T15: 31.55189984 | U15: BUY | V15: BUY | W15: 31.524645 | X15: 0.005820235137 | Z15: Restrict multiple sells and buys
A16: 2013-05-10 | B16: 40.919998 | C16: 41.189999 | D16: 40.919998 | E16: 41.16 | F16: 31.647684 | G16: 8304700 | I16: =F16/E16 -> 0.7688941691 | J16: =B16*$I16 -> 31.46314786 | K16: =C16*$I16 -> 31.67075006 | L16: =D16*$I16 -> 31.46314786 | M16: =E16*$I16 -> 31.647684 | N16: 10800836.23 | P16: 31.59386064 | Q16: 341240114.7 | R16: 6934744286 | S16: 219774121.7 | T16: 31.55396201 | U16: SELL | V16: SELL | W16: 31.647684 | X16: 0.003902946409
A17: 2013-05-13 | B17: 41.119999 | C17: 41.380001 | D17: 41.049999 | E17: 41.23 | F17: 31.701498 | G17: 7821600 | I17: =F17/E17 -> 0.7688939607 | J17: =B17*$I17 -> 31.6169189 | K17: =C17*$I17 -> 31.81683286 | L17: =D17*$I17 -> 31.56309632 | M17: =E17*$I17 -> 31.701498 | N17: 10172534.06 | P17: 31.69380906 | Q17: 322406352 | R17: 7257150638 | S17: 229946655.7 | T17: 31.56014865 | U17: SELL | V17: 0 | W17: 31.647684 | X17: 0
A18: 2013-05-14 | B18: 41.209999 | C18: 41.73 | D18: 41.209999 | E18: 41.720001 | F18: 32.078259 | G18: 7373100 | I18: =F18/E18 -> 0.7688940132 | J18: =B18*$I18 -> 31.68612152 | K18: =C18*$I18 -> 32.08594717 | L18: =D18*$I18 -> 31.68612152 | M18: =E18*$I18 -> 32.078259 | N18: 9589227.999 | P18: 31.95010923 | Q18: 306376882 | R18: 7563527520 | S18: 239535883.7 | T18: 31.57575976 | U18: SELL | V18: 0 | W18: 31.647684 | X18: 0
A19: 2013-05-15 | B19: 41.700001 | C19: 42.200001 | D19: 41.66 | E19: 42.130001 | F19: 32.393509 | G19: 11728700 | I19: =F19/E19 -> 0.7688940952 | J19: =B19*$I19 -> 32.06288454 | K19: =C19*$I19 -> 32.44733159 | L19: =D19*$I19 -> 32.03212801 | M19: =E19*$I19 -> 32.393509 | N19: 15253986.31 | P19: 32.29098953 | Q19: 492566312.2 | R19: 8056093832 | S19: 254789870.1 | T19: 31.61857977 | U19: SELL | V19: 0 | W19: 31.647684 | X19: 0
A20: 2013-05-16 | B20: 42.029999 | C20: 42.110001 | D20: 41.810001 | E20: 41.880001 | F20: 32.201279 | G20: 9313100 | I20: =F20/E20 -> 0.7688939406 | J20: =B20*$I20 -> 32.31661155 | K20: =C20*$I20 -> 32.37812461 | L20: =D20*$I20 -> 32.14745642 | M20: =E20*$I20 -> 32.201279 | N20: 12112333.72 | P20: 32.24228668 | Q20: 390529336 | R20: 8446623168 | S20: 266902203.8 | T20: 31.64688432 | U20: SELL | V20: 0 | W20: 31.647684 | X20: 0
A21: 2013-05-17 | B21: 41.889999 | C21: 41.970001 | D21: 41.639999 | E21: 41.939999 | F21: 32.247417 | G21: 9368100 | I21: =F21/E21 -> 0.7688940813 | J21: =B21*$I21 -> 32.2089723 | K21: =C21*$I21 -> 32.27048536 | L21: =D21*$I21 -> 32.01674878 | M21: =E21*$I21 -> 32.247417 | N21: 12183862.81 | P21: 32.17821705 | Q21: 392054981.9 | R21: 8838678150 | S21: 279086066.6 | T21: 31.67008034 | U21: SELL | V21: 0 | W21: 31.647684 | X21: 0
A22: 2013-05-20 | B22: 41.91 | C22: 41.950001 | D22: 41.48 | E22: 41.509998 | F22: 31.916786 | G22: 9866600 | I22: =F22/E22 -> 0.7688939421 | J22: =B22*$I22 -> 32.22434511 | K22: =C22*$I22 -> 32.25510164 | L22: =D22*$I22 -> 31.89372072 | M22: =E22*$I22 -> 31.916786 | N22: 12832198.9 | P22: 32.02186945 | Q22: 410910998 | R22: 9249589148 | S22: 291918265.5 | T22: 31.68554435 | U22: SELL | V22: 0 | W22: 31.647684 | X22: 0
A23: 2013-05-21 | B23: 41.630001 | C23: 41.669998 | D23: 41.27 | E23: 41.549999 | F23: 31.947536 | G23: 10408400 | I23: =F23/E23 -> 0.7688937851 | J23: =B23*$I23 -> 32.00904904 | K23: =C23*$I23 -> 32.03980249 | L23: =D23*$I23 -> 31.73224651 | M23: =E23*$I23 -> 31.947536 | N23: 13536850.22 | P23: 31.90652833 | Q23: 431913894.9 | R23: 9681503043 | S23: 305455115.7 | T23: 31.6953377 | U23: SELL | V23: 0 | W23: 31.647684 | X23: 0
A24: 2013-05-22 | B24: 41.580002 | C24: 42.02 | D24: 41.34 | E24: 41.48 | F24: 31.893713 | G24: 16899000 | I24: =F24/E24 -> 0.768893756 | J24: =B24*$I24 -> 31.97060391 | K24: =C24*$I24 -> 32.30891563 | L24: =D24*$I24 -> 31.78606787 | M24: =E24*$I24 -> 31.893713 | N24: 21978329.08 | P24: 31.99623217 | Q24: 703223720 | R24: 1.038472676e+10 | S24: 327433444.8 | T24: 31.71553465 | U24: SELL | V24: 0 | W24: 31.647684 | X24: 0
A25: 2013-05-23 | B25: 41.139999 | C25: 41.450001 | D25: 41.049999 | E25: 41.310001 | F25: 31.763 | G25: 12831900 | I25: =F25/E25 -> 0.7688937117 | J25: =B25*$I25 -> 31.63228653 | K25: =C25*$I25 -> 31.87064512 | L25: =D25*$I25 -> 31.5630861 | M25: =E25*$I25 -> 31.763 | N25: 16688782.6 | P25: 31.73224374 | Q25: 529572517.3 | R25: 1.091429928e+10 | S25: 344122227.4 | T25: 31.71634498 | U25: SELL | V25: 0 | W25: 31.647684 | X25: 0
A26: 2013-05-24 | B26: 41.32 | C26: 41.720001 | D26: 41.32 | E26: 41.700001 | F26: 32.062893 | G26: 16015800 | I26: =F26/E26 -> 0.7688942981 | J26: =B26*$I26 -> 31.7707124 | K26: =C26*$I26 -> 32.07827089 | L26: =D26*$I26 -> 31.7707124 | M26: =E26*$I26 -> 32.062893 | N26: 20829651.15 | P26: 31.97062543 | Q26: 665936974.7 | R26: 1.158023625e+10 | S26: 364951878.5 | T26: 31.73085806 | U26: SELL | V26: 0 | W26: 31.647684 | X26: 0
A27: 2013-05-28 | B27: 42.060001 | C27: 42.189999 | D27: 41.639999 | E27: 41.77 | F27: 32.116699 | G27: 15727400 | I27: =F27/E27 -> 0.7688939191 | J27: =B27*$I27 -> 32.33967901 | K27: =C27*$I27 -> 32.43963368 | L27: =D27*$I27 -> 32.01674202 | M27: =E27*$I27 -> 32.116699 | N27: 20454577.17 | P27: 32.1910249 | Q27: 658453802.8 | R27: 1.223869006e+10 | S27: 385406455.7 | T27: 31.75528037 | U27: SELL | V27: 0 | W27: 31.647684 | X27: 0
A28: 2013-05-29 | B28: 41.529999 | C28: 41.57 | D28: 40.889999 | E28: 40.970001 | F28: 31.50157 | G28: 21414900 | I28: =F28/E28 -> 0.7688935619 | J28: =B28*$I28 -> 31.93214886 | K28: =C28*$I28 -> 31.96290537 | L28: =D28*$I28 -> 31.44005698 | M28: =E28*$I28 -> 31.50157 | N28: 27851579.28 | P28: 31.63484412 | Q28: 881080369 | R28: 1.311977043e+10 | S28: 413258035 | T28: 31.74716355 | U28: BUY | V28: BUY | W28: 31.50157 | X28: 0.004616893925
A29: 2013-05-30 | B29: 41.02 | C29: 41.16 | D29: 40.790001 | E29: 40.810001 | F29: 31.378571 | G29: 15949200 | I29: =F29/E29 -> 0.7688941493 | J29: =B29*$I29 -> 31.540038 | K29: =C29*$I29 -> 31.64768318 | L29: =D29*$I29 -> 31.36319312 | M29: =E29*$I29 -> 31.378571 | N29: 20743037.28 | P29: 31.4631491 | Q29: 652641274.6 | R29: 1.37724117e+10 | S29: 434001072.3 | T29: 31.73358911 | U29: BUY | V29: 0 | W29: 31.50157 | X29: 0
A30: 2013-05-31 | B30: 40.720001 | C30: 40.720001 | D30: 40.029999 | E30: 40.049999 | F30: 30.794199 | G30: 33824800 | I30: =F30/E30 -> 0.7688938769 | J30: =B30*$I30 -> 31.30935944 | K30: =C30*$I30 -> 31.30935944 | L30: =D30*$I30 -> 30.77882112 | M30: =E30*$I30 -> 30.794199 | N30: 43991506.52 | P30: 30.96079319 | Q30: 1362011935 | R30: 1.513442364e+10 | S30: 477992578.8 | T30: 31.66246571 | U30: BUY | V30: 0 | W30: 31.50157 | X30: 0
A31: 2013-06-03 | B31: 40.150002 | C31: 40.5 | D31: 39.68 | E31: 40.490002 | F31: 31.132509 | G31: 39020500 | I31: =F31/E31 -> 0.7688937383 | J31: =B31*$I31 -> 30.87108513 | K31: =C31*$I31 -> 31.1401964 | L31: =D31*$I31 -> 30.50970353 | M31: =E31*$I31 -> 31.132509 | N31: 50748885.13 | P31: 30.92746964 | Q31: 1569534604 | R31: 1.670395824e+10 | S31: 528741463.9 | T31: 31.5919204 | U31: BUY | V31: 0 | W31: 31.50157 | X31: 0
A32: 2013-06-04 | B32: 40.639999 | C32: 40.779999 | D32: 40.209999 | E32: 40.5 | F32: 31.140198 | G32: 12962800 | I32: =F32/E32 -> 0.7688937778 | J32: =B32*$I32 -> 31.24784236 | K32: =C32*$I32 -> 31.35548749 | L32: =D32*$I32 -> 30.91721804 | M32: =E32*$I32 -> 31.140198 | N32: 16859025.75 | P32: 31.13763451 | Q32: 524950182 | R32: 1.722890842e+10 | S32: 545600489.7 | T32: 31.57788299 | U32: BUY | V32: 0 | W32: 31.50157 | X32: 0
A33: 2013-06-05 | B33: 40.380001 | C33: 40.419998 | D33: 40 | E33: 40.009998 | F33: 30.763453 | G33: 17077900 | I33: =F33/E33 -> 0.7688941399 | J33: =B33*$I33 -> 31.04794614 | K33: =C33*$I33 -> 31.0786996 | L33: =D33*$I33 -> 30.7557656 | M33: =E33*$I33 -> 30.763453 | N33: 22210989.93 | P33: 30.86597273 | Q33: 685563809.6 | R33: 1.791447223e+10 | S33: 567811479.6 | T33: 31.55003531 | U33: BUY | V33: 0 | W33: 31.50157 | X33: 0
A34: 2013-06-06 | B34: 39.990002 | C34: 40.189999 | D34: 39.700001 | E34: 40.18 | F34: 30.894161 | G34: 12352700 | I34: =F34/E34 -> 0.768894002 | J34: =B34*$I34 -> 30.74807268 | K34: =C34*$I34 -> 30.90184917 | L34: =D34*$I34 -> 30.52509265 | M34: =E34*$I34 -> 30.894161 | N34: 16065543.45 | P34: 30.77370094 | Q34: 494396229.7 | R34: 1.840886846e+10 | S34: 583877023 | T34: 31.52867425 | U34: BUY | V34: 0 | W34: 31.50157 | X34: 0
A35: 2013-06-07 | B35: 40.389999 | C35: 40.849998 | D35: 40.389999 | E35: 40.68 | F35: 31.278614 | G35: 18700800 | I35: =F35/E35 -> 0.7688941495 | J35: =B35*$I35 -> 31.05563393 | K35: =C35*$I35 -> 31.40932447 | L35: =D35*$I35 -> 31.05563393 | M35: =E35*$I35 -> 31.278614 | N35: 24321683.31 | P35: 31.24785747 | Q35: 760000493.3 | R35: 1.916886896e+10 | S35: 608198706.4 | T35: 31.51744447 | U35: BUY | V35: 0 | W35: 31.50157 | X35: 0
A36: 2013-06-10 | B36: 40.849998 | C36: 40.849998 | D36: 40.490002 | E36: 40.68 | F36: 31.278614 | G36: 11190300 | I36: =F36/E36 -> 0.7688941495 | J36: =B36*$I36 -> 31.40932447 | K36: =C36*$I36 -> 31.40932447 | L36: =D36*$I36 -> 31.13252565 | M36: =E36*$I36 -> 31.278614 | N36: 14553758.81 | P36: 31.27348804 | Q36: 455146802 | R36: 1.962401576e+10 | S36: 622752465.2 | T36: 31.5117432 | U36: BUY | V36: 0 | W36: 31.50157 | X36: 0
A37: 2013-06-11 | B37: 40.450001 | C37: 40.860001 | D37: 40.32 | E37: 40.580002 | F37: 31.201727 | G37: 20334000 | I37: =F37/E37 -> 0.7688941711 | J37: =B37*$I37 -> 31.10176999 | K37: =C37*$I37 -> 31.4170166 | L37: =D37*$I37 -> 31.00181298 | M37: =E37*$I37 -> 31.201727 | N37: 26445772.08 | P37: 31.20685219 | Q37: 825289300.3 | R37: 2.044930506e+10 | S37: 649198237.2 | T37: 31.49932314 | U37: BUY | V37: 0 | W37: 31.50157 | X37: 0
A38: 2013-06-12 | B38: 40.73 | C38: 40.900002 | D38: 40.380001 | E38: 40.380001 | F38: 31.047943 | G38: 14908400 | I38: =F38/E38 -> 0.7688940622 | J38: =B38*$I38 -> 31.31705515 | K38: =C38*$I38 -> 31.44776868 | L38: =D38*$I38 -> 31.047943 | M38: =E38*$I38 -> 31.047943 | N38: 19389407.11 | P38: 31.18121823 | Q38: 604585334.5 | R38: 2.105389039e+10 | S38: 668587644.4 | T38: 31.49009793 | U38: BUY | V38: 0 | W38: 31.50157 | X38: 0
A39: 2013-06-13 | B39: 40.470001 | C39: 41.880001 | D39: 40.220001 | E39: 40.799999 | F39: 31.370874 | G39: 13048700 | I39: =F39/E39 -> 0.7688939894 | J39: =B39*$I39 -> 31.11714052 | K39: =C39*$I39 -> 32.20128105 | L39: =D39*$I39 -> 30.92491702 | M39: =E39*$I39 -> 31.370874 | N39: 16970740.02 | P39: 31.49902402 | Q39: 534561747.7 | R39: 2.158845214e+10 | S39: 685558384.4 | T39: 31.49031889 | U39: BUY | V39: 0 | W39: 31.50157 | X39: 0
A40: 2013-06-14 | B40: 40.73 | C40: 41.029999 | D40: 40.59 | E40: 40.700001 | F40: 31.293985 | G40: 8453300 | I40: =F40/E40 -> 0.7688939615 | J40: =B40*$I40 -> 31.31705105 | K40: =C40*$I40 -> 31.54771847 | L40: =D40*$I40 -> 31.2094059 | M40: =E40*$I40 -> 31.293985 | N40: 10994103.77 | P40: 31.35036979 | Q40: 344669218.7 | R40: 2.193312136e+10 | S40: 696552488.1 | T40: 31.48810999 | U40: BUY | V40: 0 | W40: 31.50157 | X40: 0
A41: 2013-06-17 | B41: 40.830002 | C41: 41.23 | D41: 40.779999 | E41: 41.060001 | F41: 31.57081 | G41: 9877200 | I41: =F41/E41 -> 0.7688945258 | J41: =B41*$I41 -> 31.39396503 | K41: =C41*$I41 -> 31.7015213 | L41: =D41*$I41 -> 31.35551799 | M41: =E41*$I41 -> 31.57081 | N41: 12845975.19 | P41: 31.54261643 | Q41: 405195668 | R41: 2.233831703e+10 | S41: 709398463.3 | T41: 31.489097 | U41: SELL | V41: SELL | W41: 31.57081 | X41: 0.002197985688
A42: 2013-06-18 | B42: 41.060001 | C42: 41.259998 | D42: 40.93 | E42: 41.209999 | F42: 31.686117 | G42: 8441200 | I42: =F42/E42 -> 0.7688939036 | J42: =B42*$I42 -> 31.57078445 | K42: =C42*$I42 -> 31.72456093 | L42: =D42*$I42 -> 31.47082748 | M42: =E42*$I42 -> 31.686117 | N42: 10978367.7 | P42: 31.62716847 | Q42: 347214684.9 | R42: 2.268553171e+10 | S42: 720376831 | T42: 31.49120118 | U42: SELL | V42: 0 | W42: 31.57081 | X42: 0
A43: 2013-06-19 | B43: 41.209999 | C43: 41.299999 | D43: 40.389999 | E43: 40.389999 | F43: 31.055634 | G43: 25795200 | I43: =F43/E43 -> 0.7688941512 | J43: =B43*$I43 -> 31.6861272 | K43: =C43*$I43 -> 31.75532768 | L43: =D43*$I43 -> 31.055634 | M43: =E43*$I43 -> 31.055634 | N43: 33548440.91 | P43: 31.28886523 | Q43: 1049692646 | R43: 2.373522436e+10 | S43: 753925271.9 | T43: 31.48219756 | U43: BUY | V43: BUY | W43: 31.055634 | X43: 0.01631811157
A44: 2013-06-20 | B44: 40.049999 | C44: 40.279999 | D44: 39.099998 | E44: 39.169998 | F44: 30.117569 | G44: 32296500 | I44: =F44/E44 -> 0.76889381 | J44: =B44*$I44 -> 30.79419632 | K44: =C44*$I44 -> 30.9710419 | L44: =D44*$I44 -> 30.06374643 | M44: =E44*$I44 -> 30.117569 | N44: 42003849.66 | P44: 30.38411911 | Q44: 1276249971 | R44: 2.501147433e+10 | S44: 795929121.6 | T44: 31.42424828 | U44: BUY | V44: 0 | W44: 31.055634 | X44: 0
A45: 2013-06-21 | B45: 39.209999 | C45: 39.630001 | D45: 39.040001 | E45: 39.43 | F45: 30.51536 | G45: 22743500 | I45: =F45/E45 -> 0.7739122496 | J45: =B45*$I45 -> 30.34509853 | K45: =C45*$I45 -> 30.67014322 | L45: =D45*$I45 -> 30.213535 | M45: =E45*$I45 -> 30.51536 | N45: 29387698.69 | P45: 30.46634607 | Q45: 895335798.5 | R45: 2.590681013e+10 | S45: 825316820.3 | T45: 31.39013951 | U45: BUY | V45: 0 | W45: 31.055634 | X45: 0
A46: 2013-06-24 | B46: 39.150002 | C46: 39.650002 | D46: 38.869999 | E46: 39.27 | F46: 30.391542 | G46: 24973100 | I46: =F46/E46 -> 0.7739124523 | J46: =B46*$I46 -> 30.29867405 | K46: =C46*$I46 -> 30.68563028 | L46: =D46*$I46 -> 30.08197625 | M46: =E46*$I46 -> 30.391542 | N46: 32268637.01 | P46: 30.38638284 | Q46: 980527158 | R46: 2.688733729e+10 | S46: 857585457.3 | T46: 31.35237084 | U46: BUY | V46: 0 | W46: 31.055634 | X46: 0
A47: 2013-06-25 | B47: 39.439999 | C47: 39.48 | D47: 39.119999 | E47: 39.330002 | F47: 30.437981 | G47: 13004400 | I47: =F47/E47 -> 0.773912521 | J47: =B47*$I47 -> 30.52310906 | K47: =C47*$I47 -> 30.55406633 | L47: =D47*$I47 -> 30.27545705 | M47: =E47*$I47 -> 30.437981 | N47: 16803449.55 | P47: 30.42250146 | Q47: 511202968.3 | R47: 2.739854025e+10 | S47: 874388906.9 | T47: 31.3345012 | U47: BUY | V47: 0 | W47: 31.055634 | X47: 0
A48: 2013-06-26 | B48: 39.57 | C48: 39.889999 | D48: 39.57 | E48: 39.740002 | F48: 30.755276 | G48: 18133100 | I48: =F48/E48 -> 0.7739122912 | J48: =B48*$I48 -> 30.62370936 | K48: =C48*$I48 -> 30.87136052 | L48: =D48*$I48 -> 30.62370936 | M48: =E48*$I48 -> 30.755276 | N48: 23430432.89 | P48: 30.75011529 | Q48: 720488512.7 | R48: 2.811902877e+10 | S48: 897819339.7 | T48: 31.31925046 | U48: BUY | V48: 0 | W48: 31.055634 | X48: 0
A49: 2013-06-27 | B49: 39.990002 | C49: 40.290001 | D49: 39.900002 | E49: 39.919998 | F49: 30.894577 | G49: 10033600 | I49: =F49/E49 -> 0.7739122883 | J49: =B49*$I49 -> 30.94875396 | K49: =C49*$I49 -> 31.18092687 | L49: =D49*$I49 -> 30.87910185 | M49: =E49*$I49 -> 30.894577 | N49: 12964776.7 | P49: 30.98486857 | Q49: 401711902 | R49: 2.852074067e+10 | S49: 910784116.4 | T49: 31.31449062 | U49: BUY | V49: 0 | W49: 31.055634 | X49: 0
A50: 2013-06-28 | B50: 39.84 | C50: 40.040001 | D50: 39.639999 | E50: 39.669998 | F50: 30.701109 | G50: 11033300 | I50: =F50/E50 -> 0.7739125422 | J50: =B50*$I50 -> 30.83267568 | K50: =C50*$I50 -> 30.98745896 | L50: =D50*$I50 -> 30.6778924 | M50: =E50*$I50 -> 30.701109 | N50: 14256520.47 | P50: 30.78882012 | Q50: 438941444.3 | R50: 2.895968211e+10 | S50: 925040636.9 | T50: 31.3063891 | U50: BUY | V50: 0 | W50: 31.055634 | X50: 0
A51: 2013-07-01 | B51: 39.91 | C51: 40.25 | D51: 39.48 | E51: 39.959999 | F51: 30.925543 | G51: 11795300 | I51: =F51/E51 -> 0.7739125069 | J51: =B51*$I51 -> 30.88684815 | K51: =C51*$I51 -> 31.1499784 | L51: =D51*$I51 -> 30.55406577 | M51: =E51*$I51 -> 30.925543 | N51: 15241128.55 | P51: 30.87652906 | Q51: 470593148.4 | R51: 2.943027526e+10 | S51: 940281765.5 | T51: 31.29942145 | U51: BUY | V51: 0 | W51: 31.055634 | X51: 0
A52: 2013-07-02 | B52: 39.939999 | C52: 40.23 | D52: 39.869999 | E52: 40.009998 | F52: 30.964243 | G52: 5441200 | I52: =F52/E52 -> 0.7739126355 | J52: =B52*$I52 -> 30.91006989 | K52: =C52*$I52 -> 31.13450533 | L52: =D52*$I52 -> 30.855896 | M52: =E52*$I52 -> 30.964243 | N52: 7030767.751 | P52: 30.98488144 | Q52: 217847505.2 | R52: 2.964812277e+10 | S52: 947312533.2 | T52: 31.297087 | U52: BUY | V52: 0 | W52: 31.055634 | X52: 0
A53: 2013-07-03 | B53: 39.880001 | C53: 40.02 | D53: 39.650002 | E53: 39.93 | F53: 30.902323 | G53: 3985400 | I53: =F53/E53 -> 0.7739124217 | J53: =B53*$I53 -> 30.86362815 | K53: =C53*$I53 -> 30.97197512 | L53: =D53*$I53 -> 30.68562907 | M53: =E53*$I53 -> 30.902323 | N53: 5149678.294 | P53: 30.85330906 | Q53: 158884616 | R53: 2.980700738e+10 | S53: 952462211.5 | T53: 31.29468762 | U53: BUY | V53: 0 | W53: 31.055634 | X53: 0
A54: 2013-07-05 | B54: 40.02 | C54: 40.200001 | D54: 39.650002 | E54: 40.029999 | F54: 30.979721 | G54: 10602600 | I54: =F54/E54 -> 0.7739126099 | J54: =B54*$I54 -> 30.97198265 | K54: =C54*$I54 -> 31.11128769 | L54: =D54*$I54 -> 30.68563653 | M54: =E54*$I54 -> 30.979721 | N54: 13699996.44 | P54: 30.92554841 | Q54: 423679903.1 | R54: 3.023068729e+10 | S54: 966162207.9 | T54: 31.2894533 | U54: BUY | V54: 0 | W54: 31.055634 | X54: 0
A55: 2013-07-08 | B55: 40.080002 | C55: 40.470001 | D55: 40.080002 | E55: 40.43 | F55: 31.289278 | G55: 7611700 | I55: =F55/E55 -> 0.7739123918 | J55: =B55*$I55 -> 31.01841021 | K55: =C55*$I55 -> 31.32023527 | L55: =D55*$I55 -> 31.01841021 | M55: =E55*$I55 -> 31.289278 | N55: 9835350.979 | P55: 31.20930783 | Q55: 306954496.3 | R55: 3.053764178e+10 | S55: 975997558.9 | T55: 31.28864566 | U55: SELL | V55: SELL | W55: 31.289278 | X55: 0.00752340139
A56: 2013-07-09 | B56: 40.700001 | C56: 40.82 | D56: 40.630001 | E56: 40.73 | F56: 31.521458 | G56: 8937800 | I56: =F56/E56 -> 0.773912546 | J56: =B56*$I56 -> 31.4982414 | K56: =C56*$I56 -> 31.59111013 | L56: =D56*$I56 -> 31.44406752 | M56: =E56*$I56 -> 31.521458 | N56: 11548850.12 | P56: 31.51887855 | Q56: 364006804.3 | R56: 3.090164859e+10 | S56: 987546409 | T56: 31.29133811 | U56: SELL | V56: 0 | W56: 31.289278 | X56: 0
A57: 2013-07-10 | B57: 40.73 | C57: 40.959999 | D57: 40.669998 | E57: 40.779999 | F57: 31.560152 | G57: 7701700 | I57: =F57/E57 -> 0.7739125251 | J57: =B57*$I57 -> 31.52145715 | K57: =C57*$I57 -> 31.69945625 | L57: =D57*$I57 -> 31.47502085 | M57: =E57*$I57 -> 31.560152 | N57: 9951641.497 | P57: 31.5782097 | Q57: 314255022.1 | R57: 3.121590361e+10 | S57: 997498050.5 | T57: 31.29420012 | U57: SELL | V57: 0 | W57: 31.289278 | X57: 0
A58: 2013-07-11 | B58: 41.209999 | C58: 41.48 | D58: 41.169998 | E58: 41.419998 | F58: 32.055462 | G58: 12282200 | I58: =F58/E58 -> 0.7739126883 | J58: =B58*$I58 -> 31.89294111 | K58: =C58*$I58 -> 32.10189831 | L58: =D58*$I58 -> 31.86198383 | M58: =E58*$I58 -> 32.055462 | N58: 15870265.71 | P58: 32.00644805 | Q58: 507950835 | R58: 3.172385444e+10 | S58: 1013368316 | T58: 31.30535456 | U58: SELL | V58: 0 | W58: 31.289278 | X58: 0
A59: 2013-07-12 | B59: 41.349998 | C59: 41.470001 | D59: 41.279999 | E59: 41.43 | F59: 32.063183 | G59: 5566100 | I59: =F59/E59 -> 0.7739122134 | J59: =B59*$I59 -> 32.00126848 | K59: =C59*$I59 -> 32.09414026 | L59: =D59*$I59 -> 31.94709539 | M59: =E59*$I59 -> 32.063183 | N59: 7192159.4 | P59: 32.03480622 | Q59: 230399432.7 | R59: 3.195425388e+10 | S59: 1020560476 | T59: 31.3104952 | U59: SELL | V59: 0 | W59: 31.289278 | X59: 0
A60: 2013-07-15 | B60: 41.5 | C60: 41.5 | D60: 41.389999 | E60: 41.490002 | F60: 32.109627 | G60: 7076000 | I60: =F60/E60 -> 0.7739123994 | J60: =B60*$I60 -> 32.11736458 | K60: =C60*$I60 -> 32.11736458 | L60: =D60*$I60 -> 32.03223344 | M60: =E60*$I60 -> 32.109627 | N60: 9143153.676 | P60: 32.08640834 | Q60: 293370962.4 | R60: 3.224762484e+10 | S60: 1029703629 | T60: 31.31738485 | U60: SELL | V60: 0 | W60: 31.289278 | X60: 0
A61: 2013-07-16 | B61: 41.130001 | C61: 41.419998 | D61: 41.130001 | E61: 41.34 | F61: 31.993544 | G61: 10156700 | I61: =F61/E61 -> 0.7739125302 | J61: =B61*$I61 -> 31.83102314 | K61: =C61*$I61 -> 32.05545545 | L61: =D61*$I61 -> 31.83102314 | M61: =E61*$I61 -> 31.993544 | N61: 13123834.55 | P61: 31.96000753 | Q61: 419437850.9 | R61: 3.266706269e+10 | S61: 1042827464 | T61: 31.32547216 | U61: SELL | V61: 0 | W61: 31.289278 | X61: 0
A62: 2013-07-17 | B62: 41.41 | C62: 41.540001 | D62: 41.369999 | E62: 41.419998 | F62: 32.055462 | G62: 9365500 | I62: =F62/E62 -> 0.7739126883 | J62: =B62*$I62 -> 32.04772442 | K62: =C62*$I62 -> 32.14833384 | L62: =D62*$I62 -> 32.01676714 | M62: =E62*$I62 -> 32.055462 | N62: 12101494.32 | P62: 32.07352099 | Q62: 388137532.1 | R62: 3.305520022e+10 | S62: 1054928958 | T62: 31.33405332 | U62: SELL | V62: 0 | W62: 31.289278 | X62: 0
A63: 2013-07-18 | B63: 41.41 | C63: 41.709999 | D63: 41.349998 | E63: 41.560001 | F63: 32.163803 | G63: 7136100 | I63: =F63/E63 -> 0.7739124693 | J63: =B63*$I63 -> 32.04771536 | K63: =C63*$I63 -> 32.27988832 | L63: =D63*$I63 -> 32.00127906 | M63: =E63*$I63 -> 32.163803 | N63: 9220810.211 | P63: 32.14832346 | Q63: 296433589.2 | R63: 3.335163381e+10 | S63: 1064149768 | T63: 31.34110893 | U63: SELL | V63: 0 | W63: 31.289278 | X63: 0
